Workbook

Sheet 1. Information Sheet
V1: Algoma Power Inc.
V2: Atikokan Hydro Inc.
V3: Attawapiskat Power Corporation
V4: Bluewater Power Distribution Corporation
V5: Brant County Power Inc.
V6: Brantford Power Inc.
V7: Burlington Hydro Inc.
V8: Cambridge and North Dumfries Hydro Inc.
V9: Canadian Niagara Power Inc.
V10: Centre Wellington Hydro Ltd.
V11: Chapleau Public Utilities Corporation
M12: Version | N12: 2.6 unlock | V12: COLLUS PowerStream Corp.
V13: Cooperative Hydro Embrun Inc.
E14: Utility Name | F14: Innpower Corporation | V14: E.L.K. Energy Inc.
V15: Enersource Hydro Mississauga Inc.
E16: Service Territory | V16: Entegrus Powerlines Inc.
V17: EnWin Utilities Ltd.
E18: Assigned EB Number | F18: EB-2016-0085 | V18: Erie Thames Powerlines Corporation
V19: Espanola Regional Hydro Distribution Corporation
E20: Name of Contact and Title | F20: Brenda L Pinke | V20: Essex Powerlines Corporation
V21: Festival Hydro Inc.
E22: Phone Number | F22: 705-431-6870 Ext 262 | V22: Fort Albany Power Corporation
V23: Fort Frances Power Corporation
E24: Email Address | F24: brendap@innpower.ca | V24: Greater Sudbury Hydro Inc.
V25: Grimsby Power Inc.
V26: Guelph Hydro Electric Systems Inc.
B27: General Notes 1. Please ensure that your macros have been enabled. (Tools -> Macro -> Security) 2. Due to the time lag of deferral/variance account dispositions, this model assumes that all opening balances include previously disposed of amounts. Accordingly, all "Board Approved Dispositions" are deducted from the opening balance. 3. Please provide information in this model since the last time your balances were disposed. 4. For all Board-Approved dispositions, please ensure that the disposition amount has the same sign (e.g: debit balances are to have a positive figure and credit balance are to have a negative figure) as per the related Board decision. | V27: Haldimand County Hydro Inc.
V28: Halton Hills Hydro Inc.
B29: Notes | V29: Hearst Power Distribution Company Limited
V30: Horizon Utilities Corporation
C31: Pale green cells represent input cells. | V31: Hydro 2000 Inc.
V32: Hydro Hawkesbury Inc.
C33: Pale blue cells represent drop-down lists. The applicant should select the appropriate item from the drop-down list. | V33: Hydro One Brampton Networks Inc.
V34: Hydro One Networks Inc.
C35: White cells contain fixed values, automatically generated values or formulae. | V35: Hydro One Remote Communities Inc.
V36: Hydro Ottawa Limited
V37: Innpower Corporation
V38: Kashechewan Power Corporation
V39: Kenora Hydro Electric Corporation Ltd.
V40: Kingston Hydro Corporation
V41: Kitchener-Wilmot Hydro Inc.
V42: Lakefront Utilities Inc.
V43: Lakeland Power Distribution Ltd.
V44: London Hydro Inc.
V45: Midland Power Utility Corporation
V46: Milton Hydro Distribution Inc.
V47: Newmarket-Tay Power Distribution Ltd.
V48: Niagara Peninsula Energy Inc.
V49: Niagara-on-the-Lake Hydro Inc.
V50: Norfolk Power Distribution Inc.
V51: North Bay Hydro Distribution Limited
V52: Northern Ontario Wires Inc.
V53: Oakville Hydro Electricity Distribution Inc.
V54: Orangeville Hydro Limited
V55: Orillia Power Distribution Corporation
V56: Oshawa PUC Networks Inc.
V57: Ottawa River Power Corporation
V58: Peterborough Distribution Incorporated
V59: PowerStream Inc.
V60: PUC Distribution Inc.
V61: Renfrew Hydro Inc.
V62: Rideau St. Lawrence Distribution Inc.
V63: Sioux Lookout Hydro Inc.
V64: St. Thomas Energy Inc.
V65: Thunder Bay Hydro Electricity Distribution Inc.
V66: Tillsonburg Hydro Inc.
V67: Toronto Hydro-Electric System Limited
V68: Veridian Connections Inc.
V69: Wasaga Distribution Inc.
V70: Waterloo North Hydro Inc.
V71: Welland Hydro-Electric System Corp.
V72: Wellington North Power Inc.
V73: West Coast Huron Energy Inc.
V74: Westario Power Inc.
V75: Whitby Hydro Electric Corporation
V76: Woodstock Hydro Services Inc.

Sheet 2. 2015 Continuity Schedule
E19: 2010 | O19: 2011 | Y19: 2012 | AI19: 2013 | AS19: 2014 | BC19: 2015 | BM19: 2016 | BQ19: Projected Interest on Dec-31-15 Balances | BT19: 2.1.7 RRR
C20: Account Descriptions | D20: Account Number | E20: Opening Principal Amounts as of Jan-1-10 | F20: Transactions1 Debit / (Credit) during 2010 | G20: Board-Approved Disposition during 2010 | H20: Principal Adjustments2 during 2010 | I20: Closing Principal Balance as of Dec-31-10 | J20: Opening Interest Amounts as of Jan-1-10 | K20: Interest Jan-1 to Dec-31-10 | L20: Board-Approved Disposition during 2010 | M20: Interest Adjustments1 during 2010 | N20: Closing Interest Amounts as of Dec-31-10 | O20: Opening Principal Amounts as of Jan-1-11 | P20: Transactions2 Debit / (Credit) during 2011 | Q20: Board-Approved Disposition during 2011 | R20: Principal Adjustments2 during 2011 | S20: Closing Principal Balance as of Dec-31-11 | T20: Opening Interest Amounts as of Jan-1-11 | U20: Interest Jan-1 to Dec-31-11 | V20: Board-Approved Disposition during 2011 | W20: Interest Adjustments1 during 2011 | X20: Closing Interest Amounts as of Dec-31-11 | Y20: Opening Principal Amounts as of Jan-1-12 | Z20: Transactions2 Debit / (Credit) during 2012 | AA20: Board-Approved Disposition during 2012 | AB20: Principal Adjustments2 during 2012 | AC20: Closing Principal Balance as of Dec-31-12 | AD20: Opening Interest Amounts as of Jan-1-12 | AE20: Interest Jan-1 to Dec-31-12 | AF20: Board-Approved Disposition during 2012 | AG20: Interest Adjustments1 during 2012 | AH20: Closing Interest Amounts as of Dec-31-12 | AI20: Opening Principal Amounts as of Jan-1-13 | AJ20: Transactions2 Debit / (Credit) during 2013 | AK20: Board-Approved Disposition during 2013 | AL20: Principal Adjustments2 during 2013 | AM20: Closing Principal Balance as of Dec-31-13 | AN20: Opening Interest Amounts as of Jan-1-13 | AO20: Interest Jan-1 to Dec-31-13 | AP20: Board-Approved Disposition during 2013 | AQ20: Interest Adjustments1 during 2013 | AR20: Closing Interest Amounts as of Dec-31-13 | AS20: Opening Principal Amounts as of Jan-1-14 | AT20: Transactions2 Debit / (Credit) during 2014 | AU20: Board-Approved Disposition during 2014 | AV20: Principal Adjustments2 during 2014 | AW20: Closing Principal Balance as of Dec-31-14 | AX20: Opening Interest Amounts as of Jan-1-14 | AY20: Interest Jan-1 to Dec-31-14 | AZ20: Board-Approved Disposition during 2014 | BA20: Interest Adjustments1 during 2014 | BB20: Closing Interest Amounts as of Dec-31-14 | BC20: Opening Principal Amounts as of Jan-1-15 | BD20: Transactions2 Debit / (Credit) during 2015 | BE20: Board-Approved Disposition during 2015 | BF20: Principal Adjustments2 during 2015 | BG20: Closing Principal Balance as of Dec-31-15 | BH20: Opening Interest Amounts as of Jan-1-15 | BI20: Interest Jan-1 to Dec-31-15 | BJ20: Board-Approved Disposition during 2015 | BK20: Interest Adjustments1 during 2015 | BL20: Closing Interest Amounts as of Dec-31-15 | BM20: Principal Disposition during 2016 - instructed by Board | BN20: Interest Disposition during 2016 - instructed by Board | BO20: Closing Principal Balances as of Dec 31-15 Adjusted for Dispositions during 2016 | BP20: Closing Interest Balances as of Dec 31-14 Adjusted for Dispositions during 2015 | BQ20: Projected Interest from Jan 1, 2016 to December 31, 2016 on Dec 31 -15 balance adjusted for disposition during 2015 5 | BR20: Projected Interest from January 1, 2017 to April 30, 2017 on Dec 31 -15 balance adjusted for disposition during 2016 5 | BS20: Total Claim | BT20: As of Dec 31-15 | BU20: Variance RRR vs. 2015 Balance (Principal + Interest)
BS22: Claim before Forecasted Transactions
C23: Group 1 Accounts
A24: 1 | C24: LV Variance Account | D24: 1550 | E24: -43220 | F24: -218767 | G24: 119047 | I24: =E24+F24-G24+H24 -> -381034 | J24: 3449 | K24: -1402 | L24: 3060 | N24: =J24+K24-L24+M24 -> -1013 | O24: =I24 -> -381034 | P24: -46364 | Q24: -162267 | S24: =O24+P24-Q24+R24 -> -265131 | T24: =N24 -> -1013 | U24: -4872 | V24: 322 | X24: =T24+U24-V24+W24 -> -6207 | Y24: =S24 -> -265131 | Z24: -24959 | AA24: -218767 | AC24: =Y24+Z24-AA24+SUM(AB24:AB24) -> -71323 | AD24: =X24 -> -6207 | AE24: -2278 | AF24: -8788 | AH24: =AD24+AE24-AF24+AG24 -> 303 | AI24: =AC24 -> -71323 | AJ24: 148682 | AK24: -46364 | AM24: =AI24+AJ24-AK24+SUM(AL24:AL24) -> 123723 | AN24: =AH24 -> 303 | AO24: 310 | AP24: 1672 | AR24: =AN24+AO24-AP24+AQ24 -> -1059 | AS24: =AM24 -> 123723 | AT24: 101817 | AW24: =AS24+AT24-AU24+SUM(AV24:AV24) -> 225540 | AX24: =AR24 -> -1059 | AY24: 2512 | BB24: =AX24+AY24-AZ24+BA24 -> 1453 | BC24: =AW24 -> 225540 | BD24: 303480 | BE24: 123723 | BG24: =BC24+BD24-BE24+SUM(BF24:BF24) -> 405297 | BH24: =BB24 -> 1453 | BI24: 2125 | BJ24: 760 | BL24: =BH24+BI24-BJ24+BK24 -> 2818 | BM24: 0 | BN24: 0 | BO24: =BG24-BM24 -> 405297 | BP24: =BL24-BN24 -> 2818 | BQ24: =BG24*0.011 -> 4458.267 | BS24: =SUM(BO24:BR24) -> 412573.267 | BT24: =BO24+BP24 -> 408115 | BU24: =BT24-SUM(BG24,BL24) -> 0
A25: 2 | C25: Smart Metering Entity Charge Variance Account | D25: 1551 | I25: =E25+F25-G25+H25 -> 0 | N25: =J25+K25-L25+M25 -> 0 | O25: =I25 -> 0 | S25: =O25+P25-Q25+SUM(R25:R25) -> 0 | T25: =N25 -> 0 | X25: =T25+U25-V25+W25 -> 0 | Y25: 0 | Z25: 0 | AC25: =Y25+Z25-AA25+SUM(AB25:AB25) -> 0 | AD25: =X25 -> 0 | AH25: =AD25+AE25-AF25+AG25 -> 0 | AI25: 0 | AJ25: 9064 | AM25: 9064 | AN25: 0 | AO25: 105 | AR25: =AN25+AO25-AP25+AQ25 -> 105 | AS25: 9064 | AT25: -4678 | AW25: 4386 | AX25: 105 | AY25: 106 | BB25: =AX25+AY25-AZ25+BA25 -> 211 | BC25: 4386 | BD25: -5456 | BE25: 9064 | BG25: -10134 | BH25: 211 | BI25: -71 | BJ25: 238 | BL25: =BH25+BI25-BJ25+BK25 -> -98 | BO25: =BG25-BM25 -> -10134 | BP25: =BL25-BN25 -> -98 | BQ25: =BG25*0.011 -> -111.474 | BS25: =SUM(BO25:BR25) -> -10343.474 | BT25: =BO25+BP25 -> -10232 | BU25: =BT25-SUM(BG25,BL25) -> 0
A26: 3 | C26: RSVA - Wholesale Market Service Charge | D26: 1580 | E26: -484007 | F26: -248962 | G26: -418413 | I26: =E26+F26-G26+H26 -> -314556 | J26: -22771 | K26: -5019 | L26: -23489 | N26: =J26+K26-L26+M26 -> -4301 | O26: =I26 -> -314556 | P26: -291192 | Q26: -65594 | S26: =O26+P26-Q26+SUM(R26:R26) -> -540154 | T26: =N26 -> -4301 | U26: -6316 | V26: 52 | X26: =T26+U26-V26+W26 -> -10669 | Y26: -540154 | Z26: -340280 | AA26: -248962 | AC26: -631472 | AD26: -10669 | AE26: -8209 | AF26: -10507 | AH26: =AD26+AE26-AF26+AG26 -> -8371 | AI26: -631472 | AJ26: -182498 | AK26: -291192 | AM26: -522778 | AN26: -8371 | AO26: -8671 | AP26: -5869 | AR26: =AN26+AO26-AP26+AQ26 -> -11173 | AS26: -522778 | AT26: 6164 | AW26: -516614 | AX26: -11173 | AY26: -5611 | BB26: =AX26+AY26-AZ26+BA26 -> -16784 | BC26: -516614 | BD26: -526850 | BE26: -522778 | BG26: -520686 | BH26: -16784 | BI26: -2538 | BJ26: -18858 | BL26: =BH26+BI26-BJ26+BK26 -> -464 | BO26: -520686 | BP26: -464 | BQ26: -5727.546 | BS26: =SUM(BO26:BR26) -> -526877.546 | BT26: -521150 | BU26: 0
A27: 4 | C27: RSVA - Retail Transmission Network Charge | D27: 1584 | E27: -513630 | F27: 36888 | G27: -409791 | I27: -66951 | J27: -29534 | K27: -4040 | L27: -29753 | N27: -3821 | O27: -66951 | P27: -20724 | Q27: -103839 | S27: 16164 | T27: -3821 | U27: -189 | V27: -833 | X27: -3177 | Y27: 16164 | Z27: 57082 | AA27: 36888 | AC27: 36358 | AD27: -3177 | AE27: -480 | AF27: -4297 | AH27: 640 | AI27: 36358 | AJ27: 382888 | AK27: -20724 | AM27: 439970 | AN27: 640 | AO27: 3571 | AP27: 714 | AR27: 3497 | AS27: 439970 | AT27: -96692 | AW27: 343278 | AX27: 3497 | AY27: 5730 | BB27: 9227 | BC27: 343278 | BD27: 92901 | BE27: 439970 | BG27: -3791 | BH27: 9227 | BI27: -504 | BJ27: 9965 | BL27: -1242 | BO27: -3791 | BP27: -1242 | BQ27: -41.701 | BS27: -5074.701 | BT27: -5033 | BU27: 0
A28: 5 | C28: RSVA - Retail Transmission Connection Charge | D28: 1586 | E28: 572628 | F28: -113473 | G28: 613136 | I28: -153981 | J28: 71522 | K28: 3972 | L28: 72675 | N28: 2819 | O28: -153981 | P28: -99359 | Q28: -40508 | S28: -212832 | T28: 2819 | U28: -2733 | V28: -1565 | X28: 1651 | Y28: -212832 | Z28: 65226 | AA28: -113473 | AC28: -34133 | AD28: 1651 | AE28: -2364 | AF28: 1393 | AH28: -2106 | AI28: -34133 | AJ28: 240668 | AK28: -99359 | AM28: 305894 | AN28: -2106 | AO28: 2073 | AP28: -1689 | AR28: 1656 | AS28: 305894 | AT28: -157935 | AW28: 147959 | AX28: 1656 | AY28: 3374 | BB28: 5030 | BC28: 147959 | BD28: 185312 | BE28: 305894 | BG28: 27377 | BH28: 5030 | BI28: -1109 | BJ28: 6153 | BL28: -2232 | BO28: 27377 | BP28: -2232 | BQ28: 301.147 | BS28: 25446.147 | BT28: 25145 | BU28: 0
A29: 6 | C29: RSVA - Power (excluding Global Adjustment) | D29: 1588 | E29: 649281 | F29: -117209 | G29: 620568 | I29: -88496 | J29: -1739 | K29: 13842 | L29: 4720 | N29: 7383 | O29: -88496 | P29: -248519 | Q29: 28713 | S29: -365728 | T29: 7383 | U29: -1901 | V29: 3272 | X29: 2210 | Y29: -365728 | Z29: -70987 | AA29: -117209 | AC29: -319506 | AD29: 2210 | AE29: -4628 | AF29: 2391 | AH29: -4809 | AI29: -319506 | AJ29: 420819 | AK29: -248519 | AM29: 349832 | AN29: -4809 | AO29: 249 | AP29: -5052 | AR29: 492 | AS29: 349832 | AT29: 183234 | AW29: 533066 | AX29: 492 | AY29: 11112 | BB29: 11604 | BC29: 533066 | BD29: -516208 | BE29: 349831 | BG29: -332973 | BH29: 11604 | BI29: 1400 | BJ29: 5635 | BL29: 7369 | BO29: -332973 | BP29: 7369 | BQ29: -3662.703 | BS29: -329266.703 | BT29: -325604 | BU29: 0
A30: 7 | C30: RSVA - Global Adjustment | D30: 1589 | E30: 316313 | F30: -30715 | G30: 107517 | I30: 178081 | J30: 13502 | K30: 2156 | L30: 17442 | N30: -1784 | O30: 178081 | P30: 441977 | Q30: 208797 | S30: 411261 | T30: -1784 | U30: 3909 | V30: -1822 | X30: 3947 | Y30: 411261 | Z30: 120240 | AA30: -30716 | AC30: 562217 | AD30: 3947 | AE30: -447 | AF30: -3522 | AH30: 7022 | AI30: 562217 | AJ30: 477578 | AK30: 441977 | AM30: 597818 | AN30: 7022 | AO30: 7603 | AP30: 16132 | AR30: -1507 | AS30: 597818 | AT30: 443215 | AW30: 1041033 | AX30: -1507 | AY30: 6070 | BB30: 4563 | BC30: 1041033 | BD30: 363636 | BE30: 597818 | BG30: 806851 | BH30: 4563 | BI30: 5083 | BJ30: 7281 | BL30: 2365 | BO30: 806851 | BP30: 2365 | BQ30: 8875.361 | BS30: 818091.361 | BT30: 809216 | BU30: 0
A31: 8 | C31: Disposition and Recovery/Refund of Regulatory Balances (2008) | D31: 1595 | I31: 0 | N31: 0 | O31: =I31 -> 0 | S31: 0 | T31: =N31 -> 0 | X31: 0 | Y31: =S31 -> 0 | AC31: 0 | AD31: 0 | AH31: 0 | AI31: 0 | AM31: 0 | AN31: 0 | AO31: 0 | AR31: 0 | AS31: =AM31 -> 0 | AW31: 0 | AX31: 0 | BB31: 0 | BC31: =AW31 -> 0 | BG31: 0 | BH31: 0 | BL31: 0 | BO31: 0 | BP31: 0 | BQ31: 0 | BS31: 0 | BT31: 0 | BU31: 0
A32: 9 | C32: Disposition and Recovery/Refund of Regulatory Balances (2009) | D32: 1595 | I32: 0 | N32: 0 | O32: 0 | S32: 0 | T32: 0 | X32: 0 | Y32: 0 | Z32: 8405 | AC32: 8405 | AD32: -50021 | AE32: 96656 | AH32: 46635 | AI32: 8405 | AJ32: -48523 | AM32: -40118 | AN32: 46635 | AO32: -418 | AR32: 46217 | AS32: -40118 | AT32: -267 | AW32: -40385 | AX32: 46217 | AY32: 34 | BB32: 46251 | BC32: -40385 | BD32: 267 | BE32: -40118 | BG32: 0 | BH32: 46251 | BI32: -624 | BJ32: 45627 | BL32: 0 | BO32: 0 | BP32: 0 | BQ32: 0 | BS32: 0 | BT32: 0 | BU32: 0
A33: 10 | C33: Disposition and Recovery/Refund of Regulatory Balances (2010) | D33: 1595 | I33: =E33+F33-G33+H33 -> 0 | N33: =J33+K33-L33+M33 -> 0 | O33: =I33 -> 0 | P33: -7183 | S33: -7183 | T33: =N33 -> 0 | W33: -86868 | X33: =T33+U33-V33+W33 -> -86868 | Y33: -7183 | AC33: -7183 | AD33: -86868 | AE33: -141 | AH33: =AD33+AE33-AF33+AG33 -> -87009 | AI33: -7183 | AJ33: 0 | AK33: -7183 | AM33: 0 | AN33: -87009 | AO33: 0 | AP33: -87009 | AR33: =AN33+AO33-AP33+AQ33 -> 0 | AS33: 0 | AW33: 0 | AX33: 0 | BB33: =AX33+AY33-AZ33+BA33 -> 0 | BC33: 0 | BG33: 0 | BH33: 0 | BL33: =BH33+BI33-BJ33+BK33 -> 0 | BO33: 0 | BP33: 0 | BQ33: 0 | BS33: 0 | BT33: 0 | BU33: 0
A34: 11 | C34: Disposition and Recovery/Refund of Regulatory Balances (2011) | D34: 1595 | I34: 0 | N34: 0 | O34: 0 | S34: =O34+P34-Q34+SUM(R34:R34) -> 0 | T34: 0 | X34: 0 | Y34: 0 | Z34: -7937 | AC34: =Y34+Z34-AA34+SUM(AB34:AB34) -> -7937 | AD34: =X34 -> 0 | AE34: -9143 | AH34: -9143 | AI34: -7937 | AJ34: -606 | AM34: -8543 | AN34: -9143 | AO34: -121 | AR34: -9264 | AS34: -8543 | AW34: -8543 | AX34: -9264 | AY34: -126 | BB34: -9390 | BC34: -8543 | BE34: -8543 | BG34: 0 | BH34: -9390 | BJ34: -9390 | BL34: 0 | BO34: 0 | BP34: 0 | BQ34: 0 | BS34: 0 | BT34: 0 | BU34: 0
A35: 12 | C35: Disposition and Recovery/Refund of Regulatory Balances (2012) | D35: 1595 | I35: 0 | N35: 0 | O35: 0 | S35: =O35+P35-Q35+SUM(R35:R35) -> 0 | T35: 0 | X35: 0 | Y35: 0 | AC35: =Y35+Z35-AA35+SUM(AB35:AB35) -> 0 | AD35: =X35 -> 0 | AH35: 0 | AI35: 0 | AJ35: -203204 | AM35: -203204 | AN35: 0 | AO35: -109339 | AR35: -109339 | AS35: -203204 | AT35: 264952 | AW35: 61748 | AX35: -109339 | AY35: 71135 | BB35: -38204 | BC35: 61748 | BD35: 2445 | BG35: 64193 | BH35: -38204 | BI35: 758 | BL35: -37446 | BO35: 64193 | BP35: -37446 | BQ35: 706.123 | BS35: 27453.123 | BT35: 26747 | BU35: 0
A36: 13 | C36: Disposition and Recovery/Refund of Regulatory Balances (2013) | D36: 1595 | I36: 0 | N36: 0 | O36: 0 | S36: =O36+P36-Q36+SUM(R36:R36) -> 0 | T36: 0 | X36: 0 | Y36: 0 | AC36: =Y36+Z36-AA36+SUM(AB36:AB36) -> 0 | AD36: =X36 -> 0 | AH36: 0 | AI36: 0 | AJ36: 186127 | AK36: 248860 | AM36: =AI36+AJ36-AK36+SUM(AL36:AL36) -> -62733 | AN36: 0 | AO36: -1503 | AP36: 57757 | AR36: -59260 | AS36: -62733 | AT36: 211714 | AW36: 148981 | AX36: -59260 | AY36: 2015 | BB36: -57245 | BC36: 148981 | BD36: 117 | BG36: 149098 | BH36: -57245 | BI36: 1763 | BL36: -55482 | BO36: 149098 | BP36: -55482 | BQ36: 1640.078 | BS36: =SUM(BO36:BR36) -> 95256.078 | BT36: 93616 | BU36: 0
A37: 14 | C37: Disposition and Recovery/Refund of Regulatory Balances (2015) | D37: 1595 | I37: 0 | N37: 0 | O37: 0 | S37: =O37+P37-Q37+SUM(R37:R37) -> 0 | T37: 0 | X37: 0 | Y37: 0 | AC37: =Y37+Z37-AA37+SUM(AB37:AB37) -> 0 | AD37: =X37 -> 0 | AH37: 0 | AI37: 0 | AM37: 0 | AN37: 0 | AR37: 0 | AS37: 0 | AW37: 0 | AX37: 0 | BB37: 0 | BC37: 0 | BD37: -1108824 | BE37: -1254861 | BG37: 146037 | BH37: 0 | BI37: 8677 | BJ37: -47410 | BL37: 56087 | BO37: 146037 | BP37: 56087 | BQ37: 1606.407 | BS37: =SUM(BO37:BR37) -> 203730.407 | BT37: 202124 | BU37: 0
A38: 15 | C38: Disposition and Recovery/Refund of Regulatory Balances (2015) | D38: 1595 | I38: 0 | N38: 0 | O38: 0 | S38: =O38+P38-Q38+SUM(R38:R38) -> 0 | T38: 0 | X38: 0 | Y38: =S38 -> 0 | AC38: =Y38+Z38-AA38+SUM(AB38:AB38) -> 0 | AD38: =X38 -> 0 | AH38: 0 | AI38: =AC38 -> 0 | AM38: =AI38+AJ38-AK38+SUM(AL38:AL38) -> 0 | AN38: =AH38 -> 0 | AR38: 0 | AS38: =AM38 -> 0 | AW38: =AS38+AT38-AU38+SUM(AV38:AV38) -> 0 | AX38: =AR38 -> 0 | BB38: 0 | BC38: =AW38 -> 0 | BG38: =BC38+BD38-BE38+SUM(BF38:BF38) -> 0 | BH38: =BB38 -> 0 | BL38: 0 | BO38: =BG38-BM38 -> 0 | BP38: =BL38-BN38 -> 0 | BQ38: 0 | BS38: =SUM(BO38:BR38) -> 0 | BT38: 0 | BU38: =BT38-SUM(BG38,BL38) -> 0
C40: Group 1 Sub-Total (including Account 1589 - Global Adjustment) | E40: =SUM(E24:E37) -> 497365 | F40: -692238 | G40: 632064 | H40: 0 | I40: -826937 | J40: 34429 | K40: 9509 | L40: 44655 | M40: 0 | N40: -717 | O40: -826937 | P40: -271364 | Q40: -134698 | R40: 0 | S40: -963603 | T40: -717 | U40: -12102 | V40: -574 | W40: -86868 | X40: -99113 | Y40: -963603 | Z40: -193210 | AA40: -692239 | AB40: 0 | AC40: -464574 | AD40: -149134 | AE40: 68966 | AF40: -23330 | AG40: 0 | AH40: -56838 | AI40: -464574 | AJ40: 1430995 | AK40: =SUM(AK24:AK37) -> -22504 | AL40: 0 | AM40: 988925 | AN40: -56838 | AO40: -106141 | AP40: -23344 | AQ40: 0 | AR40: -139635 | AS40: 988925 | AT40: 951524 | AU40: 0 | AV40: 0 | AW40: 1940449 | AX40: -139635 | AY40: 96351 | AZ40: 0 | BA40: 0 | BB40: -43284 | BC40: =SUM(BC24:BC38) -> 1940449 | BD40: =SUM(BD24:BD38) -> -1209180 | BE40: =SUM(BE24:BE38) -> 0 | BF40: 0 | BG40: 731269 | BH40: -43284 | BI40: 14960 | BJ40: 1 | BK40: 0 | BL40: -28325 | BM40: 0 | BN40: 0 | BO40: 731269 | BP40: -28325 | BQ40: 8043.959 | BR40: 0 | BS40: 710987.959 | BT40: 702944 | BU40: 0
C41: Group 1 Sub-Total (excluding Account 1589 - Global Adjustment) | E41: =E40-E42 -> 181052 | F41: -661523 | G41: 524547 | H41: 0 | I41: -1005018 | J41: 20927 | K41: 7353 | L41: 27213 | M41: 0 | N41: 1067 | O41: -1005018 | P41: -713341 | Q41: -343495 | R41: 0 | S41: -1374864 | T41: 1067 | U41: -16011 | V41: 1248 | W41: -86868 | X41: -103060 | Y41: -1374864 | Z41: -313450 | AA41: -661523 | AB41: 0 | AC41: -1026791 | AD41: -153081 | AE41: 69413 | AF41: -19808 | AG41: 0 | AH41: -63860 | AI41: =AI40-AI42 -> -1026791 | AJ41: 953417 | AK41: -464481 | AL41: 0 | AM41: 391107 | AN41: -63860 | AO41: -113744 | AP41: -39476 | AQ41: 0 | AR41: -138128 | AS41: =AS40-AS42 -> 391107 | AT41: 508309 | AU41: 0 | AV41: 0 | AW41: 899416 | AX41: -138128 | AY41: 90281 | AZ41: 0 | BA41: 0 | BB41: -47847 | BC41: =BC40-BC42 -> 899416 | BD41: =BD40-BD42 -> -1572816 | BE41: -597818 | BF41: 0 | BG41: -75582 | BH41: -47847 | BI41: 9877 | BJ41: -7280 | BK41: 0 | BL41: -30690 | BM41: =BM40-BM42 -> 0 | BN41: 0 | BO41: -75582 | BP41: -30690 | BQ41: -831.402 | BR41: 0 | BS41: -107103.402 | BT41: =BT40-BT42 -> -106272 | BU41: 0
C42: =C30 -> RSVA - Global Adjustment | D42: 1589 | E42: =E30 -> 316313 | F42: -30715 | G42: 107517 | H42: 0 | I42: 178081 | J42: 13502 | K42: 2156 | L42: 17442 | M42: 0 | N42: -1784 | O42: 178081 | P42: 441977 | Q42: 208797 | R42: 0 | S42: 411261 | T42: -1784 | U42: 3909 | V42: -1822 | W42: 0 | X42: 3947 | Y42: 411261 | Z42: 120240 | AA42: -30716 | AB42: 0 | AC42: 562217 | AD42: 3947 | AE42: -447 | AF42: -3522 | AG42: 0 | AH42: 7022 | AI42: 562217 | AJ42: 477578 | AK42: =AK30 -> 441977 | AL42: 0 | AM42: 597818 | AN42: 7022 | AO42: 7603 | AP42: 16132 | AQ42: 0 | AR42: -1507 | AS42: 597818 | AT42: 443215 | AU42: 0 | AV42: 0 | AW42: 1041033 | AX42: -1507 | AY42: 6070 | AZ42: 0 | BA42: 0 | BB42: 4563 | BC42: =BC30 -> 1041033 | BD42: =BD30 -> 363636 | BE42: 597818 | BF42: 0 | BG42: 806851 | BH42: 4563 | BI42: 5083 | BJ42: 7281 | BK42: 0 | BL42: 2365 | BM42: 0 | BN42: 0 | BO42: 806851 | BP42: 2365 | BQ42: 8875.361 | BR42: 0 | BS42: 818091.361 | BT42: =BT30 -> 809216 | BU42: 0
C44: Group 2 Accounts
A45: 15 | C45: Other Regulatory Assets - Sub-Account - Deferred IFRS Transition Costs | D45: 1508 | E45: 1362 | F45: 116694 | I45: =E45+F45-G45+H45 -> 118056 | J45: 7 | K45: 397 | N45: =J45+K45-L45+M45 -> 404 | O45: =I45 -> 118056 | P45: 180979 | S45: =O45+P45-Q45+SUM(R45:R45) -> 299035 | T45: =N45 -> 404 | U45: 3164 | X45: =T45+U45-V45+W45 -> 3568 | Y45: =S45 -> 299035 | Z45: 27732 | AC45: =Y45+Z45-AA45+SUM(AB45:AB45) -> 326767 | AD45: =X45 -> 3568 | AE45: 4520 | AH45: =AD45+AE45-AF45+AG45 -> 8088 | AI45: =AC45 -> 326767 | AJ45: -173101 | AK45: 9569 | AM45: =AI45+AJ45-AK45+SUM(AL45:AL45) -> 144097 | AN45: =AH45 -> 8088 | AO45: 4136 | AP45: 496 | AR45: =AN45+AO45-AP45+AQ45 -> 11728 | AS45: =AM45 -> 144097 | AT45: -144437 | AW45: =AS45+AT45-AU45+SUM(AV45:AV45) -> -340 | AX45: =AR45 -> 11728 | AY45: 509 | BB45: =AX45+AY45-AZ45+BA45 -> 12237 | BC45: =AW45 -> -340 | BD45: 22 | BG45: =BC45+BD45-BE45+SUM(BF45:BF45) -> -318 | BH45: =BB45 -> 12237 | BI45: 10 | BL45: =BH45+BI45-BJ45+BK45 -> 12247 | BO45: =BG45-BM45 -> -318 | BP45: =BL45-BN45 -> 12247 | BQ45: =BG45*0.011 -> -3.498 | BS45: 11925.502 | BT45: =BO45+BP45 -> 11929 | BU45: =BT45-SUM(BG45,BL45) -> 0
A46: 16 | C46: Other Regulatory Assets - Sub-Account - Incremental Capital Charges | D46: 1508 | I46: =E46+F46-G46+H46 -> 0 | N46: =J46+K46-L46+M46 -> 0 | O46: =I46 -> 0 | S46: 0 | T46: 0 | X46: =T46+U46-V46+W46 -> 0 | Y46: 0 | AC46: 0 | AD46: 0 | AH46: 0 | AI46: 0 | AM46: 0 | AN46: 0 | AR46: 0 | AS46: 0 | AW46: 0 | AX46: 0 | BB46: 0 | BC46: 0 | BG46: 0 | BH46: 0 | BL46: 0 | BO46: =BG46-BM46 -> 0 | BP46: =BL46-BN46 -> 0 | BQ46: 0 | BS46: 0 | BT46: 0 | BU46: 0
A47: 17 | C47: Other Regulatory Assets - Sub-Account - Financial Assistance Payment and Recovery Variance - Ontario Clean Energy Benefit Act8 | D47: 1508 | Y47: 0 | AC47: 0 | AD47: 0 | AH47: 0 | AI47: 0 | AM47: 0 | AN47: 0 | AR47: 0 | AS47: 0 | AW47: 0 | AX47: 0 | BB47: 0 | BC47: 0 | BG47: 0 | BH47: 0 | BL47: 0 | BO47: 0 | BP47: 0 | BQ47: 0 | BS47: 0 | BT47: 0 | BU47: 0
A48: 18 | C48: Other Regulatory Assets - Sub-Account - Financial Assistance Payment and Recovery Carrying Charges | D48: 1508 | Y48: 0 | AC48: 0 | AD48: 0 | AH48: 0 | AI48: 0 | AM48: 0 | AN48: 0 | AR48: 0 | AS48: 0 | AW48: 0 | AX48: 0 | BB48: 0 | BC48: 0 | BG48: 0 | BH48: 0 | BL48: 0 | BO48: 0 | BP48: 0 | BQ48: 0 | BS48: 0 | BT48: 0 | BU48: 0
A49: 19 | C49: Other Regulatory Assets - Sub-Account - Other 4 | D49: 1508 | I49: 0 | N49: 0 | O49: 0 | S49: 0 | T49: 0 | X49: 0 | Y49: 0 | AC49: 0 | AD49: 0 | AH49: 0 | AI49: 0 | AM49: 0 | AN49: 0 | AR49: 0 | AS49: 0 | AW49: 0 | AX49: 0 | BB49: 0 | BC49: 0 | BG49: 0 | BH49: 0 | BL49: 0 | BO49: 0 | BP49: 0 | BQ49: 0 | BS49: 0 | BT49: 0 | BU49: 0
A50: 20 | C50: Retail Cost Variance Account - Retail | D50: 1518 | E50: 728 | F50: 18696 | I50: 19424 | J50: -2171 | K50: 77 | N50: -2094 | O50: 19424 | P50: 12985 | S50: 32409 | T50: -2094 | U50: 387 | X50: -1707 | Y50: 32409 | Z50: 25167 | AC50: 57576 | AD50: -1707 | AE50: 636 | AH50: -1071 | AI50: 57576 | AJ50: 6366 | AK50: 32409 | AM50: 31533 | AN50: -1071 | AO50: 621 | AP50: -1071 | AR50: 621 | AS50: 31533 | AT50: 16785 | AW50: 48318 | AX50: 621 | AY50: 601 | BB50: 1222 | BC50: 48318 | BD50: 11011 | BG50: 59329 | BH50: 1222 | BI50: 620 | BL50: 1842 | BO50: 59329 | BP50: 1842 | BQ50: 652.619 | BS50: 61823.619 | BT50: 61171 | BU50: 0
A51: 21 | C51: Misc. Deferred Debits | D51: 1525 | I51: 0 | N51: 0 | O51: 0 | S51: 0 | T51: 0 | X51: 0 | Y51: 0 | AC51: 0 | AD51: 0 | AH51: 0 | AI51: 0 | AM51: 0 | AN51: 0 | AR51: 0 | AS51: 0 | AW51: 0 | AX51: 0 | BB51: 0 | BC51: 0 | BG51: 0 | BH51: 0 | BL51: 0 | BO51: 0 | BP51: 0 | BQ51: 0 | BS51: 0 | BT51: 0 | BU51: 0
A52: 22 | C52: Board-Approved CDM Variance Account | D52: 1567 | N52: 0 | S52: 0 | T52: 0 | X52: =T52+U52-V52+W52 -> 0 | Y52: 0 | AC52: 0 | AD52: 0 | AH52: 0 | AI52: 0 | AM52: 0 | AN52: 0 | AR52: =AN52+AO52-AP52+AQ52 -> 0 | AS52: 0 | AW52: 0 | AX52: 0 | BB52: =AX52+AY52-AZ52+BA52 -> 0 | BC52: 0 | BG52: 0 | BH52: 0 | BL52: =BH52+BI52-BJ52+BK52 -> 0 | BO52: 0 | BP52: 0 | BQ52: 0 | BS52: 0 | BT52: 0 | BU52: 0
A53: 23 | C53: Extra-Ordinary Event Costs | D53: 1572 | I53: 0 | N53: 0 | O53: =I53 -> 0 | S53: 0 | T53: 0 | X53: 0 | Y53: 0 | AC53: 0 | AD53: 0 | AH53: 0 | AI53: =AC53 -> 0 | AM53: 0 | AN53: 0 | AR53: =AN53+AO53-AP53+AQ53 -> 0 | AS53: =AM53 -> 0 | AW53: 0 | AX53: 0 | BB53: =AX53+AY53-AZ53+BA53 -> 0 | BC53: =AW53 -> 0 | BG53: 0 | BH53: 0 | BL53: =BH53+BI53-BJ53+BK53 -> 0 | BO53: 0 | BP53: 0 | BQ53: 0 | BS53: 0 | BT53: 0 | BU53: 0
A54: 24 | C54: Deferred Rate Impact Amounts | D54: 1574 | I54: 0 | N54: 0 | O54: =I54 -> 0 | S54: 0 | T54: 0 | X54: 0 | Y54: 0 | AC54: 0 | AD54: 0 | AH54: 0 | AI54: =AC54 -> 0 | AM54: 0 | AN54: 0 | AR54: =AN54+AO54-AP54+AQ54 -> 0 | AS54: =AM54 -> 0 | AW54: 0 | AX54: 0 | BB54: =AX54+AY54-AZ54+BA54 -> 0 | BC54: =AW54 -> 0 | BG54: 0 | BH54: 0 | BL54: =BH54+BI54-BJ54+BK54 -> 0 | BO54: 0 | BP54: 0 | BQ54: 0 | BS54: 0 | BT54: 0 | BU54: 0
A55: 25 | C55: RSVA - One-time | D55: 1582 | E55: 77920 | F55: 6740 | I55: 84660 | J55: 8627 | K55: 649 | N55: 9276 | O55: =I55 -> 84660 | P55: -13480 | S55: 71180 | T55: 9276 | U55: 1290 | X55: 10566 | Y55: 71180 | AC55: 71180 | AD55: 10566 | AE55: 1049.22 | AH55: 11615.22 | AI55: =AC55 -> 71180 | AK55: 71180.35 | AM55: -0.35 | AN55: 11615.22 | AO55: 346.87 | AP55: 11962.18 | AR55: =AN55+AO55-AP55+AQ55 -> -0.09 | AS55: =AM55 -> -0.35 | AW55: -0.35 | AX55: -0.09 | BB55: =AX55+AY55-AZ55+BA55 -> -0.09 | BC55: =AW55 -> -0.35 | BG55: -0.35 | BH55: -0.09 | BL55: =BH55+BI55-BJ55+BK55 -> -0.09 | BO55: -0.35 | BP55: -0.09 | BQ55: -0.00385 | BS55: -0.44385 | BT55: -0.44 | BU55: 0
A56: 26 | C56: Other Deferred Credits | D56: 2425 | E56: -31681 | F56: -4841 | I56: -36522 | J56: -47 | K56: -262 | N56: -309 | O56: =I56 -> -36522 | P56: -59531 | S56: -96053 | T56: -309 | U56: -537 | X56: -846 | Y56: -96053 | Z56: -6520 | AC56: -102573 | AD56: -846 | AE56: -540 | AH56: -1386 | AI56: =AC56 -> -102573 | AK56: -102573 | AM56: 0 | AN56: -1386 | AP56: -1386 | AR56: =AN56+AO56-AP56+AQ56 -> 0 | AS56: =AM56 -> 0 | AW56: 0 | AX56: 0 | BB56: =AX56+AY56-AZ56+BA56 -> 0 | BC56: =AW56 -> 0 | BG56: 0 | BH56: 0 | BL56: =BH56+BI56-BJ56+BK56 -> 0 | BO56: 0 | BP56: 0 | BQ56: 0 | BS56: 0 | BT56: 0 | BU56: 0
C58: Group 2 Sub-Total | E58: =SUM(E45:E56) -> 48329 | F58: 137289 | G58: 0 | H58: 0 | I58: 185618 | J58: 6416 | K58: 861 | L58: 0 | M58: 0 | N58: 7277 | O58: 185618 | P58: 120953 | Q58: 0 | R58: 0 | S58: 306571 | T58: 7277 | U58: 4304 | V58: 0 | W58: 0 | X58: 11581 | Y58: 306571 | Z58: 46379 | AA58: 0 | AB58: 0 | AC58: 352950 | AD58: 11581 | AE58: 5665.22 | AF58: 0 | AG58: 0 | AH58: 17246.22 | AI58: 352950 | AJ58: -166735 | AK58: =SUM(AK45:AK56) -> 10585.35 | AL58: 0 | AM58: 175629.65 | AN58: 17246.22 | AO58: 5103.87 | AP58: 10001.18 | AQ58: 0 | AR58: 12348.91 | AS58: 175629.65 | AT58: -127652 | AU58: 0 | AV58: 0 | AW58: 47977.65 | AX58: 12348.91 | AY58: 1110 | AZ58: 0 | BA58: 0 | BB58: 13458.91 | BC58: 47977.65 | BD58: 11033 | BE58: 0 | BF58: 0 | BG58: 59010.65 | BH58: 13458.91 | BI58: 630 | BJ58: 0 | BK58: 0 | BL58: 14088.91 | BM58: 0 | BN58: 0 | BO58: 59010.65 | BP58: 14088.91 | BQ58: 649.11715 | BR58: 0 | BS58: 73748.67715 | BT58: =SUM(BT45:BT56) -> 73099.56 | BU58: =BT58-SUM(BG58,BL58) -> 0
A60: 27 | C60: PILs and Tax Variance for 2006 and Subsequent Years (excludes sub-account and contra account below) | D60: 1592 | I60: =E60+F60-G60+H60 -> 0 | N60: =J60+K60-L60+M60 -> 0 | O60: =I60 -> 0 | S60: =O60+P60-Q60+SUM(R60:R60) -> 0 | T60: =N60 -> 0 | X60: =T60+U60-V60+W60 -> 0 | Y60: =S60 -> 0 | AC60: =Y60+Z60-AA60+SUM(AB60:AB60) -> 0 | AD60: =X60 -> 0 | AH60: =AD60+AE60-AF60+AG60 -> 0 | AI60: =AC60 -> 0 | AM60: =AI60+AJ60-AK60+SUM(AL60:AL60) -> 0 | AN60: =AH60 -> 0 | AR60: =AN60+AO60-AP60+AQ60 -> 0 | AS60: =AM60 -> 0 | AW60: =AS60+AT60-AU60+SUM(AV60:AV60) -> 0 | AX60: =AR60 -> 0 | BB60: =AX60+AY60-AZ60+BA60 -> 0 | BC60: =AW60 -> 0 | BG60: =BC60+BD60-BE60+SUM(BF60:BF60) -> 0 | BH60: =BB60 -> 0 | BL60: =BH60+BI60-BJ60+BK60 -> 0 | BO60: =BG60-BM60 -> 0 | BP60: =BL60-BN60 -> 0 | BQ60: =BG60*0.011 -> 0 | BS60: 0 | BT60: =BO60+BP60 -> 0 | BU60: =BT60-SUM(BG60,BL60) -> 0
A61: 28 | C61: PILs and Tax Variance for 2006 and Subsequent Years - Sub-Account HST/OVAT Input Tax Credits (ITCs) | D61: 1592 | F61: -14870 | I61: =E61+F61-G61+H61 -> -14870 | N61: =J61+K61-L61+M61 -> 0 | O61: =I61 -> -14870 | P61: -33762 | S61: =O61+P61-Q61+SUM(R61:R61) -> -48632 | T61: =N61 -> 0 | X61: =T61+U61-V61+W61 -> 0 | Y61: =S61 -> -48632 | AC61: =Y61+Z61-AA61+SUM(AB61:AB61) -> -48632 | AD61: =X61 -> 0 | AH61: =AD61+AE61-AF61+AG61 -> 0 | AI61: =AC61 -> -48632 | AL61: 72700 | AM61: =AI61+AJ61-AK61+SUM(AL61:AL61) -> 24068 | AN61: =AH61 -> 0 | AR61: =AN61+AO61-AP61+AQ61 -> 0 | AS61: =AM61 -> 24068 | AT61: -22391 | AW61: =AS61+AT61-AU61+SUM(AV61:AV61) -> 1677 | AX61: =AR61 -> 0 | BB61: =AX61+AY61-AZ61+BA61 -> 0 | BC61: =AW61 -> 1677 | BD61: -64 | BG61: =BC61+BD61-BE61+SUM(BF61:BF61) -> 1613 | BH61: =BB61 -> 0 | BL61: =BH61+BI61-BJ61+BK61 -> 0 | BO61: =BG61-BM61 -> 1613 | BP61: =BL61-BN61 -> 0 | BQ61: =BG61*0.011 -> 17.743 | BS61: 1630.743 | BT61: =BO61+BP61 -> 1613 | BU61: =BT61-SUM(BG61,BL61) -> 0
C63: Total of Group 1 and Group 2 Accounts (including 1562 and 1592) | E63: =SUM(E60:E61,E58, E40) -> 545694 | F63: =SUM(F60:F61,F58, F40) -> -569819 | G63: =SUM(G60:G61,G58, G40) -> 632064 | H63: 0 | I63: -656189 | J63: 40845 | K63: 10370 | L63: 44655 | M63: 0 | N63: 6560 | O63: -656189 | P63: -184173 | Q63: -134698 | R63: 0 | S63: -705664 | T63: 6560 | U63: -7798 | V63: -574 | W63: -86868 | X63: -87532 | Y63: -705664 | Z63: -146831 | AA63: -692239 | AB63: 0 | AC63: -160256 | AD63: -137553 | AE63: 74631.22 | AF63: -23330 | AG63: 0 | AH63: -39591.78 | AI63: -160256 | AJ63: 1264260 | AK63: -11918.65 | AL63: 72700 | AM63: 1188622.65 | AN63: -39591.78 | AO63: -101037.13 | AP63: -13342.82 | AQ63: 0 | AR63: -127286.09 | AS63: 1188622.65 | AT63: 801481 | AU63: 0 | AV63: 0 | AW63: 1990103.65 | AX63: -127286.09 | AY63: 97461 | AZ63: 0 | BA63: 0 | BB63: -29825.09 | BC63: 1990103.65 | BD63: -1198211 | BE63: 0 | BF63: 0 | BG63: 791892.65 | BH63: -29825.09 | BI63: 15590 | BJ63: 1 | BK63: 0 | BL63: -14236.09 | BM63: 0 | BN63: 0 | BO63: 791892.65 | BP63: -14236.09 | BQ63: 8710.81915 | BR63: =SUM(BR60:BR61,BR58, BR40) -> 0 | BS63: =SUM(BS60:BS61,BS58, BS40) -> 786367.3792 | BT63: =SUM(BT60:BT61,BT58, BT40) -> 777656.56 | BU63: =BT63-SUM(BG63,BL63) -> 0
A66: 29 | C66: LRAM Variance Account | D66: 1568 | S66: =O66+P66-Q66+SUM(R66:R66) -> 0 | X66: =T66+U66-V66+W66 -> 0 | Y66: =S66 -> 0 | AC66: =Y66+Z66-AA66+SUM(AB66:AB66) -> 0 | AD66: =X66 -> 0 | AH66: =AD66+AE66-AF66+AG66 -> 0 | AI66: =AC66 -> 0 | AJ66: 30207 | AM66: =AI66+AJ66-AK66+SUM(AL66:AL66) -> 30207 | AN66: =AH66 -> 0 | AO66: 74 | AR66: =AN66+AO66-AP66+AQ66 -> 74 | AS66: =AM66 -> 30207 | AT66: -12249 | AW66: =AS66+AT66-AU66+SUM(AV66:AV66) -> 17958 | AX66: =AR66 -> 74 | AY66: 698 | BB66: =AX66+AY66-AZ66+BA66 -> 772 | BC66: =AW66 -> 17958 | BD66: 7055 | BG66: =BC66+BD66-BE66+SUM(BF66:BF66) -> 25013 | BH66: =BB66 -> 772 | BI66: 581 | BL66: =BH66+BI66-BJ66+BK66 -> 1353 | BO66: =BG66-BM66 -> 25013 | BP66: =BL66-BN66 -> 1353 | BQ66: =BG66*0.011 -> 275.143 | BS66: =SUM(BO66:BR66) -> 26641.143 | BT66: =BO66+BP66 -> 26366 | BU66: =BT66-SUM(BG66,BL66) -> 0
C69: Total including Account 1568 | E69: =E63+E66 -> 545694 | F69: -569819 | G69: 632064 | H69: 0 | I69: -656189 | J69: 40845 | K69: 10370 | L69: 44655 | M69: 0 | N69: 6560 | O69: -656189 | P69: -184173 | Q69: -134698 | R69: 0 | S69: -705664 | T69: 6560 | U69: -7798 | V69: -574 | W69: -86868 | X69: -87532 | Y69: -705664 | Z69: -146831 | AA69: -692239 | AB69: 0 | AC69: =AC63+AC66 -> -160256 | AD69: -137553 | AE69: 74631.22 | AF69: -23330 | AG69: 0 | AH69: -39591.78 | AI69: -160256 | AJ69: 1294467 | AK69: -11918.65 | AL69: 72700 | AM69: 1218829.65 | AN69: -39591.78 | AO69: -100963.13 | AP69: -13342.82 | AQ69: 0 | AR69: -127212.09 | AS69: =AS63+AS66 -> 1218829.65 | AT69: 789232 | AU69: 0 | AV69: 0 | AW69: 2008061.65 | AX69: -127212.09 | AY69: 98159 | AZ69: 0 | BA69: 0 | BB69: -29053.09 | BC69: =BC63+BC66 -> 2008061.65 | BD69: -1191156 | BE69: 0 | BF69: 0 | BG69: 816905.65 | BH69: -29053.09 | BI69: 16171 | BJ69: 1 | BK69: 0 | BL69: -12883.09 | BM69: 0 | BN69: 0 | BO69: 816905.65 | BP69: -12883.09 | BQ69: 8985.96215 | BR69: 0 | BS69: 813008.5222 | BT69: 804022.56 | BU69: =BT69-SUM(BG69,BL69) -> 0
A71: 30 | C71: Renewable Generation Connection Capital Deferral Account | D71: 1531 | I71: =E71+F71-G71+H71 -> 0 | N71: =J71+K71-L71+M71 -> 0 | O71: =I71 -> 0 | S71: =O71+P71-Q71+SUM(R71:R71) -> 0 | T71: =N71 -> 0 | X71: =T71+U71-V71+W71 -> 0 | Y71: =S71 -> 0 | AC71: =Y71+Z71-AA71+SUM(AB71:AB71) -> 0 | AD71: =X71 -> 0 | AH71: =AD71+AE71-AF71+AG71 -> 0 | AI71: =AC71 -> 0 | AM71: =AI71+AJ71-AK71+SUM(AL71:AL71) -> 0 | AN71: =AH71 -> 0 | AR71: =AN71+AO71-AP71+AQ71 -> 0 | AS71: =AM71 -> 0 | AW71: =AS71+AT71-AU71+SUM(AV71:AV71) -> 0 | AX71: =AR71 -> 0 | BB71: =AX71+AY71-AZ71+BA71 -> 0 | BC71: =AW71 -> 0 | BG71: =BC71+BD71-BE71+SUM(BF71:BF71) -> 0 | BH71: =BB71 -> 0 | BL71: =BH71+BI71-BJ71+BK71 -> 0 | BO71: =BG71-BM71 -> 0 | BP71: =BL71-BN71 -> 0 | BQ71: =BG71*0.011 -> 0 | BS71: =SUM(BO71:BR71) -> 0 | BT71: =BO71+BP71 -> 0 | BU71: =BT71-SUM(BG71,BL71) -> 0
A72: 31 | C72: Renewable Generation Connection OM&A Deferral Account | D72: 1532 | I72: 0 | N72: 0 | O72: 0 | S72: 0 | T72: 0 | X72: 0 | Y72: 0 | AC72: 0 | AD72: 0 | AH72: 0 | AI72: 0 | AM72: 0 | AN72: 0 | AR72: 0 | AS72: 0 | AW72: 0 | AX72: 0 | BB72: 0 | BC72: 0 | BG72: 0 | BH72: 0 | BL72: 0 | BO72: 0 | BP72: 0 | BQ72: 0 | BS72: 0 | BT72: 0 | BU72: 0
A73: 32 | C73: Renewable Generation Connection Funding Adder Deferral Account | D73: 1533 | I73: 0 | N73: 0 | O73: 0 | S73: 0 | T73: 0 | X73: 0 | Y73: 0 | AC73: 0 | AD73: 0 | AH73: 0 | AI73: 0 | AM73: 0 | AN73: 0 | AR73: 0 | AS73: 0 | AW73: 0 | AX73: 0 | BB73: 0 | BC73: 0 | BG73: 0 | BH73: 0 | BL73: 0 | BO73: 0 | BP73: 0 | BQ73: 0 | BS73: 0 | BT73: 0 | BU73: 0
A74: 33 | C74: Smart Grid Capital Deferral Account | D74: 1534 | I74: 0 | N74: 0 | O74: 0 | S74: 0 | T74: 0 | X74: 0 | Y74: 0 | AC74: 0 | AD74: 0 | AH74: 0 | AI74: 0 | AM74: 0 | AN74: 0 | AR74: 0 | AS74: 0 | AW74: 0 | AX74: 0 | BB74: 0 | BC74: 0 | BG74: 0 | BH74: 0 | BL74: 0 | BO74: 0 | BP74: 0 | BQ74: 0 | BS74: 0 | BT74: 0 | BU74: 0
A75: 34 | C75: Smart Grid OM&A Deferral Account | D75: 1535 | I75: 0 | N75: 0 | O75: 0 | S75: 0 | T75: 0 | X75: 0 | Y75: 0 | AC75: 0 | AD75: 0 | AH75: 0 | AI75: 0 | AM75: 0 | AN75: 0 | AR75: 0 | AS75: 0 | AW75: 0 | AX75: 0 | BB75: 0 | BC75: 0 | BG75: 0 | BH75: 0 | BL75: 0 | BO75: 0 | BP75: 0 | BQ75: 0 | BS75: 0 | BT75: 0 | BU75: 0
A76: 35 | C76: Smart Grid Funding Adder Deferral Account | D76: 1536 | I76: 0 | N76: 0 | O76: 0 | S76: 0 | T76: 0 | X76: 0 | Y76: 0 | AC76: 0 | AD76: 0 | AH76: 0 | AI76: 0 | AM76: 0 | AN76: 0 | AR76: 0 | AS76: 0 | AW76: 0 | AX76: 0 | BB76: 0 | BC76: 0 | BG76: 0 | BH76: 0 | BL76: 0 | BO76: 0 | BP76: 0 | BQ76: 0 | BS76: 0 | BT76: 0 | BU76: 0
A77: 36 | C77: Retail Cost Variance Account - STR | D77: 1548 | E77: 51376 | F77: 11843 | I77: 63219 | J77: 11134 | K77: 450 | N77: 11584 | O77: 63219 | P77: 8445 | S77: 71664 | T77: 11584 | U77: 985 | X77: 12569 | Y77: 71664 | Z77: 7843 | AC77: 79507 | AD77: 12569 | AE77: 1113 | AH77: 13682 | AI77: 79507 | AJ77: 6648 | AK77: 71664 | AM77: 14491 | AN77: 13682 | AO77: 593 | AP77: 13974 | AR77: 301 | AS77: 14491 | AT77: 13247 | AW77: 27738 | AX77: 301 | AY77: 272 | BB77: 573 | BC77: 27738 | BD77: -2641 | BG77: 25097 | BH77: 573 | BI77: 301 | BL77: 874 | BO77: 25097 | BP77: 874 | BQ77: 276.067 | BS77: 26247.067 | BT77: 25971 | BU77: 0
A78: 37 | C78: Smart Meter Capital and Recovery Offset Variance - Sub-Account - Capital5 | D78: 1555 | I78: 0 | N78: 0 | O78: 0 | S78: 0 | T78: 0 | X78: 0 | Y78: 0 | AC78: 0 | AD78: 0 | AH78: 0 | AI78: 0 | AM78: 0 | AN78: 0 | AR78: 0 | AS78: 0 | AW78: 0 | AX78: 0 | BB78: 0 | BC78: 0 | BG78: 0 | BH78: 0 | BL78: 0 | BO78: 0 | BP78: 0 | BQ78: 0 | BS78: 0 | BT78: 0 | BU78: 0
A79: 38 | C79: Smart Meter Capital and Recovery Offset Variance - Sub-Account - Recoveries5 | D79: 1555 | I79: 0 | N79: 0 | O79: 0 | S79: 0 | T79: 0 | X79: 0 | Y79: 0 | AC79: 0 | AD79: 0 | AH79: 0 | AI79: 0 | AM79: 0 | AN79: 0 | AR79: 0 | AS79: 0 | AW79: 0 | AX79: 0 | BB79: 0 | BC79: 0 | BG79: 0 | BH79: 0 | BL79: 0 | BO79: 0 | BP79: 0 | BQ79: 0 | BS79: 0 | BT79: 0 | BU79: 0
A80: 39 | C80: Smart Meter Capital and Recovery Offset Variance - Sub-Account - Stranded Meter Costs5 | D80: 1555 | I80: 0 | N80: 0 | O80: 0 | P80: 376850 | S80: 376850 | T80: 0 | X80: 0 | Y80: 376850 | Z80: -42532 | AC80: 334318 | AD80: 0 | AH80: 0 | AI80: 334318 | AJ80: -119987 | AM80: 214331 | AN80: 0 | AO80: 2369 | AR80: 2369 | AS80: 214331 | AT80: -185144 | AW80: 29187 | AX80: 2369 | AY80: 1903 | BB80: 4272 | BC80: 29187 | BD80: -78805 | BG80: -49618 | BH80: 4272 | BI80: -319 | BL80: 3953 | BO80: -49618 | BP80: 3953 | BQ80: -545.798 | BS80: -46210.798 | BT80: -45665 | BU80: 0
A81: 40 | C81: Smart Meter OM&A Variance5 | D81: 1556 | I81: 0 | N81: 0 | O81: 0 | S81: 0 | T81: 0 | X81: 0 | Y81: 0 | AC81: 0 | AD81: 0 | AH81: 0 | AI81: 0 | AM81: 0 | AN81: 0 | AR81: 0 | AS81: 0 | AW81: 0 | AX81: 0 | BB81: 0 | BC81: 0 | BG81: 0 | BH81: 0 | BL81: 0 | BO81: 0 | BP81: 0 | BQ81: 0 | BS81: 0 | BT81: 0 | BU81: 0
A83: 41 | C83: IFRS-CGAAP Transition PP&E Amounts Balance + Return Component6 | D83: 1575 | AM83: =AI83+AJ83-AK83+SUM(AL83:AL83) -> 0 | AS83: =AM83 -> 0 | AW83: =AS83+AT83-AU83+SUM(AV83:AV83) -> 0 | BC83: =AW83 -> 0 | BG83: =BC83+BD83-BE83+SUM(BF83:BF83) -> 0 | BO83: =BG83-BM83 -> 0 | BS83: =BO83 -> 0 | BT83: =BO83+BP83 -> 0 | BU83: =BT83-SUM(BG83,BL83) -> 0
A84: 42 | C84: Accounting Changes Under CGAAP Balance + Return Component6 | D84: 1576 | AM84: =AI84+AJ84-AK84+SUM(AL84:AL84) -> 0 | AS84: =AM84 -> 0 | AW84: =AS84+AT84-AU84+SUM(AV84:AV84) -> 0 | BC84: =AW84 -> 0 | BG84: =BC84+BD84-BE84+SUM(BF84:BF84) -> 0 | BO84: =BG84-BM84 -> 0 | BS84: =BO84 -> 0 | BT84: =BO84+BP84 -> 0 | BU84: =BT84-SUM(BG84,BL84) -> 0
C88: For all Board-Approved dispositions, please ensure that the disposition amount has the same sign (e.g: debit balances are to have a positive figure and credit balance are to have a negative figure) as per the related Board decision.
B89: 1 | C89: Do not include interest, adjustments, or OEB approved dispositions in this column
B90: 2 | C90: Please provide explanations for the nature of the adjustments. If the adjustment relates to previously OEB Approved disposed balances, please provide amounts for adjustments and include supporting documentations.
B91: 3 | C91: As per the January 6, 2011 Letter from the Board, regarding the implementation of the Ontario Clean Energy Benefit:
C92: "By way of exception... The Board does acticipate that licensed distributors that cannot adapt their invoices as of January 1, 2011 will require a variance account for OCEB purposes... The Board expects that any principal
C93: balances in "Sub account Financial Assistance Payment and Recovery Variance - Ontario Clean Energy Benefit Act" will be addressed through the monthly settlement process with the IESO or the host distributor, as applicable.
B94: 4 | C94: Please describe "other" components of 1508 and add more component lines if necessary.
B95: 5 | C95: Deferral accounts related to Smart Meter deployment are not to be recovered/refunded through the Deferral and Variance Account rate rider. For details on how to dispose of balances in Smart Meter accounts see the Board's
C96: Guideline: Smart Meter Disposition and Cost Recovery (G-2011-0001)
B97: 6 | C97: The Board requires that disposition of Account 1575 and Account 1576 shall require the use of separate rate riders. In the "Adjustments during 2015" column of the continuity schedule, please enter the amounts to be included in the Account 1575 and 1576 rate rider calculation from the applicable Chapter 2 appendices. For Account 1575, please provide the value in cell F39 from the relevant Chapter 2 Appendix (i.e. 2-EA, 2-EB or 2-EC). For Account 1576, please provide the value in cell F39 from the relevant Chapter 2 Appendix (i.e. 2-ED or 2-EE).

Sheet 3. Appendix A
B16: Accounts that produced a variance on the 2014 continuity schedule are listed below. Please provide a detailed explanation for each variance below.
C20: Account Descriptions | D20: Account Number | E20: Variance RRR vs. 2014 Balance (Principal + Interest) | F20: Explanation
C23: Group 1 Accounts
A24: 1 | C24: =VLOOKUP(A24, '2. 2015 Continuity Schedule'!$A$24:$BU$85,3,FALSE) -> LV Variance Account | D24: =VLOOKUP(A24, '2. 2015 Continuity Schedule'!$A$24:$BU$85,4,FALSE) -> 1550 | E24: =IF(ISERROR(VLOOKUP($A24, '2. 2015 Continuity Schedule'!$A$20:$BU$87, MATCH('3. Appendix A'!$E$20, '2. 2015 Continuity Schedule'!$A$20:$BU$20,0),FALSE)), 0, VLOOKUP($A24, '2. 2015 Continuity Schedule'!$A$20:$BU$87, MATCH('3. Appendix A'!$E$20, '2. 2015 Continuity Schedule'!$A$20:$BU$20,0),FALSE)) -> 0
A25: 2 | C25: =VLOOKUP(A25, '2. 2015 Continuity Schedule'!$A$24:$BU$85,3,FALSE) -> Smart Metering Entity Charge Variance Account | D25: =VLOOKUP(A25, '2. 2015 Continuity Schedule'!$A$24:$BU$85,4,FALSE) -> 1551 | E25: =IF(ISERROR(VLOOKUP($A25, '2. 2015 Continuity Schedule'!$A$20:$BU$87, MATCH('3. Appendix A'!$E$20, '2. 2015 Continuity Schedule'!$A$20:$BU$20,0),FALSE)), 0, VLOOKUP($A25, '2. 2015 Continuity Schedule'!$A$20:$BU$87, MATCH('3. Appendix A'!$E$20, '2. 2015 Continuity Schedule'!$A$20:$BU$20,0),FALSE)) -> 0
A26: 3 | C26: =VLOOKUP(A26, '2. 2015 Continuity Schedule'!$A$24:$BU$85,3,FALSE) -> RSVA - Wholesale Market Service Charge | D26: =VLOOKUP(A26, '2. 2015 Continuity Schedule'!$A$24:$BU$85,4,FALSE) -> 1580 | E26: =IF(ISERROR(VLOOKUP($A26, '2. 2015 Continuity Schedule'!$A$20:$BU$87, MATCH('3. Appendix A'!$E$20, '2. 2015 Continuity Schedule'!$A$20:$BU$20,0),FALSE)), 0, VLOOKUP($A26, '2. 2015 Continuity Schedule'!$A$20:$BU$87, MATCH('3. Appendix A'!$E$20, '2. 2015 Continuity Schedule'!$A$20:$BU$20,0),FALSE)) -> 0
A27: 4 | C27: =VLOOKUP(A27, '2. 2015 Continuity Schedule'!$A$24:$BU$85,3,FALSE) -> RSVA - Retail Transmission Network Charge | D27: =VLOOKUP(A27, '2. 2015 Continuity Schedule'!$A$24:$BU$85,4,FALSE) -> 1584 | E27: =IF(ISERROR(VLOOKUP($A27, '2. 2015 Continuity Schedule'!$A$20:$BU$87, MATCH('3. Appendix A'!$E$20, '2. 2015 Continuity Schedule'!$A$20:$BU$20,0),FALSE)), 0, VLOOKUP($A27, '2. 2015 Continuity Schedule'!$A$20:$BU$87, MATCH('3. Appendix A'!$E$20, '2. 2015 Continuity Schedule'!$A$20:$BU$20,0),FALSE)) -> 0
A28: 5 | C28: =VLOOKUP(A28, '2. 2015 Continuity Schedule'!$A$24:$BU$85,3,FALSE) -> RSVA - Retail Transmission Connection Charge | D28: =VLOOKUP(A28, '2. 2015 Continuity Schedule'!$A$24:$BU$85,4,FALSE) -> 1586 | E28: =IF(ISERROR(VLOOKUP($A28, '2. 2015 Continuity Schedule'!$A$20:$BU$87, MATCH('3. Appendix A'!$E$20, '2. 2015 Continuity Schedule'!$A$20:$BU$20,0),FALSE)), 0, VLOOKUP($A28, '2. 2015 Continuity Schedule'!$A$20:$BU$87, MATCH('3. Appendix A'!$E$20, '2. 2015 Continuity Schedule'!$A$20:$BU$20,0),FALSE)) -> 0
A29: 6 | C29: =VLOOKUP(A29, '2. 2015 Continuity Schedule'!$A$24:$BU$85,3,FALSE) -> RSVA - Power (excluding Global Adjustment) | D29: =VLOOKUP(A29, '2. 2015 Continuity Schedule'!$A$24:$BU$85,4,FALSE) -> 1588 | E29: =IF(ISERROR(VLOOKUP($A29, '2. 2015 Continuity Schedule'!$A$20:$BU$87, MATCH('3. Appendix A'!$E$20, '2. 2015 Continuity Schedule'!$A$20:$BU$20,0),FALSE)), 0, VLOOKUP($A29, '2. 2015 Continuity Schedule'!$A$20:$BU$87, MATCH('3. Appendix A'!$E$20, '2. 2015 Continuity Schedule'!$A$20:$BU$20,0),FALSE)) -> 0
A30: 7 | C30: =VLOOKUP(A30, '2. 2015 Continuity Schedule'!$A$24:$BU$85,3,FALSE) -> RSVA - Global Adjustment | D30: =VLOOKUP(A30, '2. 2015 Continuity Schedule'!$A$24:$BU$85,4,FALSE) -> 1589 | E30: =IF(ISERROR(VLOOKUP($A30, '2. 2015 Continuity Schedule'!$A$20:$BU$87, MATCH('3. Appendix A'!$E$20, '2. 2015 Continuity Schedule'!$A$20:$BU$20,0),FALSE)), 0, VLOOKUP($A30, '2. 2015 Continuity Schedule'!$A$20:$BU$87, MATCH('3. Appendix A'!$E$20, '2. 2015 Continuity Schedule'!$A$20:$BU$20,0),FALSE)) -> 0
A31: 8 | C31: =VLOOKUP(A31, '2. 2015 Continuity Schedule'!$A$24:$BU$85,3,FALSE) -> Disposition and Recovery/Refund of Regulatory Balances (2008) | D31: =VLOOKUP(A31, '2. 2015 Continuity Schedule'!$A$24:$BU$85,4,FALSE) -> 1595 | E31: =IF(ISERROR(VLOOKUP($A31, '2. 2015 Continuity Schedule'!$A$20:$BU$87, MATCH('3. Appendix A'!$E$20, '2. 2015 Continuity Schedule'!$A$20:$BU$20,0),FALSE)), 0, VLOOKUP($A31, '2. 2015 Continuity Schedule'!$A$20:$BU$87, MATCH('3. Appendix A'!$E$20, '2. 2015 Continuity Schedule'!$A$20:$BU$20,0),FALSE)) -> 0
A32: 9 | C32: =VLOOKUP(A32, '2. 2015 Continuity Schedule'!$A$24:$BU$85,3,FALSE) -> Disposition and Recovery/Refund of Regulatory Balances (2009) | D32: =VLOOKUP(A32, '2. 2015 Continuity Schedule'!$A$24:$BU$85,4,FALSE) -> 1595 | E32: =IF(ISERROR(VLOOKUP($A32, '2. 2015 Continuity Schedule'!$A$20:$BU$87, MATCH('3. Appendix A'!$E$20, '2. 2015 Continuity Schedule'!$A$20:$BU$20,0),FALSE)), 0, VLOOKUP($A32, '2. 2015 Continuity Schedule'!$A$20:$BU$87, MATCH('3. Appendix A'!$E$20, '2. 2015 Continuity Schedule'!$A$20:$BU$20,0),FALSE)) -> 0
A33: 10 | C33: =VLOOKUP(A33, '2. 2015 Continuity Schedule'!$A$24:$BU$85,3,FALSE) -> Disposition and Recovery/Refund of Regulatory Balances (2010) | D33: =VLOOKUP(A33, '2. 2015 Continuity Schedule'!$A$24:$BU$85,4,FALSE) -> 1595 | E33: =IF(ISERROR(VLOOKUP($A33, '2. 2015 Continuity Schedule'!$A$20:$BU$87, MATCH('3. Appendix A'!$E$20, '2. 2015 Continuity Schedule'!$A$20:$BU$20,0),FALSE)), 0, VLOOKUP($A33, '2. 2015 Continuity Schedule'!$A$20:$BU$87, MATCH('3. Appendix A'!$E$20, '2. 2015 Continuity Schedule'!$A$20:$BU$20,0),FALSE)) -> 0
A34: 11 | C34: =VLOOKUP(A34, '2. 2015 Continuity Schedule'!$A$24:$BU$85,3,FALSE) -> Disposition and Recovery/Refund of Regulatory Balances (2011) | D34: =VLOOKUP(A34, '2. 2015 Continuity Schedule'!$A$24:$BU$85,4,FALSE) -> 1595 | E34: =IF(ISERROR(VLOOKUP($A34, '2. 2015 Continuity Schedule'!$A$20:$BU$87, MATCH('3. Appendix A'!$E$20, '2. 2015 Continuity Schedule'!$A$20:$BU$20,0),FALSE)), 0, VLOOKUP($A34, '2. 2015 Continuity Schedule'!$A$20:$BU$87, MATCH('3. Appendix A'!$E$20, '2. 2015 Continuity Schedule'!$A$20:$BU$20,0),FALSE)) -> 0
A35: 12 | C35: =VLOOKUP(A35, '2. 2015 Continuity Schedule'!$A$24:$BU$85,3,FALSE) -> Disposition and Recovery/Refund of Regulatory Balances (2012) | D35: =VLOOKUP(A35, '2. 2015 Continuity Schedule'!$A$24:$BU$85,4,FALSE) -> 1595 | E35: =IF(ISERROR(VLOOKUP($A35, '2. 2015 Continuity Schedule'!$A$20:$BU$87, MATCH('3. Appendix A'!$E$20, '2. 2015 Continuity Schedule'!$A$20:$BU$20,0),FALSE)), 0, VLOOKUP($A35, '2. 2015 Continuity Schedule'!$A$20:$BU$87, MATCH('3. Appendix A'!$E$20, '2. 2015 Continuity Schedule'!$A$20:$BU$20,0),FALSE)) -> 0
A36: 13 | C36: =VLOOKUP(A36, '2. 2015 Continuity Schedule'!$A$24:$BU$85,3,FALSE) -> Disposition and Recovery/Refund of Regulatory Balances (2013) | D36: =VLOOKUP(A36, '2. 2015 Continuity Schedule'!$A$24:$BU$85,4,FALSE) -> 1595 | E36: =IF(ISERROR(VLOOKUP($A36, '2. 2015 Continuity Schedule'!$A$20:$BU$87, MATCH('3. Appendix A'!$E$20, '2. 2015 Continuity Schedule'!$A$20:$BU$20,0),FALSE)), 0, VLOOKUP($A36, '2. 2015 Continuity Schedule'!$A$20:$BU$87, MATCH('3. Appendix A'!$E$20, '2. 2015 Continuity Schedule'!$A$20:$BU$20,0),FALSE)) -> 0
A37: 14 | C37: =VLOOKUP(A37, '2. 2015 Continuity Schedule'!$A$24:$BU$85,3,FALSE) -> Disposition and Recovery/Refund of Regulatory Balances (2015) | D37: =VLOOKUP(A37, '2. 2015 Continuity Schedule'!$A$24:$BU$85,4,FALSE) -> 1595 | E37: =IF(ISERROR(VLOOKUP($A37, '2. 2015 Continuity Schedule'!$A$20:$BU$87, MATCH('3. Appendix A'!$E$20, '2. 2015 Continuity Schedule'!$A$20:$BU$20,0),FALSE)), 0, VLOOKUP($A37, '2. 2015 Continuity Schedule'!$A$20:$BU$87, MATCH('3. Appendix A'!$E$20, '2. 2015 Continuity Schedule'!$A$20:$BU$20,0),FALSE)) -> 0
C39: Group 2 Accounts
A40: 15 | C40: =VLOOKUP(A40, '2. 2015 Continuity Schedule'!$A$24:$BU$85,3,FALSE) -> Disposition and Recovery/Refund of Regulatory Balances (2015) | D40: =VLOOKUP(A40, '2. 2015 Continuity Schedule'!$A$24:$BU$85,4,FALSE) -> 1595 | E40: =IF(ISERROR(VLOOKUP($A40, '2. 2015 Continuity Schedule'!$A$20:$BU$87, MATCH('3. Appendix A'!$E$20, '2. 2015 Continuity Schedule'!$A$20:$BU$20,0),FALSE)), 0, VLOOKUP($A40, '2. 2015 Continuity Schedule'!$A$20:$BU$87, MATCH('3. Appendix A'!$E$20, '2. 2015 Continuity Schedule'!$A$20:$BU$20,0),FALSE)) -> 0
A41: 16 | C41: =VLOOKUP(A41, '2. 2015 Continuity Schedule'!$A$24:$BU$85,3,FALSE) -> Other Regulatory Assets - Sub-Account - Incremental Capital Charges | D41: =VLOOKUP(A41, '2. 2015 Continuity Schedule'!$A$24:$BU$85,4,FALSE) -> 1508 | E41: =IF(ISERROR(VLOOKUP($A41, '2. 2015 Continuity Schedule'!$A$20:$BU$87, MATCH('3. Appendix A'!$E$20, '2. 2015 Continuity Schedule'!$A$20:$BU$20,0),FALSE)), 0, VLOOKUP($A41, '2. 2015 Continuity Schedule'!$A$20:$BU$87, MATCH('3. Appendix A'!$E$20, '2. 2015 Continuity Schedule'!$A$20:$BU$20,0),FALSE)) -> 0
A42: 17 | C42: =VLOOKUP(A42, '2. 2015 Continuity Schedule'!$A$24:$BU$85,3,FALSE) -> Other Regulatory Assets - Sub-Account - Financial Assistance Payment and Recovery Variance - Ontario Clean Energy Benefit Act8 | D42: =VLOOKUP(A42, '2. 2015 Continuity Schedule'!$A$24:$BU$85,4,FALSE) -> 1508 | E42: =IF(ISERROR(VLOOKUP($A42, '2. 2015 Continuity Schedule'!$A$20:$BU$87, MATCH('3. Appendix A'!$E$20, '2. 2015 Continuity Schedule'!$A$20:$BU$20,0),FALSE)), 0, VLOOKUP($A42, '2. 2015 Continuity Schedule'!$A$20:$BU$87, MATCH('3. Appendix A'!$E$20, '2. 2015 Continuity Schedule'!$A$20:$BU$20,0),FALSE)) -> 0
A43: 18 | C43: =VLOOKUP(A43, '2. 2015 Continuity Schedule'!$A$24:$BU$85,3,FALSE) -> Other Regulatory Assets - Sub-Account - Financial Assistance Payment and Recovery Carrying Charges | D43: =VLOOKUP(A43, '2. 2015 Continuity Schedule'!$A$24:$BU$85,4,FALSE) -> 1508 | E43: =IF(ISERROR(VLOOKUP($A43, '2. 2015 Continuity Schedule'!$A$20:$BU$87, MATCH('3. Appendix A'!$E$20, '2. 2015 Continuity Schedule'!$A$20:$BU$20,0),FALSE)), 0, VLOOKUP($A43, '2. 2015 Continuity Schedule'!$A$20:$BU$87, MATCH('3. Appendix A'!$E$20, '2. 2015 Continuity Schedule'!$A$20:$BU$20,0),FALSE)) -> 0
A44: 19 | C44: =VLOOKUP(A44, '2. 2015 Continuity Schedule'!$A$24:$BU$85,3,FALSE) -> Other Regulatory Assets - Sub-Account - Other 4 | D44: =VLOOKUP(A44, '2. 2015 Continuity Schedule'!$A$24:$BU$85,4,FALSE) -> 1508 | E44: =IF(ISERROR(VLOOKUP($A44, '2. 2015 Continuity Schedule'!$A$20:$BU$87, MATCH('3. Appendix A'!$E$20, '2. 2015 Continuity Schedule'!$A$20:$BU$20,0),FALSE)), 0, VLOOKUP($A44, '2. 2015 Continuity Schedule'!$A$20:$BU$87, MATCH('3. Appendix A'!$E$20, '2. 2015 Continuity Schedule'!$A$20:$BU$20,0),FALSE)) -> 0
A45: 20 | C45: =VLOOKUP(A45, '2. 2015 Continuity Schedule'!$A$24:$BU$85,3,FALSE) -> Retail Cost Variance Account - Retail | D45: =VLOOKUP(A45, '2. 2015 Continuity Schedule'!$A$24:$BU$85,4,FALSE) -> 1518 | E45: =IF(ISERROR(VLOOKUP($A45, '2. 2015 Continuity Schedule'!$A$20:$BU$87, MATCH('3. Appendix A'!$E$20, '2. 2015 Continuity Schedule'!$A$20:$BU$20,0),FALSE)), 0, VLOOKUP($A45, '2. 2015 Continuity Schedule'!$A$20:$BU$87, MATCH('3. Appendix A'!$E$20, '2. 2015 Continuity Schedule'!$A$20:$BU$20,0),FALSE)) -> 0
A46: 21 | C46: =VLOOKUP(A46, '2. 2015 Continuity Schedule'!$A$24:$BU$85,3,FALSE) -> Misc. Deferred Debits | D46: =VLOOKUP(A46, '2. 2015 Continuity Schedule'!$A$24:$BU$85,4,FALSE) -> 1525 | E46: =IF(ISERROR(VLOOKUP($A46, '2. 2015 Continuity Schedule'!$A$20:$BU$87, MATCH('3. Appendix A'!$E$20, '2. 2015 Continuity Schedule'!$A$20:$BU$20,0),FALSE)), 0, VLOOKUP($A46, '2. 2015 Continuity Schedule'!$A$20:$BU$87, MATCH('3. Appendix A'!$E$20, '2. 2015 Continuity Schedule'!$A$20:$BU$20,0),FALSE)) -> 0
A47: 22 | C47: =VLOOKUP(A47, '2. 2015 Continuity Schedule'!$A$24:$BU$85,3,FALSE) -> Board-Approved CDM Variance Account | D47: =VLOOKUP(A47, '2. 2015 Continuity Schedule'!$A$24:$BU$85,4,FALSE) -> 1567 | E47: =IF(ISERROR(VLOOKUP($A47, '2. 2015 Continuity Schedule'!$A$20:$BU$87, MATCH('3. Appendix A'!$E$20, '2. 2015 Continuity Schedule'!$A$20:$BU$20,0),FALSE)), 0, VLOOKUP($A47, '2. 2015 Continuity Schedule'!$A$20:$BU$87, MATCH('3. Appendix A'!$E$20, '2. 2015 Continuity Schedule'!$A$20:$BU$20,0),FALSE)) -> 0
A48: 23 | C48: =VLOOKUP(A48, '2. 2015 Continuity Schedule'!$A$24:$BU$85,3,FALSE) -> Extra-Ordinary Event Costs | D48: =VLOOKUP(A48, '2. 2015 Continuity Schedule'!$A$24:$BU$85,4,FALSE) -> 1572 | E48: =IF(ISERROR(VLOOKUP($A48, '2. 2015 Continuity Schedule'!$A$20:$BU$87, MATCH('3. Appendix A'!$E$20, '2. 2015 Continuity Schedule'!$A$20:$BU$20,0),FALSE)), 0, VLOOKUP($A48, '2. 2015 Continuity Schedule'!$A$20:$BU$87, MATCH('3. Appendix A'!$E$20, '2. 2015 Continuity Schedule'!$A$20:$BU$20,0),FALSE)) -> 0
A49: 24 | C49: =VLOOKUP(A49, '2. 2015 Continuity Schedule'!$A$24:$BU$85,3,FALSE) -> Deferred Rate Impact Amounts | D49: =VLOOKUP(A49, '2. 2015 Continuity Schedule'!$A$24:$BU$85,4,FALSE) -> 1574 | E49: =IF(ISERROR(VLOOKUP($A49, '2. 2015 Continuity Schedule'!$A$20:$BU$87, MATCH('3. Appendix A'!$E$20, '2. 2015 Continuity Schedule'!$A$20:$BU$20,0),FALSE)), 0, VLOOKUP($A49, '2. 2015 Continuity Schedule'!$A$20:$BU$87, MATCH('3. Appendix A'!$E$20, '2. 2015 Continuity Schedule'!$A$20:$BU$20,0),FALSE)) -> 0
A50: 25 | C50: =VLOOKUP(A50, '2. 2015 Continuity Schedule'!$A$24:$BU$85,3,FALSE) -> RSVA - One-time | D50: =VLOOKUP(A50, '2. 2015 Continuity Schedule'!$A$24:$BU$85,4,FALSE) -> 1582 | E50: =IF(ISERROR(VLOOKUP($A50, '2. 2015 Continuity Schedule'!$A$20:$BU$87, MATCH('3. Appendix A'!$E$20, '2. 2015 Continuity Schedule'!$A$20:$BU$20,0),FALSE)), 0, VLOOKUP($A50, '2. 2015 Continuity Schedule'!$A$20:$BU$87, MATCH('3. Appendix A'!$E$20, '2. 2015 Continuity Schedule'!$A$20:$BU$20,0),FALSE)) -> 0
A51: 26 | C51: =VLOOKUP(A51, '2. 2015 Continuity Schedule'!$A$24:$BU$85,3,FALSE) -> Other Deferred Credits | D51: =VLOOKUP(A51, '2. 2015 Continuity Schedule'!$A$24:$BU$85,4,FALSE) -> 2425 | E51: =IF(ISERROR(VLOOKUP($A51, '2. 2015 Continuity Schedule'!$A$20:$BU$87, MATCH('3. Appendix A'!$E$20, '2. 2015 Continuity Schedule'!$A$20:$BU$20,0),FALSE)), 0, VLOOKUP($A51, '2. 2015 Continuity Schedule'!$A$20:$BU$87, MATCH('3. Appendix A'!$E$20, '2. 2015 Continuity Schedule'!$A$20:$BU$20,0),FALSE)) -> 0
A52: 27 | C52: =VLOOKUP(A52, '2. 2015 Continuity Schedule'!$A$24:$BU$85,3,FALSE) -> PILs and Tax Variance for 2006 and Subsequent Years (excludes sub-account and contra account below) | D52: =VLOOKUP(A52, '2. 2015 Continuity Schedule'!$A$24:$BU$85,4,FALSE) -> 1592 | E52: =IF(ISERROR(VLOOKUP($A52, '2. 2015 Continuity Schedule'!$A$20:$BU$87, MATCH('3. Appendix A'!$E$20, '2. 2015 Continuity Schedule'!$A$20:$BU$20,0),FALSE)), 0, VLOOKUP($A52, '2. 2015 Continuity Schedule'!$A$20:$BU$87, MATCH('3. Appendix A'!$E$20, '2. 2015 Continuity Schedule'!$A$20:$BU$20,0),FALSE)) -> 0
A53: 28 | C53: =VLOOKUP(A53, '2. 2015 Continuity Schedule'!$A$24:$BU$85,3,FALSE) -> PILs and Tax Variance for 2006 and Subsequent Years - Sub-Account HST/OVAT Input Tax Credits (ITCs) | D53: =VLOOKUP(A53, '2. 2015 Continuity Schedule'!$A$24:$BU$85,4,FALSE) -> 1592 | E53: =IF(ISERROR(VLOOKUP($A53, '2. 2015 Continuity Schedule'!$A$20:$BU$87, MATCH('3. Appendix A'!$E$20, '2. 2015 Continuity Schedule'!$A$20:$BU$20,0),FALSE)), 0, VLOOKUP($A53, '2. 2015 Continuity Schedule'!$A$20:$BU$87, MATCH('3. Appendix A'!$E$20, '2. 2015 Continuity Schedule'!$A$20:$BU$20,0),FALSE)) -> 0
A54: 29 | C54: =VLOOKUP(A54, '2. 2015 Continuity Schedule'!$A$24:$BU$85,3,FALSE) -> LRAM Variance Account | D54: =VLOOKUP(A54, '2. 2015 Continuity Schedule'!$A$24:$BU$85,4,FALSE) -> 1568 | E54: =IF(ISERROR(VLOOKUP($A54, '2. 2015 Continuity Schedule'!$A$20:$BU$87, MATCH('3. Appendix A'!$E$20, '2. 2015 Continuity Schedule'!$A$20:$BU$20,0),FALSE)), 0, VLOOKUP($A54, '2. 2015 Continuity Schedule'!$A$20:$BU$87, MATCH('3. Appendix A'!$E$20, '2. 2015 Continuity Schedule'!$A$20:$BU$20,0),FALSE)) -> 0
A55: 30 | C55: =VLOOKUP(A55, '2. 2015 Continuity Schedule'!$A$24:$BU$85,3,FALSE) -> Renewable Generation Connection Capital Deferral Account | D55: =VLOOKUP(A55, '2. 2015 Continuity Schedule'!$A$24:$BU$85,4,FALSE) -> 1531 | E55: =IF(ISERROR(VLOOKUP($A55, '2. 2015 Continuity Schedule'!$A$20:$BU$87, MATCH('3. Appendix A'!$E$20, '2. 2015 Continuity Schedule'!$A$20:$BU$20,0),FALSE)), 0, VLOOKUP($A55, '2. 2015 Continuity Schedule'!$A$20:$BU$87, MATCH('3. Appendix A'!$E$20, '2. 2015 Continuity Schedule'!$A$20:$BU$20,0),FALSE)) -> 0
A56: 31 | C56: =VLOOKUP(A56, '2. 2015 Continuity Schedule'!$A$24:$BU$85,3,FALSE) -> Renewable Generation Connection OM&A Deferral Account | D56: =VLOOKUP(A56, '2. 2015 Continuity Schedule'!$A$24:$BU$85,4,FALSE) -> 1532 | E56: =IF(ISERROR(VLOOKUP($A56, '2. 2015 Continuity Schedule'!$A$20:$BU$87, MATCH('3. Appendix A'!$E$20, '2. 2015 Continuity Schedule'!$A$20:$BU$20,0),FALSE)), 0, VLOOKUP($A56, '2. 2015 Continuity Schedule'!$A$20:$BU$87, MATCH('3. Appendix A'!$E$20, '2. 2015 Continuity Schedule'!$A$20:$BU$20,0),FALSE)) -> 0
A57: 32 | C57: =VLOOKUP(A57, '2. 2015 Continuity Schedule'!$A$24:$BU$85,3,FALSE) -> Renewable Generation Connection Funding Adder Deferral Account | D57: =VLOOKUP(A57, '2. 2015 Continuity Schedule'!$A$24:$BU$85,4,FALSE) -> 1533 | E57: =IF(ISERROR(VLOOKUP($A57, '2. 2015 Continuity Schedule'!$A$20:$BU$87, MATCH('3. Appendix A'!$E$20, '2. 2015 Continuity Schedule'!$A$20:$BU$20,0),FALSE)), 0, VLOOKUP($A57, '2. 2015 Continuity Schedule'!$A$20:$BU$87, MATCH('3. Appendix A'!$E$20, '2. 2015 Continuity Schedule'!$A$20:$BU$20,0),FALSE)) -> 0
A58: 33 | C58: =VLOOKUP(A58, '2. 2015 Continuity Schedule'!$A$24:$BU$85,3,FALSE) -> Smart Grid Capital Deferral Account | D58: =VLOOKUP(A58, '2. 2015 Continuity Schedule'!$A$24:$BU$85,4,FALSE) -> 1534 | E58: =IF(ISERROR(VLOOKUP($A58, '2. 2015 Continuity Schedule'!$A$20:$BU$87, MATCH('3. Appendix A'!$E$20, '2. 2015 Continuity Schedule'!$A$20:$BU$20,0),FALSE)), 0, VLOOKUP($A58, '2. 2015 Continuity Schedule'!$A$20:$BU$87, MATCH('3. Appendix A'!$E$20, '2. 2015 Continuity Schedule'!$A$20:$BU$20,0),FALSE)) -> 0
A59: 34 | C59: =VLOOKUP(A59, '2. 2015 Continuity Schedule'!$A$24:$BU$85,3,FALSE) -> Smart Grid OM&A Deferral Account | D59: =VLOOKUP(A59, '2. 2015 Continuity Schedule'!$A$24:$BU$85,4,FALSE) -> 1535 | E59: =IF(ISERROR(VLOOKUP($A59, '2. 2015 Continuity Schedule'!$A$20:$BU$87, MATCH('3. Appendix A'!$E$20, '2. 2015 Continuity Schedule'!$A$20:$BU$20,0),FALSE)), 0, VLOOKUP($A59, '2. 2015 Continuity Schedule'!$A$20:$BU$87, MATCH('3. Appendix A'!$E$20, '2. 2015 Continuity Schedule'!$A$20:$BU$20,0),FALSE)) -> 0
A60: 35 | C60: =VLOOKUP(A60, '2. 2015 Continuity Schedule'!$A$24:$BU$85,3,FALSE) -> Smart Grid Funding Adder Deferral Account | D60: =VLOOKUP(A60, '2. 2015 Continuity Schedule'!$A$24:$BU$85,4,FALSE) -> 1536 | E60: =IF(ISERROR(VLOOKUP($A60, '2. 2015 Continuity Schedule'!$A$20:$BU$87, MATCH('3. Appendix A'!$E$20, '2. 2015 Continuity Schedule'!$A$20:$BU$20,0),FALSE)), 0, VLOOKUP($A60, '2. 2015 Continuity Schedule'!$A$20:$BU$87, MATCH('3. Appendix A'!$E$20, '2. 2015 Continuity Schedule'!$A$20:$BU$20,0),FALSE)) -> 0
A61: 36 | C61: =VLOOKUP(A61, '2. 2015 Continuity Schedule'!$A$24:$BU$85,3,FALSE) -> Retail Cost Variance Account - STR | D61: =VLOOKUP(A61, '2. 2015 Continuity Schedule'!$A$24:$BU$85,4,FALSE) -> 1548 | E61: =IF(ISERROR(VLOOKUP($A61, '2. 2015 Continuity Schedule'!$A$20:$BU$87, MATCH('3. Appendix A'!$E$20, '2. 2015 Continuity Schedule'!$A$20:$BU$20,0),FALSE)), 0, VLOOKUP($A61, '2. 2015 Continuity Schedule'!$A$20:$BU$87, MATCH('3. Appendix A'!$E$20, '2. 2015 Continuity Schedule'!$A$20:$BU$20,0),FALSE)) -> 0
A62: 37 | C62: =VLOOKUP(A62, '2. 2015 Continuity Schedule'!$A$24:$BU$85,3,FALSE) -> Smart Meter Capital and Recovery Offset Variance - Sub-Account - Capital5 | D62: =VLOOKUP(A62, '2. 2015 Continuity Schedule'!$A$24:$BU$85,4,FALSE) -> 1555 | E62: =IF(ISERROR(VLOOKUP($A62, '2. 2015 Continuity Schedule'!$A$20:$BU$87, MATCH('3. Appendix A'!$E$20, '2. 2015 Continuity Schedule'!$A$20:$BU$20,0),FALSE)), 0, VLOOKUP($A62, '2. 2015 Continuity Schedule'!$A$20:$BU$87, MATCH('3. Appendix A'!$E$20, '2. 2015 Continuity Schedule'!$A$20:$BU$20,0),FALSE)) -> 0
A63: 38 | C63: =VLOOKUP(A63, '2. 2015 Continuity Schedule'!$A$24:$BU$85,3,FALSE) -> Smart Meter Capital and Recovery Offset Variance - Sub-Account - Recoveries5 | D63: =VLOOKUP(A63, '2. 2015 Continuity Schedule'!$A$24:$BU$85,4,FALSE) -> 1555 | E63: =IF(ISERROR(VLOOKUP($A63, '2. 2015 Continuity Schedule'!$A$20:$BU$87, MATCH('3. Appendix A'!$E$20, '2. 2015 Continuity Schedule'!$A$20:$BU$20,0),FALSE)), 0, VLOOKUP($A63, '2. 2015 Continuity Schedule'!$A$20:$BU$87, MATCH('3. Appendix A'!$E$20, '2. 2015 Continuity Schedule'!$A$20:$BU$20,0),FALSE)) -> 0
A64: 39 | C64: =VLOOKUP(A64, '2. 2015 Continuity Schedule'!$A$24:$BU$85,3,FALSE) -> Smart Meter Capital and Recovery Offset Variance - Sub-Account - Stranded Meter Costs5 | D64: =VLOOKUP(A64, '2. 2015 Continuity Schedule'!$A$24:$BU$85,4,FALSE) -> 1555 | E64: =IF(ISERROR(VLOOKUP($A64, '2. 2015 Continuity Schedule'!$A$20:$BU$87, MATCH('3. Appendix A'!$E$20, '2. 2015 Continuity Schedule'!$A$20:$BU$20,0),FALSE)), 0, VLOOKUP($A64, '2. 2015 Continuity Schedule'!$A$20:$BU$87, MATCH('3. Appendix A'!$E$20, '2. 2015 Continuity Schedule'!$A$20:$BU$20,0),FALSE)) -> 0
A65: 40 | C65: =VLOOKUP(A65, '2. 2015 Continuity Schedule'!$A$24:$BU$85,3,FALSE) -> Smart Meter OM&A Variance5 | D65: =VLOOKUP(A65, '2. 2015 Continuity Schedule'!$A$24:$BU$85,4,FALSE) -> 1556 | E65: =IF(ISERROR(VLOOKUP($A65, '2. 2015 Continuity Schedule'!$A$20:$BU$87, MATCH('3. Appendix A'!$E$20, '2. 2015 Continuity Schedule'!$A$20:$BU$20,0),FALSE)), 0, VLOOKUP($A65, '2. 2015 Continuity Schedule'!$A$20:$BU$87, MATCH('3. Appendix A'!$E$20, '2. 2015 Continuity Schedule'!$A$20:$BU$20,0),FALSE)) -> 0
A66: 41 | C66: =VLOOKUP(A66, '2. 2015 Continuity Schedule'!$A$24:$BU$85,3,FALSE) -> IFRS-CGAAP Transition PP&E Amounts Balance + Return Component6 | D66: =VLOOKUP(A66, '2. 2015 Continuity Schedule'!$A$24:$BU$85,4,FALSE) -> 1575 | E66: =IF(ISERROR(VLOOKUP($A66, '2. 2015 Continuity Schedule'!$A$20:$BU$87, MATCH('3. Appendix A'!$E$20, '2. 2015 Continuity Schedule'!$A$20:$BU$20,0),FALSE)), 0, VLOOKUP($A66, '2. 2015 Continuity Schedule'!$A$20:$BU$87, MATCH('3. Appendix A'!$E$20, '2. 2015 Continuity Schedule'!$A$20:$BU$20,0),FALSE)) -> 0

Sheet 4. Billing Determinants
B16: In the green shaded cells, enter the data related to the proposed load forecast. Do not enter data for the MicroFit class.
B19: Rate Class (Enter Rate Classes in cells below as they appear on your current tariff of rates and charges) | C19: Units | D19: # of Customers | E19: Total Metered kWh | F19: Total Metered kW | G19: Billed kWh for Non-RPP Customers | H19: Billed kW for Non-RPP Customers | I19: Distribution Revenue 1 | J19: Billed kWh for Wholesale Market Participants (WMP) | K19: Billed kW for Wholesale Market Participants (WMP) | L19: Total Metered kWh less WMP consumption (if applicable) | M19: Total Metered kW less WMP Demand (if applicable) | N19: GA Allocator for Class A, Non-WMP Customers (if applicable)3 | O19: Billed kWh for Class A, Non-WMPs Customers (if applicable) | P19: Billed kW for Class A Non-WMP Customers (if applicable) | Q19: Billed kWh for Non-RPP Customers LESS Class A Consumption | R19: Billed kW for Non-RPP Customers LESS Class A Demand | S19: 1595 Recovery Share Proportion (2008) 2 | T19: 1595 Recovery Share Proportion (2009) 2 | U19: 1595 Recovery Share Proportion (2010) 2 | V19: 1595 Recovery Share Proportion (2011) 2 | W19: 1595 Recovery Share Proportion (2012) 2 | X19: 1595 Recovery Share Proportion (2013) 2 | Y19: 1595 Recovery Share Proportion (2014) 2 | Z19: 1568 LRAM Variance Account Class Allocation ($ amounts)
B21: RESIDENTIAL | C21: kWh | D21: =[4]Summary!$M$14 -> 15930 | E21: =[4]Summary!$M$15 -> 149932101.4 | G21: ='[4]2017 COP Forecast'!$D$23 -> 9605849.876 | H21: =IF(ISERROR(F21/E21*G21), 0, F21/E21*G21) -> 0 | J21: 0 | K21: 0 | L21: =E21-J21 -> 149932101.4 | M21: =F21-K21 -> 0 | N21: 0 | Q21: =IF(OR(G21=0, ISBLANK(G21)), 0, G21-J21-O21) -> 9605849.876 | R21: =IF(OR(H21=0, ISBLANK(H21)), 0, H21-K21-P21) -> 0 | X21: 0.625 | Y21: 0.625 | Z21: 24352.81
B22: GENERAL SERVICE LESS THAN 50 KW | C22: kWh | D22: =[4]Summary!$M$18 -> 1052 | E22: =[4]Summary!$M$19 -> 32368432.97 | G22: ='[4]2017 COP Forecast'!$D$24 -> 5875712.163 | H22: =IF(ISERROR(F22/E22*G22), 0, F22/E22*G22) -> 0 | J22: 0 | K22: 0 | L22: =E22-J22 -> 32368432.97 | M22: =F22-K22 -> 0 | N22: 0 | Q22: =IF(OR(G22=0, ISBLANK(G22)), 0, G22-J22-O22) -> 5875712.163 | R22: =IF(OR(H22=0, ISBLANK(H22)), 0, H22-K22-P22) -> 0 | X22: 0.135 | Y22: 0.135 | Z22: 9362.1
B23: GENERAL SERVICE 50 TO 4,999 KW | C23: kW | D23: =[4]Summary!$M$22 -> 71.5 | E23: =[4]Summary!$M$23 -> 55988819.02 | F23: =[4]Summary!$M$24 -> 157260.8482 | G23: ='[4]2017 COP Forecast'!$D$25 -> 57393466.52 | H23: 161206.2083 | J23: 0 | K23: 0 | L23: 55988819.02 | M23: 157260.8482 | N23: 0 | Q23: 57393466.52 | R23: 161206.2083 | X23: 0.234 | Y23: 0.234 | Z23: =2630.26+489 -> 3119.26
B24: SENTINEL LIGHTING | C24: kW | D24: =[4]Summary!$M$27 -> 161 | E24: =[4]Summary!$M$28 -> 98319.64276 | F24: =[4]Summary!$M$29 -> 273.1874957 | G24: ='[4]2017 COP Forecast'!$D$27 -> 16797.71433 | H24: 46.67353726 | J24: 0 | K24: 0 | L24: 98319.64276 | M24: 273.1874957 | N24: 0 | Q24: 16797.71433 | R24: 46.67353726 | X24: 0 | Y24: 0 | Z24: -502.11
B25: STREET LIGHTING | C25: kW | D25: =[4]Summary!$M$32 -> 3030 | E25: =[4]Summary!$M$33 -> 669627.3173 | F25: =[4]Summary!$M$34 -> 1888.544975 | G25: ='[4]2017 COP Forecast'!$D$26 -> 715028.0495 | H25: 2016.588324 | J25: 0 | K25: 0 | L25: 669627.3173 | M25: 1888.544975 | N25: 0 | Q25: 715028.0495 | R25: 2016.588324 | X25: 0.003 | Y25: 0.003 | Z25: -5528
B26: UNMETERED SCATTERED LOAD | C26: kWh | D26: =[4]Summary!$M$37 -> 74 | E26: =[4]Summary!$M$38 -> 530366.9286 | G26: ='[4]2017 COP Forecast'!$D$28 -> 33979.54838 | H26: 0 | J26: 0 | K26: 0 | L26: 530366.9286 | M26: 0 | N26: 0 | Q26: 33979.54838 | R26: 0 | Z26: -4162.47
H27: 0 | L27: 0 | M27: 0 | Q27: 0 | R27: 0
H28: 0 | L28: 0 | M28: 0 | Q28: 0 | R28: 0
H29: 0 | L29: 0 | M29: 0 | Q29: 0 | R29: 0
H30: 0 | L30: 0 | M30: 0 | Q30: 0 | R30: 0
H31: 0 | L31: 0 | M31: 0 | Q31: 0 | R31: 0
H32: 0 | L32: 0 | M32: 0 | Q32: 0 | R32: 0
H33: 0 | L33: 0 | M33: 0 | Q33: 0 | R33: 0
H34: 0 | L34: 0 | M34: 0 | Q34: 0 | R34: 0
H35: 0 | L35: 0 | M35: 0 | Q35: 0 | R35: =IF(OR(H35=0, ISBLANK(H35)), 0, H35-K35-P35) -> 0
H36: 0 | L36: 0 | M36: 0 | Q36: 0 | R36: 0
H37: 0 | L37: 0 | M37: 0 | Q37: 0 | R37: 0
H38: 0 | L38: 0 | M38: 0 | Q38: 0 | R38: 0
H39: 0 | L39: 0 | M39: 0 | Q39: 0 | R39: 0
H40: 0 | L40: 0 | M40: 0 | Q40: 0 | R40: 0
B41: Total | D41: =SUM(D21:D40) -> 20318.5 | E41: 239587667.3 | F41: 159422.5806 | G41: 73640833.87 | H41: 163269.4702 | I41: 0 | J41: 0 | K41: =SUM(K21:K40) -> 0 | L41: 239587667.3 | M41: 159422.5806 | N41: 0 | O41: 0 | P41: 0 | Q41: 73640833.87 | R41: 163269.4702 | S41: =SUM(S21:S40) -> 0 | T41: =SUM(T21:T40) -> 0 | U41: =SUM(U21:U40) -> 0 | V41: =SUM(V21:V40) -> 0 | W41: =SUM(W21:W40) -> 0 | Y41: =SUM(Y21:Y40) -> 0.997 | Z41: =SUM(Z21:Z40) -> 26641.59
Y42: Balance as per Sheet 2 | Z42: ='2. 2015 Continuity Schedule'!BS66 -> 26641.143
L43: =L21/L41 -> 0.6257922335 | Y43: Variance | Z43: =Z41-Z42 -> 0.447
L44: =L22/L41 -> 0.1351005806
A45: 1 For Account 1562, the allocation to customer classes should be performed on the basis of the test year distribution revenue allocation to customer classes found in the Applicant’s Cost of Service application that was most recently approved at the time of disposition of the 1562 account balances | L45: =L23/L41 -> 0.2336882347
L46: =L24/L41 -> 0.0004103702159
A47: 2 Residual Account balance to be allocated to rate classes in proportion to the recovery share as established when rate riders were implemented. | L47: =L25/L41 -> 0.002794915635
A48: 3 Enter the percentage of the balance in account 1589 allocated to Class A customers. Distributors typically settle GA costs with Class A customers on the basis of actual (i.e. non-estimated) costs. If this is the case, no amount of the balance in 1589 should be allocated to a distributor’s Class A customers. | L48: =L26/L41 -> 0.002213665397
L49: =SUM(L43:L48) -> 1

Sheet 5. Allocation of Balances
AA1: 21
AA2: 22
D4: Amounts from Sheet 2 | E4: Allocator | F4: =IF(LEN(TRIM('4. Billing Determinants'!$B21))=0, "", UPPER('4. Billing Determinants'!$B21)) -> RESIDENTIAL | G4: =IF(LEN(TRIM('4. Billing Determinants'!$B22))=0, "", '4. Billing Determinants'!$B22) -> GENERAL SERVICE LESS THAN 50 KW | H4: =IF(LEN(TRIM('4. Billing Determinants'!$B23))=0, "", '4. Billing Determinants'!$B23) -> GENERAL SERVICE 50 TO 4,999 KW | I4: =IF(LEN(TRIM('4. Billing Determinants'!$B24))=0, "", '4. Billing Determinants'!$B24) -> SENTINEL LIGHTING | J4: =IF(LEN(TRIM('4. Billing Determinants'!$B25))=0, "", '4. Billing Determinants'!$B25) -> STREET LIGHTING | K4: =IF(LEN(TRIM('4. Billing Determinants'!$B26))=0, "", '4. Billing Determinants'!$B26) -> UNMETERED SCATTERED LOAD | L4: =IF(LEN(TRIM('4. Billing Determinants'!$B27))=0, "", '4. Billing Determinants'!$B27) ->  | M4: =IF(LEN(TRIM('4. Billing Determinants'!$B28))=0, "", '4. Billing Determinants'!$B28) ->  | N4: =IF(LEN(TRIM('4. Billing Determinants'!$B29))=0, "", '4. Billing Determinants'!$B29) ->  | O4: =IF(LEN(TRIM('4. Billing Determinants'!$B30))=0, "", '4. Billing Determinants'!$B30) ->  | P4: =IF(LEN(TRIM('4. Billing Determinants'!$B31))=0, "", '4. Billing Determinants'!$B31) ->  | Q4: =IF(LEN(TRIM('4. Billing Determinants'!$B32))=0, "", '4. Billing Determinants'!$B32) ->  | R4: =IF(LEN(TRIM('4. Billing Determinants'!$B33))=0, "", '4. Billing Determinants'!$B33) ->  | S4: =IF(LEN(TRIM('4. Billing Determinants'!$B34))=0, "", '4. Billing Determinants'!$B34) ->  | T4: =IF(LEN(TRIM('4. Billing Determinants'!$B35))=0, "", '4. Billing Determinants'!$B35) ->  | U4: =IF(LEN(TRIM('4. Billing Determinants'!$B36))=0, "", '4. Billing Determinants'!$B36) ->  | V4: =IF(LEN(TRIM('4. Billing Determinants'!$B37))=0, "", '4. Billing Determinants'!$B37) ->  | W4: =IF(LEN(TRIM('4. Billing Determinants'!$B38))=0, "", '4. Billing Determinants'!$B38) ->  | X4: =IF(LEN(TRIM('4. Billing Determinants'!$B39))=0, "", '4. Billing Determinants'!$B39) ->  | Y4: =IF(LEN(TRIM('4. Billing Determinants'!$B40))=0, "", '4. Billing Determinants'!$B40) -> 
B5: LV Variance Account | C5: 1550 | D5: ='2. 2015 Continuity Schedule'!BS24 -> 412573.267 | E5: kWh | F5: =IFERROR(IF(F$4="",0,IF($E5="kWh",VLOOKUP(F$4,'4. Billing Determinants'!$B$19:$Z$41,4,0)/'4. Billing Determinants'!$E$41*$D5,IF($E5="kW",VLOOKUP(F$4,'4. Billing Determinants'!$B$19:$Z$41,5,0)/'4. Billing Determinants'!$F$41*$D5,IF($E5="Non-RPP kWh",VLOOKUP(F$4,'4. Billing Determinants'!$B$19:$Z$41,6,0)/'4. Billing Determinants'!$G$41*$D5,IF($E5="Distribution Rev.",VLOOKUP(F$4,'4. Billing Determinants'!$B$19:$Z$41,8,0)/'4. Billing Determinants'!$I$41*$D5, VLOOKUP(F$4,'4. Billing Determinants'!$B$19:$Z$41,3,0)/'4. Billing Determinants'!$D$41*$D5))))),0) -> 258185.1462 | G5: =IFERROR(IF(G$4="",0,IF($E5="kWh",VLOOKUP(G$4,'4. Billing Determinants'!$B$19:$Z$41,4,0)/'4. Billing Determinants'!$E$41*$D5,IF($E5="kW",VLOOKUP(G$4,'4. Billing Determinants'!$B$19:$Z$41,5,0)/'4. Billing Determinants'!$F$41*$D5,IF($E5="Non-RPP kWh",VLOOKUP(G$4,'4. Billing Determinants'!$B$19:$Z$41,6,0)/'4. Billing Determinants'!$G$41*$D5,IF($E5="Distribution Rev.",VLOOKUP(G$4,'4. Billing Determinants'!$B$19:$Z$41,8,0)/'4. Billing Determinants'!$I$41*$D5, VLOOKUP(G$4,'4. Billing Determinants'!$B$19:$Z$41,3,0)/'4. Billing Determinants'!$D$41*$D5))))),0) -> 55738.88793 | H5: =IFERROR(IF(H$4="",0,IF($E5="kWh",VLOOKUP(H$4,'4. Billing Determinants'!$B$19:$Z$41,4,0)/'4. Billing Determinants'!$E$41*$D5,IF($E5="kW",VLOOKUP(H$4,'4. Billing Determinants'!$B$19:$Z$41,5,0)/'4. Billing Determinants'!$F$41*$D5,IF($E5="Non-RPP kWh",VLOOKUP(H$4,'4. Billing Determinants'!$B$19:$Z$41,6,0)/'4. Billing Determinants'!$G$41*$D5,IF($E5="Distribution Rev.",VLOOKUP(H$4,'4. Billing Determinants'!$B$19:$Z$41,8,0)/'4. Billing Determinants'!$I$41*$D5, VLOOKUP(H$4,'4. Billing Determinants'!$B$19:$Z$41,3,0)/'4. Billing Determinants'!$D$41*$D5))))),0) -> 96413.51843 | I5: =IFERROR(IF(I$4="",0,IF($E5="kWh",VLOOKUP(I$4,'4. Billing Determinants'!$B$19:$Z$41,4,0)/'4. Billing Determinants'!$E$41*$D5,IF($E5="kW",VLOOKUP(I$4,'4. Billing Determinants'!$B$19:$Z$41,5,0)/'4. Billing Determinants'!$F$41*$D5,IF($E5="Non-RPP kWh",VLOOKUP(I$4,'4. Billing Determinants'!$B$19:$Z$41,6,0)/'4. Billing Determinants'!$G$41*$D5,IF($E5="Distribution Rev.",VLOOKUP(I$4,'4. Billing Determinants'!$B$19:$Z$41,8,0)/'4. Billing Determinants'!$I$41*$D5, VLOOKUP(I$4,'4. Billing Determinants'!$B$19:$Z$41,3,0)/'4. Billing Determinants'!$D$41*$D5))))),0) -> 169.3077806 | J5: =IFERROR(IF(J$4="",0,IF($E5="kWh",VLOOKUP(J$4,'4. Billing Determinants'!$B$19:$Z$41,4,0)/'4. Billing Determinants'!$E$41*$D5,IF($E5="kW",VLOOKUP(J$4,'4. Billing Determinants'!$B$19:$Z$41,5,0)/'4. Billing Determinants'!$F$41*$D5,IF($E5="Non-RPP kWh",VLOOKUP(J$4,'4. Billing Determinants'!$B$19:$Z$41,6,0)/'4. Billing Determinants'!$G$41*$D5,IF($E5="Distribution Rev.",VLOOKUP(J$4,'4. Billing Determinants'!$B$19:$Z$41,8,0)/'4. Billing Determinants'!$I$41*$D5, VLOOKUP(J$4,'4. Billing Determinants'!$B$19:$Z$41,3,0)/'4. Billing Determinants'!$D$41*$D5))))),0) -> 1153.107474 | K5: =IFERROR(IF(K$4="",0,IF($E5="kWh",VLOOKUP(K$4,'4. Billing Determinants'!$B$19:$Z$41,4,0)/'4. Billing Determinants'!$E$41*$D5,IF($E5="kW",VLOOKUP(K$4,'4. Billing Determinants'!$B$19:$Z$41,5,0)/'4. Billing Determinants'!$F$41*$D5,IF($E5="Non-RPP kWh",VLOOKUP(K$4,'4. Billing Determinants'!$B$19:$Z$41,6,0)/'4. Billing Determinants'!$G$41*$D5,IF($E5="Distribution Rev.",VLOOKUP(K$4,'4. Billing Determinants'!$B$19:$Z$41,8,0)/'4. Billing Determinants'!$I$41*$D5, VLOOKUP(K$4,'4. Billing Determinants'!$B$19:$Z$41,3,0)/'4. Billing Determinants'!$D$41*$D5))))),0) -> 913.2991647 | L5: =IFERROR(IF(L$4="",0,IF($E5="kWh",VLOOKUP(L$4,'4. Billing Determinants'!$B$19:$Z$41,4,0)/'4. Billing Determinants'!$E$41*$D5,IF($E5="kW",VLOOKUP(L$4,'4. Billing Determinants'!$B$19:$Z$41,5,0)/'4. Billing Determinants'!$F$41*$D5,IF($E5="Non-RPP kWh",VLOOKUP(L$4,'4. Billing Determinants'!$B$19:$Z$41,6,0)/'4. Billing Determinants'!$G$41*$D5,IF($E5="Distribution Rev.",VLOOKUP(L$4,'4. Billing Determinants'!$B$19:$Z$41,8,0)/'4. Billing Determinants'!$I$41*$D5, VLOOKUP(L$4,'4. Billing Determinants'!$B$19:$Z$41,3,0)/'4. Billing Determinants'!$D$41*$D5))))),0) -> 0 | M5: =IFERROR(IF(M$4="",0,IF($E5="kWh",VLOOKUP(M$4,'4. Billing Determinants'!$B$19:$Z$41,4,0)/'4. Billing Determinants'!$E$41*$D5,IF($E5="kW",VLOOKUP(M$4,'4. Billing Determinants'!$B$19:$Z$41,5,0)/'4. Billing Determinants'!$F$41*$D5,IF($E5="Non-RPP kWh",VLOOKUP(M$4,'4. Billing Determinants'!$B$19:$Z$41,6,0)/'4. Billing Determinants'!$G$41*$D5,IF($E5="Distribution Rev.",VLOOKUP(M$4,'4. Billing Determinants'!$B$19:$Z$41,8,0)/'4. Billing Determinants'!$I$41*$D5, VLOOKUP(M$4,'4. Billing Determinants'!$B$19:$Z$41,3,0)/'4. Billing Determinants'!$D$41*$D5))))),0) -> 0 | N5: =IFERROR(IF(N$4="",0,IF($E5="kWh",VLOOKUP(N$4,'4. Billing Determinants'!$B$19:$Z$41,4,0)/'4. Billing Determinants'!$E$41*$D5,IF($E5="kW",VLOOKUP(N$4,'4. Billing Determinants'!$B$19:$Z$41,5,0)/'4. Billing Determinants'!$F$41*$D5,IF($E5="Non-RPP kWh",VLOOKUP(N$4,'4. Billing Determinants'!$B$19:$Z$41,6,0)/'4. Billing Determinants'!$G$41*$D5,IF($E5="Distribution Rev.",VLOOKUP(N$4,'4. Billing Determinants'!$B$19:$Z$41,8,0)/'4. Billing Determinants'!$I$41*$D5, VLOOKUP(N$4,'4. Billing Determinants'!$B$19:$Z$41,3,0)/'4. Billing Determinants'!$D$41*$D5))))),0) -> 0 | O5: =IFERROR(IF(O$4="",0,IF($E5="kWh",VLOOKUP(O$4,'4. Billing Determinants'!$B$19:$Z$41,4,0)/'4. Billing Determinants'!$E$41*$D5,IF($E5="kW",VLOOKUP(O$4,'4. Billing Determinants'!$B$19:$Z$41,5,0)/'4. Billing Determinants'!$F$41*$D5,IF($E5="Non-RPP kWh",VLOOKUP(O$4,'4. Billing Determinants'!$B$19:$Z$41,6,0)/'4. Billing Determinants'!$G$41*$D5,IF($E5="Distribution Rev.",VLOOKUP(O$4,'4. Billing Determinants'!$B$19:$Z$41,8,0)/'4. Billing Determinants'!$I$41*$D5, VLOOKUP(O$4,'4. Billing Determinants'!$B$19:$Z$41,3,0)/'4. Billing Determinants'!$D$41*$D5))))),0) -> 0 | P5: =IFERROR(IF(P$4="",0,IF($E5="kWh",VLOOKUP(P$4,'4. Billing Determinants'!$B$19:$Z$41,4,0)/'4. Billing Determinants'!$E$41*$D5,IF($E5="kW",VLOOKUP(P$4,'4. Billing Determinants'!$B$19:$Z$41,5,0)/'4. Billing Determinants'!$F$41*$D5,IF($E5="Non-RPP kWh",VLOOKUP(P$4,'4. Billing Determinants'!$B$19:$Z$41,6,0)/'4. Billing Determinants'!$G$41*$D5,IF($E5="Distribution Rev.",VLOOKUP(P$4,'4. Billing Determinants'!$B$19:$Z$41,8,0)/'4. Billing Determinants'!$I$41*$D5, VLOOKUP(P$4,'4. Billing Determinants'!$B$19:$Z$41,3,0)/'4. Billing Determinants'!$D$41*$D5))))),0) -> 0 | Q5: =IFERROR(IF(Q$4="",0,IF($E5="kWh",VLOOKUP(Q$4,'4. Billing Determinants'!$B$19:$Z$41,4,0)/'4. Billing Determinants'!$E$41*$D5,IF($E5="kW",VLOOKUP(Q$4,'4. Billing Determinants'!$B$19:$Z$41,5,0)/'4. Billing Determinants'!$F$41*$D5,IF($E5="Non-RPP kWh",VLOOKUP(Q$4,'4. Billing Determinants'!$B$19:$Z$41,6,0)/'4. Billing Determinants'!$G$41*$D5,IF($E5="Distribution Rev.",VLOOKUP(Q$4,'4. Billing Determinants'!$B$19:$Z$41,8,0)/'4. Billing Determinants'!$I$41*$D5, VLOOKUP(Q$4,'4. Billing Determinants'!$B$19:$Z$41,3,0)/'4. Billing Determinants'!$D$41*$D5))))),0) -> 0 | R5: =IFERROR(IF(R$4="",0,IF($E5="kWh",VLOOKUP(R$4,'4. Billing Determinants'!$B$19:$Z$41,4,0)/'4. Billing Determinants'!$E$41*$D5,IF($E5="kW",VLOOKUP(R$4,'4. Billing Determinants'!$B$19:$Z$41,5,0)/'4. Billing Determinants'!$F$41*$D5,IF($E5="Non-RPP kWh",VLOOKUP(R$4,'4. Billing Determinants'!$B$19:$Z$41,6,0)/'4. Billing Determinants'!$G$41*$D5,IF($E5="Distribution Rev.",VLOOKUP(R$4,'4. Billing Determinants'!$B$19:$Z$41,8,0)/'4. Billing Determinants'!$I$41*$D5, VLOOKUP(R$4,'4. Billing Determinants'!$B$19:$Z$41,3,0)/'4. Billing Determinants'!$D$41*$D5))))),0) -> 0 | S5: =IFERROR(IF(S$4="",0,IF($E5="kWh",VLOOKUP(S$4,'4. Billing Determinants'!$B$19:$Z$41,4,0)/'4. Billing Determinants'!$E$41*$D5,IF($E5="kW",VLOOKUP(S$4,'4. Billing Determinants'!$B$19:$Z$41,5,0)/'4. Billing Determinants'!$F$41*$D5,IF($E5="Non-RPP kWh",VLOOKUP(S$4,'4. Billing Determinants'!$B$19:$Z$41,6,0)/'4. Billing Determinants'!$G$41*$D5,IF($E5="Distribution Rev.",VLOOKUP(S$4,'4. Billing Determinants'!$B$19:$Z$41,8,0)/'4. Billing Determinants'!$I$41*$D5, VLOOKUP(S$4,'4. Billing Determinants'!$B$19:$Z$41,3,0)/'4. Billing Determinants'!$D$41*$D5))))),0) -> 0 | T5: =IFERROR(IF(T$4="",0,IF($E5="kWh",VLOOKUP(T$4,'4. Billing Determinants'!$B$19:$Z$41,4,0)/'4. Billing Determinants'!$E$41*$D5,IF($E5="kW",VLOOKUP(T$4,'4. Billing Determinants'!$B$19:$Z$41,5,0)/'4. Billing Determinants'!$F$41*$D5,IF($E5="Non-RPP kWh",VLOOKUP(T$4,'4. Billing Determinants'!$B$19:$Z$41,6,0)/'4. Billing Determinants'!$G$41*$D5,IF($E5="Distribution Rev.",VLOOKUP(T$4,'4. Billing Determinants'!$B$19:$Z$41,8,0)/'4. Billing Determinants'!$I$41*$D5, VLOOKUP(T$4,'4. Billing Determinants'!$B$19:$Z$41,3,0)/'4. Billing Determinants'!$D$41*$D5))))),0) -> 0 | U5: =IFERROR(IF(U$4="",0,IF($E5="kWh",VLOOKUP(U$4,'4. Billing Determinants'!$B$19:$Z$41,4,0)/'4. Billing Determinants'!$E$41*$D5,IF($E5="kW",VLOOKUP(U$4,'4. Billing Determinants'!$B$19:$Z$41,5,0)/'4. Billing Determinants'!$F$41*$D5,IF($E5="Non-RPP kWh",VLOOKUP(U$4,'4. Billing Determinants'!$B$19:$Z$41,6,0)/'4. Billing Determinants'!$G$41*$D5,IF($E5="Distribution Rev.",VLOOKUP(U$4,'4. Billing Determinants'!$B$19:$Z$41,8,0)/'4. Billing Determinants'!$I$41*$D5, VLOOKUP(U$4,'4. Billing Determinants'!$B$19:$Z$41,3,0)/'4. Billing Determinants'!$D$41*$D5))))),0) -> 0 | V5: =IFERROR(IF(V$4="",0,IF($E5="kWh",VLOOKUP(V$4,'4. Billing Determinants'!$B$19:$Z$41,4,0)/'4. Billing Determinants'!$E$41*$D5,IF($E5="kW",VLOOKUP(V$4,'4. Billing Determinants'!$B$19:$Z$41,5,0)/'4. Billing Determinants'!$F$41*$D5,IF($E5="Non-RPP kWh",VLOOKUP(V$4,'4. Billing Determinants'!$B$19:$Z$41,6,0)/'4. Billing Determinants'!$G$41*$D5,IF($E5="Distribution Rev.",VLOOKUP(V$4,'4. Billing Determinants'!$B$19:$Z$41,8,0)/'4. Billing Determinants'!$I$41*$D5, VLOOKUP(V$4,'4. Billing Determinants'!$B$19:$Z$41,3,0)/'4. Billing Determinants'!$D$41*$D5))))),0) -> 0 | W5: =IFERROR(IF(W$4="",0,IF($E5="kWh",VLOOKUP(W$4,'4. Billing Determinants'!$B$19:$Z$41,4,0)/'4. Billing Determinants'!$E$41*$D5,IF($E5="kW",VLOOKUP(W$4,'4. Billing Determinants'!$B$19:$Z$41,5,0)/'4. Billing Determinants'!$F$41*$D5,IF($E5="Non-RPP kWh",VLOOKUP(W$4,'4. Billing Determinants'!$B$19:$Z$41,6,0)/'4. Billing Determinants'!$G$41*$D5,IF($E5="Distribution Rev.",VLOOKUP(W$4,'4. Billing Determinants'!$B$19:$Z$41,8,0)/'4. Billing Determinants'!$I$41*$D5, VLOOKUP(W$4,'4. Billing Determinants'!$B$19:$Z$41,3,0)/'4. Billing Determinants'!$D$41*$D5))))),0) -> 0 | X5: =IFERROR(IF(X$4="",0,IF($E5="kWh",VLOOKUP(X$4,'4. Billing Determinants'!$B$19:$Z$41,4,0)/'4. Billing Determinants'!$E$41*$D5,IF($E5="kW",VLOOKUP(X$4,'4. Billing Determinants'!$B$19:$Z$41,5,0)/'4. Billing Determinants'!$F$41*$D5,IF($E5="Non-RPP kWh",VLOOKUP(X$4,'4. Billing Determinants'!$B$19:$Z$41,6,0)/'4. Billing Determinants'!$G$41*$D5,IF($E5="Distribution Rev.",VLOOKUP(X$4,'4. Billing Determinants'!$B$19:$Z$41,8,0)/'4. Billing Determinants'!$I$41*$D5, VLOOKUP(X$4,'4. Billing Determinants'!$B$19:$Z$41,3,0)/'4. Billing Determinants'!$D$41*$D5))))),0) -> 0 | Y5: =IFERROR(IF(Y$4="",0,IF($E5="kWh",VLOOKUP(Y$4,'4. Billing Determinants'!$B$19:$Z$41,4,0)/'4. Billing Determinants'!$E$41*$D5,IF($E5="kW",VLOOKUP(Y$4,'4. Billing Determinants'!$B$19:$Z$41,5,0)/'4. Billing Determinants'!$F$41*$D5,IF($E5="Non-RPP kWh",VLOOKUP(Y$4,'4. Billing Determinants'!$B$19:$Z$41,6,0)/'4. Billing Determinants'!$G$41*$D5,IF($E5="Distribution Rev.",VLOOKUP(Y$4,'4. Billing Determinants'!$B$19:$Z$41,8,0)/'4. Billing Determinants'!$I$41*$D5, VLOOKUP(Y$4,'4. Billing Determinants'!$B$19:$Z$41,3,0)/'4. Billing Determinants'!$D$41*$D5))))),0) -> 0
B6: Smart Metering Entity Charge Variance Account | C6: 1551 | D6: ='2. 2015 Continuity Schedule'!BS25 -> -10343.474 | E6: # of Customers | F6: =(15930/(15930+1052))*D6 -> -9702.717043 | G6: =(1052/(15930+1052))*D6 -> -640.7569572 | H6: 0 | I6: 0 | J6: 0 | K6: 0 | L6: 0 | M6: 0 | N6: 0 | O6: 0 | P6: 0 | Q6: 0 | R6: 0 | S6: 0 | T6: 0 | U6: 0 | V6: 0 | W6: 0 | X6: 0 | Y6: 0
B7: RSVA - Wholesale Market Service Charge | C7: 1580 | D7: ='2. 2015 Continuity Schedule'!BS26 -> -526877.546 | E7: kWh | F7: =IFERROR(IF(F$4="",0,IF($E7="kWh",VLOOKUP(F$4,'4. Billing Determinants'!$B$19:$Z$41,11,0)/'4. Billing Determinants'!$L$41*$D7,IF($E7="kW",VLOOKUP(F$4,'4. Billing Determinants'!$B$19:$Z$41,12,0)/'4. Billing Determinants'!$M$41*$D7,))),0) -> -329715.8763 | G7: =IFERROR(IF(G$4="",0,IF($E7="kWh",VLOOKUP(G$4,'4. Billing Determinants'!$B$19:$Z$41,11,0)/'4. Billing Determinants'!$L$41*$D7,IF($E7="kW",VLOOKUP(G$4,'4. Billing Determinants'!$B$19:$Z$41,12,0)/'4. Billing Determinants'!$M$41*$D7,))),0) -> -71181.46239 | H7: =IFERROR(IF(H$4="",0,IF($E7="kWh",VLOOKUP(H$4,'4. Billing Determinants'!$B$19:$Z$41,11,0)/'4. Billing Determinants'!$L$41*$D7,IF($E7="kW",VLOOKUP(H$4,'4. Billing Determinants'!$B$19:$Z$41,12,0)/'4. Billing Determinants'!$M$41*$D7,))),0) -> -123125.0836 | I7: =IFERROR(IF(I$4="",0,IF($E7="kWh",VLOOKUP(I$4,'4. Billing Determinants'!$B$19:$Z$41,11,0)/'4. Billing Determinants'!$L$41*$D7,IF($E7="kW",VLOOKUP(I$4,'4. Billing Determinants'!$B$19:$Z$41,12,0)/'4. Billing Determinants'!$M$41*$D7,))),0) -> -216.2148523 | J7: =IFERROR(IF(J$4="",0,IF($E7="kWh",VLOOKUP(J$4,'4. Billing Determinants'!$B$19:$Z$41,11,0)/'4. Billing Determinants'!$L$41*$D7,IF($E7="kW",VLOOKUP(J$4,'4. Billing Determinants'!$B$19:$Z$41,12,0)/'4. Billing Determinants'!$M$41*$D7,))),0) -> -1472.578291 | K7: =IFERROR(IF(K$4="",0,IF($E7="kWh",VLOOKUP(K$4,'4. Billing Determinants'!$B$19:$Z$41,11,0)/'4. Billing Determinants'!$L$41*$D7,IF($E7="kW",VLOOKUP(K$4,'4. Billing Determinants'!$B$19:$Z$41,12,0)/'4. Billing Determinants'!$M$41*$D7,))),0) -> -1166.330592 | L7: =IFERROR(IF(L$4="",0,IF($E7="kWh",VLOOKUP(L$4,'4. Billing Determinants'!$B$19:$Z$41,11,0)/'4. Billing Determinants'!$L$41*$D7,IF($E7="kW",VLOOKUP(L$4,'4. Billing Determinants'!$B$19:$Z$41,12,0)/'4. Billing Determinants'!$M$41*$D7,))),0) -> 0 | M7: =IFERROR(IF(M$4="",0,IF($E7="kWh",VLOOKUP(M$4,'4. Billing Determinants'!$B$19:$Z$41,11,0)/'4. Billing Determinants'!$L$41*$D7,IF($E7="kW",VLOOKUP(M$4,'4. Billing Determinants'!$B$19:$Z$41,12,0)/'4. Billing Determinants'!$M$41*$D7,))),0) -> 0 | N7: =IFERROR(IF(N$4="",0,IF($E7="kWh",VLOOKUP(N$4,'4. Billing Determinants'!$B$19:$Z$41,11,0)/'4. Billing Determinants'!$L$41*$D7,IF($E7="kW",VLOOKUP(N$4,'4. Billing Determinants'!$B$19:$Z$41,12,0)/'4. Billing Determinants'!$M$41*$D7,))),0) -> 0 | O7: =IFERROR(IF(O$4="",0,IF($E7="kWh",VLOOKUP(O$4,'4. Billing Determinants'!$B$19:$Z$41,11,0)/'4. Billing Determinants'!$L$41*$D7,IF($E7="kW",VLOOKUP(O$4,'4. Billing Determinants'!$B$19:$Z$41,12,0)/'4. Billing Determinants'!$M$41*$D7,))),0) -> 0 | P7: =IFERROR(IF(P$4="",0,IF($E7="kWh",VLOOKUP(P$4,'4. Billing Determinants'!$B$19:$Z$41,11,0)/'4. Billing Determinants'!$L$41*$D7,IF($E7="kW",VLOOKUP(P$4,'4. Billing Determinants'!$B$19:$Z$41,12,0)/'4. Billing Determinants'!$M$41*$D7,))),0) -> 0 | Q7: =IFERROR(IF(Q$4="",0,IF($E7="kWh",VLOOKUP(Q$4,'4. Billing Determinants'!$B$19:$Z$41,11,0)/'4. Billing Determinants'!$L$41*$D7,IF($E7="kW",VLOOKUP(Q$4,'4. Billing Determinants'!$B$19:$Z$41,12,0)/'4. Billing Determinants'!$M$41*$D7,))),0) -> 0 | R7: =IFERROR(IF(R$4="",0,IF($E7="kWh",VLOOKUP(R$4,'4. Billing Determinants'!$B$19:$Z$41,11,0)/'4. Billing Determinants'!$L$41*$D7,IF($E7="kW",VLOOKUP(R$4,'4. Billing Determinants'!$B$19:$Z$41,12,0)/'4. Billing Determinants'!$M$41*$D7,))),0) -> 0 | S7: =IFERROR(IF(S$4="",0,IF($E7="kWh",VLOOKUP(S$4,'4. Billing Determinants'!$B$19:$Z$41,11,0)/'4. Billing Determinants'!$L$41*$D7,IF($E7="kW",VLOOKUP(S$4,'4. Billing Determinants'!$B$19:$Z$41,12,0)/'4. Billing Determinants'!$M$41*$D7,))),0) -> 0 | T7: =IFERROR(IF(T$4="",0,IF($E7="kWh",VLOOKUP(T$4,'4. Billing Determinants'!$B$19:$Z$41,11,0)/'4. Billing Determinants'!$L$41*$D7,IF($E7="kW",VLOOKUP(T$4,'4. Billing Determinants'!$B$19:$Z$41,12,0)/'4. Billing Determinants'!$M$41*$D7,))),0) -> 0 | U7: =IFERROR(IF(U$4="",0,IF($E7="kWh",VLOOKUP(U$4,'4. Billing Determinants'!$B$19:$Z$41,11,0)/'4. Billing Determinants'!$L$41*$D7,IF($E7="kW",VLOOKUP(U$4,'4. Billing Determinants'!$B$19:$Z$41,12,0)/'4. Billing Determinants'!$M$41*$D7,))),0) -> 0 | V7: =IFERROR(IF(V$4="",0,IF($E7="kWh",VLOOKUP(V$4,'4. Billing Determinants'!$B$19:$Z$41,11,0)/'4. Billing Determinants'!$L$41*$D7,IF($E7="kW",VLOOKUP(V$4,'4. Billing Determinants'!$B$19:$Z$41,12,0)/'4. Billing Determinants'!$M$41*$D7,))),0) -> 0 | W7: =IFERROR(IF(W$4="",0,IF($E7="kWh",VLOOKUP(W$4,'4. Billing Determinants'!$B$19:$Z$41,11,0)/'4. Billing Determinants'!$L$41*$D7,IF($E7="kW",VLOOKUP(W$4,'4. Billing Determinants'!$B$19:$Z$41,12,0)/'4. Billing Determinants'!$M$41*$D7,))),0) -> 0 | X7: =IFERROR(IF(X$4="",0,IF($E7="kWh",VLOOKUP(X$4,'4. Billing Determinants'!$B$19:$Z$41,11,0)/'4. Billing Determinants'!$L$41*$D7,IF($E7="kW",VLOOKUP(X$4,'4. Billing Determinants'!$B$19:$Z$41,12,0)/'4. Billing Determinants'!$M$41*$D7,))),0) -> 0 | Y7: =IFERROR(IF(Y$4="",0,IF($E7="kWh",VLOOKUP(Y$4,'4. Billing Determinants'!$B$19:$Z$41,11,0)/'4. Billing Determinants'!$L$41*$D7,IF($E7="kW",VLOOKUP(Y$4,'4. Billing Determinants'!$B$19:$Z$41,12,0)/'4. Billing Determinants'!$M$41*$D7,))),0) -> 0
B8: RSVA - Retail Transmission Network Charge | C8: 1584 | D8: ='2. 2015 Continuity Schedule'!BS27 -> -5074.701 | E8: kWh | F8: =IFERROR(IF(F$4="",0,IF($E8="kWh",VLOOKUP(F$4,'4. Billing Determinants'!$B$19:$Z$41,4,0)/'4. Billing Determinants'!$E$41*$D8,IF($E8="kW",VLOOKUP(F$4,'4. Billing Determinants'!$B$19:$Z$41,5,0)/'4. Billing Determinants'!$F$41*$D8,IF($E8="Non-RPP kWh",VLOOKUP(F$4,'4. Billing Determinants'!$B$19:$Z$41,6,0)/'4. Billing Determinants'!$G$41*$D8,IF($E8="Distribution Rev.",VLOOKUP(F$4,'4. Billing Determinants'!$B$19:$Z$41,8,0)/'4. Billing Determinants'!$I$41*$D8, VLOOKUP(F$4,'4. Billing Determinants'!$B$19:$Z$41,3,0)/'4. Billing Determinants'!$D$41*$D8))))),0) -> -3175.708473 | G8: =IFERROR(IF(G$4="",0,IF($E8="kWh",VLOOKUP(G$4,'4. Billing Determinants'!$B$19:$Z$41,4,0)/'4. Billing Determinants'!$E$41*$D8,IF($E8="kW",VLOOKUP(G$4,'4. Billing Determinants'!$B$19:$Z$41,5,0)/'4. Billing Determinants'!$F$41*$D8,IF($E8="Non-RPP kWh",VLOOKUP(G$4,'4. Billing Determinants'!$B$19:$Z$41,6,0)/'4. Billing Determinants'!$G$41*$D8,IF($E8="Distribution Rev.",VLOOKUP(G$4,'4. Billing Determinants'!$B$19:$Z$41,8,0)/'4. Billing Determinants'!$I$41*$D8, VLOOKUP(G$4,'4. Billing Determinants'!$B$19:$Z$41,3,0)/'4. Billing Determinants'!$D$41*$D8))))),0) -> -685.5950516 | H8: =IFERROR(IF(H$4="",0,IF($E8="kWh",VLOOKUP(H$4,'4. Billing Determinants'!$B$19:$Z$41,4,0)/'4. Billing Determinants'!$E$41*$D8,IF($E8="kW",VLOOKUP(H$4,'4. Billing Determinants'!$B$19:$Z$41,5,0)/'4. Billing Determinants'!$F$41*$D8,IF($E8="Non-RPP kWh",VLOOKUP(H$4,'4. Billing Determinants'!$B$19:$Z$41,6,0)/'4. Billing Determinants'!$G$41*$D8,IF($E8="Distribution Rev.",VLOOKUP(H$4,'4. Billing Determinants'!$B$19:$Z$41,8,0)/'4. Billing Determinants'!$I$41*$D8, VLOOKUP(H$4,'4. Billing Determinants'!$B$19:$Z$41,3,0)/'4. Billing Determinants'!$D$41*$D8))))),0) -> -1185.897918 | I8: =IFERROR(IF(I$4="",0,IF($E8="kWh",VLOOKUP(I$4,'4. Billing Determinants'!$B$19:$Z$41,4,0)/'4. Billing Determinants'!$E$41*$D8,IF($E8="kW",VLOOKUP(I$4,'4. Billing Determinants'!$B$19:$Z$41,5,0)/'4. Billing Determinants'!$F$41*$D8,IF($E8="Non-RPP kWh",VLOOKUP(I$4,'4. Billing Determinants'!$B$19:$Z$41,6,0)/'4. Billing Determinants'!$G$41*$D8,IF($E8="Distribution Rev.",VLOOKUP(I$4,'4. Billing Determinants'!$B$19:$Z$41,8,0)/'4. Billing Determinants'!$I$41*$D8, VLOOKUP(I$4,'4. Billing Determinants'!$B$19:$Z$41,3,0)/'4. Billing Determinants'!$D$41*$D8))))),0) -> -2.082506145 | J8: =IFERROR(IF(J$4="",0,IF($E8="kWh",VLOOKUP(J$4,'4. Billing Determinants'!$B$19:$Z$41,4,0)/'4. Billing Determinants'!$E$41*$D8,IF($E8="kW",VLOOKUP(J$4,'4. Billing Determinants'!$B$19:$Z$41,5,0)/'4. Billing Determinants'!$F$41*$D8,IF($E8="Non-RPP kWh",VLOOKUP(J$4,'4. Billing Determinants'!$B$19:$Z$41,6,0)/'4. Billing Determinants'!$G$41*$D8,IF($E8="Distribution Rev.",VLOOKUP(J$4,'4. Billing Determinants'!$B$19:$Z$41,8,0)/'4. Billing Determinants'!$I$41*$D8, VLOOKUP(J$4,'4. Billing Determinants'!$B$19:$Z$41,3,0)/'4. Billing Determinants'!$D$41*$D8))))),0) -> -14.18336117 | K8: =IFERROR(IF(K$4="",0,IF($E8="kWh",VLOOKUP(K$4,'4. Billing Determinants'!$B$19:$Z$41,4,0)/'4. Billing Determinants'!$E$41*$D8,IF($E8="kW",VLOOKUP(K$4,'4. Billing Determinants'!$B$19:$Z$41,5,0)/'4. Billing Determinants'!$F$41*$D8,IF($E8="Non-RPP kWh",VLOOKUP(K$4,'4. Billing Determinants'!$B$19:$Z$41,6,0)/'4. Billing Determinants'!$G$41*$D8,IF($E8="Distribution Rev.",VLOOKUP(K$4,'4. Billing Determinants'!$B$19:$Z$41,8,0)/'4. Billing Determinants'!$I$41*$D8, VLOOKUP(K$4,'4. Billing Determinants'!$B$19:$Z$41,3,0)/'4. Billing Determinants'!$D$41*$D8))))),0) -> -11.23369 | L8: =IFERROR(IF(L$4="",0,IF($E8="kWh",VLOOKUP(L$4,'4. Billing Determinants'!$B$19:$Z$41,4,0)/'4. Billing Determinants'!$E$41*$D8,IF($E8="kW",VLOOKUP(L$4,'4. Billing Determinants'!$B$19:$Z$41,5,0)/'4. Billing Determinants'!$F$41*$D8,IF($E8="Non-RPP kWh",VLOOKUP(L$4,'4. Billing Determinants'!$B$19:$Z$41,6,0)/'4. Billing Determinants'!$G$41*$D8,IF($E8="Distribution Rev.",VLOOKUP(L$4,'4. Billing Determinants'!$B$19:$Z$41,8,0)/'4. Billing Determinants'!$I$41*$D8, VLOOKUP(L$4,'4. Billing Determinants'!$B$19:$Z$41,3,0)/'4. Billing Determinants'!$D$41*$D8))))),0) -> 0 | M8: =IFERROR(IF(M$4="",0,IF($E8="kWh",VLOOKUP(M$4,'4. Billing Determinants'!$B$19:$Z$41,4,0)/'4. Billing Determinants'!$E$41*$D8,IF($E8="kW",VLOOKUP(M$4,'4. Billing Determinants'!$B$19:$Z$41,5,0)/'4. Billing Determinants'!$F$41*$D8,IF($E8="Non-RPP kWh",VLOOKUP(M$4,'4. Billing Determinants'!$B$19:$Z$41,6,0)/'4. Billing Determinants'!$G$41*$D8,IF($E8="Distribution Rev.",VLOOKUP(M$4,'4. Billing Determinants'!$B$19:$Z$41,8,0)/'4. Billing Determinants'!$I$41*$D8, VLOOKUP(M$4,'4. Billing Determinants'!$B$19:$Z$41,3,0)/'4. Billing Determinants'!$D$41*$D8))))),0) -> 0 | N8: =IFERROR(IF(N$4="",0,IF($E8="kWh",VLOOKUP(N$4,'4. Billing Determinants'!$B$19:$Z$41,4,0)/'4. Billing Determinants'!$E$41*$D8,IF($E8="kW",VLOOKUP(N$4,'4. Billing Determinants'!$B$19:$Z$41,5,0)/'4. Billing Determinants'!$F$41*$D8,IF($E8="Non-RPP kWh",VLOOKUP(N$4,'4. Billing Determinants'!$B$19:$Z$41,6,0)/'4. Billing Determinants'!$G$41*$D8,IF($E8="Distribution Rev.",VLOOKUP(N$4,'4. Billing Determinants'!$B$19:$Z$41,8,0)/'4. Billing Determinants'!$I$41*$D8, VLOOKUP(N$4,'4. Billing Determinants'!$B$19:$Z$41,3,0)/'4. Billing Determinants'!$D$41*$D8))))),0) -> 0 | O8: =IFERROR(IF(O$4="",0,IF($E8="kWh",VLOOKUP(O$4,'4. Billing Determinants'!$B$19:$Z$41,4,0)/'4. Billing Determinants'!$E$41*$D8,IF($E8="kW",VLOOKUP(O$4,'4. Billing Determinants'!$B$19:$Z$41,5,0)/'4. Billing Determinants'!$F$41*$D8,IF($E8="Non-RPP kWh",VLOOKUP(O$4,'4. Billing Determinants'!$B$19:$Z$41,6,0)/'4. Billing Determinants'!$G$41*$D8,IF($E8="Distribution Rev.",VLOOKUP(O$4,'4. Billing Determinants'!$B$19:$Z$41,8,0)/'4. Billing Determinants'!$I$41*$D8, VLOOKUP(O$4,'4. Billing Determinants'!$B$19:$Z$41,3,0)/'4. Billing Determinants'!$D$41*$D8))))),0) -> 0 | P8: =IFERROR(IF(P$4="",0,IF($E8="kWh",VLOOKUP(P$4,'4. Billing Determinants'!$B$19:$Z$41,4,0)/'4. Billing Determinants'!$E$41*$D8,IF($E8="kW",VLOOKUP(P$4,'4. Billing Determinants'!$B$19:$Z$41,5,0)/'4. Billing Determinants'!$F$41*$D8,IF($E8="Non-RPP kWh",VLOOKUP(P$4,'4. Billing Determinants'!$B$19:$Z$41,6,0)/'4. Billing Determinants'!$G$41*$D8,IF($E8="Distribution Rev.",VLOOKUP(P$4,'4. Billing Determinants'!$B$19:$Z$41,8,0)/'4. Billing Determinants'!$I$41*$D8, VLOOKUP(P$4,'4. Billing Determinants'!$B$19:$Z$41,3,0)/'4. Billing Determinants'!$D$41*$D8))))),0) -> 0 | Q8: =IFERROR(IF(Q$4="",0,IF($E8="kWh",VLOOKUP(Q$4,'4. Billing Determinants'!$B$19:$Z$41,4,0)/'4. Billing Determinants'!$E$41*$D8,IF($E8="kW",VLOOKUP(Q$4,'4. Billing Determinants'!$B$19:$Z$41,5,0)/'4. Billing Determinants'!$F$41*$D8,IF($E8="Non-RPP kWh",VLOOKUP(Q$4,'4. Billing Determinants'!$B$19:$Z$41,6,0)/'4. Billing Determinants'!$G$41*$D8,IF($E8="Distribution Rev.",VLOOKUP(Q$4,'4. Billing Determinants'!$B$19:$Z$41,8,0)/'4. Billing Determinants'!$I$41*$D8, VLOOKUP(Q$4,'4. Billing Determinants'!$B$19:$Z$41,3,0)/'4. Billing Determinants'!$D$41*$D8))))),0) -> 0 | R8: =IFERROR(IF(R$4="",0,IF($E8="kWh",VLOOKUP(R$4,'4. Billing Determinants'!$B$19:$Z$41,4,0)/'4. Billing Determinants'!$E$41*$D8,IF($E8="kW",VLOOKUP(R$4,'4. Billing Determinants'!$B$19:$Z$41,5,0)/'4. Billing Determinants'!$F$41*$D8,IF($E8="Non-RPP kWh",VLOOKUP(R$4,'4. Billing Determinants'!$B$19:$Z$41,6,0)/'4. Billing Determinants'!$G$41*$D8,IF($E8="Distribution Rev.",VLOOKUP(R$4,'4. Billing Determinants'!$B$19:$Z$41,8,0)/'4. Billing Determinants'!$I$41*$D8, VLOOKUP(R$4,'4. Billing Determinants'!$B$19:$Z$41,3,0)/'4. Billing Determinants'!$D$41*$D8))))),0) -> 0 | S8: =IFERROR(IF(S$4="",0,IF($E8="kWh",VLOOKUP(S$4,'4. Billing Determinants'!$B$19:$Z$41,4,0)/'4. Billing Determinants'!$E$41*$D8,IF($E8="kW",VLOOKUP(S$4,'4. Billing Determinants'!$B$19:$Z$41,5,0)/'4. Billing Determinants'!$F$41*$D8,IF($E8="Non-RPP kWh",VLOOKUP(S$4,'4. Billing Determinants'!$B$19:$Z$41,6,0)/'4. Billing Determinants'!$G$41*$D8,IF($E8="Distribution Rev.",VLOOKUP(S$4,'4. Billing Determinants'!$B$19:$Z$41,8,0)/'4. Billing Determinants'!$I$41*$D8, VLOOKUP(S$4,'4. Billing Determinants'!$B$19:$Z$41,3,0)/'4. Billing Determinants'!$D$41*$D8))))),0) -> 0 | T8: =IFERROR(IF(T$4="",0,IF($E8="kWh",VLOOKUP(T$4,'4. Billing Determinants'!$B$19:$Z$41,4,0)/'4. Billing Determinants'!$E$41*$D8,IF($E8="kW",VLOOKUP(T$4,'4. Billing Determinants'!$B$19:$Z$41,5,0)/'4. Billing Determinants'!$F$41*$D8,IF($E8="Non-RPP kWh",VLOOKUP(T$4,'4. Billing Determinants'!$B$19:$Z$41,6,0)/'4. Billing Determinants'!$G$41*$D8,IF($E8="Distribution Rev.",VLOOKUP(T$4,'4. Billing Determinants'!$B$19:$Z$41,8,0)/'4. Billing Determinants'!$I$41*$D8, VLOOKUP(T$4,'4. Billing Determinants'!$B$19:$Z$41,3,0)/'4. Billing Determinants'!$D$41*$D8))))),0) -> 0 | U8: =IFERROR(IF(U$4="",0,IF($E8="kWh",VLOOKUP(U$4,'4. Billing Determinants'!$B$19:$Z$41,4,0)/'4. Billing Determinants'!$E$41*$D8,IF($E8="kW",VLOOKUP(U$4,'4. Billing Determinants'!$B$19:$Z$41,5,0)/'4. Billing Determinants'!$F$41*$D8,IF($E8="Non-RPP kWh",VLOOKUP(U$4,'4. Billing Determinants'!$B$19:$Z$41,6,0)/'4. Billing Determinants'!$G$41*$D8,IF($E8="Distribution Rev.",VLOOKUP(U$4,'4. Billing Determinants'!$B$19:$Z$41,8,0)/'4. Billing Determinants'!$I$41*$D8, VLOOKUP(U$4,'4. Billing Determinants'!$B$19:$Z$41,3,0)/'4. Billing Determinants'!$D$41*$D8))))),0) -> 0 | V8: =IFERROR(IF(V$4="",0,IF($E8="kWh",VLOOKUP(V$4,'4. Billing Determinants'!$B$19:$Z$41,4,0)/'4. Billing Determinants'!$E$41*$D8,IF($E8="kW",VLOOKUP(V$4,'4. Billing Determinants'!$B$19:$Z$41,5,0)/'4. Billing Determinants'!$F$41*$D8,IF($E8="Non-RPP kWh",VLOOKUP(V$4,'4. Billing Determinants'!$B$19:$Z$41,6,0)/'4. Billing Determinants'!$G$41*$D8,IF($E8="Distribution Rev.",VLOOKUP(V$4,'4. Billing Determinants'!$B$19:$Z$41,8,0)/'4. Billing Determinants'!$I$41*$D8, VLOOKUP(V$4,'4. Billing Determinants'!$B$19:$Z$41,3,0)/'4. Billing Determinants'!$D$41*$D8))))),0) -> 0 | W8: =IFERROR(IF(W$4="",0,IF($E8="kWh",VLOOKUP(W$4,'4. Billing Determinants'!$B$19:$Z$41,4,0)/'4. Billing Determinants'!$E$41*$D8,IF($E8="kW",VLOOKUP(W$4,'4. Billing Determinants'!$B$19:$Z$41,5,0)/'4. Billing Determinants'!$F$41*$D8,IF($E8="Non-RPP kWh",VLOOKUP(W$4,'4. Billing Determinants'!$B$19:$Z$41,6,0)/'4. Billing Determinants'!$G$41*$D8,IF($E8="Distribution Rev.",VLOOKUP(W$4,'4. Billing Determinants'!$B$19:$Z$41,8,0)/'4. Billing Determinants'!$I$41*$D8, VLOOKUP(W$4,'4. Billing Determinants'!$B$19:$Z$41,3,0)/'4. Billing Determinants'!$D$41*$D8))))),0) -> 0 | X8: =IFERROR(IF(X$4="",0,IF($E8="kWh",VLOOKUP(X$4,'4. Billing Determinants'!$B$19:$Z$41,4,0)/'4. Billing Determinants'!$E$41*$D8,IF($E8="kW",VLOOKUP(X$4,'4. Billing Determinants'!$B$19:$Z$41,5,0)/'4. Billing Determinants'!$F$41*$D8,IF($E8="Non-RPP kWh",VLOOKUP(X$4,'4. Billing Determinants'!$B$19:$Z$41,6,0)/'4. Billing Determinants'!$G$41*$D8,IF($E8="Distribution Rev.",VLOOKUP(X$4,'4. Billing Determinants'!$B$19:$Z$41,8,0)/'4. Billing Determinants'!$I$41*$D8, VLOOKUP(X$4,'4. Billing Determinants'!$B$19:$Z$41,3,0)/'4. Billing Determinants'!$D$41*$D8))))),0) -> 0 | Y8: =IFERROR(IF(Y$4="",0,IF($E8="kWh",VLOOKUP(Y$4,'4. Billing Determinants'!$B$19:$Z$41,4,0)/'4. Billing Determinants'!$E$41*$D8,IF($E8="kW",VLOOKUP(Y$4,'4. Billing Determinants'!$B$19:$Z$41,5,0)/'4. Billing Determinants'!$F$41*$D8,IF($E8="Non-RPP kWh",VLOOKUP(Y$4,'4. Billing Determinants'!$B$19:$Z$41,6,0)/'4. Billing Determinants'!$G$41*$D8,IF($E8="Distribution Rev.",VLOOKUP(Y$4,'4. Billing Determinants'!$B$19:$Z$41,8,0)/'4. Billing Determinants'!$I$41*$D8, VLOOKUP(Y$4,'4. Billing Determinants'!$B$19:$Z$41,3,0)/'4. Billing Determinants'!$D$41*$D8))))),0) -> 0
B9: RSVA - Retail Transmission Connection Charge | C9: 1586 | D9: ='2. 2015 Continuity Schedule'!BS28 -> 25446.147 | E9: kWh | F9: =IFERROR(IF(F$4="",0,IF($E9="kWh",VLOOKUP(F$4,'4. Billing Determinants'!$B$19:$Z$41,4,0)/'4. Billing Determinants'!$E$41*$D9,IF($E9="kW",VLOOKUP(F$4,'4. Billing Determinants'!$B$19:$Z$41,5,0)/'4. Billing Determinants'!$F$41*$D9,IF($E9="Non-RPP kWh",VLOOKUP(F$4,'4. Billing Determinants'!$B$19:$Z$41,6,0)/'4. Billing Determinants'!$G$41*$D9,IF($E9="Distribution Rev.",VLOOKUP(F$4,'4. Billing Determinants'!$B$19:$Z$41,8,0)/'4. Billing Determinants'!$I$41*$D9, VLOOKUP(F$4,'4. Billing Determinants'!$B$19:$Z$41,3,0)/'4. Billing Determinants'!$D$41*$D9))))),0) -> 15924.00116 | G9: =IFERROR(IF(G$4="",0,IF($E9="kWh",VLOOKUP(G$4,'4. Billing Determinants'!$B$19:$Z$41,4,0)/'4. Billing Determinants'!$E$41*$D9,IF($E9="kW",VLOOKUP(G$4,'4. Billing Determinants'!$B$19:$Z$41,5,0)/'4. Billing Determinants'!$F$41*$D9,IF($E9="Non-RPP kWh",VLOOKUP(G$4,'4. Billing Determinants'!$B$19:$Z$41,6,0)/'4. Billing Determinants'!$G$41*$D9,IF($E9="Distribution Rev.",VLOOKUP(G$4,'4. Billing Determinants'!$B$19:$Z$41,8,0)/'4. Billing Determinants'!$I$41*$D9, VLOOKUP(G$4,'4. Billing Determinants'!$B$19:$Z$41,3,0)/'4. Billing Determinants'!$D$41*$D9))))),0) -> 3437.789235 | H9: =IFERROR(IF(H$4="",0,IF($E9="kWh",VLOOKUP(H$4,'4. Billing Determinants'!$B$19:$Z$41,4,0)/'4. Billing Determinants'!$E$41*$D9,IF($E9="kW",VLOOKUP(H$4,'4. Billing Determinants'!$B$19:$Z$41,5,0)/'4. Billing Determinants'!$F$41*$D9,IF($E9="Non-RPP kWh",VLOOKUP(H$4,'4. Billing Determinants'!$B$19:$Z$41,6,0)/'4. Billing Determinants'!$G$41*$D9,IF($E9="Distribution Rev.",VLOOKUP(H$4,'4. Billing Determinants'!$B$19:$Z$41,8,0)/'4. Billing Determinants'!$I$41*$D9, VLOOKUP(H$4,'4. Billing Determinants'!$B$19:$Z$41,3,0)/'4. Billing Determinants'!$D$41*$D9))))),0) -> 5946.465171 | I9: =IFERROR(IF(I$4="",0,IF($E9="kWh",VLOOKUP(I$4,'4. Billing Determinants'!$B$19:$Z$41,4,0)/'4. Billing Determinants'!$E$41*$D9,IF($E9="kW",VLOOKUP(I$4,'4. Billing Determinants'!$B$19:$Z$41,5,0)/'4. Billing Determinants'!$F$41*$D9,IF($E9="Non-RPP kWh",VLOOKUP(I$4,'4. Billing Determinants'!$B$19:$Z$41,6,0)/'4. Billing Determinants'!$G$41*$D9,IF($E9="Distribution Rev.",VLOOKUP(I$4,'4. Billing Determinants'!$B$19:$Z$41,8,0)/'4. Billing Determinants'!$I$41*$D9, VLOOKUP(I$4,'4. Billing Determinants'!$B$19:$Z$41,3,0)/'4. Billing Determinants'!$D$41*$D9))))),0) -> 10.44234084 | J9: =IFERROR(IF(J$4="",0,IF($E9="kWh",VLOOKUP(J$4,'4. Billing Determinants'!$B$19:$Z$41,4,0)/'4. Billing Determinants'!$E$41*$D9,IF($E9="kW",VLOOKUP(J$4,'4. Billing Determinants'!$B$19:$Z$41,5,0)/'4. Billing Determinants'!$F$41*$D9,IF($E9="Non-RPP kWh",VLOOKUP(J$4,'4. Billing Determinants'!$B$19:$Z$41,6,0)/'4. Billing Determinants'!$G$41*$D9,IF($E9="Distribution Rev.",VLOOKUP(J$4,'4. Billing Determinants'!$B$19:$Z$41,8,0)/'4. Billing Determinants'!$I$41*$D9, VLOOKUP(J$4,'4. Billing Determinants'!$B$19:$Z$41,3,0)/'4. Billing Determinants'!$D$41*$D9))))),0) -> 71.1198341 | K9: =IFERROR(IF(K$4="",0,IF($E9="kWh",VLOOKUP(K$4,'4. Billing Determinants'!$B$19:$Z$41,4,0)/'4. Billing Determinants'!$E$41*$D9,IF($E9="kW",VLOOKUP(K$4,'4. Billing Determinants'!$B$19:$Z$41,5,0)/'4. Billing Determinants'!$F$41*$D9,IF($E9="Non-RPP kWh",VLOOKUP(K$4,'4. Billing Determinants'!$B$19:$Z$41,6,0)/'4. Billing Determinants'!$G$41*$D9,IF($E9="Distribution Rev.",VLOOKUP(K$4,'4. Billing Determinants'!$B$19:$Z$41,8,0)/'4. Billing Determinants'!$I$41*$D9, VLOOKUP(K$4,'4. Billing Determinants'!$B$19:$Z$41,3,0)/'4. Billing Determinants'!$D$41*$D9))))),0) -> 56.32925509 | L9: =IFERROR(IF(L$4="",0,IF($E9="kWh",VLOOKUP(L$4,'4. Billing Determinants'!$B$19:$Z$41,4,0)/'4. Billing Determinants'!$E$41*$D9,IF($E9="kW",VLOOKUP(L$4,'4. Billing Determinants'!$B$19:$Z$41,5,0)/'4. Billing Determinants'!$F$41*$D9,IF($E9="Non-RPP kWh",VLOOKUP(L$4,'4. Billing Determinants'!$B$19:$Z$41,6,0)/'4. Billing Determinants'!$G$41*$D9,IF($E9="Distribution Rev.",VLOOKUP(L$4,'4. Billing Determinants'!$B$19:$Z$41,8,0)/'4. Billing Determinants'!$I$41*$D9, VLOOKUP(L$4,'4. Billing Determinants'!$B$19:$Z$41,3,0)/'4. Billing Determinants'!$D$41*$D9))))),0) -> 0 | M9: =IFERROR(IF(M$4="",0,IF($E9="kWh",VLOOKUP(M$4,'4. Billing Determinants'!$B$19:$Z$41,4,0)/'4. Billing Determinants'!$E$41*$D9,IF($E9="kW",VLOOKUP(M$4,'4. Billing Determinants'!$B$19:$Z$41,5,0)/'4. Billing Determinants'!$F$41*$D9,IF($E9="Non-RPP kWh",VLOOKUP(M$4,'4. Billing Determinants'!$B$19:$Z$41,6,0)/'4. Billing Determinants'!$G$41*$D9,IF($E9="Distribution Rev.",VLOOKUP(M$4,'4. Billing Determinants'!$B$19:$Z$41,8,0)/'4. Billing Determinants'!$I$41*$D9, VLOOKUP(M$4,'4. Billing Determinants'!$B$19:$Z$41,3,0)/'4. Billing Determinants'!$D$41*$D9))))),0) -> 0 | N9: =IFERROR(IF(N$4="",0,IF($E9="kWh",VLOOKUP(N$4,'4. Billing Determinants'!$B$19:$Z$41,4,0)/'4. Billing Determinants'!$E$41*$D9,IF($E9="kW",VLOOKUP(N$4,'4. Billing Determinants'!$B$19:$Z$41,5,0)/'4. Billing Determinants'!$F$41*$D9,IF($E9="Non-RPP kWh",VLOOKUP(N$4,'4. Billing Determinants'!$B$19:$Z$41,6,0)/'4. Billing Determinants'!$G$41*$D9,IF($E9="Distribution Rev.",VLOOKUP(N$4,'4. Billing Determinants'!$B$19:$Z$41,8,0)/'4. Billing Determinants'!$I$41*$D9, VLOOKUP(N$4,'4. Billing Determinants'!$B$19:$Z$41,3,0)/'4. Billing Determinants'!$D$41*$D9))))),0) -> 0 | O9: =IFERROR(IF(O$4="",0,IF($E9="kWh",VLOOKUP(O$4,'4. Billing Determinants'!$B$19:$Z$41,4,0)/'4. Billing Determinants'!$E$41*$D9,IF($E9="kW",VLOOKUP(O$4,'4. Billing Determinants'!$B$19:$Z$41,5,0)/'4. Billing Determinants'!$F$41*$D9,IF($E9="Non-RPP kWh",VLOOKUP(O$4,'4. Billing Determinants'!$B$19:$Z$41,6,0)/'4. Billing Determinants'!$G$41*$D9,IF($E9="Distribution Rev.",VLOOKUP(O$4,'4. Billing Determinants'!$B$19:$Z$41,8,0)/'4. Billing Determinants'!$I$41*$D9, VLOOKUP(O$4,'4. Billing Determinants'!$B$19:$Z$41,3,0)/'4. Billing Determinants'!$D$41*$D9))))),0) -> 0 | P9: =IFERROR(IF(P$4="",0,IF($E9="kWh",VLOOKUP(P$4,'4. Billing Determinants'!$B$19:$Z$41,4,0)/'4. Billing Determinants'!$E$41*$D9,IF($E9="kW",VLOOKUP(P$4,'4. Billing Determinants'!$B$19:$Z$41,5,0)/'4. Billing Determinants'!$F$41*$D9,IF($E9="Non-RPP kWh",VLOOKUP(P$4,'4. Billing Determinants'!$B$19:$Z$41,6,0)/'4. Billing Determinants'!$G$41*$D9,IF($E9="Distribution Rev.",VLOOKUP(P$4,'4. Billing Determinants'!$B$19:$Z$41,8,0)/'4. Billing Determinants'!$I$41*$D9, VLOOKUP(P$4,'4. Billing Determinants'!$B$19:$Z$41,3,0)/'4. Billing Determinants'!$D$41*$D9))))),0) -> 0 | Q9: =IFERROR(IF(Q$4="",0,IF($E9="kWh",VLOOKUP(Q$4,'4. Billing Determinants'!$B$19:$Z$41,4,0)/'4. Billing Determinants'!$E$41*$D9,IF($E9="kW",VLOOKUP(Q$4,'4. Billing Determinants'!$B$19:$Z$41,5,0)/'4. Billing Determinants'!$F$41*$D9,IF($E9="Non-RPP kWh",VLOOKUP(Q$4,'4. Billing Determinants'!$B$19:$Z$41,6,0)/'4. Billing Determinants'!$G$41*$D9,IF($E9="Distribution Rev.",VLOOKUP(Q$4,'4. Billing Determinants'!$B$19:$Z$41,8,0)/'4. Billing Determinants'!$I$41*$D9, VLOOKUP(Q$4,'4. Billing Determinants'!$B$19:$Z$41,3,0)/'4. Billing Determinants'!$D$41*$D9))))),0) -> 0 | R9: =IFERROR(IF(R$4="",0,IF($E9="kWh",VLOOKUP(R$4,'4. Billing Determinants'!$B$19:$Z$41,4,0)/'4. Billing Determinants'!$E$41*$D9,IF($E9="kW",VLOOKUP(R$4,'4. Billing Determinants'!$B$19:$Z$41,5,0)/'4. Billing Determinants'!$F$41*$D9,IF($E9="Non-RPP kWh",VLOOKUP(R$4,'4. Billing Determinants'!$B$19:$Z$41,6,0)/'4. Billing Determinants'!$G$41*$D9,IF($E9="Distribution Rev.",VLOOKUP(R$4,'4. Billing Determinants'!$B$19:$Z$41,8,0)/'4. Billing Determinants'!$I$41*$D9, VLOOKUP(R$4,'4. Billing Determinants'!$B$19:$Z$41,3,0)/'4. Billing Determinants'!$D$41*$D9))))),0) -> 0 | S9: =IFERROR(IF(S$4="",0,IF($E9="kWh",VLOOKUP(S$4,'4. Billing Determinants'!$B$19:$Z$41,4,0)/'4. Billing Determinants'!$E$41*$D9,IF($E9="kW",VLOOKUP(S$4,'4. Billing Determinants'!$B$19:$Z$41,5,0)/'4. Billing Determinants'!$F$41*$D9,IF($E9="Non-RPP kWh",VLOOKUP(S$4,'4. Billing Determinants'!$B$19:$Z$41,6,0)/'4. Billing Determinants'!$G$41*$D9,IF($E9="Distribution Rev.",VLOOKUP(S$4,'4. Billing Determinants'!$B$19:$Z$41,8,0)/'4. Billing Determinants'!$I$41*$D9, VLOOKUP(S$4,'4. Billing Determinants'!$B$19:$Z$41,3,0)/'4. Billing Determinants'!$D$41*$D9))))),0) -> 0 | T9: =IFERROR(IF(T$4="",0,IF($E9="kWh",VLOOKUP(T$4,'4. Billing Determinants'!$B$19:$Z$41,4,0)/'4. Billing Determinants'!$E$41*$D9,IF($E9="kW",VLOOKUP(T$4,'4. Billing Determinants'!$B$19:$Z$41,5,0)/'4. Billing Determinants'!$F$41*$D9,IF($E9="Non-RPP kWh",VLOOKUP(T$4,'4. Billing Determinants'!$B$19:$Z$41,6,0)/'4. Billing Determinants'!$G$41*$D9,IF($E9="Distribution Rev.",VLOOKUP(T$4,'4. Billing Determinants'!$B$19:$Z$41,8,0)/'4. Billing Determinants'!$I$41*$D9, VLOOKUP(T$4,'4. Billing Determinants'!$B$19:$Z$41,3,0)/'4. Billing Determinants'!$D$41*$D9))))),0) -> 0 | U9: =IFERROR(IF(U$4="",0,IF($E9="kWh",VLOOKUP(U$4,'4. Billing Determinants'!$B$19:$Z$41,4,0)/'4. Billing Determinants'!$E$41*$D9,IF($E9="kW",VLOOKUP(U$4,'4. Billing Determinants'!$B$19:$Z$41,5,0)/'4. Billing Determinants'!$F$41*$D9,IF($E9="Non-RPP kWh",VLOOKUP(U$4,'4. Billing Determinants'!$B$19:$Z$41,6,0)/'4. Billing Determinants'!$G$41*$D9,IF($E9="Distribution Rev.",VLOOKUP(U$4,'4. Billing Determinants'!$B$19:$Z$41,8,0)/'4. Billing Determinants'!$I$41*$D9, VLOOKUP(U$4,'4. Billing Determinants'!$B$19:$Z$41,3,0)/'4. Billing Determinants'!$D$41*$D9))))),0) -> 0 | V9: =IFERROR(IF(V$4="",0,IF($E9="kWh",VLOOKUP(V$4,'4. Billing Determinants'!$B$19:$Z$41,4,0)/'4. Billing Determinants'!$E$41*$D9,IF($E9="kW",VLOOKUP(V$4,'4. Billing Determinants'!$B$19:$Z$41,5,0)/'4. Billing Determinants'!$F$41*$D9,IF($E9="Non-RPP kWh",VLOOKUP(V$4,'4. Billing Determinants'!$B$19:$Z$41,6,0)/'4. Billing Determinants'!$G$41*$D9,IF($E9="Distribution Rev.",VLOOKUP(V$4,'4. Billing Determinants'!$B$19:$Z$41,8,0)/'4. Billing Determinants'!$I$41*$D9, VLOOKUP(V$4,'4. Billing Determinants'!$B$19:$Z$41,3,0)/'4. Billing Determinants'!$D$41*$D9))))),0) -> 0 | W9: =IFERROR(IF(W$4="",0,IF($E9="kWh",VLOOKUP(W$4,'4. Billing Determinants'!$B$19:$Z$41,4,0)/'4. Billing Determinants'!$E$41*$D9,IF($E9="kW",VLOOKUP(W$4,'4. Billing Determinants'!$B$19:$Z$41,5,0)/'4. Billing Determinants'!$F$41*$D9,IF($E9="Non-RPP kWh",VLOOKUP(W$4,'4. Billing Determinants'!$B$19:$Z$41,6,0)/'4. Billing Determinants'!$G$41*$D9,IF($E9="Distribution Rev.",VLOOKUP(W$4,'4. Billing Determinants'!$B$19:$Z$41,8,0)/'4. Billing Determinants'!$I$41*$D9, VLOOKUP(W$4,'4. Billing Determinants'!$B$19:$Z$41,3,0)/'4. Billing Determinants'!$D$41*$D9))))),0) -> 0 | X9: =IFERROR(IF(X$4="",0,IF($E9="kWh",VLOOKUP(X$4,'4. Billing Determinants'!$B$19:$Z$41,4,0)/'4. Billing Determinants'!$E$41*$D9,IF($E9="kW",VLOOKUP(X$4,'4. Billing Determinants'!$B$19:$Z$41,5,0)/'4. Billing Determinants'!$F$41*$D9,IF($E9="Non-RPP kWh",VLOOKUP(X$4,'4. Billing Determinants'!$B$19:$Z$41,6,0)/'4. Billing Determinants'!$G$41*$D9,IF($E9="Distribution Rev.",VLOOKUP(X$4,'4. Billing Determinants'!$B$19:$Z$41,8,0)/'4. Billing Determinants'!$I$41*$D9, VLOOKUP(X$4,'4. Billing Determinants'!$B$19:$Z$41,3,0)/'4. Billing Determinants'!$D$41*$D9))))),0) -> 0 | Y9: =IFERROR(IF(Y$4="",0,IF($E9="kWh",VLOOKUP(Y$4,'4. Billing Determinants'!$B$19:$Z$41,4,0)/'4. Billing Determinants'!$E$41*$D9,IF($E9="kW",VLOOKUP(Y$4,'4. Billing Determinants'!$B$19:$Z$41,5,0)/'4. Billing Determinants'!$F$41*$D9,IF($E9="Non-RPP kWh",VLOOKUP(Y$4,'4. Billing Determinants'!$B$19:$Z$41,6,0)/'4. Billing Determinants'!$G$41*$D9,IF($E9="Distribution Rev.",VLOOKUP(Y$4,'4. Billing Determinants'!$B$19:$Z$41,8,0)/'4. Billing Determinants'!$I$41*$D9, VLOOKUP(Y$4,'4. Billing Determinants'!$B$19:$Z$41,3,0)/'4. Billing Determinants'!$D$41*$D9))))),0) -> 0
B10: RSVA - Power (excluding Global Adjustment) | C10: 1588 | D10: ='2. 2015 Continuity Schedule'!BS29 -> -329266.703 | E10: kWh | F10: =IFERROR(IF(F$4="",0,IF($E10="kWh",VLOOKUP(F$4,'4. Billing Determinants'!$B$19:$Z$41,11,0)/'4. Billing Determinants'!$L$41*$D10,IF($E10="kW",VLOOKUP(F$4,'4. Billing Determinants'!$B$19:$Z$41,12,0)/'4. Billing Determinants'!$M$41*$D10,))),0) -> -206052.5455 | G10: =IFERROR(IF(G$4="",0,IF($E10="kWh",VLOOKUP(G$4,'4. Billing Determinants'!$B$19:$Z$41,11,0)/'4. Billing Determinants'!$L$41*$D10,IF($E10="kW",VLOOKUP(G$4,'4. Billing Determinants'!$B$19:$Z$41,12,0)/'4. Billing Determinants'!$M$41*$D10,))),0) -> -44484.12276 | H10: =IFERROR(IF(H$4="",0,IF($E10="kWh",VLOOKUP(H$4,'4. Billing Determinants'!$B$19:$Z$41,11,0)/'4. Billing Determinants'!$L$41*$D10,IF($E10="kW",VLOOKUP(H$4,'4. Billing Determinants'!$B$19:$Z$41,12,0)/'4. Billing Determinants'!$M$41*$D10,))),0) -> -76945.75456 | I10: =IFERROR(IF(I$4="",0,IF($E10="kWh",VLOOKUP(I$4,'4. Billing Determinants'!$B$19:$Z$41,11,0)/'4. Billing Determinants'!$L$41*$D10,IF($E10="kW",VLOOKUP(I$4,'4. Billing Determinants'!$B$19:$Z$41,12,0)/'4. Billing Determinants'!$M$41*$D10,))),0) -> -135.121248 | J10: =IFERROR(IF(J$4="",0,IF($E10="kWh",VLOOKUP(J$4,'4. Billing Determinants'!$B$19:$Z$41,11,0)/'4. Billing Determinants'!$L$41*$D10,IF($E10="kW",VLOOKUP(J$4,'4. Billing Determinants'!$B$19:$Z$41,12,0)/'4. Billing Determinants'!$M$41*$D10,))),0) -> -920.2726563 | K10: =IFERROR(IF(K$4="",0,IF($E10="kWh",VLOOKUP(K$4,'4. Billing Determinants'!$B$19:$Z$41,11,0)/'4. Billing Determinants'!$L$41*$D10,IF($E10="kW",VLOOKUP(K$4,'4. Billing Determinants'!$B$19:$Z$41,12,0)/'4. Billing Determinants'!$M$41*$D10,))),0) -> -728.8863067 | L10: =IFERROR(IF(L$4="",0,IF($E10="kWh",VLOOKUP(L$4,'4. Billing Determinants'!$B$19:$Z$41,11,0)/'4. Billing Determinants'!$L$41*$D10,IF($E10="kW",VLOOKUP(L$4,'4. Billing Determinants'!$B$19:$Z$41,12,0)/'4. Billing Determinants'!$M$41*$D10,))),0) -> 0 | M10: =IFERROR(IF(M$4="",0,IF($E10="kWh",VLOOKUP(M$4,'4. Billing Determinants'!$B$19:$Z$41,11,0)/'4. Billing Determinants'!$L$41*$D10,IF($E10="kW",VLOOKUP(M$4,'4. Billing Determinants'!$B$19:$Z$41,12,0)/'4. Billing Determinants'!$M$41*$D10,))),0) -> 0 | N10: =IFERROR(IF(N$4="",0,IF($E10="kWh",VLOOKUP(N$4,'4. Billing Determinants'!$B$19:$Z$41,11,0)/'4. Billing Determinants'!$L$41*$D10,IF($E10="kW",VLOOKUP(N$4,'4. Billing Determinants'!$B$19:$Z$41,12,0)/'4. Billing Determinants'!$M$41*$D10,))),0) -> 0 | O10: =IFERROR(IF(O$4="",0,IF($E10="kWh",VLOOKUP(O$4,'4. Billing Determinants'!$B$19:$Z$41,11,0)/'4. Billing Determinants'!$L$41*$D10,IF($E10="kW",VLOOKUP(O$4,'4. Billing Determinants'!$B$19:$Z$41,12,0)/'4. Billing Determinants'!$M$41*$D10,))),0) -> 0 | P10: =IFERROR(IF(P$4="",0,IF($E10="kWh",VLOOKUP(P$4,'4. Billing Determinants'!$B$19:$Z$41,11,0)/'4. Billing Determinants'!$L$41*$D10,IF($E10="kW",VLOOKUP(P$4,'4. Billing Determinants'!$B$19:$Z$41,12,0)/'4. Billing Determinants'!$M$41*$D10,))),0) -> 0 | Q10: =IFERROR(IF(Q$4="",0,IF($E10="kWh",VLOOKUP(Q$4,'4. Billing Determinants'!$B$19:$Z$41,11,0)/'4. Billing Determinants'!$L$41*$D10,IF($E10="kW",VLOOKUP(Q$4,'4. Billing Determinants'!$B$19:$Z$41,12,0)/'4. Billing Determinants'!$M$41*$D10,))),0) -> 0 | R10: =IFERROR(IF(R$4="",0,IF($E10="kWh",VLOOKUP(R$4,'4. Billing Determinants'!$B$19:$Z$41,11,0)/'4. Billing Determinants'!$L$41*$D10,IF($E10="kW",VLOOKUP(R$4,'4. Billing Determinants'!$B$19:$Z$41,12,0)/'4. Billing Determinants'!$M$41*$D10,))),0) -> 0 | S10: =IFERROR(IF(S$4="",0,IF($E10="kWh",VLOOKUP(S$4,'4. Billing Determinants'!$B$19:$Z$41,11,0)/'4. Billing Determinants'!$L$41*$D10,IF($E10="kW",VLOOKUP(S$4,'4. Billing Determinants'!$B$19:$Z$41,12,0)/'4. Billing Determinants'!$M$41*$D10,))),0) -> 0 | T10: =IFERROR(IF(T$4="",0,IF($E10="kWh",VLOOKUP(T$4,'4. Billing Determinants'!$B$19:$Z$41,11,0)/'4. Billing Determinants'!$L$41*$D10,IF($E10="kW",VLOOKUP(T$4,'4. Billing Determinants'!$B$19:$Z$41,12,0)/'4. Billing Determinants'!$M$41*$D10,))),0) -> 0 | U10: =IFERROR(IF(U$4="",0,IF($E10="kWh",VLOOKUP(U$4,'4. Billing Determinants'!$B$19:$Z$41,11,0)/'4. Billing Determinants'!$L$41*$D10,IF($E10="kW",VLOOKUP(U$4,'4. Billing Determinants'!$B$19:$Z$41,12,0)/'4. Billing Determinants'!$M$41*$D10,))),0) -> 0 | V10: =IFERROR(IF(V$4="",0,IF($E10="kWh",VLOOKUP(V$4,'4. Billing Determinants'!$B$19:$Z$41,11,0)/'4. Billing Determinants'!$L$41*$D10,IF($E10="kW",VLOOKUP(V$4,'4. Billing Determinants'!$B$19:$Z$41,12,0)/'4. Billing Determinants'!$M$41*$D10,))),0) -> 0 | W10: =IFERROR(IF(W$4="",0,IF($E10="kWh",VLOOKUP(W$4,'4. Billing Determinants'!$B$19:$Z$41,11,0)/'4. Billing Determinants'!$L$41*$D10,IF($E10="kW",VLOOKUP(W$4,'4. Billing Determinants'!$B$19:$Z$41,12,0)/'4. Billing Determinants'!$M$41*$D10,))),0) -> 0 | X10: =IFERROR(IF(X$4="",0,IF($E10="kWh",VLOOKUP(X$4,'4. Billing Determinants'!$B$19:$Z$41,11,0)/'4. Billing Determinants'!$L$41*$D10,IF($E10="kW",VLOOKUP(X$4,'4. Billing Determinants'!$B$19:$Z$41,12,0)/'4. Billing Determinants'!$M$41*$D10,))),0) -> 0 | Y10: =IFERROR(IF(Y$4="",0,IF($E10="kWh",VLOOKUP(Y$4,'4. Billing Determinants'!$B$19:$Z$41,11,0)/'4. Billing Determinants'!$L$41*$D10,IF($E10="kW",VLOOKUP(Y$4,'4. Billing Determinants'!$B$19:$Z$41,12,0)/'4. Billing Determinants'!$M$41*$D10,))),0) -> 0
B11: RSVA - Global Adjustment | C11: 1589 | D11: =IF('4. Billing Determinants'!N41>0, '2. 2015 Continuity Schedule'!BS30-('2. 2015 Continuity Schedule'!BS30*'4. Billing Determinants'!N41), '2. 2015 Continuity Schedule'!BS30) -> 818091.361 | E11: Non-RPP kWh | F11: =IFERROR(IF(F$4="",0,IF($E11="kWh",VLOOKUP(F$4,'4. Billing Determinants'!$B$19:$Z$41,4,0)/'4. Billing Determinants'!$E$41*$D11,IF($E11="kW",VLOOKUP(F$4,'4. Billing Determinants'!$B$19:$Z$41,5,0)/'4. Billing Determinants'!$F$41*$D11,IF($E11="Non-RPP kWh",VLOOKUP(F$4,'4. Billing Determinants'!$B$19:$Z$41,16,0)/'4. Billing Determinants'!$Q$41*$D11,IF($E11="Distribution Rev.",VLOOKUP(F$4,'4. Billing Determinants'!$B$19:$Z$41,8,0)/'4. Billing Determinants'!$I$41*$D11, VLOOKUP(F$4,'4. Billing Determinants'!$B$19:$Z$41,3,0)/'4. Billing Determinants'!$D$41*$D11))))),0) -> 106713.3869 | G11: =IFERROR(IF(G$4="",0,IF($E11="kWh",VLOOKUP(G$4,'4. Billing Determinants'!$B$19:$Z$41,4,0)/'4. Billing Determinants'!$E$41*$D11,IF($E11="kW",VLOOKUP(G$4,'4. Billing Determinants'!$B$19:$Z$41,5,0)/'4. Billing Determinants'!$F$41*$D11,IF($E11="Non-RPP kWh",VLOOKUP(G$4,'4. Billing Determinants'!$B$19:$Z$41,16,0)/'4. Billing Determinants'!$Q$41*$D11,IF($E11="Distribution Rev.",VLOOKUP(G$4,'4. Billing Determinants'!$B$19:$Z$41,8,0)/'4. Billing Determinants'!$I$41*$D11, VLOOKUP(G$4,'4. Billing Determinants'!$B$19:$Z$41,3,0)/'4. Billing Determinants'!$D$41*$D11))))),0) -> 65274.51019 | H11: =IFERROR(IF(H$4="",0,IF($E11="kWh",VLOOKUP(H$4,'4. Billing Determinants'!$B$19:$Z$41,4,0)/'4. Billing Determinants'!$E$41*$D11,IF($E11="kW",VLOOKUP(H$4,'4. Billing Determinants'!$B$19:$Z$41,5,0)/'4. Billing Determinants'!$F$41*$D11,IF($E11="Non-RPP kWh",VLOOKUP(H$4,'4. Billing Determinants'!$B$19:$Z$41,16,0)/'4. Billing Determinants'!$Q$41*$D11,IF($E11="Distribution Rev.",VLOOKUP(H$4,'4. Billing Determinants'!$B$19:$Z$41,8,0)/'4. Billing Determinants'!$I$41*$D11, VLOOKUP(H$4,'4. Billing Determinants'!$B$19:$Z$41,3,0)/'4. Billing Determinants'!$D$41*$D11))))),0) -> 637595.9732 | I11: =IFERROR(IF(I$4="",0,IF($E11="kWh",VLOOKUP(I$4,'4. Billing Determinants'!$B$19:$Z$41,4,0)/'4. Billing Determinants'!$E$41*$D11,IF($E11="kW",VLOOKUP(I$4,'4. Billing Determinants'!$B$19:$Z$41,5,0)/'4. Billing Determinants'!$F$41*$D11,IF($E11="Non-RPP kWh",VLOOKUP(I$4,'4. Billing Determinants'!$B$19:$Z$41,16,0)/'4. Billing Determinants'!$Q$41*$D11,IF($E11="Distribution Rev.",VLOOKUP(I$4,'4. Billing Determinants'!$B$19:$Z$41,8,0)/'4. Billing Determinants'!$I$41*$D11, VLOOKUP(I$4,'4. Billing Determinants'!$B$19:$Z$41,3,0)/'4. Billing Determinants'!$D$41*$D11))))),0) -> 186.609307 | J11: =IFERROR(IF(J$4="",0,IF($E11="kWh",VLOOKUP(J$4,'4. Billing Determinants'!$B$19:$Z$41,4,0)/'4. Billing Determinants'!$E$41*$D11,IF($E11="kW",VLOOKUP(J$4,'4. Billing Determinants'!$B$19:$Z$41,5,0)/'4. Billing Determinants'!$F$41*$D11,IF($E11="Non-RPP kWh",VLOOKUP(J$4,'4. Billing Determinants'!$B$19:$Z$41,16,0)/'4. Billing Determinants'!$Q$41*$D11,IF($E11="Distribution Rev.",VLOOKUP(J$4,'4. Billing Determinants'!$B$19:$Z$41,8,0)/'4. Billing Determinants'!$I$41*$D11, VLOOKUP(J$4,'4. Billing Determinants'!$B$19:$Z$41,3,0)/'4. Billing Determinants'!$D$41*$D11))))),0) -> 7943.395524 | K11: =IFERROR(IF(K$4="",0,IF($E11="kWh",VLOOKUP(K$4,'4. Billing Determinants'!$B$19:$Z$41,4,0)/'4. Billing Determinants'!$E$41*$D11,IF($E11="kW",VLOOKUP(K$4,'4. Billing Determinants'!$B$19:$Z$41,5,0)/'4. Billing Determinants'!$F$41*$D11,IF($E11="Non-RPP kWh",VLOOKUP(K$4,'4. Billing Determinants'!$B$19:$Z$41,16,0)/'4. Billing Determinants'!$Q$41*$D11,IF($E11="Distribution Rev.",VLOOKUP(K$4,'4. Billing Determinants'!$B$19:$Z$41,8,0)/'4. Billing Determinants'!$I$41*$D11, VLOOKUP(K$4,'4. Billing Determinants'!$B$19:$Z$41,3,0)/'4. Billing Determinants'!$D$41*$D11))))),0) -> 377.4858801 | L11: =IFERROR(IF(L$4="",0,IF($E11="kWh",VLOOKUP(L$4,'4. Billing Determinants'!$B$19:$Z$41,4,0)/'4. Billing Determinants'!$E$41*$D11,IF($E11="kW",VLOOKUP(L$4,'4. Billing Determinants'!$B$19:$Z$41,5,0)/'4. Billing Determinants'!$F$41*$D11,IF($E11="Non-RPP kWh",VLOOKUP(L$4,'4. Billing Determinants'!$B$19:$Z$41,16,0)/'4. Billing Determinants'!$Q$41*$D11,IF($E11="Distribution Rev.",VLOOKUP(L$4,'4. Billing Determinants'!$B$19:$Z$41,8,0)/'4. Billing Determinants'!$I$41*$D11, VLOOKUP(L$4,'4. Billing Determinants'!$B$19:$Z$41,3,0)/'4. Billing Determinants'!$D$41*$D11))))),0) -> 0 | M11: =IFERROR(IF(M$4="",0,IF($E11="kWh",VLOOKUP(M$4,'4. Billing Determinants'!$B$19:$Z$41,4,0)/'4. Billing Determinants'!$E$41*$D11,IF($E11="kW",VLOOKUP(M$4,'4. Billing Determinants'!$B$19:$Z$41,5,0)/'4. Billing Determinants'!$F$41*$D11,IF($E11="Non-RPP kWh",VLOOKUP(M$4,'4. Billing Determinants'!$B$19:$Z$41,16,0)/'4. Billing Determinants'!$Q$41*$D11,IF($E11="Distribution Rev.",VLOOKUP(M$4,'4. Billing Determinants'!$B$19:$Z$41,8,0)/'4. Billing Determinants'!$I$41*$D11, VLOOKUP(M$4,'4. Billing Determinants'!$B$19:$Z$41,3,0)/'4. Billing Determinants'!$D$41*$D11))))),0) -> 0 | N11: =IFERROR(IF(N$4="",0,IF($E11="kWh",VLOOKUP(N$4,'4. Billing Determinants'!$B$19:$Z$41,4,0)/'4. Billing Determinants'!$E$41*$D11,IF($E11="kW",VLOOKUP(N$4,'4. Billing Determinants'!$B$19:$Z$41,5,0)/'4. Billing Determinants'!$F$41*$D11,IF($E11="Non-RPP kWh",VLOOKUP(N$4,'4. Billing Determinants'!$B$19:$Z$41,16,0)/'4. Billing Determinants'!$Q$41*$D11,IF($E11="Distribution Rev.",VLOOKUP(N$4,'4. Billing Determinants'!$B$19:$Z$41,8,0)/'4. Billing Determinants'!$I$41*$D11, VLOOKUP(N$4,'4. Billing Determinants'!$B$19:$Z$41,3,0)/'4. Billing Determinants'!$D$41*$D11))))),0) -> 0 | O11: =IFERROR(IF(O$4="",0,IF($E11="kWh",VLOOKUP(O$4,'4. Billing Determinants'!$B$19:$Z$41,4,0)/'4. Billing Determinants'!$E$41*$D11,IF($E11="kW",VLOOKUP(O$4,'4. Billing Determinants'!$B$19:$Z$41,5,0)/'4. Billing Determinants'!$F$41*$D11,IF($E11="Non-RPP kWh",VLOOKUP(O$4,'4. Billing Determinants'!$B$19:$Z$41,16,0)/'4. Billing Determinants'!$G$41*$D11,IF($E11="Distribution Rev.",VLOOKUP(O$4,'4. Billing Determinants'!$B$19:$Z$41,8,0)/'4. Billing Determinants'!$I$41*$D11, VLOOKUP(O$4,'4. Billing Determinants'!$B$19:$Z$41,3,0)/'4. Billing Determinants'!$D$41*$D11))))),0) -> 0 | P11: =IFERROR(IF(P$4="",0,IF($E11="kWh",VLOOKUP(P$4,'4. Billing Determinants'!$B$19:$Z$41,4,0)/'4. Billing Determinants'!$E$41*$D11,IF($E11="kW",VLOOKUP(P$4,'4. Billing Determinants'!$B$19:$Z$41,5,0)/'4. Billing Determinants'!$F$41*$D11,IF($E11="Non-RPP kWh",VLOOKUP(P$4,'4. Billing Determinants'!$B$19:$Z$41,16,0)/'4. Billing Determinants'!$G$41*$D11,IF($E11="Distribution Rev.",VLOOKUP(P$4,'4. Billing Determinants'!$B$19:$Z$41,8,0)/'4. Billing Determinants'!$I$41*$D11, VLOOKUP(P$4,'4. Billing Determinants'!$B$19:$Z$41,3,0)/'4. Billing Determinants'!$D$41*$D11))))),0) -> 0 | Q11: =IFERROR(IF(Q$4="",0,IF($E11="kWh",VLOOKUP(Q$4,'4. Billing Determinants'!$B$19:$Z$41,4,0)/'4. Billing Determinants'!$E$41*$D11,IF($E11="kW",VLOOKUP(Q$4,'4. Billing Determinants'!$B$19:$Z$41,5,0)/'4. Billing Determinants'!$F$41*$D11,IF($E11="Non-RPP kWh",VLOOKUP(Q$4,'4. Billing Determinants'!$B$19:$Z$41,16,0)/'4. Billing Determinants'!$G$41*$D11,IF($E11="Distribution Rev.",VLOOKUP(Q$4,'4. Billing Determinants'!$B$19:$Z$41,8,0)/'4. Billing Determinants'!$I$41*$D11, VLOOKUP(Q$4,'4. Billing Determinants'!$B$19:$Z$41,3,0)/'4. Billing Determinants'!$D$41*$D11))))),0) -> 0 | R11: =IFERROR(IF(R$4="",0,IF($E11="kWh",VLOOKUP(R$4,'4. Billing Determinants'!$B$19:$Z$41,4,0)/'4. Billing Determinants'!$E$41*$D11,IF($E11="kW",VLOOKUP(R$4,'4. Billing Determinants'!$B$19:$Z$41,5,0)/'4. Billing Determinants'!$F$41*$D11,IF($E11="Non-RPP kWh",VLOOKUP(R$4,'4. Billing Determinants'!$B$19:$Z$41,16,0)/'4. Billing Determinants'!$G$41*$D11,IF($E11="Distribution Rev.",VLOOKUP(R$4,'4. Billing Determinants'!$B$19:$Z$41,8,0)/'4. Billing Determinants'!$I$41*$D11, VLOOKUP(R$4,'4. Billing Determinants'!$B$19:$Z$41,3,0)/'4. Billing Determinants'!$D$41*$D11))))),0) -> 0 | S11: =IFERROR(IF(S$4="",0,IF($E11="kWh",VLOOKUP(S$4,'4. Billing Determinants'!$B$19:$Z$41,4,0)/'4. Billing Determinants'!$E$41*$D11,IF($E11="kW",VLOOKUP(S$4,'4. Billing Determinants'!$B$19:$Z$41,5,0)/'4. Billing Determinants'!$F$41*$D11,IF($E11="Non-RPP kWh",VLOOKUP(S$4,'4. Billing Determinants'!$B$19:$Z$41,16,0)/'4. Billing Determinants'!$G$41*$D11,IF($E11="Distribution Rev.",VLOOKUP(S$4,'4. Billing Determinants'!$B$19:$Z$41,8,0)/'4. Billing Determinants'!$I$41*$D11, VLOOKUP(S$4,'4. Billing Determinants'!$B$19:$Z$41,3,0)/'4. Billing Determinants'!$D$41*$D11))))),0) -> 0 | T11: =IFERROR(IF(T$4="",0,IF($E11="kWh",VLOOKUP(T$4,'4. Billing Determinants'!$B$19:$Z$41,4,0)/'4. Billing Determinants'!$E$41*$D11,IF($E11="kW",VLOOKUP(T$4,'4. Billing Determinants'!$B$19:$Z$41,5,0)/'4. Billing Determinants'!$F$41*$D11,IF($E11="Non-RPP kWh",VLOOKUP(T$4,'4. Billing Determinants'!$B$19:$Z$41,16,0)/'4. Billing Determinants'!$G$41*$D11,IF($E11="Distribution Rev.",VLOOKUP(T$4,'4. Billing Determinants'!$B$19:$Z$41,8,0)/'4. Billing Determinants'!$I$41*$D11, VLOOKUP(T$4,'4. Billing Determinants'!$B$19:$Z$41,3,0)/'4. Billing Determinants'!$D$41*$D11))))),0) -> 0 | U11: =IFERROR(IF(U$4="",0,IF($E11="kWh",VLOOKUP(U$4,'4. Billing Determinants'!$B$19:$Z$41,4,0)/'4. Billing Determinants'!$E$41*$D11,IF($E11="kW",VLOOKUP(U$4,'4. Billing Determinants'!$B$19:$Z$41,5,0)/'4. Billing Determinants'!$F$41*$D11,IF($E11="Non-RPP kWh",VLOOKUP(U$4,'4. Billing Determinants'!$B$19:$Z$41,16,0)/'4. Billing Determinants'!$G$41*$D11,IF($E11="Distribution Rev.",VLOOKUP(U$4,'4. Billing Determinants'!$B$19:$Z$41,8,0)/'4. Billing Determinants'!$I$41*$D11, VLOOKUP(U$4,'4. Billing Determinants'!$B$19:$Z$41,3,0)/'4. Billing Determinants'!$D$41*$D11))))),0) -> 0 | V11: =IFERROR(IF(V$4="",0,IF($E11="kWh",VLOOKUP(V$4,'4. Billing Determinants'!$B$19:$Z$41,4,0)/'4. Billing Determinants'!$E$41*$D11,IF($E11="kW",VLOOKUP(V$4,'4. Billing Determinants'!$B$19:$Z$41,5,0)/'4. Billing Determinants'!$F$41*$D11,IF($E11="Non-RPP kWh",VLOOKUP(V$4,'4. Billing Determinants'!$B$19:$Z$41,16,0)/'4. Billing Determinants'!$G$41*$D11,IF($E11="Distribution Rev.",VLOOKUP(V$4,'4. Billing Determinants'!$B$19:$Z$41,8,0)/'4. Billing Determinants'!$I$41*$D11, VLOOKUP(V$4,'4. Billing Determinants'!$B$19:$Z$41,3,0)/'4. Billing Determinants'!$D$41*$D11))))),0) -> 0 | W11: =IFERROR(IF(W$4="",0,IF($E11="kWh",VLOOKUP(W$4,'4. Billing Determinants'!$B$19:$Z$41,4,0)/'4. Billing Determinants'!$E$41*$D11,IF($E11="kW",VLOOKUP(W$4,'4. Billing Determinants'!$B$19:$Z$41,5,0)/'4. Billing Determinants'!$F$41*$D11,IF($E11="Non-RPP kWh",VLOOKUP(W$4,'4. Billing Determinants'!$B$19:$Z$41,16,0)/'4. Billing Determinants'!$G$41*$D11,IF($E11="Distribution Rev.",VLOOKUP(W$4,'4. Billing Determinants'!$B$19:$Z$41,8,0)/'4. Billing Determinants'!$I$41*$D11, VLOOKUP(W$4,'4. Billing Determinants'!$B$19:$Z$41,3,0)/'4. Billing Determinants'!$D$41*$D11))))),0) -> 0 | X11: =IFERROR(IF(X$4="",0,IF($E11="kWh",VLOOKUP(X$4,'4. Billing Determinants'!$B$19:$Z$41,4,0)/'4. Billing Determinants'!$E$41*$D11,IF($E11="kW",VLOOKUP(X$4,'4. Billing Determinants'!$B$19:$Z$41,5,0)/'4. Billing Determinants'!$F$41*$D11,IF($E11="Non-RPP kWh",VLOOKUP(X$4,'4. Billing Determinants'!$B$19:$Z$41,16,0)/'4. Billing Determinants'!$G$41*$D11,IF($E11="Distribution Rev.",VLOOKUP(X$4,'4. Billing Determinants'!$B$19:$Z$41,8,0)/'4. Billing Determinants'!$I$41*$D11, VLOOKUP(X$4,'4. Billing Determinants'!$B$19:$Z$41,3,0)/'4. Billing Determinants'!$D$41*$D11))))),0) -> 0 | Y11: =IFERROR(IF(Y$4="",0,IF($E11="kWh",VLOOKUP(Y$4,'4. Billing Determinants'!$B$19:$Z$41,4,0)/'4. Billing Determinants'!$E$41*$D11,IF($E11="kW",VLOOKUP(Y$4,'4. Billing Determinants'!$B$19:$Z$41,5,0)/'4. Billing Determinants'!$F$41*$D11,IF($E11="Non-RPP kWh",VLOOKUP(Y$4,'4. Billing Determinants'!$B$19:$Z$41,16,0)/'4. Billing Determinants'!$G$41*$D11,IF($E11="Distribution Rev.",VLOOKUP(Y$4,'4. Billing Determinants'!$B$19:$Z$41,8,0)/'4. Billing Determinants'!$I$41*$D11, VLOOKUP(Y$4,'4. Billing Determinants'!$B$19:$Z$41,3,0)/'4. Billing Determinants'!$D$41*$D11))))),0) -> 0
B12: Disposition and Recovery/Refund of Regulatory Balances (2008) | C12: 1595 | D12: ='2. 2015 Continuity Schedule'!BS31 -> 0 | E12: % | F12: =IFERROR(IF(F$4="",0,IF($E12="kWh",VLOOKUP(F$4,'4. Billing Determinants'!$B$19:$Z$41,4,0)/'4. Billing Determinants'!$E$41*$D12,IF($E12="kW",VLOOKUP(F$4,'4. Billing Determinants'!$B$19:$Z$41,5,0)/'4. Billing Determinants'!$F$41*$D12,IF($E12="Non-RPP kWh",VLOOKUP(F$4,'4. Billing Determinants'!$B$19:$Z$41,6,0)/'4. Billing Determinants'!$G$41*$D12, VLOOKUP(F$4,'4. Billing Determinants'!$B$19:$Z$41,18,0)*$D12)))),0) -> 0 | G12: =IFERROR(IF(G$4="",0,IF($E12="kWh",VLOOKUP(G$4,'4. Billing Determinants'!$B$19:$Z$41,4,0)/'4. Billing Determinants'!$E$41*$D12,IF($E12="kW",VLOOKUP(G$4,'4. Billing Determinants'!$B$19:$Z$41,5,0)/'4. Billing Determinants'!$F$41*$D12,IF($E12="Non-RPP kWh",VLOOKUP(G$4,'4. Billing Determinants'!$B$19:$Z$41,6,0)/'4. Billing Determinants'!$G$41*$D12, VLOOKUP(G$4,'4. Billing Determinants'!$B$19:$Z$41,18,0)*$D12)))),0) -> 0 | H12: =IFERROR(IF(H$4="",0,IF($E12="kWh",VLOOKUP(H$4,'4. Billing Determinants'!$B$19:$Z$41,4,0)/'4. Billing Determinants'!$E$41*$D12,IF($E12="kW",VLOOKUP(H$4,'4. Billing Determinants'!$B$19:$Z$41,5,0)/'4. Billing Determinants'!$F$41*$D12,IF($E12="Non-RPP kWh",VLOOKUP(H$4,'4. Billing Determinants'!$B$19:$Z$41,6,0)/'4. Billing Determinants'!$G$41*$D12, VLOOKUP(H$4,'4. Billing Determinants'!$B$19:$Z$41,18,0)*$D12)))),0) -> 0 | I12: =IFERROR(IF(I$4="",0,IF($E12="kWh",VLOOKUP(I$4,'4. Billing Determinants'!$B$19:$Z$41,4,0)/'4. Billing Determinants'!$E$41*$D12,IF($E12="kW",VLOOKUP(I$4,'4. Billing Determinants'!$B$19:$Z$41,5,0)/'4. Billing Determinants'!$F$41*$D12,IF($E12="Non-RPP kWh",VLOOKUP(I$4,'4. Billing Determinants'!$B$19:$Z$41,6,0)/'4. Billing Determinants'!$G$41*$D12, VLOOKUP(I$4,'4. Billing Determinants'!$B$19:$Z$41,18,0)*$D12)))),0) -> 0 | J12: =IFERROR(IF(J$4="",0,IF($E12="kWh",VLOOKUP(J$4,'4. Billing Determinants'!$B$19:$Z$41,4,0)/'4. Billing Determinants'!$E$41*$D12,IF($E12="kW",VLOOKUP(J$4,'4. Billing Determinants'!$B$19:$Z$41,5,0)/'4. Billing Determinants'!$F$41*$D12,IF($E12="Non-RPP kWh",VLOOKUP(J$4,'4. Billing Determinants'!$B$19:$Z$41,6,0)/'4. Billing Determinants'!$G$41*$D12, VLOOKUP(J$4,'4. Billing Determinants'!$B$19:$Z$41,18,0)*$D12)))),0) -> 0 | K12: =IFERROR(IF(K$4="",0,IF($E12="kWh",VLOOKUP(K$4,'4. Billing Determinants'!$B$19:$Z$41,4,0)/'4. Billing Determinants'!$E$41*$D12,IF($E12="kW",VLOOKUP(K$4,'4. Billing Determinants'!$B$19:$Z$41,5,0)/'4. Billing Determinants'!$F$41*$D12,IF($E12="Non-RPP kWh",VLOOKUP(K$4,'4. Billing Determinants'!$B$19:$Z$41,6,0)/'4. Billing Determinants'!$G$41*$D12, VLOOKUP(K$4,'4. Billing Determinants'!$B$19:$Z$41,18,0)*$D12)))),0) -> 0 | L12: =IFERROR(IF(L$4="",0,IF($E12="kWh",VLOOKUP(L$4,'4. Billing Determinants'!$B$19:$Z$41,4,0)/'4. Billing Determinants'!$E$41*$D12,IF($E12="kW",VLOOKUP(L$4,'4. Billing Determinants'!$B$19:$Z$41,5,0)/'4. Billing Determinants'!$F$41*$D12,IF($E12="Non-RPP kWh",VLOOKUP(L$4,'4. Billing Determinants'!$B$19:$Z$41,6,0)/'4. Billing Determinants'!$G$41*$D12, VLOOKUP(L$4,'4. Billing Determinants'!$B$19:$Z$41,18,0)*$D12)))),0) -> 0 | M12: =IFERROR(IF(M$4="",0,IF($E12="kWh",VLOOKUP(M$4,'4. Billing Determinants'!$B$19:$Z$41,4,0)/'4. Billing Determinants'!$E$41*$D12,IF($E12="kW",VLOOKUP(M$4,'4. Billing Determinants'!$B$19:$Z$41,5,0)/'4. Billing Determinants'!$F$41*$D12,IF($E12="Non-RPP kWh",VLOOKUP(M$4,'4. Billing Determinants'!$B$19:$Z$41,6,0)/'4. Billing Determinants'!$G$41*$D12, VLOOKUP(M$4,'4. Billing Determinants'!$B$19:$Z$41,18,0)*$D12)))),0) -> 0 | N12: =IFERROR(IF(N$4="",0,IF($E12="kWh",VLOOKUP(N$4,'4. Billing Determinants'!$B$19:$Z$41,4,0)/'4. Billing Determinants'!$E$41*$D12,IF($E12="kW",VLOOKUP(N$4,'4. Billing Determinants'!$B$19:$Z$41,5,0)/'4. Billing Determinants'!$F$41*$D12,IF($E12="Non-RPP kWh",VLOOKUP(N$4,'4. Billing Determinants'!$B$19:$Z$41,6,0)/'4. Billing Determinants'!$G$41*$D12, VLOOKUP(N$4,'4. Billing Determinants'!$B$19:$Z$41,18,0)*$D12)))),0) -> 0 | O12: =IFERROR(IF(O$4="",0,IF($E12="kWh",VLOOKUP(O$4,'4. Billing Determinants'!$B$19:$Z$41,4,0)/'4. Billing Determinants'!$E$41*$D12,IF($E12="kW",VLOOKUP(O$4,'4. Billing Determinants'!$B$19:$Z$41,5,0)/'4. Billing Determinants'!$F$41*$D12,IF($E12="Non-RPP kWh",VLOOKUP(O$4,'4. Billing Determinants'!$B$19:$Z$41,6,0)/'4. Billing Determinants'!$G$41*$D12, VLOOKUP(O$4,'4. Billing Determinants'!$B$19:$Z$41,18,0)*$D12)))),0) -> 0 | P12: =IFERROR(IF(P$4="",0,IF($E12="kWh",VLOOKUP(P$4,'4. Billing Determinants'!$B$19:$Z$41,4,0)/'4. Billing Determinants'!$E$41*$D12,IF($E12="kW",VLOOKUP(P$4,'4. Billing Determinants'!$B$19:$Z$41,5,0)/'4. Billing Determinants'!$F$41*$D12,IF($E12="Non-RPP kWh",VLOOKUP(P$4,'4. Billing Determinants'!$B$19:$Z$41,6,0)/'4. Billing Determinants'!$G$41*$D12, VLOOKUP(P$4,'4. Billing Determinants'!$B$19:$Z$41,18,0)*$D12)))),0) -> 0 | Q12: =IFERROR(IF(Q$4="",0,IF($E12="kWh",VLOOKUP(Q$4,'4. Billing Determinants'!$B$19:$Z$41,4,0)/'4. Billing Determinants'!$E$41*$D12,IF($E12="kW",VLOOKUP(Q$4,'4. Billing Determinants'!$B$19:$Z$41,5,0)/'4. Billing Determinants'!$F$41*$D12,IF($E12="Non-RPP kWh",VLOOKUP(Q$4,'4. Billing Determinants'!$B$19:$Z$41,6,0)/'4. Billing Determinants'!$G$41*$D12, VLOOKUP(Q$4,'4. Billing Determinants'!$B$19:$Z$41,18,0)*$D12)))),0) -> 0 | R12: =IFERROR(IF(R$4="",0,IF($E12="kWh",VLOOKUP(R$4,'4. Billing Determinants'!$B$19:$Z$41,4,0)/'4. Billing Determinants'!$E$41*$D12,IF($E12="kW",VLOOKUP(R$4,'4. Billing Determinants'!$B$19:$Z$41,5,0)/'4. Billing Determinants'!$F$41*$D12,IF($E12="Non-RPP kWh",VLOOKUP(R$4,'4. Billing Determinants'!$B$19:$Z$41,6,0)/'4. Billing Determinants'!$G$41*$D12, VLOOKUP(R$4,'4. Billing Determinants'!$B$19:$Z$41,18,0)*$D12)))),0) -> 0 | S12: =IFERROR(IF(S$4="",0,IF($E12="kWh",VLOOKUP(S$4,'4. Billing Determinants'!$B$19:$Z$41,4,0)/'4. Billing Determinants'!$E$41*$D12,IF($E12="kW",VLOOKUP(S$4,'4. Billing Determinants'!$B$19:$Z$41,5,0)/'4. Billing Determinants'!$F$41*$D12,IF($E12="Non-RPP kWh",VLOOKUP(S$4,'4. Billing Determinants'!$B$19:$Z$41,6,0)/'4. Billing Determinants'!$G$41*$D12, VLOOKUP(S$4,'4. Billing Determinants'!$B$19:$Z$41,18,0)*$D12)))),0) -> 0 | T12: =IFERROR(IF(T$4="",0,IF($E12="kWh",VLOOKUP(T$4,'4. Billing Determinants'!$B$19:$Z$41,4,0)/'4. Billing Determinants'!$E$41*$D12,IF($E12="kW",VLOOKUP(T$4,'4. Billing Determinants'!$B$19:$Z$41,5,0)/'4. Billing Determinants'!$F$41*$D12,IF($E12="Non-RPP kWh",VLOOKUP(T$4,'4. Billing Determinants'!$B$19:$Z$41,6,0)/'4. Billing Determinants'!$G$41*$D12, VLOOKUP(T$4,'4. Billing Determinants'!$B$19:$Z$41,18,0)*$D12)))),0) -> 0 | U12: =IFERROR(IF(U$4="",0,IF($E12="kWh",VLOOKUP(U$4,'4. Billing Determinants'!$B$19:$Z$41,4,0)/'4. Billing Determinants'!$E$41*$D12,IF($E12="kW",VLOOKUP(U$4,'4. Billing Determinants'!$B$19:$Z$41,5,0)/'4. Billing Determinants'!$F$41*$D12,IF($E12="Non-RPP kWh",VLOOKUP(U$4,'4. Billing Determinants'!$B$19:$Z$41,6,0)/'4. Billing Determinants'!$G$41*$D12, VLOOKUP(U$4,'4. Billing Determinants'!$B$19:$Z$41,18,0)*$D12)))),0) -> 0 | V12: =IFERROR(IF(V$4="",0,IF($E12="kWh",VLOOKUP(V$4,'4. Billing Determinants'!$B$19:$Z$41,4,0)/'4. Billing Determinants'!$E$41*$D12,IF($E12="kW",VLOOKUP(V$4,'4. Billing Determinants'!$B$19:$Z$41,5,0)/'4. Billing Determinants'!$F$41*$D12,IF($E12="Non-RPP kWh",VLOOKUP(V$4,'4. Billing Determinants'!$B$19:$Z$41,6,0)/'4. Billing Determinants'!$G$41*$D12, VLOOKUP(V$4,'4. Billing Determinants'!$B$19:$Z$41,18,0)*$D12)))),0) -> 0 | W12: =IFERROR(IF(W$4="",0,IF($E12="kWh",VLOOKUP(W$4,'4. Billing Determinants'!$B$19:$Z$41,4,0)/'4. Billing Determinants'!$E$41*$D12,IF($E12="kW",VLOOKUP(W$4,'4. Billing Determinants'!$B$19:$Z$41,5,0)/'4. Billing Determinants'!$F$41*$D12,IF($E12="Non-RPP kWh",VLOOKUP(W$4,'4. Billing Determinants'!$B$19:$Z$41,6,0)/'4. Billing Determinants'!$G$41*$D12, VLOOKUP(W$4,'4. Billing Determinants'!$B$19:$Z$41,18,0)*$D12)))),0) -> 0 | X12: =IFERROR(IF(X$4="",0,IF($E12="kWh",VLOOKUP(X$4,'4. Billing Determinants'!$B$19:$Z$41,4,0)/'4. Billing Determinants'!$E$41*$D12,IF($E12="kW",VLOOKUP(X$4,'4. Billing Determinants'!$B$19:$Z$41,5,0)/'4. Billing Determinants'!$F$41*$D12,IF($E12="Non-RPP kWh",VLOOKUP(X$4,'4. Billing Determinants'!$B$19:$Z$41,6,0)/'4. Billing Determinants'!$G$41*$D12, VLOOKUP(X$4,'4. Billing Determinants'!$B$19:$Z$41,18,0)*$D12)))),0) -> 0 | Y12: =IFERROR(IF(Y$4="",0,IF($E12="kWh",VLOOKUP(Y$4,'4. Billing Determinants'!$B$19:$Z$41,4,0)/'4. Billing Determinants'!$E$41*$D12,IF($E12="kW",VLOOKUP(Y$4,'4. Billing Determinants'!$B$19:$Z$41,5,0)/'4. Billing Determinants'!$F$41*$D12,IF($E12="Non-RPP kWh",VLOOKUP(Y$4,'4. Billing Determinants'!$B$19:$Z$41,6,0)/'4. Billing Determinants'!$G$41*$D12, VLOOKUP(Y$4,'4. Billing Determinants'!$B$19:$Z$41,18,0)*$D12)))),0) -> 0
B13: Disposition and Recovery/Refund of Regulatory Balances (2009) | C13: 1595 | D13: ='2. 2015 Continuity Schedule'!BS32 -> 0 | E13: % | F13: =IFERROR(IF(F$4="",0,IF($E13="kWh",VLOOKUP(F$4,'4. Billing Determinants'!$B$19:$Z$41,4,0)/'4. Billing Determinants'!$E$41*$D13,IF($E13="kW",VLOOKUP(F$4,'4. Billing Determinants'!$B$19:$Z$41,5,0)/'4. Billing Determinants'!$F$41*$D13,IF($E13="Non-RPP kWh",VLOOKUP(F$4,'4. Billing Determinants'!$B$19:$Z$41,6,0)/'4. Billing Determinants'!$G$41*$D13, VLOOKUP(F$4,'4. Billing Determinants'!$B$19:$Z$41,19,0)*$D13)))),0) -> 0 | G13: =IFERROR(IF(G$4="",0,IF($E13="kWh",VLOOKUP(G$4,'4. Billing Determinants'!$B$19:$Z$41,4,0)/'4. Billing Determinants'!$E$41*$D13,IF($E13="kW",VLOOKUP(G$4,'4. Billing Determinants'!$B$19:$Z$41,5,0)/'4. Billing Determinants'!$F$41*$D13,IF($E13="Non-RPP kWh",VLOOKUP(G$4,'4. Billing Determinants'!$B$19:$Z$41,6,0)/'4. Billing Determinants'!$G$41*$D13, VLOOKUP(G$4,'4. Billing Determinants'!$B$19:$Z$41,19,0)*$D13)))),0) -> 0 | H13: =IFERROR(IF(H$4="",0,IF($E13="kWh",VLOOKUP(H$4,'4. Billing Determinants'!$B$19:$Z$41,4,0)/'4. Billing Determinants'!$E$41*$D13,IF($E13="kW",VLOOKUP(H$4,'4. Billing Determinants'!$B$19:$Z$41,5,0)/'4. Billing Determinants'!$F$41*$D13,IF($E13="Non-RPP kWh",VLOOKUP(H$4,'4. Billing Determinants'!$B$19:$Z$41,6,0)/'4. Billing Determinants'!$G$41*$D13, VLOOKUP(H$4,'4. Billing Determinants'!$B$19:$Z$41,19,0)*$D13)))),0) -> 0 | I13: =IFERROR(IF(I$4="",0,IF($E13="kWh",VLOOKUP(I$4,'4. Billing Determinants'!$B$19:$Z$41,4,0)/'4. Billing Determinants'!$E$41*$D13,IF($E13="kW",VLOOKUP(I$4,'4. Billing Determinants'!$B$19:$Z$41,5,0)/'4. Billing Determinants'!$F$41*$D13,IF($E13="Non-RPP kWh",VLOOKUP(I$4,'4. Billing Determinants'!$B$19:$Z$41,6,0)/'4. Billing Determinants'!$G$41*$D13, VLOOKUP(I$4,'4. Billing Determinants'!$B$19:$Z$41,19,0)*$D13)))),0) -> 0 | J13: =IFERROR(IF(J$4="",0,IF($E13="kWh",VLOOKUP(J$4,'4. Billing Determinants'!$B$19:$Z$41,4,0)/'4. Billing Determinants'!$E$41*$D13,IF($E13="kW",VLOOKUP(J$4,'4. Billing Determinants'!$B$19:$Z$41,5,0)/'4. Billing Determinants'!$F$41*$D13,IF($E13="Non-RPP kWh",VLOOKUP(J$4,'4. Billing Determinants'!$B$19:$Z$41,6,0)/'4. Billing Determinants'!$G$41*$D13, VLOOKUP(J$4,'4. Billing Determinants'!$B$19:$Z$41,19,0)*$D13)))),0) -> 0 | K13: =IFERROR(IF(K$4="",0,IF($E13="kWh",VLOOKUP(K$4,'4. Billing Determinants'!$B$19:$Z$41,4,0)/'4. Billing Determinants'!$E$41*$D13,IF($E13="kW",VLOOKUP(K$4,'4. Billing Determinants'!$B$19:$Z$41,5,0)/'4. Billing Determinants'!$F$41*$D13,IF($E13="Non-RPP kWh",VLOOKUP(K$4,'4. Billing Determinants'!$B$19:$Z$41,6,0)/'4. Billing Determinants'!$G$41*$D13, VLOOKUP(K$4,'4. Billing Determinants'!$B$19:$Z$41,19,0)*$D13)))),0) -> 0 | L13: =IFERROR(IF(L$4="",0,IF($E13="kWh",VLOOKUP(L$4,'4. Billing Determinants'!$B$19:$Z$41,4,0)/'4. Billing Determinants'!$E$41*$D13,IF($E13="kW",VLOOKUP(L$4,'4. Billing Determinants'!$B$19:$Z$41,5,0)/'4. Billing Determinants'!$F$41*$D13,IF($E13="Non-RPP kWh",VLOOKUP(L$4,'4. Billing Determinants'!$B$19:$Z$41,6,0)/'4. Billing Determinants'!$G$41*$D13, VLOOKUP(L$4,'4. Billing Determinants'!$B$19:$Z$41,19,0)*$D13)))),0) -> 0 | M13: =IFERROR(IF(M$4="",0,IF($E13="kWh",VLOOKUP(M$4,'4. Billing Determinants'!$B$19:$Z$41,4,0)/'4. Billing Determinants'!$E$41*$D13,IF($E13="kW",VLOOKUP(M$4,'4. Billing Determinants'!$B$19:$Z$41,5,0)/'4. Billing Determinants'!$F$41*$D13,IF($E13="Non-RPP kWh",VLOOKUP(M$4,'4. Billing Determinants'!$B$19:$Z$41,6,0)/'4. Billing Determinants'!$G$41*$D13, VLOOKUP(M$4,'4. Billing Determinants'!$B$19:$Z$41,19,0)*$D13)))),0) -> 0 | N13: =IFERROR(IF(N$4="",0,IF($E13="kWh",VLOOKUP(N$4,'4. Billing Determinants'!$B$19:$Z$41,4,0)/'4. Billing Determinants'!$E$41*$D13,IF($E13="kW",VLOOKUP(N$4,'4. Billing Determinants'!$B$19:$Z$41,5,0)/'4. Billing Determinants'!$F$41*$D13,IF($E13="Non-RPP kWh",VLOOKUP(N$4,'4. Billing Determinants'!$B$19:$Z$41,6,0)/'4. Billing Determinants'!$G$41*$D13, VLOOKUP(N$4,'4. Billing Determinants'!$B$19:$Z$41,19,0)*$D13)))),0) -> 0 | O13: =IFERROR(IF(O$4="",0,IF($E13="kWh",VLOOKUP(O$4,'4. Billing Determinants'!$B$19:$Z$41,4,0)/'4. Billing Determinants'!$E$41*$D13,IF($E13="kW",VLOOKUP(O$4,'4. Billing Determinants'!$B$19:$Z$41,5,0)/'4. Billing Determinants'!$F$41*$D13,IF($E13="Non-RPP kWh",VLOOKUP(O$4,'4. Billing Determinants'!$B$19:$Z$41,6,0)/'4. Billing Determinants'!$G$41*$D13, VLOOKUP(O$4,'4. Billing Determinants'!$B$19:$Z$41,19,0)*$D13)))),0) -> 0 | P13: =IFERROR(IF(P$4="",0,IF($E13="kWh",VLOOKUP(P$4,'4. Billing Determinants'!$B$19:$Z$41,4,0)/'4. Billing Determinants'!$E$41*$D13,IF($E13="kW",VLOOKUP(P$4,'4. Billing Determinants'!$B$19:$Z$41,5,0)/'4. Billing Determinants'!$F$41*$D13,IF($E13="Non-RPP kWh",VLOOKUP(P$4,'4. Billing Determinants'!$B$19:$Z$41,6,0)/'4. Billing Determinants'!$G$41*$D13, VLOOKUP(P$4,'4. Billing Determinants'!$B$19:$Z$41,19,0)*$D13)))),0) -> 0 | Q13: =IFERROR(IF(Q$4="",0,IF($E13="kWh",VLOOKUP(Q$4,'4. Billing Determinants'!$B$19:$Z$41,4,0)/'4. Billing Determinants'!$E$41*$D13,IF($E13="kW",VLOOKUP(Q$4,'4. Billing Determinants'!$B$19:$Z$41,5,0)/'4. Billing Determinants'!$F$41*$D13,IF($E13="Non-RPP kWh",VLOOKUP(Q$4,'4. Billing Determinants'!$B$19:$Z$41,6,0)/'4. Billing Determinants'!$G$41*$D13, VLOOKUP(Q$4,'4. Billing Determinants'!$B$19:$Z$41,19,0)*$D13)))),0) -> 0 | R13: =IFERROR(IF(R$4="",0,IF($E13="kWh",VLOOKUP(R$4,'4. Billing Determinants'!$B$19:$Z$41,4,0)/'4. Billing Determinants'!$E$41*$D13,IF($E13="kW",VLOOKUP(R$4,'4. Billing Determinants'!$B$19:$Z$41,5,0)/'4. Billing Determinants'!$F$41*$D13,IF($E13="Non-RPP kWh",VLOOKUP(R$4,'4. Billing Determinants'!$B$19:$Z$41,6,0)/'4. Billing Determinants'!$G$41*$D13, VLOOKUP(R$4,'4. Billing Determinants'!$B$19:$Z$41,19,0)*$D13)))),0) -> 0 | S13: =IFERROR(IF(S$4="",0,IF($E13="kWh",VLOOKUP(S$4,'4. Billing Determinants'!$B$19:$Z$41,4,0)/'4. Billing Determinants'!$E$41*$D13,IF($E13="kW",VLOOKUP(S$4,'4. Billing Determinants'!$B$19:$Z$41,5,0)/'4. Billing Determinants'!$F$41*$D13,IF($E13="Non-RPP kWh",VLOOKUP(S$4,'4. Billing Determinants'!$B$19:$Z$41,6,0)/'4. Billing Determinants'!$G$41*$D13, VLOOKUP(S$4,'4. Billing Determinants'!$B$19:$Z$41,19,0)*$D13)))),0) -> 0 | T13: =IFERROR(IF(T$4="",0,IF($E13="kWh",VLOOKUP(T$4,'4. Billing Determinants'!$B$19:$Z$41,4,0)/'4. Billing Determinants'!$E$41*$D13,IF($E13="kW",VLOOKUP(T$4,'4. Billing Determinants'!$B$19:$Z$41,5,0)/'4. Billing Determinants'!$F$41*$D13,IF($E13="Non-RPP kWh",VLOOKUP(T$4,'4. Billing Determinants'!$B$19:$Z$41,6,0)/'4. Billing Determinants'!$G$41*$D13, VLOOKUP(T$4,'4. Billing Determinants'!$B$19:$Z$41,19,0)*$D13)))),0) -> 0 | U13: =IFERROR(IF(U$4="",0,IF($E13="kWh",VLOOKUP(U$4,'4. Billing Determinants'!$B$19:$Z$41,4,0)/'4. Billing Determinants'!$E$41*$D13,IF($E13="kW",VLOOKUP(U$4,'4. Billing Determinants'!$B$19:$Z$41,5,0)/'4. Billing Determinants'!$F$41*$D13,IF($E13="Non-RPP kWh",VLOOKUP(U$4,'4. Billing Determinants'!$B$19:$Z$41,6,0)/'4. Billing Determinants'!$G$41*$D13, VLOOKUP(U$4,'4. Billing Determinants'!$B$19:$Z$41,19,0)*$D13)))),0) -> 0 | V13: =IFERROR(IF(V$4="",0,IF($E13="kWh",VLOOKUP(V$4,'4. Billing Determinants'!$B$19:$Z$41,4,0)/'4. Billing Determinants'!$E$41*$D13,IF($E13="kW",VLOOKUP(V$4,'4. Billing Determinants'!$B$19:$Z$41,5,0)/'4. Billing Determinants'!$F$41*$D13,IF($E13="Non-RPP kWh",VLOOKUP(V$4,'4. Billing Determinants'!$B$19:$Z$41,6,0)/'4. Billing Determinants'!$G$41*$D13, VLOOKUP(V$4,'4. Billing Determinants'!$B$19:$Z$41,19,0)*$D13)))),0) -> 0 | W13: =IFERROR(IF(W$4="",0,IF($E13="kWh",VLOOKUP(W$4,'4. Billing Determinants'!$B$19:$Z$41,4,0)/'4. Billing Determinants'!$E$41*$D13,IF($E13="kW",VLOOKUP(W$4,'4. Billing Determinants'!$B$19:$Z$41,5,0)/'4. Billing Determinants'!$F$41*$D13,IF($E13="Non-RPP kWh",VLOOKUP(W$4,'4. Billing Determinants'!$B$19:$Z$41,6,0)/'4. Billing Determinants'!$G$41*$D13, VLOOKUP(W$4,'4. Billing Determinants'!$B$19:$Z$41,19,0)*$D13)))),0) -> 0 | X13: =IFERROR(IF(X$4="",0,IF($E13="kWh",VLOOKUP(X$4,'4. Billing Determinants'!$B$19:$Z$41,4,0)/'4. Billing Determinants'!$E$41*$D13,IF($E13="kW",VLOOKUP(X$4,'4. Billing Determinants'!$B$19:$Z$41,5,0)/'4. Billing Determinants'!$F$41*$D13,IF($E13="Non-RPP kWh",VLOOKUP(X$4,'4. Billing Determinants'!$B$19:$Z$41,6,0)/'4. Billing Determinants'!$G$41*$D13, VLOOKUP(X$4,'4. Billing Determinants'!$B$19:$Z$41,19,0)*$D13)))),0) -> 0 | Y13: =IFERROR(IF(Y$4="",0,IF($E13="kWh",VLOOKUP(Y$4,'4. Billing Determinants'!$B$19:$Z$41,4,0)/'4. Billing Determinants'!$E$41*$D13,IF($E13="kW",VLOOKUP(Y$4,'4. Billing Determinants'!$B$19:$Z$41,5,0)/'4. Billing Determinants'!$F$41*$D13,IF($E13="Non-RPP kWh",VLOOKUP(Y$4,'4. Billing Determinants'!$B$19:$Z$41,6,0)/'4. Billing Determinants'!$G$41*$D13, VLOOKUP(Y$4,'4. Billing Determinants'!$B$19:$Z$41,19,0)*$D13)))),0) -> 0
B14: Disposition and Recovery/Refund of Regulatory Balances (2010) | C14: 1595 | D14: ='2. 2015 Continuity Schedule'!BS33 -> 0 | E14: kWh | F14: =IFERROR(IF(F$4="",0,IF($E14="kWh",VLOOKUP(F$4,'4. Billing Determinants'!$B$19:$Z$41,4,0)/'4. Billing Determinants'!$E$41*$D14,IF($E14="kW",VLOOKUP(F$4,'4. Billing Determinants'!$B$19:$Z$41,5,0)/'4. Billing Determinants'!$F$41*$D14,IF($E14="Non-RPP kWh",VLOOKUP(F$4,'4. Billing Determinants'!$B$19:$Z$41,6,0)/'4. Billing Determinants'!$G$41*$D14, VLOOKUP(F$4,'4. Billing Determinants'!$B$19:$Z$41,20,0)*$D14)))),0) -> 0 | G14: =IFERROR(IF(G$4="",0,IF($E14="kWh",VLOOKUP(G$4,'4. Billing Determinants'!$B$19:$Z$41,4,0)/'4. Billing Determinants'!$E$41*$D14,IF($E14="kW",VLOOKUP(G$4,'4. Billing Determinants'!$B$19:$Z$41,5,0)/'4. Billing Determinants'!$F$41*$D14,IF($E14="Non-RPP kWh",VLOOKUP(G$4,'4. Billing Determinants'!$B$19:$Z$41,6,0)/'4. Billing Determinants'!$G$41*$D14, VLOOKUP(G$4,'4. Billing Determinants'!$B$19:$Z$41,20,0)*$D14)))),0) -> 0 | H14: =IFERROR(IF(H$4="",0,IF($E14="kWh",VLOOKUP(H$4,'4. Billing Determinants'!$B$19:$Z$41,4,0)/'4. Billing Determinants'!$E$41*$D14,IF($E14="kW",VLOOKUP(H$4,'4. Billing Determinants'!$B$19:$Z$41,5,0)/'4. Billing Determinants'!$F$41*$D14,IF($E14="Non-RPP kWh",VLOOKUP(H$4,'4. Billing Determinants'!$B$19:$Z$41,6,0)/'4. Billing Determinants'!$G$41*$D14, VLOOKUP(H$4,'4. Billing Determinants'!$B$19:$Z$41,20,0)*$D14)))),0) -> 0 | I14: =IFERROR(IF(I$4="",0,IF($E14="kWh",VLOOKUP(I$4,'4. Billing Determinants'!$B$19:$Z$41,4,0)/'4. Billing Determinants'!$E$41*$D14,IF($E14="kW",VLOOKUP(I$4,'4. Billing Determinants'!$B$19:$Z$41,5,0)/'4. Billing Determinants'!$F$41*$D14,IF($E14="Non-RPP kWh",VLOOKUP(I$4,'4. Billing Determinants'!$B$19:$Z$41,6,0)/'4. Billing Determinants'!$G$41*$D14, VLOOKUP(I$4,'4. Billing Determinants'!$B$19:$Z$41,20,0)*$D14)))),0) -> 0 | J14: =IFERROR(IF(J$4="",0,IF($E14="kWh",VLOOKUP(J$4,'4. Billing Determinants'!$B$19:$Z$41,4,0)/'4. Billing Determinants'!$E$41*$D14,IF($E14="kW",VLOOKUP(J$4,'4. Billing Determinants'!$B$19:$Z$41,5,0)/'4. Billing Determinants'!$F$41*$D14,IF($E14="Non-RPP kWh",VLOOKUP(J$4,'4. Billing Determinants'!$B$19:$Z$41,6,0)/'4. Billing Determinants'!$G$41*$D14, VLOOKUP(J$4,'4. Billing Determinants'!$B$19:$Z$41,20,0)*$D14)))),0) -> 0 | K14: =IFERROR(IF(K$4="",0,IF($E14="kWh",VLOOKUP(K$4,'4. Billing Determinants'!$B$19:$Z$41,4,0)/'4. Billing Determinants'!$E$41*$D14,IF($E14="kW",VLOOKUP(K$4,'4. Billing Determinants'!$B$19:$Z$41,5,0)/'4. Billing Determinants'!$F$41*$D14,IF($E14="Non-RPP kWh",VLOOKUP(K$4,'4. Billing Determinants'!$B$19:$Z$41,6,0)/'4. Billing Determinants'!$G$41*$D14, VLOOKUP(K$4,'4. Billing Determinants'!$B$19:$Z$41,20,0)*$D14)))),0) -> 0 | L14: =IFERROR(IF(L$4="",0,IF($E14="kWh",VLOOKUP(L$4,'4. Billing Determinants'!$B$19:$Z$41,4,0)/'4. Billing Determinants'!$E$41*$D14,IF($E14="kW",VLOOKUP(L$4,'4. Billing Determinants'!$B$19:$Z$41,5,0)/'4. Billing Determinants'!$F$41*$D14,IF($E14="Non-RPP kWh",VLOOKUP(L$4,'4. Billing Determinants'!$B$19:$Z$41,6,0)/'4. Billing Determinants'!$G$41*$D14, VLOOKUP(L$4,'4. Billing Determinants'!$B$19:$Z$41,20,0)*$D14)))),0) -> 0 | M14: =IFERROR(IF(M$4="",0,IF($E14="kWh",VLOOKUP(M$4,'4. Billing Determinants'!$B$19:$Z$41,4,0)/'4. Billing Determinants'!$E$41*$D14,IF($E14="kW",VLOOKUP(M$4,'4. Billing Determinants'!$B$19:$Z$41,5,0)/'4. Billing Determinants'!$F$41*$D14,IF($E14="Non-RPP kWh",VLOOKUP(M$4,'4. Billing Determinants'!$B$19:$Z$41,6,0)/'4. Billing Determinants'!$G$41*$D14, VLOOKUP(M$4,'4. Billing Determinants'!$B$19:$Z$41,20,0)*$D14)))),0) -> 0 | N14: =IFERROR(IF(N$4="",0,IF($E14="kWh",VLOOKUP(N$4,'4. Billing Determinants'!$B$19:$Z$41,4,0)/'4. Billing Determinants'!$E$41*$D14,IF($E14="kW",VLOOKUP(N$4,'4. Billing Determinants'!$B$19:$Z$41,5,0)/'4. Billing Determinants'!$F$41*$D14,IF($E14="Non-RPP kWh",VLOOKUP(N$4,'4. Billing Determinants'!$B$19:$Z$41,6,0)/'4. Billing Determinants'!$G$41*$D14, VLOOKUP(N$4,'4. Billing Determinants'!$B$19:$Z$41,20,0)*$D14)))),0) -> 0 | O14: =IFERROR(IF(O$4="",0,IF($E14="kWh",VLOOKUP(O$4,'4. Billing Determinants'!$B$19:$Z$41,4,0)/'4. Billing Determinants'!$E$41*$D14,IF($E14="kW",VLOOKUP(O$4,'4. Billing Determinants'!$B$19:$Z$41,5,0)/'4. Billing Determinants'!$F$41*$D14,IF($E14="Non-RPP kWh",VLOOKUP(O$4,'4. Billing Determinants'!$B$19:$Z$41,6,0)/'4. Billing Determinants'!$G$41*$D14, VLOOKUP(O$4,'4. Billing Determinants'!$B$19:$Z$41,20,0)*$D14)))),0) -> 0 | P14: =IFERROR(IF(P$4="",0,IF($E14="kWh",VLOOKUP(P$4,'4. Billing Determinants'!$B$19:$Z$41,4,0)/'4. Billing Determinants'!$E$41*$D14,IF($E14="kW",VLOOKUP(P$4,'4. Billing Determinants'!$B$19:$Z$41,5,0)/'4. Billing Determinants'!$F$41*$D14,IF($E14="Non-RPP kWh",VLOOKUP(P$4,'4. Billing Determinants'!$B$19:$Z$41,6,0)/'4. Billing Determinants'!$G$41*$D14, VLOOKUP(P$4,'4. Billing Determinants'!$B$19:$Z$41,20,0)*$D14)))),0) -> 0 | Q14: =IFERROR(IF(Q$4="",0,IF($E14="kWh",VLOOKUP(Q$4,'4. Billing Determinants'!$B$19:$Z$41,4,0)/'4. Billing Determinants'!$E$41*$D14,IF($E14="kW",VLOOKUP(Q$4,'4. Billing Determinants'!$B$19:$Z$41,5,0)/'4. Billing Determinants'!$F$41*$D14,IF($E14="Non-RPP kWh",VLOOKUP(Q$4,'4. Billing Determinants'!$B$19:$Z$41,6,0)/'4. Billing Determinants'!$G$41*$D14, VLOOKUP(Q$4,'4. Billing Determinants'!$B$19:$Z$41,20,0)*$D14)))),0) -> 0 | R14: =IFERROR(IF(R$4="",0,IF($E14="kWh",VLOOKUP(R$4,'4. Billing Determinants'!$B$19:$Z$41,4,0)/'4. Billing Determinants'!$E$41*$D14,IF($E14="kW",VLOOKUP(R$4,'4. Billing Determinants'!$B$19:$Z$41,5,0)/'4. Billing Determinants'!$F$41*$D14,IF($E14="Non-RPP kWh",VLOOKUP(R$4,'4. Billing Determinants'!$B$19:$Z$41,6,0)/'4. Billing Determinants'!$G$41*$D14, VLOOKUP(R$4,'4. Billing Determinants'!$B$19:$Z$41,20,0)*$D14)))),0) -> 0 | S14: =IFERROR(IF(S$4="",0,IF($E14="kWh",VLOOKUP(S$4,'4. Billing Determinants'!$B$19:$Z$41,4,0)/'4. Billing Determinants'!$E$41*$D14,IF($E14="kW",VLOOKUP(S$4,'4. Billing Determinants'!$B$19:$Z$41,5,0)/'4. Billing Determinants'!$F$41*$D14,IF($E14="Non-RPP kWh",VLOOKUP(S$4,'4. Billing Determinants'!$B$19:$Z$41,6,0)/'4. Billing Determinants'!$G$41*$D14, VLOOKUP(S$4,'4. Billing Determinants'!$B$19:$Z$41,20,0)*$D14)))),0) -> 0 | T14: =IFERROR(IF(T$4="",0,IF($E14="kWh",VLOOKUP(T$4,'4. Billing Determinants'!$B$19:$Z$41,4,0)/'4. Billing Determinants'!$E$41*$D14,IF($E14="kW",VLOOKUP(T$4,'4. Billing Determinants'!$B$19:$Z$41,5,0)/'4. Billing Determinants'!$F$41*$D14,IF($E14="Non-RPP kWh",VLOOKUP(T$4,'4. Billing Determinants'!$B$19:$Z$41,6,0)/'4. Billing Determinants'!$G$41*$D14, VLOOKUP(T$4,'4. Billing Determinants'!$B$19:$Z$41,20,0)*$D14)))),0) -> 0 | U14: =IFERROR(IF(U$4="",0,IF($E14="kWh",VLOOKUP(U$4,'4. Billing Determinants'!$B$19:$Z$41,4,0)/'4. Billing Determinants'!$E$41*$D14,IF($E14="kW",VLOOKUP(U$4,'4. Billing Determinants'!$B$19:$Z$41,5,0)/'4. Billing Determinants'!$F$41*$D14,IF($E14="Non-RPP kWh",VLOOKUP(U$4,'4. Billing Determinants'!$B$19:$Z$41,6,0)/'4. Billing Determinants'!$G$41*$D14, VLOOKUP(U$4,'4. Billing Determinants'!$B$19:$Z$41,20,0)*$D14)))),0) -> 0 | V14: =IFERROR(IF(V$4="",0,IF($E14="kWh",VLOOKUP(V$4,'4. Billing Determinants'!$B$19:$Z$41,4,0)/'4. Billing Determinants'!$E$41*$D14,IF($E14="kW",VLOOKUP(V$4,'4. Billing Determinants'!$B$19:$Z$41,5,0)/'4. Billing Determinants'!$F$41*$D14,IF($E14="Non-RPP kWh",VLOOKUP(V$4,'4. Billing Determinants'!$B$19:$Z$41,6,0)/'4. Billing Determinants'!$G$41*$D14, VLOOKUP(V$4,'4. Billing Determinants'!$B$19:$Z$41,20,0)*$D14)))),0) -> 0 | W14: =IFERROR(IF(W$4="",0,IF($E14="kWh",VLOOKUP(W$4,'4. Billing Determinants'!$B$19:$Z$41,4,0)/'4. Billing Determinants'!$E$41*$D14,IF($E14="kW",VLOOKUP(W$4,'4. Billing Determinants'!$B$19:$Z$41,5,0)/'4. Billing Determinants'!$F$41*$D14,IF($E14="Non-RPP kWh",VLOOKUP(W$4,'4. Billing Determinants'!$B$19:$Z$41,6,0)/'4. Billing Determinants'!$G$41*$D14, VLOOKUP(W$4,'4. Billing Determinants'!$B$19:$Z$41,20,0)*$D14)))),0) -> 0 | X14: =IFERROR(IF(X$4="",0,IF($E14="kWh",VLOOKUP(X$4,'4. Billing Determinants'!$B$19:$Z$41,4,0)/'4. Billing Determinants'!$E$41*$D14,IF($E14="kW",VLOOKUP(X$4,'4. Billing Determinants'!$B$19:$Z$41,5,0)/'4. Billing Determinants'!$F$41*$D14,IF($E14="Non-RPP kWh",VLOOKUP(X$4,'4. Billing Determinants'!$B$19:$Z$41,6,0)/'4. Billing Determinants'!$G$41*$D14, VLOOKUP(X$4,'4. Billing Determinants'!$B$19:$Z$41,20,0)*$D14)))),0) -> 0 | Y14: =IFERROR(IF(Y$4="",0,IF($E14="kWh",VLOOKUP(Y$4,'4. Billing Determinants'!$B$19:$Z$41,4,0)/'4. Billing Determinants'!$E$41*$D14,IF($E14="kW",VLOOKUP(Y$4,'4. Billing Determinants'!$B$19:$Z$41,5,0)/'4. Billing Determinants'!$F$41*$D14,IF($E14="Non-RPP kWh",VLOOKUP(Y$4,'4. Billing Determinants'!$B$19:$Z$41,6,0)/'4. Billing Determinants'!$G$41*$D14, VLOOKUP(Y$4,'4. Billing Determinants'!$B$19:$Z$41,20,0)*$D14)))),0) -> 0
B15: Disposition and Recovery/Refund of Regulatory Balances (2011) | C15: 1595 | D15: ='2. 2015 Continuity Schedule'!BS34 -> 0 | E15: % | F15: =IFERROR(IF(F$4="",0,IF($E15="kWh",VLOOKUP(F$4,'4. Billing Determinants'!$B$19:$Z$41,4,0)/'4. Billing Determinants'!$E$41*$D15,IF($E15="kW",VLOOKUP(F$4,'4. Billing Determinants'!$B$19:$Z$41,5,0)/'4. Billing Determinants'!$F$41*$D15,IF($E15="Non-RPP kWh",VLOOKUP(F$4,'4. Billing Determinants'!$B$19:$Z$41,6,0)/'4. Billing Determinants'!$G$41*$D15, VLOOKUP(F$4,'4. Billing Determinants'!$B$19:$Z$41,21,0)*$D15)))),0) -> 0 | G15: =IFERROR(IF(G$4="",0,IF($E15="kWh",VLOOKUP(G$4,'4. Billing Determinants'!$B$19:$Z$41,4,0)/'4. Billing Determinants'!$E$41*$D15,IF($E15="kW",VLOOKUP(G$4,'4. Billing Determinants'!$B$19:$Z$41,5,0)/'4. Billing Determinants'!$F$41*$D15,IF($E15="Non-RPP kWh",VLOOKUP(G$4,'4. Billing Determinants'!$B$19:$Z$41,6,0)/'4. Billing Determinants'!$G$41*$D15, VLOOKUP(G$4,'4. Billing Determinants'!$B$19:$Z$41,21,0)*$D15)))),0) -> 0 | H15: =IFERROR(IF(H$4="",0,IF($E15="kWh",VLOOKUP(H$4,'4. Billing Determinants'!$B$19:$Z$41,4,0)/'4. Billing Determinants'!$E$41*$D15,IF($E15="kW",VLOOKUP(H$4,'4. Billing Determinants'!$B$19:$Z$41,5,0)/'4. Billing Determinants'!$F$41*$D15,IF($E15="Non-RPP kWh",VLOOKUP(H$4,'4. Billing Determinants'!$B$19:$Z$41,6,0)/'4. Billing Determinants'!$G$41*$D15, VLOOKUP(H$4,'4. Billing Determinants'!$B$19:$Z$41,21,0)*$D15)))),0) -> 0 | I15: =IFERROR(IF(I$4="",0,IF($E15="kWh",VLOOKUP(I$4,'4. Billing Determinants'!$B$19:$Z$41,4,0)/'4. Billing Determinants'!$E$41*$D15,IF($E15="kW",VLOOKUP(I$4,'4. Billing Determinants'!$B$19:$Z$41,5,0)/'4. Billing Determinants'!$F$41*$D15,IF($E15="Non-RPP kWh",VLOOKUP(I$4,'4. Billing Determinants'!$B$19:$Z$41,6,0)/'4. Billing Determinants'!$G$41*$D15, VLOOKUP(I$4,'4. Billing Determinants'!$B$19:$Z$41,21,0)*$D15)))),0) -> 0 | J15: =IFERROR(IF(J$4="",0,IF($E15="kWh",VLOOKUP(J$4,'4. Billing Determinants'!$B$19:$Z$41,4,0)/'4. Billing Determinants'!$E$41*$D15,IF($E15="kW",VLOOKUP(J$4,'4. Billing Determinants'!$B$19:$Z$41,5,0)/'4. Billing Determinants'!$F$41*$D15,IF($E15="Non-RPP kWh",VLOOKUP(J$4,'4. Billing Determinants'!$B$19:$Z$41,6,0)/'4. Billing Determinants'!$G$41*$D15, VLOOKUP(J$4,'4. Billing Determinants'!$B$19:$Z$41,21,0)*$D15)))),0) -> 0 | K15: =IFERROR(IF(K$4="",0,IF($E15="kWh",VLOOKUP(K$4,'4. Billing Determinants'!$B$19:$Z$41,4,0)/'4. Billing Determinants'!$E$41*$D15,IF($E15="kW",VLOOKUP(K$4,'4. Billing Determinants'!$B$19:$Z$41,5,0)/'4. Billing Determinants'!$F$41*$D15,IF($E15="Non-RPP kWh",VLOOKUP(K$4,'4. Billing Determinants'!$B$19:$Z$41,6,0)/'4. Billing Determinants'!$G$41*$D15, VLOOKUP(K$4,'4. Billing Determinants'!$B$19:$Z$41,21,0)*$D15)))),0) -> 0 | L15: =IFERROR(IF(L$4="",0,IF($E15="kWh",VLOOKUP(L$4,'4. Billing Determinants'!$B$19:$Z$41,4,0)/'4. Billing Determinants'!$E$41*$D15,IF($E15="kW",VLOOKUP(L$4,'4. Billing Determinants'!$B$19:$Z$41,5,0)/'4. Billing Determinants'!$F$41*$D15,IF($E15="Non-RPP kWh",VLOOKUP(L$4,'4. Billing Determinants'!$B$19:$Z$41,6,0)/'4. Billing Determinants'!$G$41*$D15, VLOOKUP(L$4,'4. Billing Determinants'!$B$19:$Z$41,21,0)*$D15)))),0) -> 0 | M15: =IFERROR(IF(M$4="",0,IF($E15="kWh",VLOOKUP(M$4,'4. Billing Determinants'!$B$19:$Z$41,4,0)/'4. Billing Determinants'!$E$41*$D15,IF($E15="kW",VLOOKUP(M$4,'4. Billing Determinants'!$B$19:$Z$41,5,0)/'4. Billing Determinants'!$F$41*$D15,IF($E15="Non-RPP kWh",VLOOKUP(M$4,'4. Billing Determinants'!$B$19:$Z$41,6,0)/'4. Billing Determinants'!$G$41*$D15, VLOOKUP(M$4,'4. Billing Determinants'!$B$19:$Z$41,21,0)*$D15)))),0) -> 0 | N15: =IFERROR(IF(N$4="",0,IF($E15="kWh",VLOOKUP(N$4,'4. Billing Determinants'!$B$19:$Z$41,4,0)/'4. Billing Determinants'!$E$41*$D15,IF($E15="kW",VLOOKUP(N$4,'4. Billing Determinants'!$B$19:$Z$41,5,0)/'4. Billing Determinants'!$F$41*$D15,IF($E15="Non-RPP kWh",VLOOKUP(N$4,'4. Billing Determinants'!$B$19:$Z$41,6,0)/'4. Billing Determinants'!$G$41*$D15, VLOOKUP(N$4,'4. Billing Determinants'!$B$19:$Z$41,21,0)*$D15)))),0) -> 0 | O15: =IFERROR(IF(O$4="",0,IF($E15="kWh",VLOOKUP(O$4,'4. Billing Determinants'!$B$19:$Z$41,4,0)/'4. Billing Determinants'!$E$41*$D15,IF($E15="kW",VLOOKUP(O$4,'4. Billing Determinants'!$B$19:$Z$41,5,0)/'4. Billing Determinants'!$F$41*$D15,IF($E15="Non-RPP kWh",VLOOKUP(O$4,'4. Billing Determinants'!$B$19:$Z$41,6,0)/'4. Billing Determinants'!$G$41*$D15, VLOOKUP(O$4,'4. Billing Determinants'!$B$19:$Z$41,21,0)*$D15)))),0) -> 0 | P15: =IFERROR(IF(P$4="",0,IF($E15="kWh",VLOOKUP(P$4,'4. Billing Determinants'!$B$19:$Z$41,4,0)/'4. Billing Determinants'!$E$41*$D15,IF($E15="kW",VLOOKUP(P$4,'4. Billing Determinants'!$B$19:$Z$41,5,0)/'4. Billing Determinants'!$F$41*$D15,IF($E15="Non-RPP kWh",VLOOKUP(P$4,'4. Billing Determinants'!$B$19:$Z$41,6,0)/'4. Billing Determinants'!$G$41*$D15, VLOOKUP(P$4,'4. Billing Determinants'!$B$19:$Z$41,21,0)*$D15)))),0) -> 0 | Q15: =IFERROR(IF(Q$4="",0,IF($E15="kWh",VLOOKUP(Q$4,'4. Billing Determinants'!$B$19:$Z$41,4,0)/'4. Billing Determinants'!$E$41*$D15,IF($E15="kW",VLOOKUP(Q$4,'4. Billing Determinants'!$B$19:$Z$41,5,0)/'4. Billing Determinants'!$F$41*$D15,IF($E15="Non-RPP kWh",VLOOKUP(Q$4,'4. Billing Determinants'!$B$19:$Z$41,6,0)/'4. Billing Determinants'!$G$41*$D15, VLOOKUP(Q$4,'4. Billing Determinants'!$B$19:$Z$41,21,0)*$D15)))),0) -> 0 | R15: =IFERROR(IF(R$4="",0,IF($E15="kWh",VLOOKUP(R$4,'4. Billing Determinants'!$B$19:$Z$41,4,0)/'4. Billing Determinants'!$E$41*$D15,IF($E15="kW",VLOOKUP(R$4,'4. Billing Determinants'!$B$19:$Z$41,5,0)/'4. Billing Determinants'!$F$41*$D15,IF($E15="Non-RPP kWh",VLOOKUP(R$4,'4. Billing Determinants'!$B$19:$Z$41,6,0)/'4. Billing Determinants'!$G$41*$D15, VLOOKUP(R$4,'4. Billing Determinants'!$B$19:$Z$41,21,0)*$D15)))),0) -> 0 | S15: =IFERROR(IF(S$4="",0,IF($E15="kWh",VLOOKUP(S$4,'4. Billing Determinants'!$B$19:$Z$41,4,0)/'4. Billing Determinants'!$E$41*$D15,IF($E15="kW",VLOOKUP(S$4,'4. Billing Determinants'!$B$19:$Z$41,5,0)/'4. Billing Determinants'!$F$41*$D15,IF($E15="Non-RPP kWh",VLOOKUP(S$4,'4. Billing Determinants'!$B$19:$Z$41,6,0)/'4. Billing Determinants'!$G$41*$D15, VLOOKUP(S$4,'4. Billing Determinants'!$B$19:$Z$41,21,0)*$D15)))),0) -> 0 | T15: =IFERROR(IF(T$4="",0,IF($E15="kWh",VLOOKUP(T$4,'4. Billing Determinants'!$B$19:$Z$41,4,0)/'4. Billing Determinants'!$E$41*$D15,IF($E15="kW",VLOOKUP(T$4,'4. Billing Determinants'!$B$19:$Z$41,5,0)/'4. Billing Determinants'!$F$41*$D15,IF($E15="Non-RPP kWh",VLOOKUP(T$4,'4. Billing Determinants'!$B$19:$Z$41,6,0)/'4. Billing Determinants'!$G$41*$D15, VLOOKUP(T$4,'4. Billing Determinants'!$B$19:$Z$41,21,0)*$D15)))),0) -> 0 | U15: =IFERROR(IF(U$4="",0,IF($E15="kWh",VLOOKUP(U$4,'4. Billing Determinants'!$B$19:$Z$41,4,0)/'4. Billing Determinants'!$E$41*$D15,IF($E15="kW",VLOOKUP(U$4,'4. Billing Determinants'!$B$19:$Z$41,5,0)/'4. Billing Determinants'!$F$41*$D15,IF($E15="Non-RPP kWh",VLOOKUP(U$4,'4. Billing Determinants'!$B$19:$Z$41,6,0)/'4. Billing Determinants'!$G$41*$D15, VLOOKUP(U$4,'4. Billing Determinants'!$B$19:$Z$41,21,0)*$D15)))),0) -> 0 | V15: =IFERROR(IF(V$4="",0,IF($E15="kWh",VLOOKUP(V$4,'4. Billing Determinants'!$B$19:$Z$41,4,0)/'4. Billing Determinants'!$E$41*$D15,IF($E15="kW",VLOOKUP(V$4,'4. Billing Determinants'!$B$19:$Z$41,5,0)/'4. Billing Determinants'!$F$41*$D15,IF($E15="Non-RPP kWh",VLOOKUP(V$4,'4. Billing Determinants'!$B$19:$Z$41,6,0)/'4. Billing Determinants'!$G$41*$D15, VLOOKUP(V$4,'4. Billing Determinants'!$B$19:$Z$41,21,0)*$D15)))),0) -> 0 | W15: =IFERROR(IF(W$4="",0,IF($E15="kWh",VLOOKUP(W$4,'4. Billing Determinants'!$B$19:$Z$41,4,0)/'4. Billing Determinants'!$E$41*$D15,IF($E15="kW",VLOOKUP(W$4,'4. Billing Determinants'!$B$19:$Z$41,5,0)/'4. Billing Determinants'!$F$41*$D15,IF($E15="Non-RPP kWh",VLOOKUP(W$4,'4. Billing Determinants'!$B$19:$Z$41,6,0)/'4. Billing Determinants'!$G$41*$D15, VLOOKUP(W$4,'4. Billing Determinants'!$B$19:$Z$41,21,0)*$D15)))),0) -> 0 | X15: =IFERROR(IF(X$4="",0,IF($E15="kWh",VLOOKUP(X$4,'4. Billing Determinants'!$B$19:$Z$41,4,0)/'4. Billing Determinants'!$E$41*$D15,IF($E15="kW",VLOOKUP(X$4,'4. Billing Determinants'!$B$19:$Z$41,5,0)/'4. Billing Determinants'!$F$41*$D15,IF($E15="Non-RPP kWh",VLOOKUP(X$4,'4. Billing Determinants'!$B$19:$Z$41,6,0)/'4. Billing Determinants'!$G$41*$D15, VLOOKUP(X$4,'4. Billing Determinants'!$B$19:$Z$41,21,0)*$D15)))),0) -> 0 | Y15: =IFERROR(IF(Y$4="",0,IF($E15="kWh",VLOOKUP(Y$4,'4. Billing Determinants'!$B$19:$Z$41,4,0)/'4. Billing Determinants'!$E$41*$D15,IF($E15="kW",VLOOKUP(Y$4,'4. Billing Determinants'!$B$19:$Z$41,5,0)/'4. Billing Determinants'!$F$41*$D15,IF($E15="Non-RPP kWh",VLOOKUP(Y$4,'4. Billing Determinants'!$B$19:$Z$41,6,0)/'4. Billing Determinants'!$G$41*$D15, VLOOKUP(Y$4,'4. Billing Determinants'!$B$19:$Z$41,21,0)*$D15)))),0) -> 0
B16: Disposition and Recovery/Refund of Regulatory Balances (2012) | C16: 1595 | D16: ='2. 2015 Continuity Schedule'!BS35 -> 27453.123 | E16: kWh | F16: =IFERROR(IF(F$4="",0,IF($E16="kWh",VLOOKUP(F$4,'4. Billing Determinants'!$B$19:$Z$41,4,0)/'4. Billing Determinants'!$E$41*$D16,IF($E16="kW",VLOOKUP(F$4,'4. Billing Determinants'!$B$19:$Z$41,5,0)/'4. Billing Determinants'!$F$41*$D16,IF($E16="Non-RPP kWh",VLOOKUP(F$4,'4. Billing Determinants'!$B$19:$Z$41,6,0)/'4. Billing Determinants'!$G$41*$D16, VLOOKUP(F$4,'4. Billing Determinants'!$B$19:$Z$41,22,0)*$D16)))),0) -> 17179.95116 | G16: =IFERROR(IF(G$4="",0,IF($E16="kWh",VLOOKUP(G$4,'4. Billing Determinants'!$B$19:$Z$41,4,0)/'4. Billing Determinants'!$E$41*$D16,IF($E16="kW",VLOOKUP(G$4,'4. Billing Determinants'!$B$19:$Z$41,5,0)/'4. Billing Determinants'!$F$41*$D16,IF($E16="Non-RPP kWh",VLOOKUP(G$4,'4. Billing Determinants'!$B$19:$Z$41,6,0)/'4. Billing Determinants'!$G$41*$D16, VLOOKUP(G$4,'4. Billing Determinants'!$B$19:$Z$41,22,0)*$D16)))),0) -> 3708.932857 | H16: =IFERROR(IF(H$4="",0,IF($E16="kWh",VLOOKUP(H$4,'4. Billing Determinants'!$B$19:$Z$41,4,0)/'4. Billing Determinants'!$E$41*$D16,IF($E16="kW",VLOOKUP(H$4,'4. Billing Determinants'!$B$19:$Z$41,5,0)/'4. Billing Determinants'!$F$41*$D16,IF($E16="Non-RPP kWh",VLOOKUP(H$4,'4. Billing Determinants'!$B$19:$Z$41,6,0)/'4. Billing Determinants'!$G$41*$D16, VLOOKUP(H$4,'4. Billing Determinants'!$B$19:$Z$41,22,0)*$D16)))),0) -> 6415.47185 | I16: =IFERROR(IF(I$4="",0,IF($E16="kWh",VLOOKUP(I$4,'4. Billing Determinants'!$B$19:$Z$41,4,0)/'4. Billing Determinants'!$E$41*$D16,IF($E16="kW",VLOOKUP(I$4,'4. Billing Determinants'!$B$19:$Z$41,5,0)/'4. Billing Determinants'!$F$41*$D16,IF($E16="Non-RPP kWh",VLOOKUP(I$4,'4. Billing Determinants'!$B$19:$Z$41,6,0)/'4. Billing Determinants'!$G$41*$D16, VLOOKUP(I$4,'4. Billing Determinants'!$B$19:$Z$41,22,0)*$D16)))),0) -> 11.26594401 | J16: =IFERROR(IF(J$4="",0,IF($E16="kWh",VLOOKUP(J$4,'4. Billing Determinants'!$B$19:$Z$41,4,0)/'4. Billing Determinants'!$E$41*$D16,IF($E16="kW",VLOOKUP(J$4,'4. Billing Determinants'!$B$19:$Z$41,5,0)/'4. Billing Determinants'!$F$41*$D16,IF($E16="Non-RPP kWh",VLOOKUP(J$4,'4. Billing Determinants'!$B$19:$Z$41,6,0)/'4. Billing Determinants'!$G$41*$D16, VLOOKUP(J$4,'4. Billing Determinants'!$B$19:$Z$41,22,0)*$D16)))),0) -> 76.7291627 | K16: =IFERROR(IF(K$4="",0,IF($E16="kWh",VLOOKUP(K$4,'4. Billing Determinants'!$B$19:$Z$41,4,0)/'4. Billing Determinants'!$E$41*$D16,IF($E16="kW",VLOOKUP(K$4,'4. Billing Determinants'!$B$19:$Z$41,5,0)/'4. Billing Determinants'!$F$41*$D16,IF($E16="Non-RPP kWh",VLOOKUP(K$4,'4. Billing Determinants'!$B$19:$Z$41,6,0)/'4. Billing Determinants'!$G$41*$D16, VLOOKUP(K$4,'4. Billing Determinants'!$B$19:$Z$41,22,0)*$D16)))),0) -> 60.77202841 | L16: =IFERROR(IF(L$4="",0,IF($E16="kWh",VLOOKUP(L$4,'4. Billing Determinants'!$B$19:$Z$41,4,0)/'4. Billing Determinants'!$E$41*$D16,IF($E16="kW",VLOOKUP(L$4,'4. Billing Determinants'!$B$19:$Z$41,5,0)/'4. Billing Determinants'!$F$41*$D16,IF($E16="Non-RPP kWh",VLOOKUP(L$4,'4. Billing Determinants'!$B$19:$Z$41,6,0)/'4. Billing Determinants'!$G$41*$D16, VLOOKUP(L$4,'4. Billing Determinants'!$B$19:$Z$41,22,0)*$D16)))),0) -> 0 | M16: =IFERROR(IF(M$4="",0,IF($E16="kWh",VLOOKUP(M$4,'4. Billing Determinants'!$B$19:$Z$41,4,0)/'4. Billing Determinants'!$E$41*$D16,IF($E16="kW",VLOOKUP(M$4,'4. Billing Determinants'!$B$19:$Z$41,5,0)/'4. Billing Determinants'!$F$41*$D16,IF($E16="Non-RPP kWh",VLOOKUP(M$4,'4. Billing Determinants'!$B$19:$Z$41,6,0)/'4. Billing Determinants'!$G$41*$D16, VLOOKUP(M$4,'4. Billing Determinants'!$B$19:$Z$41,22,0)*$D16)))),0) -> 0 | N16: =IFERROR(IF(N$4="",0,IF($E16="kWh",VLOOKUP(N$4,'4. Billing Determinants'!$B$19:$Z$41,4,0)/'4. Billing Determinants'!$E$41*$D16,IF($E16="kW",VLOOKUP(N$4,'4. Billing Determinants'!$B$19:$Z$41,5,0)/'4. Billing Determinants'!$F$41*$D16,IF($E16="Non-RPP kWh",VLOOKUP(N$4,'4. Billing Determinants'!$B$19:$Z$41,6,0)/'4. Billing Determinants'!$G$41*$D16, VLOOKUP(N$4,'4. Billing Determinants'!$B$19:$Z$41,22,0)*$D16)))),0) -> 0 | O16: =IFERROR(IF(O$4="",0,IF($E16="kWh",VLOOKUP(O$4,'4. Billing Determinants'!$B$19:$Z$41,4,0)/'4. Billing Determinants'!$E$41*$D16,IF($E16="kW",VLOOKUP(O$4,'4. Billing Determinants'!$B$19:$Z$41,5,0)/'4. Billing Determinants'!$F$41*$D16,IF($E16="Non-RPP kWh",VLOOKUP(O$4,'4. Billing Determinants'!$B$19:$Z$41,6,0)/'4. Billing Determinants'!$G$41*$D16, VLOOKUP(O$4,'4. Billing Determinants'!$B$19:$Z$41,22,0)*$D16)))),0) -> 0 | P16: =IFERROR(IF(P$4="",0,IF($E16="kWh",VLOOKUP(P$4,'4. Billing Determinants'!$B$19:$Z$41,4,0)/'4. Billing Determinants'!$E$41*$D16,IF($E16="kW",VLOOKUP(P$4,'4. Billing Determinants'!$B$19:$Z$41,5,0)/'4. Billing Determinants'!$F$41*$D16,IF($E16="Non-RPP kWh",VLOOKUP(P$4,'4. Billing Determinants'!$B$19:$Z$41,6,0)/'4. Billing Determinants'!$G$41*$D16, VLOOKUP(P$4,'4. Billing Determinants'!$B$19:$Z$41,22,0)*$D16)))),0) -> 0 | Q16: =IFERROR(IF(Q$4="",0,IF($E16="kWh",VLOOKUP(Q$4,'4. Billing Determinants'!$B$19:$Z$41,4,0)/'4. Billing Determinants'!$E$41*$D16,IF($E16="kW",VLOOKUP(Q$4,'4. Billing Determinants'!$B$19:$Z$41,5,0)/'4. Billing Determinants'!$F$41*$D16,IF($E16="Non-RPP kWh",VLOOKUP(Q$4,'4. Billing Determinants'!$B$19:$Z$41,6,0)/'4. Billing Determinants'!$G$41*$D16, VLOOKUP(Q$4,'4. Billing Determinants'!$B$19:$Z$41,22,0)*$D16)))),0) -> 0 | R16: =IFERROR(IF(R$4="",0,IF($E16="kWh",VLOOKUP(R$4,'4. Billing Determinants'!$B$19:$Z$41,4,0)/'4. Billing Determinants'!$E$41*$D16,IF($E16="kW",VLOOKUP(R$4,'4. Billing Determinants'!$B$19:$Z$41,5,0)/'4. Billing Determinants'!$F$41*$D16,IF($E16="Non-RPP kWh",VLOOKUP(R$4,'4. Billing Determinants'!$B$19:$Z$41,6,0)/'4. Billing Determinants'!$G$41*$D16, VLOOKUP(R$4,'4. Billing Determinants'!$B$19:$Z$41,22,0)*$D16)))),0) -> 0 | S16: =IFERROR(IF(S$4="",0,IF($E16="kWh",VLOOKUP(S$4,'4. Billing Determinants'!$B$19:$Z$41,4,0)/'4. Billing Determinants'!$E$41*$D16,IF($E16="kW",VLOOKUP(S$4,'4. Billing Determinants'!$B$19:$Z$41,5,0)/'4. Billing Determinants'!$F$41*$D16,IF($E16="Non-RPP kWh",VLOOKUP(S$4,'4. Billing Determinants'!$B$19:$Z$41,6,0)/'4. Billing Determinants'!$G$41*$D16, VLOOKUP(S$4,'4. Billing Determinants'!$B$19:$Z$41,22,0)*$D16)))),0) -> 0 | T16: =IFERROR(IF(T$4="",0,IF($E16="kWh",VLOOKUP(T$4,'4. Billing Determinants'!$B$19:$Z$41,4,0)/'4. Billing Determinants'!$E$41*$D16,IF($E16="kW",VLOOKUP(T$4,'4. Billing Determinants'!$B$19:$Z$41,5,0)/'4. Billing Determinants'!$F$41*$D16,IF($E16="Non-RPP kWh",VLOOKUP(T$4,'4. Billing Determinants'!$B$19:$Z$41,6,0)/'4. Billing Determinants'!$G$41*$D16, VLOOKUP(T$4,'4. Billing Determinants'!$B$19:$Z$41,22,0)*$D16)))),0) -> 0 | U16: =IFERROR(IF(U$4="",0,IF($E16="kWh",VLOOKUP(U$4,'4. Billing Determinants'!$B$19:$Z$41,4,0)/'4. Billing Determinants'!$E$41*$D16,IF($E16="kW",VLOOKUP(U$4,'4. Billing Determinants'!$B$19:$Z$41,5,0)/'4. Billing Determinants'!$F$41*$D16,IF($E16="Non-RPP kWh",VLOOKUP(U$4,'4. Billing Determinants'!$B$19:$Z$41,6,0)/'4. Billing Determinants'!$G$41*$D16, VLOOKUP(U$4,'4. Billing Determinants'!$B$19:$Z$41,22,0)*$D16)))),0) -> 0 | V16: =IFERROR(IF(V$4="",0,IF($E16="kWh",VLOOKUP(V$4,'4. Billing Determinants'!$B$19:$Z$41,4,0)/'4. Billing Determinants'!$E$41*$D16,IF($E16="kW",VLOOKUP(V$4,'4. Billing Determinants'!$B$19:$Z$41,5,0)/'4. Billing Determinants'!$F$41*$D16,IF($E16="Non-RPP kWh",VLOOKUP(V$4,'4. Billing Determinants'!$B$19:$Z$41,6,0)/'4. Billing Determinants'!$G$41*$D16, VLOOKUP(V$4,'4. Billing Determinants'!$B$19:$Z$41,22,0)*$D16)))),0) -> 0 | W16: =IFERROR(IF(W$4="",0,IF($E16="kWh",VLOOKUP(W$4,'4. Billing Determinants'!$B$19:$Z$41,4,0)/'4. Billing Determinants'!$E$41*$D16,IF($E16="kW",VLOOKUP(W$4,'4. Billing Determinants'!$B$19:$Z$41,5,0)/'4. Billing Determinants'!$F$41*$D16,IF($E16="Non-RPP kWh",VLOOKUP(W$4,'4. Billing Determinants'!$B$19:$Z$41,6,0)/'4. Billing Determinants'!$G$41*$D16, VLOOKUP(W$4,'4. Billing Determinants'!$B$19:$Z$41,22,0)*$D16)))),0) -> 0 | X16: =IFERROR(IF(X$4="",0,IF($E16="kWh",VLOOKUP(X$4,'4. Billing Determinants'!$B$19:$Z$41,4,0)/'4. Billing Determinants'!$E$41*$D16,IF($E16="kW",VLOOKUP(X$4,'4. Billing Determinants'!$B$19:$Z$41,5,0)/'4. Billing Determinants'!$F$41*$D16,IF($E16="Non-RPP kWh",VLOOKUP(X$4,'4. Billing Determinants'!$B$19:$Z$41,6,0)/'4. Billing Determinants'!$G$41*$D16, VLOOKUP(X$4,'4. Billing Determinants'!$B$19:$Z$41,22,0)*$D16)))),0) -> 0 | Y16: =IFERROR(IF(Y$4="",0,IF($E16="kWh",VLOOKUP(Y$4,'4. Billing Determinants'!$B$19:$Z$41,4,0)/'4. Billing Determinants'!$E$41*$D16,IF($E16="kW",VLOOKUP(Y$4,'4. Billing Determinants'!$B$19:$Z$41,5,0)/'4. Billing Determinants'!$F$41*$D16,IF($E16="Non-RPP kWh",VLOOKUP(Y$4,'4. Billing Determinants'!$B$19:$Z$41,6,0)/'4. Billing Determinants'!$G$41*$D16, VLOOKUP(Y$4,'4. Billing Determinants'!$B$19:$Z$41,22,0)*$D16)))),0) -> 0
B17: Disposition and Recovery/Refund of Regulatory Balances (2013) | C17: 1595 | D17: ='2. 2015 Continuity Schedule'!BS36 -> 95256.078 | E17: % | F17: =IFERROR(IF(F$4="",0,IF($E17="kWh",VLOOKUP(F$4,'4. Billing Determinants'!$B$19:$Z$41,4,0)/'4. Billing Determinants'!$E$41*$D17,IF($E17="kW",VLOOKUP(F$4,'4. Billing Determinants'!$B$19:$Z$41,5,0)/'4. Billing Determinants'!$F$41*$D17,IF($E17="Non-RPP kWh",VLOOKUP(F$4,'4. Billing Determinants'!$B$19:$Z$41,6,0)/'4. Billing Determinants'!$G$41*$D17, VLOOKUP(F$4,'4. Billing Determinants'!$B$19:$Z$41,23,0)*$D17)))),0) -> 59535.04875 | G17: =IFERROR(IF(G$4="",0,IF($E17="kWh",VLOOKUP(G$4,'4. Billing Determinants'!$B$19:$Z$41,4,0)/'4. Billing Determinants'!$E$41*$D17,IF($E17="kW",VLOOKUP(G$4,'4. Billing Determinants'!$B$19:$Z$41,5,0)/'4. Billing Determinants'!$F$41*$D17,IF($E17="Non-RPP kWh",VLOOKUP(G$4,'4. Billing Determinants'!$B$19:$Z$41,6,0)/'4. Billing Determinants'!$G$41*$D17, VLOOKUP(G$4,'4. Billing Determinants'!$B$19:$Z$41,23,0)*$D17)))),0) -> 12859.57053 | H17: =IFERROR(IF(H$4="",0,IF($E17="kWh",VLOOKUP(H$4,'4. Billing Determinants'!$B$19:$Z$41,4,0)/'4. Billing Determinants'!$E$41*$D17,IF($E17="kW",VLOOKUP(H$4,'4. Billing Determinants'!$B$19:$Z$41,5,0)/'4. Billing Determinants'!$F$41*$D17,IF($E17="Non-RPP kWh",VLOOKUP(H$4,'4. Billing Determinants'!$B$19:$Z$41,6,0)/'4. Billing Determinants'!$G$41*$D17, VLOOKUP(H$4,'4. Billing Determinants'!$B$19:$Z$41,23,0)*$D17)))),0) -> 22289.92225 | I17: =IFERROR(IF(I$4="",0,IF($E17="kWh",VLOOKUP(I$4,'4. Billing Determinants'!$B$19:$Z$41,4,0)/'4. Billing Determinants'!$E$41*$D17,IF($E17="kW",VLOOKUP(I$4,'4. Billing Determinants'!$B$19:$Z$41,5,0)/'4. Billing Determinants'!$F$41*$D17,IF($E17="Non-RPP kWh",VLOOKUP(I$4,'4. Billing Determinants'!$B$19:$Z$41,6,0)/'4. Billing Determinants'!$G$41*$D17, VLOOKUP(I$4,'4. Billing Determinants'!$B$19:$Z$41,23,0)*$D17)))),0) -> 0 | J17: =IFERROR(IF(J$4="",0,IF($E17="kWh",VLOOKUP(J$4,'4. Billing Determinants'!$B$19:$Z$41,4,0)/'4. Billing Determinants'!$E$41*$D17,IF($E17="kW",VLOOKUP(J$4,'4. Billing Determinants'!$B$19:$Z$41,5,0)/'4. Billing Determinants'!$F$41*$D17,IF($E17="Non-RPP kWh",VLOOKUP(J$4,'4. Billing Determinants'!$B$19:$Z$41,6,0)/'4. Billing Determinants'!$G$41*$D17, VLOOKUP(J$4,'4. Billing Determinants'!$B$19:$Z$41,23,0)*$D17)))),0) -> 285.768234 | K17: =IFERROR(IF(K$4="",0,IF($E17="kWh",VLOOKUP(K$4,'4. Billing Determinants'!$B$19:$Z$41,4,0)/'4. Billing Determinants'!$E$41*$D17,IF($E17="kW",VLOOKUP(K$4,'4. Billing Determinants'!$B$19:$Z$41,5,0)/'4. Billing Determinants'!$F$41*$D17,IF($E17="Non-RPP kWh",VLOOKUP(K$4,'4. Billing Determinants'!$B$19:$Z$41,6,0)/'4. Billing Determinants'!$G$41*$D17, VLOOKUP(K$4,'4. Billing Determinants'!$B$19:$Z$41,23,0)*$D17)))),0) -> 0 | L17: =IFERROR(IF(L$4="",0,IF($E17="kWh",VLOOKUP(L$4,'4. Billing Determinants'!$B$19:$Z$41,4,0)/'4. Billing Determinants'!$E$41*$D17,IF($E17="kW",VLOOKUP(L$4,'4. Billing Determinants'!$B$19:$Z$41,5,0)/'4. Billing Determinants'!$F$41*$D17,IF($E17="Non-RPP kWh",VLOOKUP(L$4,'4. Billing Determinants'!$B$19:$Z$41,6,0)/'4. Billing Determinants'!$G$41*$D17, VLOOKUP(L$4,'4. Billing Determinants'!$B$19:$Z$41,23,0)*$D17)))),0) -> 0 | M17: =IFERROR(IF(M$4="",0,IF($E17="kWh",VLOOKUP(M$4,'4. Billing Determinants'!$B$19:$Z$41,4,0)/'4. Billing Determinants'!$E$41*$D17,IF($E17="kW",VLOOKUP(M$4,'4. Billing Determinants'!$B$19:$Z$41,5,0)/'4. Billing Determinants'!$F$41*$D17,IF($E17="Non-RPP kWh",VLOOKUP(M$4,'4. Billing Determinants'!$B$19:$Z$41,6,0)/'4. Billing Determinants'!$G$41*$D17, VLOOKUP(M$4,'4. Billing Determinants'!$B$19:$Z$41,23,0)*$D17)))),0) -> 0 | N17: =IFERROR(IF(N$4="",0,IF($E17="kWh",VLOOKUP(N$4,'4. Billing Determinants'!$B$19:$Z$41,4,0)/'4. Billing Determinants'!$E$41*$D17,IF($E17="kW",VLOOKUP(N$4,'4. Billing Determinants'!$B$19:$Z$41,5,0)/'4. Billing Determinants'!$F$41*$D17,IF($E17="Non-RPP kWh",VLOOKUP(N$4,'4. Billing Determinants'!$B$19:$Z$41,6,0)/'4. Billing Determinants'!$G$41*$D17, VLOOKUP(N$4,'4. Billing Determinants'!$B$19:$Z$41,23,0)*$D17)))),0) -> 0 | O17: =IFERROR(IF(O$4="",0,IF($E17="kWh",VLOOKUP(O$4,'4. Billing Determinants'!$B$19:$Z$41,4,0)/'4. Billing Determinants'!$E$41*$D17,IF($E17="kW",VLOOKUP(O$4,'4. Billing Determinants'!$B$19:$Z$41,5,0)/'4. Billing Determinants'!$F$41*$D17,IF($E17="Non-RPP kWh",VLOOKUP(O$4,'4. Billing Determinants'!$B$19:$Z$41,6,0)/'4. Billing Determinants'!$G$41*$D17, VLOOKUP(O$4,'4. Billing Determinants'!$B$19:$Z$41,23,0)*$D17)))),0) -> 0 | P17: =IFERROR(IF(P$4="",0,IF($E17="kWh",VLOOKUP(P$4,'4. Billing Determinants'!$B$19:$Z$41,4,0)/'4. Billing Determinants'!$E$41*$D17,IF($E17="kW",VLOOKUP(P$4,'4. Billing Determinants'!$B$19:$Z$41,5,0)/'4. Billing Determinants'!$F$41*$D17,IF($E17="Non-RPP kWh",VLOOKUP(P$4,'4. Billing Determinants'!$B$19:$Z$41,6,0)/'4. Billing Determinants'!$G$41*$D17, VLOOKUP(P$4,'4. Billing Determinants'!$B$19:$Z$41,23,0)*$D17)))),0) -> 0 | Q17: =IFERROR(IF(Q$4="",0,IF($E17="kWh",VLOOKUP(Q$4,'4. Billing Determinants'!$B$19:$Z$41,4,0)/'4. Billing Determinants'!$E$41*$D17,IF($E17="kW",VLOOKUP(Q$4,'4. Billing Determinants'!$B$19:$Z$41,5,0)/'4. Billing Determinants'!$F$41*$D17,IF($E17="Non-RPP kWh",VLOOKUP(Q$4,'4. Billing Determinants'!$B$19:$Z$41,6,0)/'4. Billing Determinants'!$G$41*$D17, VLOOKUP(Q$4,'4. Billing Determinants'!$B$19:$Z$41,23,0)*$D17)))),0) -> 0 | R17: =IFERROR(IF(R$4="",0,IF($E17="kWh",VLOOKUP(R$4,'4. Billing Determinants'!$B$19:$Z$41,4,0)/'4. Billing Determinants'!$E$41*$D17,IF($E17="kW",VLOOKUP(R$4,'4. Billing Determinants'!$B$19:$Z$41,5,0)/'4. Billing Determinants'!$F$41*$D17,IF($E17="Non-RPP kWh",VLOOKUP(R$4,'4. Billing Determinants'!$B$19:$Z$41,6,0)/'4. Billing Determinants'!$G$41*$D17, VLOOKUP(R$4,'4. Billing Determinants'!$B$19:$Z$41,23,0)*$D17)))),0) -> 0 | S17: =IFERROR(IF(S$4="",0,IF($E17="kWh",VLOOKUP(S$4,'4. Billing Determinants'!$B$19:$Z$41,4,0)/'4. Billing Determinants'!$E$41*$D17,IF($E17="kW",VLOOKUP(S$4,'4. Billing Determinants'!$B$19:$Z$41,5,0)/'4. Billing Determinants'!$F$41*$D17,IF($E17="Non-RPP kWh",VLOOKUP(S$4,'4. Billing Determinants'!$B$19:$Z$41,6,0)/'4. Billing Determinants'!$G$41*$D17, VLOOKUP(S$4,'4. Billing Determinants'!$B$19:$Z$41,23,0)*$D17)))),0) -> 0 | T17: =IFERROR(IF(T$4="",0,IF($E17="kWh",VLOOKUP(T$4,'4. Billing Determinants'!$B$19:$Z$41,4,0)/'4. Billing Determinants'!$E$41*$D17,IF($E17="kW",VLOOKUP(T$4,'4. Billing Determinants'!$B$19:$Z$41,5,0)/'4. Billing Determinants'!$F$41*$D17,IF($E17="Non-RPP kWh",VLOOKUP(T$4,'4. Billing Determinants'!$B$19:$Z$41,6,0)/'4. Billing Determinants'!$G$41*$D17, VLOOKUP(T$4,'4. Billing Determinants'!$B$19:$Z$41,23,0)*$D17)))),0) -> 0 | U17: =IFERROR(IF(U$4="",0,IF($E17="kWh",VLOOKUP(U$4,'4. Billing Determinants'!$B$19:$Z$41,4,0)/'4. Billing Determinants'!$E$41*$D17,IF($E17="kW",VLOOKUP(U$4,'4. Billing Determinants'!$B$19:$Z$41,5,0)/'4. Billing Determinants'!$F$41*$D17,IF($E17="Non-RPP kWh",VLOOKUP(U$4,'4. Billing Determinants'!$B$19:$Z$41,6,0)/'4. Billing Determinants'!$G$41*$D17, VLOOKUP(U$4,'4. Billing Determinants'!$B$19:$Z$41,23,0)*$D17)))),0) -> 0 | V17: =IFERROR(IF(V$4="",0,IF($E17="kWh",VLOOKUP(V$4,'4. Billing Determinants'!$B$19:$Z$41,4,0)/'4. Billing Determinants'!$E$41*$D17,IF($E17="kW",VLOOKUP(V$4,'4. Billing Determinants'!$B$19:$Z$41,5,0)/'4. Billing Determinants'!$F$41*$D17,IF($E17="Non-RPP kWh",VLOOKUP(V$4,'4. Billing Determinants'!$B$19:$Z$41,6,0)/'4. Billing Determinants'!$G$41*$D17, VLOOKUP(V$4,'4. Billing Determinants'!$B$19:$Z$41,23,0)*$D17)))),0) -> 0 | W17: =IFERROR(IF(W$4="",0,IF($E17="kWh",VLOOKUP(W$4,'4. Billing Determinants'!$B$19:$Z$41,4,0)/'4. Billing Determinants'!$E$41*$D17,IF($E17="kW",VLOOKUP(W$4,'4. Billing Determinants'!$B$19:$Z$41,5,0)/'4. Billing Determinants'!$F$41*$D17,IF($E17="Non-RPP kWh",VLOOKUP(W$4,'4. Billing Determinants'!$B$19:$Z$41,6,0)/'4. Billing Determinants'!$G$41*$D17, VLOOKUP(W$4,'4. Billing Determinants'!$B$19:$Z$41,23,0)*$D17)))),0) -> 0 | X17: =IFERROR(IF(X$4="",0,IF($E17="kWh",VLOOKUP(X$4,'4. Billing Determinants'!$B$19:$Z$41,4,0)/'4. Billing Determinants'!$E$41*$D17,IF($E17="kW",VLOOKUP(X$4,'4. Billing Determinants'!$B$19:$Z$41,5,0)/'4. Billing Determinants'!$F$41*$D17,IF($E17="Non-RPP kWh",VLOOKUP(X$4,'4. Billing Determinants'!$B$19:$Z$41,6,0)/'4. Billing Determinants'!$G$41*$D17, VLOOKUP(X$4,'4. Billing Determinants'!$B$19:$Z$41,23,0)*$D17)))),0) -> 0 | Y17: =IFERROR(IF(Y$4="",0,IF($E17="kWh",VLOOKUP(Y$4,'4. Billing Determinants'!$B$19:$Z$41,4,0)/'4. Billing Determinants'!$E$41*$D17,IF($E17="kW",VLOOKUP(Y$4,'4. Billing Determinants'!$B$19:$Z$41,5,0)/'4. Billing Determinants'!$F$41*$D17,IF($E17="Non-RPP kWh",VLOOKUP(Y$4,'4. Billing Determinants'!$B$19:$Z$41,6,0)/'4. Billing Determinants'!$G$41*$D17, VLOOKUP(Y$4,'4. Billing Determinants'!$B$19:$Z$41,23,0)*$D17)))),0) -> 0
B18: Disposition and Recovery/Refund of Regulatory Balances (2014) | C18: 1595 | D18: ='2. 2015 Continuity Schedule'!BS37 -> 203730.407 | E18: % | F18: =IFERROR(IF(F$4="",0,IF($E18="kWh",VLOOKUP(F$4,'4. Billing Determinants'!$B$19:$Z$41,4,0)/'4. Billing Determinants'!$E$41*$D18,IF($E18="kW",VLOOKUP(F$4,'4. Billing Determinants'!$B$19:$Z$41,5,0)/'4. Billing Determinants'!$F$41*$D18,IF($E18="Non-RPP kWh",VLOOKUP(F$4,'4. Billing Determinants'!$B$19:$Z$41,6,0)/'4. Billing Determinants'!$G$41*$D18, VLOOKUP(F$4,'4. Billing Determinants'!$B$19:$Z$41,24,0)*$D18)))),0) -> 127331.5044 | G18: =IFERROR(IF(G$4="",0,IF($E18="kWh",VLOOKUP(G$4,'4. Billing Determinants'!$B$19:$Z$41,4,0)/'4. Billing Determinants'!$E$41*$D18,IF($E18="kW",VLOOKUP(G$4,'4. Billing Determinants'!$B$19:$Z$41,5,0)/'4. Billing Determinants'!$F$41*$D18,IF($E18="Non-RPP kWh",VLOOKUP(G$4,'4. Billing Determinants'!$B$19:$Z$41,6,0)/'4. Billing Determinants'!$G$41*$D18, VLOOKUP(G$4,'4. Billing Determinants'!$B$19:$Z$41,24,0)*$D18)))),0) -> 27503.60495 | H18: =IFERROR(IF(H$4="",0,IF($E18="kWh",VLOOKUP(H$4,'4. Billing Determinants'!$B$19:$Z$41,4,0)/'4. Billing Determinants'!$E$41*$D18,IF($E18="kW",VLOOKUP(H$4,'4. Billing Determinants'!$B$19:$Z$41,5,0)/'4. Billing Determinants'!$F$41*$D18,IF($E18="Non-RPP kWh",VLOOKUP(H$4,'4. Billing Determinants'!$B$19:$Z$41,6,0)/'4. Billing Determinants'!$G$41*$D18, VLOOKUP(H$4,'4. Billing Determinants'!$B$19:$Z$41,24,0)*$D18)))),0) -> 47672.91524 | I18: =IFERROR(IF(I$4="",0,IF($E18="kWh",VLOOKUP(I$4,'4. Billing Determinants'!$B$19:$Z$41,4,0)/'4. Billing Determinants'!$E$41*$D18,IF($E18="kW",VLOOKUP(I$4,'4. Billing Determinants'!$B$19:$Z$41,5,0)/'4. Billing Determinants'!$F$41*$D18,IF($E18="Non-RPP kWh",VLOOKUP(I$4,'4. Billing Determinants'!$B$19:$Z$41,6,0)/'4. Billing Determinants'!$G$41*$D18, VLOOKUP(I$4,'4. Billing Determinants'!$B$19:$Z$41,24,0)*$D18)))),0) -> 0 | J18: =IFERROR(IF(J$4="",0,IF($E18="kWh",VLOOKUP(J$4,'4. Billing Determinants'!$B$19:$Z$41,4,0)/'4. Billing Determinants'!$E$41*$D18,IF($E18="kW",VLOOKUP(J$4,'4. Billing Determinants'!$B$19:$Z$41,5,0)/'4. Billing Determinants'!$F$41*$D18,IF($E18="Non-RPP kWh",VLOOKUP(J$4,'4. Billing Determinants'!$B$19:$Z$41,6,0)/'4. Billing Determinants'!$G$41*$D18, VLOOKUP(J$4,'4. Billing Determinants'!$B$19:$Z$41,24,0)*$D18)))),0) -> 611.191221 | K18: =IFERROR(IF(K$4="",0,IF($E18="kWh",VLOOKUP(K$4,'4. Billing Determinants'!$B$19:$Z$41,4,0)/'4. Billing Determinants'!$E$41*$D18,IF($E18="kW",VLOOKUP(K$4,'4. Billing Determinants'!$B$19:$Z$41,5,0)/'4. Billing Determinants'!$F$41*$D18,IF($E18="Non-RPP kWh",VLOOKUP(K$4,'4. Billing Determinants'!$B$19:$Z$41,6,0)/'4. Billing Determinants'!$G$41*$D18, VLOOKUP(K$4,'4. Billing Determinants'!$B$19:$Z$41,24,0)*$D18)))),0) -> 0 | L18: =IFERROR(IF(L$4="",0,IF($E18="kWh",VLOOKUP(L$4,'4. Billing Determinants'!$B$19:$Z$41,4,0)/'4. Billing Determinants'!$E$41*$D18,IF($E18="kW",VLOOKUP(L$4,'4. Billing Determinants'!$B$19:$Z$41,5,0)/'4. Billing Determinants'!$F$41*$D18,IF($E18="Non-RPP kWh",VLOOKUP(L$4,'4. Billing Determinants'!$B$19:$Z$41,6,0)/'4. Billing Determinants'!$G$41*$D18, VLOOKUP(L$4,'4. Billing Determinants'!$B$19:$Z$41,24,0)*$D18)))),0) -> 0 | M18: =IFERROR(IF(M$4="",0,IF($E18="kWh",VLOOKUP(M$4,'4. Billing Determinants'!$B$19:$Z$41,4,0)/'4. Billing Determinants'!$E$41*$D18,IF($E18="kW",VLOOKUP(M$4,'4. Billing Determinants'!$B$19:$Z$41,5,0)/'4. Billing Determinants'!$F$41*$D18,IF($E18="Non-RPP kWh",VLOOKUP(M$4,'4. Billing Determinants'!$B$19:$Z$41,6,0)/'4. Billing Determinants'!$G$41*$D18, VLOOKUP(M$4,'4. Billing Determinants'!$B$19:$Z$41,24,0)*$D18)))),0) -> 0 | N18: =IFERROR(IF(N$4="",0,IF($E18="kWh",VLOOKUP(N$4,'4. Billing Determinants'!$B$19:$Z$41,4,0)/'4. Billing Determinants'!$E$41*$D18,IF($E18="kW",VLOOKUP(N$4,'4. Billing Determinants'!$B$19:$Z$41,5,0)/'4. Billing Determinants'!$F$41*$D18,IF($E18="Non-RPP kWh",VLOOKUP(N$4,'4. Billing Determinants'!$B$19:$Z$41,6,0)/'4. Billing Determinants'!$G$41*$D18, VLOOKUP(N$4,'4. Billing Determinants'!$B$19:$Z$41,24,0)*$D18)))),0) -> 0 | O18: =IFERROR(IF(O$4="",0,IF($E18="kWh",VLOOKUP(O$4,'4. Billing Determinants'!$B$19:$Z$41,4,0)/'4. Billing Determinants'!$E$41*$D18,IF($E18="kW",VLOOKUP(O$4,'4. Billing Determinants'!$B$19:$Z$41,5,0)/'4. Billing Determinants'!$F$41*$D18,IF($E18="Non-RPP kWh",VLOOKUP(O$4,'4. Billing Determinants'!$B$19:$Z$41,6,0)/'4. Billing Determinants'!$G$41*$D18, VLOOKUP(O$4,'4. Billing Determinants'!$B$19:$Z$41,24,0)*$D18)))),0) -> 0 | P18: =IFERROR(IF(P$4="",0,IF($E18="kWh",VLOOKUP(P$4,'4. Billing Determinants'!$B$19:$Z$41,4,0)/'4. Billing Determinants'!$E$41*$D18,IF($E18="kW",VLOOKUP(P$4,'4. Billing Determinants'!$B$19:$Z$41,5,0)/'4. Billing Determinants'!$F$41*$D18,IF($E18="Non-RPP kWh",VLOOKUP(P$4,'4. Billing Determinants'!$B$19:$Z$41,6,0)/'4. Billing Determinants'!$G$41*$D18, VLOOKUP(P$4,'4. Billing Determinants'!$B$19:$Z$41,24,0)*$D18)))),0) -> 0 | Q18: =IFERROR(IF(Q$4="",0,IF($E18="kWh",VLOOKUP(Q$4,'4. Billing Determinants'!$B$19:$Z$41,4,0)/'4. Billing Determinants'!$E$41*$D18,IF($E18="kW",VLOOKUP(Q$4,'4. Billing Determinants'!$B$19:$Z$41,5,0)/'4. Billing Determinants'!$F$41*$D18,IF($E18="Non-RPP kWh",VLOOKUP(Q$4,'4. Billing Determinants'!$B$19:$Z$41,6,0)/'4. Billing Determinants'!$G$41*$D18, VLOOKUP(Q$4,'4. Billing Determinants'!$B$19:$Z$41,24,0)*$D18)))),0) -> 0 | R18: =IFERROR(IF(R$4="",0,IF($E18="kWh",VLOOKUP(R$4,'4. Billing Determinants'!$B$19:$Z$41,4,0)/'4. Billing Determinants'!$E$41*$D18,IF($E18="kW",VLOOKUP(R$4,'4. Billing Determinants'!$B$19:$Z$41,5,0)/'4. Billing Determinants'!$F$41*$D18,IF($E18="Non-RPP kWh",VLOOKUP(R$4,'4. Billing Determinants'!$B$19:$Z$41,6,0)/'4. Billing Determinants'!$G$41*$D18, VLOOKUP(R$4,'4. Billing Determinants'!$B$19:$Z$41,24,0)*$D18)))),0) -> 0 | S18: =IFERROR(IF(S$4="",0,IF($E18="kWh",VLOOKUP(S$4,'4. Billing Determinants'!$B$19:$Z$41,4,0)/'4. Billing Determinants'!$E$41*$D18,IF($E18="kW",VLOOKUP(S$4,'4. Billing Determinants'!$B$19:$Z$41,5,0)/'4. Billing Determinants'!$F$41*$D18,IF($E18="Non-RPP kWh",VLOOKUP(S$4,'4. Billing Determinants'!$B$19:$Z$41,6,0)/'4. Billing Determinants'!$G$41*$D18, VLOOKUP(S$4,'4. Billing Determinants'!$B$19:$Z$41,24,0)*$D18)))),0) -> 0 | T18: =IFERROR(IF(T$4="",0,IF($E18="kWh",VLOOKUP(T$4,'4. Billing Determinants'!$B$19:$Z$41,4,0)/'4. Billing Determinants'!$E$41*$D18,IF($E18="kW",VLOOKUP(T$4,'4. Billing Determinants'!$B$19:$Z$41,5,0)/'4. Billing Determinants'!$F$41*$D18,IF($E18="Non-RPP kWh",VLOOKUP(T$4,'4. Billing Determinants'!$B$19:$Z$41,6,0)/'4. Billing Determinants'!$G$41*$D18, VLOOKUP(T$4,'4. Billing Determinants'!$B$19:$Z$41,24,0)*$D18)))),0) -> 0 | U18: =IFERROR(IF(U$4="",0,IF($E18="kWh",VLOOKUP(U$4,'4. Billing Determinants'!$B$19:$Z$41,4,0)/'4. Billing Determinants'!$E$41*$D18,IF($E18="kW",VLOOKUP(U$4,'4. Billing Determinants'!$B$19:$Z$41,5,0)/'4. Billing Determinants'!$F$41*$D18,IF($E18="Non-RPP kWh",VLOOKUP(U$4,'4. Billing Determinants'!$B$19:$Z$41,6,0)/'4. Billing Determinants'!$G$41*$D18, VLOOKUP(U$4,'4. Billing Determinants'!$B$19:$Z$41,24,0)*$D18)))),0) -> 0 | V18: =IFERROR(IF(V$4="",0,IF($E18="kWh",VLOOKUP(V$4,'4. Billing Determinants'!$B$19:$Z$41,4,0)/'4. Billing Determinants'!$E$41*$D18,IF($E18="kW",VLOOKUP(V$4,'4. Billing Determinants'!$B$19:$Z$41,5,0)/'4. Billing Determinants'!$F$41*$D18,IF($E18="Non-RPP kWh",VLOOKUP(V$4,'4. Billing Determinants'!$B$19:$Z$41,6,0)/'4. Billing Determinants'!$G$41*$D18, VLOOKUP(V$4,'4. Billing Determinants'!$B$19:$Z$41,24,0)*$D18)))),0) -> 0 | W18: =IFERROR(IF(W$4="",0,IF($E18="kWh",VLOOKUP(W$4,'4. Billing Determinants'!$B$19:$Z$41,4,0)/'4. Billing Determinants'!$E$41*$D18,IF($E18="kW",VLOOKUP(W$4,'4. Billing Determinants'!$B$19:$Z$41,5,0)/'4. Billing Determinants'!$F$41*$D18,IF($E18="Non-RPP kWh",VLOOKUP(W$4,'4. Billing Determinants'!$B$19:$Z$41,6,0)/'4. Billing Determinants'!$G$41*$D18, VLOOKUP(W$4,'4. Billing Determinants'!$B$19:$Z$41,24,0)*$D18)))),0) -> 0 | X18: =IFERROR(IF(X$4="",0,IF($E18="kWh",VLOOKUP(X$4,'4. Billing Determinants'!$B$19:$Z$41,4,0)/'4. Billing Determinants'!$E$41*$D18,IF($E18="kW",VLOOKUP(X$4,'4. Billing Determinants'!$B$19:$Z$41,5,0)/'4. Billing Determinants'!$F$41*$D18,IF($E18="Non-RPP kWh",VLOOKUP(X$4,'4. Billing Determinants'!$B$19:$Z$41,6,0)/'4. Billing Determinants'!$G$41*$D18, VLOOKUP(X$4,'4. Billing Determinants'!$B$19:$Z$41,24,0)*$D18)))),0) -> 0 | Y18: =IFERROR(IF(Y$4="",0,IF($E18="kWh",VLOOKUP(Y$4,'4. Billing Determinants'!$B$19:$Z$41,4,0)/'4. Billing Determinants'!$E$41*$D18,IF($E18="kW",VLOOKUP(Y$4,'4. Billing Determinants'!$B$19:$Z$41,5,0)/'4. Billing Determinants'!$F$41*$D18,IF($E18="Non-RPP kWh",VLOOKUP(Y$4,'4. Billing Determinants'!$B$19:$Z$41,6,0)/'4. Billing Determinants'!$G$41*$D18, VLOOKUP(Y$4,'4. Billing Determinants'!$B$19:$Z$41,24,0)*$D18)))),0) -> 0
B19: Total of Group 1 Accounts (excluding 1589) | D19: =SUM(D5:D18)-D11 -> -107103.402 | F19: =SUM(F5:F18)-F11 -> -70491.19559 | G19: -13743.15166 | H19: -22518.44314 | I19: -162.4025409 | J19: -209.1183821 | K19: -876.0501403 | L19: 0 | M19: 0 | N19: 0 | O19: 0 | P19: 0 | Q19: 0 | R19: 0 | S19: 0 | T19: 0 | U19: 0 | V19: 0 | W19: 0 | X19: 0 | Y19: 0
B21: Other Regulatory Assets - Sub-Account - Deferred IFRS Transition Costs | C21: 1508 | D21: ='2. 2015 Continuity Schedule'!BS45 -> 11925.502 | E21: kWh | F21: =IFERROR(IF(F$4="",0,IF($E21="kWh",VLOOKUP(F$4,'4. Billing Determinants'!$B$19:$Z$41,4,0)/'4. Billing Determinants'!$E$41*$D21,IF($E21="kW",VLOOKUP(F$4,'4. Billing Determinants'!$B$19:$Z$41,5,0)/'4. Billing Determinants'!$F$41*$D21,IF($E21="Non-RPP kWh",VLOOKUP(F$4,'4. Billing Determinants'!$B$19:$Z$41,6,0)/'4. Billing Determinants'!$G$41*$D21,IF($E21="Distribution Rev.",VLOOKUP(F$4,'4. Billing Determinants'!$B$19:$Z$41,8,0)/'4. Billing Determinants'!$I$41*$D21, VLOOKUP(F$4,'4. Billing Determinants'!$B$19:$Z$41,3,0)/'4. Billing Determinants'!$D$41*$D21))))),0) -> 7462.886532 | G21: =IFERROR(IF(G$4="",0,IF($E21="kWh",VLOOKUP(G$4,'4. Billing Determinants'!$B$19:$Z$41,4,0)/'4. Billing Determinants'!$E$41*$D21,IF($E21="kW",VLOOKUP(G$4,'4. Billing Determinants'!$B$19:$Z$41,5,0)/'4. Billing Determinants'!$F$41*$D21,IF($E21="Non-RPP kWh",VLOOKUP(G$4,'4. Billing Determinants'!$B$19:$Z$41,6,0)/'4. Billing Determinants'!$G$41*$D21,IF($E21="Distribution Rev.",VLOOKUP(G$4,'4. Billing Determinants'!$B$19:$Z$41,8,0)/'4. Billing Determinants'!$I$41*$D21, VLOOKUP(G$4,'4. Billing Determinants'!$B$19:$Z$41,3,0)/'4. Billing Determinants'!$D$41*$D21))))),0) -> 1611.142245 | H21: =IFERROR(IF(H$4="",0,IF($E21="kWh",VLOOKUP(H$4,'4. Billing Determinants'!$B$19:$Z$41,4,0)/'4. Billing Determinants'!$E$41*$D21,IF($E21="kW",VLOOKUP(H$4,'4. Billing Determinants'!$B$19:$Z$41,5,0)/'4. Billing Determinants'!$F$41*$D21,IF($E21="Non-RPP kWh",VLOOKUP(H$4,'4. Billing Determinants'!$B$19:$Z$41,6,0)/'4. Billing Determinants'!$G$41*$D21,IF($E21="Distribution Rev.",VLOOKUP(H$4,'4. Billing Determinants'!$B$19:$Z$41,8,0)/'4. Billing Determinants'!$I$41*$D21, VLOOKUP(H$4,'4. Billing Determinants'!$B$19:$Z$41,3,0)/'4. Billing Determinants'!$D$41*$D21))))),0) -> 2786.84951 | I21: =IFERROR(IF(I$4="",0,IF($E21="kWh",VLOOKUP(I$4,'4. Billing Determinants'!$B$19:$Z$41,4,0)/'4. Billing Determinants'!$E$41*$D21,IF($E21="kW",VLOOKUP(I$4,'4. Billing Determinants'!$B$19:$Z$41,5,0)/'4. Billing Determinants'!$F$41*$D21,IF($E21="Non-RPP kWh",VLOOKUP(I$4,'4. Billing Determinants'!$B$19:$Z$41,6,0)/'4. Billing Determinants'!$G$41*$D21,IF($E21="Distribution Rev.",VLOOKUP(I$4,'4. Billing Determinants'!$B$19:$Z$41,8,0)/'4. Billing Determinants'!$I$41*$D21, VLOOKUP(I$4,'4. Billing Determinants'!$B$19:$Z$41,3,0)/'4. Billing Determinants'!$D$41*$D21))))),0) -> 4.89387083 | J21: =IFERROR(IF(J$4="",0,IF($E21="kWh",VLOOKUP(J$4,'4. Billing Determinants'!$B$19:$Z$41,4,0)/'4. Billing Determinants'!$E$41*$D21,IF($E21="kW",VLOOKUP(J$4,'4. Billing Determinants'!$B$19:$Z$41,5,0)/'4. Billing Determinants'!$F$41*$D21,IF($E21="Non-RPP kWh",VLOOKUP(J$4,'4. Billing Determinants'!$B$19:$Z$41,6,0)/'4. Billing Determinants'!$G$41*$D21,IF($E21="Distribution Rev.",VLOOKUP(J$4,'4. Billing Determinants'!$B$19:$Z$41,8,0)/'4. Billing Determinants'!$I$41*$D21, VLOOKUP(J$4,'4. Billing Determinants'!$B$19:$Z$41,3,0)/'4. Billing Determinants'!$D$41*$D21))))),0) -> 33.33077199 | K21: =IFERROR(IF(K$4="",0,IF($E21="kWh",VLOOKUP(K$4,'4. Billing Determinants'!$B$19:$Z$41,4,0)/'4. Billing Determinants'!$E$41*$D21,IF($E21="kW",VLOOKUP(K$4,'4. Billing Determinants'!$B$19:$Z$41,5,0)/'4. Billing Determinants'!$F$41*$D21,IF($E21="Non-RPP kWh",VLOOKUP(K$4,'4. Billing Determinants'!$B$19:$Z$41,6,0)/'4. Billing Determinants'!$G$41*$D21,IF($E21="Distribution Rev.",VLOOKUP(K$4,'4. Billing Determinants'!$B$19:$Z$41,8,0)/'4. Billing Determinants'!$I$41*$D21, VLOOKUP(K$4,'4. Billing Determinants'!$B$19:$Z$41,3,0)/'4. Billing Determinants'!$D$41*$D21))))),0) -> 26.39907111 | L21: =IFERROR(IF(L$4="",0,IF($E21="kWh",VLOOKUP(L$4,'4. Billing Determinants'!$B$19:$Z$41,4,0)/'4. Billing Determinants'!$E$41*$D21,IF($E21="kW",VLOOKUP(L$4,'4. Billing Determinants'!$B$19:$Z$41,5,0)/'4. Billing Determinants'!$F$41*$D21,IF($E21="Non-RPP kWh",VLOOKUP(L$4,'4. Billing Determinants'!$B$19:$Z$41,6,0)/'4. Billing Determinants'!$G$41*$D21,IF($E21="Distribution Rev.",VLOOKUP(L$4,'4. Billing Determinants'!$B$19:$Z$41,8,0)/'4. Billing Determinants'!$I$41*$D21, VLOOKUP(L$4,'4. Billing Determinants'!$B$19:$Z$41,3,0)/'4. Billing Determinants'!$D$41*$D21))))),0) -> 0 | M21: =IFERROR(IF(M$4="",0,IF($E21="kWh",VLOOKUP(M$4,'4. Billing Determinants'!$B$19:$Z$41,4,0)/'4. Billing Determinants'!$E$41*$D21,IF($E21="kW",VLOOKUP(M$4,'4. Billing Determinants'!$B$19:$Z$41,5,0)/'4. Billing Determinants'!$F$41*$D21,IF($E21="Non-RPP kWh",VLOOKUP(M$4,'4. Billing Determinants'!$B$19:$Z$41,6,0)/'4. Billing Determinants'!$G$41*$D21,IF($E21="Distribution Rev.",VLOOKUP(M$4,'4. Billing Determinants'!$B$19:$Z$41,8,0)/'4. Billing Determinants'!$I$41*$D21, VLOOKUP(M$4,'4. Billing Determinants'!$B$19:$Z$41,3,0)/'4. Billing Determinants'!$D$41*$D21))))),0) -> 0 | N21: =IFERROR(IF(N$4="",0,IF($E21="kWh",VLOOKUP(N$4,'4. Billing Determinants'!$B$19:$Z$41,4,0)/'4. Billing Determinants'!$E$41*$D21,IF($E21="kW",VLOOKUP(N$4,'4. Billing Determinants'!$B$19:$Z$41,5,0)/'4. Billing Determinants'!$F$41*$D21,IF($E21="Non-RPP kWh",VLOOKUP(N$4,'4. Billing Determinants'!$B$19:$Z$41,6,0)/'4. Billing Determinants'!$G$41*$D21,IF($E21="Distribution Rev.",VLOOKUP(N$4,'4. Billing Determinants'!$B$19:$Z$41,8,0)/'4. Billing Determinants'!$I$41*$D21, VLOOKUP(N$4,'4. Billing Determinants'!$B$19:$Z$41,3,0)/'4. Billing Determinants'!$D$41*$D21))))),0) -> 0 | O21: =IFERROR(IF(O$4="",0,IF($E21="kWh",VLOOKUP(O$4,'4. Billing Determinants'!$B$19:$Z$41,4,0)/'4. Billing Determinants'!$E$41*$D21,IF($E21="kW",VLOOKUP(O$4,'4. Billing Determinants'!$B$19:$Z$41,5,0)/'4. Billing Determinants'!$F$41*$D21,IF($E21="Non-RPP kWh",VLOOKUP(O$4,'4. Billing Determinants'!$B$19:$Z$41,6,0)/'4. Billing Determinants'!$G$41*$D21,IF($E21="Distribution Rev.",VLOOKUP(O$4,'4. Billing Determinants'!$B$19:$Z$41,8,0)/'4. Billing Determinants'!$I$41*$D21, VLOOKUP(O$4,'4. Billing Determinants'!$B$19:$Z$41,3,0)/'4. Billing Determinants'!$D$41*$D21))))),0) -> 0 | P21: =IFERROR(IF(P$4="",0,IF($E21="kWh",VLOOKUP(P$4,'4. Billing Determinants'!$B$19:$Z$41,4,0)/'4. Billing Determinants'!$E$41*$D21,IF($E21="kW",VLOOKUP(P$4,'4. Billing Determinants'!$B$19:$Z$41,5,0)/'4. Billing Determinants'!$F$41*$D21,IF($E21="Non-RPP kWh",VLOOKUP(P$4,'4. Billing Determinants'!$B$19:$Z$41,6,0)/'4. Billing Determinants'!$G$41*$D21,IF($E21="Distribution Rev.",VLOOKUP(P$4,'4. Billing Determinants'!$B$19:$Z$41,8,0)/'4. Billing Determinants'!$I$41*$D21, VLOOKUP(P$4,'4. Billing Determinants'!$B$19:$Z$41,3,0)/'4. Billing Determinants'!$D$41*$D21))))),0) -> 0 | Q21: =IFERROR(IF(Q$4="",0,IF($E21="kWh",VLOOKUP(Q$4,'4. Billing Determinants'!$B$19:$Z$41,4,0)/'4. Billing Determinants'!$E$41*$D21,IF($E21="kW",VLOOKUP(Q$4,'4. Billing Determinants'!$B$19:$Z$41,5,0)/'4. Billing Determinants'!$F$41*$D21,IF($E21="Non-RPP kWh",VLOOKUP(Q$4,'4. Billing Determinants'!$B$19:$Z$41,6,0)/'4. Billing Determinants'!$G$41*$D21,IF($E21="Distribution Rev.",VLOOKUP(Q$4,'4. Billing Determinants'!$B$19:$Z$41,8,0)/'4. Billing Determinants'!$I$41*$D21, VLOOKUP(Q$4,'4. Billing Determinants'!$B$19:$Z$41,3,0)/'4. Billing Determinants'!$D$41*$D21))))),0) -> 0 | R21: =IFERROR(IF(R$4="",0,IF($E21="kWh",VLOOKUP(R$4,'4. Billing Determinants'!$B$19:$Z$41,4,0)/'4. Billing Determinants'!$E$41*$D21,IF($E21="kW",VLOOKUP(R$4,'4. Billing Determinants'!$B$19:$Z$41,5,0)/'4. Billing Determinants'!$F$41*$D21,IF($E21="Non-RPP kWh",VLOOKUP(R$4,'4. Billing Determinants'!$B$19:$Z$41,6,0)/'4. Billing Determinants'!$G$41*$D21,IF($E21="Distribution Rev.",VLOOKUP(R$4,'4. Billing Determinants'!$B$19:$Z$41,8,0)/'4. Billing Determinants'!$I$41*$D21, VLOOKUP(R$4,'4. Billing Determinants'!$B$19:$Z$41,3,0)/'4. Billing Determinants'!$D$41*$D21))))),0) -> 0 | S21: =IFERROR(IF(S$4="",0,IF($E21="kWh",VLOOKUP(S$4,'4. Billing Determinants'!$B$19:$Z$41,4,0)/'4. Billing Determinants'!$E$41*$D21,IF($E21="kW",VLOOKUP(S$4,'4. Billing Determinants'!$B$19:$Z$41,5,0)/'4. Billing Determinants'!$F$41*$D21,IF($E21="Non-RPP kWh",VLOOKUP(S$4,'4. Billing Determinants'!$B$19:$Z$41,6,0)/'4. Billing Determinants'!$G$41*$D21,IF($E21="Distribution Rev.",VLOOKUP(S$4,'4. Billing Determinants'!$B$19:$Z$41,8,0)/'4. Billing Determinants'!$I$41*$D21, VLOOKUP(S$4,'4. Billing Determinants'!$B$19:$Z$41,3,0)/'4. Billing Determinants'!$D$41*$D21))))),0) -> 0 | T21: =IFERROR(IF(T$4="",0,IF($E21="kWh",VLOOKUP(T$4,'4. Billing Determinants'!$B$19:$Z$41,4,0)/'4. Billing Determinants'!$E$41*$D21,IF($E21="kW",VLOOKUP(T$4,'4. Billing Determinants'!$B$19:$Z$41,5,0)/'4. Billing Determinants'!$F$41*$D21,IF($E21="Non-RPP kWh",VLOOKUP(T$4,'4. Billing Determinants'!$B$19:$Z$41,6,0)/'4. Billing Determinants'!$G$41*$D21,IF($E21="Distribution Rev.",VLOOKUP(T$4,'4. Billing Determinants'!$B$19:$Z$41,8,0)/'4. Billing Determinants'!$I$41*$D21, VLOOKUP(T$4,'4. Billing Determinants'!$B$19:$Z$41,3,0)/'4. Billing Determinants'!$D$41*$D21))))),0) -> 0 | U21: =IFERROR(IF(U$4="",0,IF($E21="kWh",VLOOKUP(U$4,'4. Billing Determinants'!$B$19:$Z$41,4,0)/'4. Billing Determinants'!$E$41*$D21,IF($E21="kW",VLOOKUP(U$4,'4. Billing Determinants'!$B$19:$Z$41,5,0)/'4. Billing Determinants'!$F$41*$D21,IF($E21="Non-RPP kWh",VLOOKUP(U$4,'4. Billing Determinants'!$B$19:$Z$41,6,0)/'4. Billing Determinants'!$G$41*$D21,IF($E21="Distribution Rev.",VLOOKUP(U$4,'4. Billing Determinants'!$B$19:$Z$41,8,0)/'4. Billing Determinants'!$I$41*$D21, VLOOKUP(U$4,'4. Billing Determinants'!$B$19:$Z$41,3,0)/'4. Billing Determinants'!$D$41*$D21))))),0) -> 0 | V21: =IFERROR(IF(V$4="",0,IF($E21="kWh",VLOOKUP(V$4,'4. Billing Determinants'!$B$19:$Z$41,4,0)/'4. Billing Determinants'!$E$41*$D21,IF($E21="kW",VLOOKUP(V$4,'4. Billing Determinants'!$B$19:$Z$41,5,0)/'4. Billing Determinants'!$F$41*$D21,IF($E21="Non-RPP kWh",VLOOKUP(V$4,'4. Billing Determinants'!$B$19:$Z$41,6,0)/'4. Billing Determinants'!$G$41*$D21,IF($E21="Distribution Rev.",VLOOKUP(V$4,'4. Billing Determinants'!$B$19:$Z$41,8,0)/'4. Billing Determinants'!$I$41*$D21, VLOOKUP(V$4,'4. Billing Determinants'!$B$19:$Z$41,3,0)/'4. Billing Determinants'!$D$41*$D21))))),0) -> 0 | W21: =IFERROR(IF(W$4="",0,IF($E21="kWh",VLOOKUP(W$4,'4. Billing Determinants'!$B$19:$Z$41,4,0)/'4. Billing Determinants'!$E$41*$D21,IF($E21="kW",VLOOKUP(W$4,'4. Billing Determinants'!$B$19:$Z$41,5,0)/'4. Billing Determinants'!$F$41*$D21,IF($E21="Non-RPP kWh",VLOOKUP(W$4,'4. Billing Determinants'!$B$19:$Z$41,6,0)/'4. Billing Determinants'!$G$41*$D21,IF($E21="Distribution Rev.",VLOOKUP(W$4,'4. Billing Determinants'!$B$19:$Z$41,8,0)/'4. Billing Determinants'!$I$41*$D21, VLOOKUP(W$4,'4. Billing Determinants'!$B$19:$Z$41,3,0)/'4. Billing Determinants'!$D$41*$D21))))),0) -> 0 | X21: =IFERROR(IF(X$4="",0,IF($E21="kWh",VLOOKUP(X$4,'4. Billing Determinants'!$B$19:$Z$41,4,0)/'4. Billing Determinants'!$E$41*$D21,IF($E21="kW",VLOOKUP(X$4,'4. Billing Determinants'!$B$19:$Z$41,5,0)/'4. Billing Determinants'!$F$41*$D21,IF($E21="Non-RPP kWh",VLOOKUP(X$4,'4. Billing Determinants'!$B$19:$Z$41,6,0)/'4. Billing Determinants'!$G$41*$D21,IF($E21="Distribution Rev.",VLOOKUP(X$4,'4. Billing Determinants'!$B$19:$Z$41,8,0)/'4. Billing Determinants'!$I$41*$D21, VLOOKUP(X$4,'4. Billing Determinants'!$B$19:$Z$41,3,0)/'4. Billing Determinants'!$D$41*$D21))))),0) -> 0 | Y21: =IFERROR(IF(Y$4="",0,IF($E21="kWh",VLOOKUP(Y$4,'4. Billing Determinants'!$B$19:$Z$41,4,0)/'4. Billing Determinants'!$E$41*$D21,IF($E21="kW",VLOOKUP(Y$4,'4. Billing Determinants'!$B$19:$Z$41,5,0)/'4. Billing Determinants'!$F$41*$D21,IF($E21="Non-RPP kWh",VLOOKUP(Y$4,'4. Billing Determinants'!$B$19:$Z$41,6,0)/'4. Billing Determinants'!$G$41*$D21,IF($E21="Distribution Rev.",VLOOKUP(Y$4,'4. Billing Determinants'!$B$19:$Z$41,8,0)/'4. Billing Determinants'!$I$41*$D21, VLOOKUP(Y$4,'4. Billing Determinants'!$B$19:$Z$41,3,0)/'4. Billing Determinants'!$D$41*$D21))))),0) -> 0
B22: Other Regulatory Assets - Sub-Account - Incremental Capital Charges | C22: 1508 | D22: ='2. 2015 Continuity Schedule'!BS46 -> 0 | E22: kWh | F22: =IFERROR(IF(F$4="",0,IF($E22="kWh",VLOOKUP(F$4,'4. Billing Determinants'!$B$19:$Z$41,4,0)/'4. Billing Determinants'!$E$41*$D22,IF($E22="kW",VLOOKUP(F$4,'4. Billing Determinants'!$B$19:$Z$41,5,0)/'4. Billing Determinants'!$F$41*$D22,IF($E22="Non-RPP kWh",VLOOKUP(F$4,'4. Billing Determinants'!$B$19:$Z$41,6,0)/'4. Billing Determinants'!$G$41*$D22,IF($E22="Distribution Rev.",VLOOKUP(F$4,'4. Billing Determinants'!$B$19:$Z$41,8,0)/'4. Billing Determinants'!$I$41*$D22, VLOOKUP(F$4,'4. Billing Determinants'!$B$19:$Z$41,3,0)/'4. Billing Determinants'!$D$41*$D22))))),0) -> 0 | G22: =IFERROR(IF(G$4="",0,IF($E22="kWh",VLOOKUP(G$4,'4. Billing Determinants'!$B$19:$Z$41,4,0)/'4. Billing Determinants'!$E$41*$D22,IF($E22="kW",VLOOKUP(G$4,'4. Billing Determinants'!$B$19:$Z$41,5,0)/'4. Billing Determinants'!$F$41*$D22,IF($E22="Non-RPP kWh",VLOOKUP(G$4,'4. Billing Determinants'!$B$19:$Z$41,6,0)/'4. Billing Determinants'!$G$41*$D22,IF($E22="Distribution Rev.",VLOOKUP(G$4,'4. Billing Determinants'!$B$19:$Z$41,8,0)/'4. Billing Determinants'!$I$41*$D22, VLOOKUP(G$4,'4. Billing Determinants'!$B$19:$Z$41,3,0)/'4. Billing Determinants'!$D$41*$D22))))),0) -> 0 | H22: =IFERROR(IF(H$4="",0,IF($E22="kWh",VLOOKUP(H$4,'4. Billing Determinants'!$B$19:$Z$41,4,0)/'4. Billing Determinants'!$E$41*$D22,IF($E22="kW",VLOOKUP(H$4,'4. Billing Determinants'!$B$19:$Z$41,5,0)/'4. Billing Determinants'!$F$41*$D22,IF($E22="Non-RPP kWh",VLOOKUP(H$4,'4. Billing Determinants'!$B$19:$Z$41,6,0)/'4. Billing Determinants'!$G$41*$D22,IF($E22="Distribution Rev.",VLOOKUP(H$4,'4. Billing Determinants'!$B$19:$Z$41,8,0)/'4. Billing Determinants'!$I$41*$D22, VLOOKUP(H$4,'4. Billing Determinants'!$B$19:$Z$41,3,0)/'4. Billing Determinants'!$D$41*$D22))))),0) -> 0 | I22: =IFERROR(IF(I$4="",0,IF($E22="kWh",VLOOKUP(I$4,'4. Billing Determinants'!$B$19:$Z$41,4,0)/'4. Billing Determinants'!$E$41*$D22,IF($E22="kW",VLOOKUP(I$4,'4. Billing Determinants'!$B$19:$Z$41,5,0)/'4. Billing Determinants'!$F$41*$D22,IF($E22="Non-RPP kWh",VLOOKUP(I$4,'4. Billing Determinants'!$B$19:$Z$41,6,0)/'4. Billing Determinants'!$G$41*$D22,IF($E22="Distribution Rev.",VLOOKUP(I$4,'4. Billing Determinants'!$B$19:$Z$41,8,0)/'4. Billing Determinants'!$I$41*$D22, VLOOKUP(I$4,'4. Billing Determinants'!$B$19:$Z$41,3,0)/'4. Billing Determinants'!$D$41*$D22))))),0) -> 0 | J22: =IFERROR(IF(J$4="",0,IF($E22="kWh",VLOOKUP(J$4,'4. Billing Determinants'!$B$19:$Z$41,4,0)/'4. Billing Determinants'!$E$41*$D22,IF($E22="kW",VLOOKUP(J$4,'4. Billing Determinants'!$B$19:$Z$41,5,0)/'4. Billing Determinants'!$F$41*$D22,IF($E22="Non-RPP kWh",VLOOKUP(J$4,'4. Billing Determinants'!$B$19:$Z$41,6,0)/'4. Billing Determinants'!$G$41*$D22,IF($E22="Distribution Rev.",VLOOKUP(J$4,'4. Billing Determinants'!$B$19:$Z$41,8,0)/'4. Billing Determinants'!$I$41*$D22, VLOOKUP(J$4,'4. Billing Determinants'!$B$19:$Z$41,3,0)/'4. Billing Determinants'!$D$41*$D22))))),0) -> 0 | K22: =IFERROR(IF(K$4="",0,IF($E22="kWh",VLOOKUP(K$4,'4. Billing Determinants'!$B$19:$Z$41,4,0)/'4. Billing Determinants'!$E$41*$D22,IF($E22="kW",VLOOKUP(K$4,'4. Billing Determinants'!$B$19:$Z$41,5,0)/'4. Billing Determinants'!$F$41*$D22,IF($E22="Non-RPP kWh",VLOOKUP(K$4,'4. Billing Determinants'!$B$19:$Z$41,6,0)/'4. Billing Determinants'!$G$41*$D22,IF($E22="Distribution Rev.",VLOOKUP(K$4,'4. Billing Determinants'!$B$19:$Z$41,8,0)/'4. Billing Determinants'!$I$41*$D22, VLOOKUP(K$4,'4. Billing Determinants'!$B$19:$Z$41,3,0)/'4. Billing Determinants'!$D$41*$D22))))),0) -> 0 | L22: =IFERROR(IF(L$4="",0,IF($E22="kWh",VLOOKUP(L$4,'4. Billing Determinants'!$B$19:$Z$41,4,0)/'4. Billing Determinants'!$E$41*$D22,IF($E22="kW",VLOOKUP(L$4,'4. Billing Determinants'!$B$19:$Z$41,5,0)/'4. Billing Determinants'!$F$41*$D22,IF($E22="Non-RPP kWh",VLOOKUP(L$4,'4. Billing Determinants'!$B$19:$Z$41,6,0)/'4. Billing Determinants'!$G$41*$D22,IF($E22="Distribution Rev.",VLOOKUP(L$4,'4. Billing Determinants'!$B$19:$Z$41,8,0)/'4. Billing Determinants'!$I$41*$D22, VLOOKUP(L$4,'4. Billing Determinants'!$B$19:$Z$41,3,0)/'4. Billing Determinants'!$D$41*$D22))))),0) -> 0 | M22: =IFERROR(IF(M$4="",0,IF($E22="kWh",VLOOKUP(M$4,'4. Billing Determinants'!$B$19:$Z$41,4,0)/'4. Billing Determinants'!$E$41*$D22,IF($E22="kW",VLOOKUP(M$4,'4. Billing Determinants'!$B$19:$Z$41,5,0)/'4. Billing Determinants'!$F$41*$D22,IF($E22="Non-RPP kWh",VLOOKUP(M$4,'4. Billing Determinants'!$B$19:$Z$41,6,0)/'4. Billing Determinants'!$G$41*$D22,IF($E22="Distribution Rev.",VLOOKUP(M$4,'4. Billing Determinants'!$B$19:$Z$41,8,0)/'4. Billing Determinants'!$I$41*$D22, VLOOKUP(M$4,'4. Billing Determinants'!$B$19:$Z$41,3,0)/'4. Billing Determinants'!$D$41*$D22))))),0) -> 0 | N22: =IFERROR(IF(N$4="",0,IF($E22="kWh",VLOOKUP(N$4,'4. Billing Determinants'!$B$19:$Z$41,4,0)/'4. Billing Determinants'!$E$41*$D22,IF($E22="kW",VLOOKUP(N$4,'4. Billing Determinants'!$B$19:$Z$41,5,0)/'4. Billing Determinants'!$F$41*$D22,IF($E22="Non-RPP kWh",VLOOKUP(N$4,'4. Billing Determinants'!$B$19:$Z$41,6,0)/'4. Billing Determinants'!$G$41*$D22,IF($E22="Distribution Rev.",VLOOKUP(N$4,'4. Billing Determinants'!$B$19:$Z$41,8,0)/'4. Billing Determinants'!$I$41*$D22, VLOOKUP(N$4,'4. Billing Determinants'!$B$19:$Z$41,3,0)/'4. Billing Determinants'!$D$41*$D22))))),0) -> 0 | O22: =IFERROR(IF(O$4="",0,IF($E22="kWh",VLOOKUP(O$4,'4. Billing Determinants'!$B$19:$Z$41,4,0)/'4. Billing Determinants'!$E$41*$D22,IF($E22="kW",VLOOKUP(O$4,'4. Billing Determinants'!$B$19:$Z$41,5,0)/'4. Billing Determinants'!$F$41*$D22,IF($E22="Non-RPP kWh",VLOOKUP(O$4,'4. Billing Determinants'!$B$19:$Z$41,6,0)/'4. Billing Determinants'!$G$41*$D22,IF($E22="Distribution Rev.",VLOOKUP(O$4,'4. Billing Determinants'!$B$19:$Z$41,8,0)/'4. Billing Determinants'!$I$41*$D22, VLOOKUP(O$4,'4. Billing Determinants'!$B$19:$Z$41,3,0)/'4. Billing Determinants'!$D$41*$D22))))),0) -> 0 | P22: =IFERROR(IF(P$4="",0,IF($E22="kWh",VLOOKUP(P$4,'4. Billing Determinants'!$B$19:$Z$41,4,0)/'4. Billing Determinants'!$E$41*$D22,IF($E22="kW",VLOOKUP(P$4,'4. Billing Determinants'!$B$19:$Z$41,5,0)/'4. Billing Determinants'!$F$41*$D22,IF($E22="Non-RPP kWh",VLOOKUP(P$4,'4. Billing Determinants'!$B$19:$Z$41,6,0)/'4. Billing Determinants'!$G$41*$D22,IF($E22="Distribution Rev.",VLOOKUP(P$4,'4. Billing Determinants'!$B$19:$Z$41,8,0)/'4. Billing Determinants'!$I$41*$D22, VLOOKUP(P$4,'4. Billing Determinants'!$B$19:$Z$41,3,0)/'4. Billing Determinants'!$D$41*$D22))))),0) -> 0 | Q22: =IFERROR(IF(Q$4="",0,IF($E22="kWh",VLOOKUP(Q$4,'4. Billing Determinants'!$B$19:$Z$41,4,0)/'4. Billing Determinants'!$E$41*$D22,IF($E22="kW",VLOOKUP(Q$4,'4. Billing Determinants'!$B$19:$Z$41,5,0)/'4. Billing Determinants'!$F$41*$D22,IF($E22="Non-RPP kWh",VLOOKUP(Q$4,'4. Billing Determinants'!$B$19:$Z$41,6,0)/'4. Billing Determinants'!$G$41*$D22,IF($E22="Distribution Rev.",VLOOKUP(Q$4,'4. Billing Determinants'!$B$19:$Z$41,8,0)/'4. Billing Determinants'!$I$41*$D22, VLOOKUP(Q$4,'4. Billing Determinants'!$B$19:$Z$41,3,0)/'4. Billing Determinants'!$D$41*$D22))))),0) -> 0 | R22: =IFERROR(IF(R$4="",0,IF($E22="kWh",VLOOKUP(R$4,'4. Billing Determinants'!$B$19:$Z$41,4,0)/'4. Billing Determinants'!$E$41*$D22,IF($E22="kW",VLOOKUP(R$4,'4. Billing Determinants'!$B$19:$Z$41,5,0)/'4. Billing Determinants'!$F$41*$D22,IF($E22="Non-RPP kWh",VLOOKUP(R$4,'4. Billing Determinants'!$B$19:$Z$41,6,0)/'4. Billing Determinants'!$G$41*$D22,IF($E22="Distribution Rev.",VLOOKUP(R$4,'4. Billing Determinants'!$B$19:$Z$41,8,0)/'4. Billing Determinants'!$I$41*$D22, VLOOKUP(R$4,'4. Billing Determinants'!$B$19:$Z$41,3,0)/'4. Billing Determinants'!$D$41*$D22))))),0) -> 0 | S22: =IFERROR(IF(S$4="",0,IF($E22="kWh",VLOOKUP(S$4,'4. Billing Determinants'!$B$19:$Z$41,4,0)/'4. Billing Determinants'!$E$41*$D22,IF($E22="kW",VLOOKUP(S$4,'4. Billing Determinants'!$B$19:$Z$41,5,0)/'4. Billing Determinants'!$F$41*$D22,IF($E22="Non-RPP kWh",VLOOKUP(S$4,'4. Billing Determinants'!$B$19:$Z$41,6,0)/'4. Billing Determinants'!$G$41*$D22,IF($E22="Distribution Rev.",VLOOKUP(S$4,'4. Billing Determinants'!$B$19:$Z$41,8,0)/'4. Billing Determinants'!$I$41*$D22, VLOOKUP(S$4,'4. Billing Determinants'!$B$19:$Z$41,3,0)/'4. Billing Determinants'!$D$41*$D22))))),0) -> 0 | T22: =IFERROR(IF(T$4="",0,IF($E22="kWh",VLOOKUP(T$4,'4. Billing Determinants'!$B$19:$Z$41,4,0)/'4. Billing Determinants'!$E$41*$D22,IF($E22="kW",VLOOKUP(T$4,'4. Billing Determinants'!$B$19:$Z$41,5,0)/'4. Billing Determinants'!$F$41*$D22,IF($E22="Non-RPP kWh",VLOOKUP(T$4,'4. Billing Determinants'!$B$19:$Z$41,6,0)/'4. Billing Determinants'!$G$41*$D22,IF($E22="Distribution Rev.",VLOOKUP(T$4,'4. Billing Determinants'!$B$19:$Z$41,8,0)/'4. Billing Determinants'!$I$41*$D22, VLOOKUP(T$4,'4. Billing Determinants'!$B$19:$Z$41,3,0)/'4. Billing Determinants'!$D$41*$D22))))),0) -> 0 | U22: =IFERROR(IF(U$4="",0,IF($E22="kWh",VLOOKUP(U$4,'4. Billing Determinants'!$B$19:$Z$41,4,0)/'4. Billing Determinants'!$E$41*$D22,IF($E22="kW",VLOOKUP(U$4,'4. Billing Determinants'!$B$19:$Z$41,5,0)/'4. Billing Determinants'!$F$41*$D22,IF($E22="Non-RPP kWh",VLOOKUP(U$4,'4. Billing Determinants'!$B$19:$Z$41,6,0)/'4. Billing Determinants'!$G$41*$D22,IF($E22="Distribution Rev.",VLOOKUP(U$4,'4. Billing Determinants'!$B$19:$Z$41,8,0)/'4. Billing Determinants'!$I$41*$D22, VLOOKUP(U$4,'4. Billing Determinants'!$B$19:$Z$41,3,0)/'4. Billing Determinants'!$D$41*$D22))))),0) -> 0 | V22: =IFERROR(IF(V$4="",0,IF($E22="kWh",VLOOKUP(V$4,'4. Billing Determinants'!$B$19:$Z$41,4,0)/'4. Billing Determinants'!$E$41*$D22,IF($E22="kW",VLOOKUP(V$4,'4. Billing Determinants'!$B$19:$Z$41,5,0)/'4. Billing Determinants'!$F$41*$D22,IF($E22="Non-RPP kWh",VLOOKUP(V$4,'4. Billing Determinants'!$B$19:$Z$41,6,0)/'4. Billing Determinants'!$G$41*$D22,IF($E22="Distribution Rev.",VLOOKUP(V$4,'4. Billing Determinants'!$B$19:$Z$41,8,0)/'4. Billing Determinants'!$I$41*$D22, VLOOKUP(V$4,'4. Billing Determinants'!$B$19:$Z$41,3,0)/'4. Billing Determinants'!$D$41*$D22))))),0) -> 0 | W22: =IFERROR(IF(W$4="",0,IF($E22="kWh",VLOOKUP(W$4,'4. Billing Determinants'!$B$19:$Z$41,4,0)/'4. Billing Determinants'!$E$41*$D22,IF($E22="kW",VLOOKUP(W$4,'4. Billing Determinants'!$B$19:$Z$41,5,0)/'4. Billing Determinants'!$F$41*$D22,IF($E22="Non-RPP kWh",VLOOKUP(W$4,'4. Billing Determinants'!$B$19:$Z$41,6,0)/'4. Billing Determinants'!$G$41*$D22,IF($E22="Distribution Rev.",VLOOKUP(W$4,'4. Billing Determinants'!$B$19:$Z$41,8,0)/'4. Billing Determinants'!$I$41*$D22, VLOOKUP(W$4,'4. Billing Determinants'!$B$19:$Z$41,3,0)/'4. Billing Determinants'!$D$41*$D22))))),0) -> 0 | X22: =IFERROR(IF(X$4="",0,IF($E22="kWh",VLOOKUP(X$4,'4. Billing Determinants'!$B$19:$Z$41,4,0)/'4. Billing Determinants'!$E$41*$D22,IF($E22="kW",VLOOKUP(X$4,'4. Billing Determinants'!$B$19:$Z$41,5,0)/'4. Billing Determinants'!$F$41*$D22,IF($E22="Non-RPP kWh",VLOOKUP(X$4,'4. Billing Determinants'!$B$19:$Z$41,6,0)/'4. Billing Determinants'!$G$41*$D22,IF($E22="Distribution Rev.",VLOOKUP(X$4,'4. Billing Determinants'!$B$19:$Z$41,8,0)/'4. Billing Determinants'!$I$41*$D22, VLOOKUP(X$4,'4. Billing Determinants'!$B$19:$Z$41,3,0)/'4. Billing Determinants'!$D$41*$D22))))),0) -> 0 | Y22: =IFERROR(IF(Y$4="",0,IF($E22="kWh",VLOOKUP(Y$4,'4. Billing Determinants'!$B$19:$Z$41,4,0)/'4. Billing Determinants'!$E$41*$D22,IF($E22="kW",VLOOKUP(Y$4,'4. Billing Determinants'!$B$19:$Z$41,5,0)/'4. Billing Determinants'!$F$41*$D22,IF($E22="Non-RPP kWh",VLOOKUP(Y$4,'4. Billing Determinants'!$B$19:$Z$41,6,0)/'4. Billing Determinants'!$G$41*$D22,IF($E22="Distribution Rev.",VLOOKUP(Y$4,'4. Billing Determinants'!$B$19:$Z$41,8,0)/'4. Billing Determinants'!$I$41*$D22, VLOOKUP(Y$4,'4. Billing Determinants'!$B$19:$Z$41,3,0)/'4. Billing Determinants'!$D$41*$D22))))),0) -> 0
B23: Other Regulatory Assets - Sub-Account - Financial Assistance Payment and Recovery Variance - Ontario Clean Energy Benefit Act8 | C23: 1508 | D23: ='2. 2015 Continuity Schedule'!BS47 -> 0 | E23: kWh | F23: =IFERROR(IF(F$4="",0,IF($E23="kWh",VLOOKUP(F$4,'4. Billing Determinants'!$B$19:$Z$41,4,0)/'4. Billing Determinants'!$E$41*$D23,IF($E23="kW",VLOOKUP(F$4,'4. Billing Determinants'!$B$19:$Z$41,5,0)/'4. Billing Determinants'!$F$41*$D23,IF($E23="Non-RPP kWh",VLOOKUP(F$4,'4. Billing Determinants'!$B$19:$Z$41,6,0)/'4. Billing Determinants'!$G$41*$D23,IF($E23="Distribution Rev.",VLOOKUP(F$4,'4. Billing Determinants'!$B$19:$Z$41,8,0)/'4. Billing Determinants'!$I$41*$D23, VLOOKUP(F$4,'4. Billing Determinants'!$B$19:$Z$41,3,0)/'4. Billing Determinants'!$D$41*$D23))))),0) -> 0 | G23: =IFERROR(IF(G$4="",0,IF($E23="kWh",VLOOKUP(G$4,'4. Billing Determinants'!$B$19:$Z$41,4,0)/'4. Billing Determinants'!$E$41*$D23,IF($E23="kW",VLOOKUP(G$4,'4. Billing Determinants'!$B$19:$Z$41,5,0)/'4. Billing Determinants'!$F$41*$D23,IF($E23="Non-RPP kWh",VLOOKUP(G$4,'4. Billing Determinants'!$B$19:$Z$41,6,0)/'4. Billing Determinants'!$G$41*$D23,IF($E23="Distribution Rev.",VLOOKUP(G$4,'4. Billing Determinants'!$B$19:$Z$41,8,0)/'4. Billing Determinants'!$I$41*$D23, VLOOKUP(G$4,'4. Billing Determinants'!$B$19:$Z$41,3,0)/'4. Billing Determinants'!$D$41*$D23))))),0) -> 0 | H23: =IFERROR(IF(H$4="",0,IF($E23="kWh",VLOOKUP(H$4,'4. Billing Determinants'!$B$19:$Z$41,4,0)/'4. Billing Determinants'!$E$41*$D23,IF($E23="kW",VLOOKUP(H$4,'4. Billing Determinants'!$B$19:$Z$41,5,0)/'4. Billing Determinants'!$F$41*$D23,IF($E23="Non-RPP kWh",VLOOKUP(H$4,'4. Billing Determinants'!$B$19:$Z$41,6,0)/'4. Billing Determinants'!$G$41*$D23,IF($E23="Distribution Rev.",VLOOKUP(H$4,'4. Billing Determinants'!$B$19:$Z$41,8,0)/'4. Billing Determinants'!$I$41*$D23, VLOOKUP(H$4,'4. Billing Determinants'!$B$19:$Z$41,3,0)/'4. Billing Determinants'!$D$41*$D23))))),0) -> 0 | I23: =IFERROR(IF(I$4="",0,IF($E23="kWh",VLOOKUP(I$4,'4. Billing Determinants'!$B$19:$Z$41,4,0)/'4. Billing Determinants'!$E$41*$D23,IF($E23="kW",VLOOKUP(I$4,'4. Billing Determinants'!$B$19:$Z$41,5,0)/'4. Billing Determinants'!$F$41*$D23,IF($E23="Non-RPP kWh",VLOOKUP(I$4,'4. Billing Determinants'!$B$19:$Z$41,6,0)/'4. Billing Determinants'!$G$41*$D23,IF($E23="Distribution Rev.",VLOOKUP(I$4,'4. Billing Determinants'!$B$19:$Z$41,8,0)/'4. Billing Determinants'!$I$41*$D23, VLOOKUP(I$4,'4. Billing Determinants'!$B$19:$Z$41,3,0)/'4. Billing Determinants'!$D$41*$D23))))),0) -> 0 | J23: =IFERROR(IF(J$4="",0,IF($E23="kWh",VLOOKUP(J$4,'4. Billing Determinants'!$B$19:$Z$41,4,0)/'4. Billing Determinants'!$E$41*$D23,IF($E23="kW",VLOOKUP(J$4,'4. Billing Determinants'!$B$19:$Z$41,5,0)/'4. Billing Determinants'!$F$41*$D23,IF($E23="Non-RPP kWh",VLOOKUP(J$4,'4. Billing Determinants'!$B$19:$Z$41,6,0)/'4. Billing Determinants'!$G$41*$D23,IF($E23="Distribution Rev.",VLOOKUP(J$4,'4. Billing Determinants'!$B$19:$Z$41,8,0)/'4. Billing Determinants'!$I$41*$D23, VLOOKUP(J$4,'4. Billing Determinants'!$B$19:$Z$41,3,0)/'4. Billing Determinants'!$D$41*$D23))))),0) -> 0 | K23: =IFERROR(IF(K$4="",0,IF($E23="kWh",VLOOKUP(K$4,'4. Billing Determinants'!$B$19:$Z$41,4,0)/'4. Billing Determinants'!$E$41*$D23,IF($E23="kW",VLOOKUP(K$4,'4. Billing Determinants'!$B$19:$Z$41,5,0)/'4. Billing Determinants'!$F$41*$D23,IF($E23="Non-RPP kWh",VLOOKUP(K$4,'4. Billing Determinants'!$B$19:$Z$41,6,0)/'4. Billing Determinants'!$G$41*$D23,IF($E23="Distribution Rev.",VLOOKUP(K$4,'4. Billing Determinants'!$B$19:$Z$41,8,0)/'4. Billing Determinants'!$I$41*$D23, VLOOKUP(K$4,'4. Billing Determinants'!$B$19:$Z$41,3,0)/'4. Billing Determinants'!$D$41*$D23))))),0) -> 0 | L23: =IFERROR(IF(L$4="",0,IF($E23="kWh",VLOOKUP(L$4,'4. Billing Determinants'!$B$19:$Z$41,4,0)/'4. Billing Determinants'!$E$41*$D23,IF($E23="kW",VLOOKUP(L$4,'4. Billing Determinants'!$B$19:$Z$41,5,0)/'4. Billing Determinants'!$F$41*$D23,IF($E23="Non-RPP kWh",VLOOKUP(L$4,'4. Billing Determinants'!$B$19:$Z$41,6,0)/'4. Billing Determinants'!$G$41*$D23,IF($E23="Distribution Rev.",VLOOKUP(L$4,'4. Billing Determinants'!$B$19:$Z$41,8,0)/'4. Billing Determinants'!$I$41*$D23, VLOOKUP(L$4,'4. Billing Determinants'!$B$19:$Z$41,3,0)/'4. Billing Determinants'!$D$41*$D23))))),0) -> 0 | M23: =IFERROR(IF(M$4="",0,IF($E23="kWh",VLOOKUP(M$4,'4. Billing Determinants'!$B$19:$Z$41,4,0)/'4. Billing Determinants'!$E$41*$D23,IF($E23="kW",VLOOKUP(M$4,'4. Billing Determinants'!$B$19:$Z$41,5,0)/'4. Billing Determinants'!$F$41*$D23,IF($E23="Non-RPP kWh",VLOOKUP(M$4,'4. Billing Determinants'!$B$19:$Z$41,6,0)/'4. Billing Determinants'!$G$41*$D23,IF($E23="Distribution Rev.",VLOOKUP(M$4,'4. Billing Determinants'!$B$19:$Z$41,8,0)/'4. Billing Determinants'!$I$41*$D23, VLOOKUP(M$4,'4. Billing Determinants'!$B$19:$Z$41,3,0)/'4. Billing Determinants'!$D$41*$D23))))),0) -> 0 | N23: =IFERROR(IF(N$4="",0,IF($E23="kWh",VLOOKUP(N$4,'4. Billing Determinants'!$B$19:$Z$41,4,0)/'4. Billing Determinants'!$E$41*$D23,IF($E23="kW",VLOOKUP(N$4,'4. Billing Determinants'!$B$19:$Z$41,5,0)/'4. Billing Determinants'!$F$41*$D23,IF($E23="Non-RPP kWh",VLOOKUP(N$4,'4. Billing Determinants'!$B$19:$Z$41,6,0)/'4. Billing Determinants'!$G$41*$D23,IF($E23="Distribution Rev.",VLOOKUP(N$4,'4. Billing Determinants'!$B$19:$Z$41,8,0)/'4. Billing Determinants'!$I$41*$D23, VLOOKUP(N$4,'4. Billing Determinants'!$B$19:$Z$41,3,0)/'4. Billing Determinants'!$D$41*$D23))))),0) -> 0 | O23: =IFERROR(IF(O$4="",0,IF($E23="kWh",VLOOKUP(O$4,'4. Billing Determinants'!$B$19:$Z$41,4,0)/'4. Billing Determinants'!$E$41*$D23,IF($E23="kW",VLOOKUP(O$4,'4. Billing Determinants'!$B$19:$Z$41,5,0)/'4. Billing Determinants'!$F$41*$D23,IF($E23="Non-RPP kWh",VLOOKUP(O$4,'4. Billing Determinants'!$B$19:$Z$41,6,0)/'4. Billing Determinants'!$G$41*$D23,IF($E23="Distribution Rev.",VLOOKUP(O$4,'4. Billing Determinants'!$B$19:$Z$41,8,0)/'4. Billing Determinants'!$I$41*$D23, VLOOKUP(O$4,'4. Billing Determinants'!$B$19:$Z$41,3,0)/'4. Billing Determinants'!$D$41*$D23))))),0) -> 0 | P23: =IFERROR(IF(P$4="",0,IF($E23="kWh",VLOOKUP(P$4,'4. Billing Determinants'!$B$19:$Z$41,4,0)/'4. Billing Determinants'!$E$41*$D23,IF($E23="kW",VLOOKUP(P$4,'4. Billing Determinants'!$B$19:$Z$41,5,0)/'4. Billing Determinants'!$F$41*$D23,IF($E23="Non-RPP kWh",VLOOKUP(P$4,'4. Billing Determinants'!$B$19:$Z$41,6,0)/'4. Billing Determinants'!$G$41*$D23,IF($E23="Distribution Rev.",VLOOKUP(P$4,'4. Billing Determinants'!$B$19:$Z$41,8,0)/'4. Billing Determinants'!$I$41*$D23, VLOOKUP(P$4,'4. Billing Determinants'!$B$19:$Z$41,3,0)/'4. Billing Determinants'!$D$41*$D23))))),0) -> 0 | Q23: =IFERROR(IF(Q$4="",0,IF($E23="kWh",VLOOKUP(Q$4,'4. Billing Determinants'!$B$19:$Z$41,4,0)/'4. Billing Determinants'!$E$41*$D23,IF($E23="kW",VLOOKUP(Q$4,'4. Billing Determinants'!$B$19:$Z$41,5,0)/'4. Billing Determinants'!$F$41*$D23,IF($E23="Non-RPP kWh",VLOOKUP(Q$4,'4. Billing Determinants'!$B$19:$Z$41,6,0)/'4. Billing Determinants'!$G$41*$D23,IF($E23="Distribution Rev.",VLOOKUP(Q$4,'4. Billing Determinants'!$B$19:$Z$41,8,0)/'4. Billing Determinants'!$I$41*$D23, VLOOKUP(Q$4,'4. Billing Determinants'!$B$19:$Z$41,3,0)/'4. Billing Determinants'!$D$41*$D23))))),0) -> 0 | R23: =IFERROR(IF(R$4="",0,IF($E23="kWh",VLOOKUP(R$4,'4. Billing Determinants'!$B$19:$Z$41,4,0)/'4. Billing Determinants'!$E$41*$D23,IF($E23="kW",VLOOKUP(R$4,'4. Billing Determinants'!$B$19:$Z$41,5,0)/'4. Billing Determinants'!$F$41*$D23,IF($E23="Non-RPP kWh",VLOOKUP(R$4,'4. Billing Determinants'!$B$19:$Z$41,6,0)/'4. Billing Determinants'!$G$41*$D23,IF($E23="Distribution Rev.",VLOOKUP(R$4,'4. Billing Determinants'!$B$19:$Z$41,8,0)/'4. Billing Determinants'!$I$41*$D23, VLOOKUP(R$4,'4. Billing Determinants'!$B$19:$Z$41,3,0)/'4. Billing Determinants'!$D$41*$D23))))),0) -> 0 | S23: =IFERROR(IF(S$4="",0,IF($E23="kWh",VLOOKUP(S$4,'4. Billing Determinants'!$B$19:$Z$41,4,0)/'4. Billing Determinants'!$E$41*$D23,IF($E23="kW",VLOOKUP(S$4,'4. Billing Determinants'!$B$19:$Z$41,5,0)/'4. Billing Determinants'!$F$41*$D23,IF($E23="Non-RPP kWh",VLOOKUP(S$4,'4. Billing Determinants'!$B$19:$Z$41,6,0)/'4. Billing Determinants'!$G$41*$D23,IF($E23="Distribution Rev.",VLOOKUP(S$4,'4. Billing Determinants'!$B$19:$Z$41,8,0)/'4. Billing Determinants'!$I$41*$D23, VLOOKUP(S$4,'4. Billing Determinants'!$B$19:$Z$41,3,0)/'4. Billing Determinants'!$D$41*$D23))))),0) -> 0 | T23: =IFERROR(IF(T$4="",0,IF($E23="kWh",VLOOKUP(T$4,'4. Billing Determinants'!$B$19:$Z$41,4,0)/'4. Billing Determinants'!$E$41*$D23,IF($E23="kW",VLOOKUP(T$4,'4. Billing Determinants'!$B$19:$Z$41,5,0)/'4. Billing Determinants'!$F$41*$D23,IF($E23="Non-RPP kWh",VLOOKUP(T$4,'4. Billing Determinants'!$B$19:$Z$41,6,0)/'4. Billing Determinants'!$G$41*$D23,IF($E23="Distribution Rev.",VLOOKUP(T$4,'4. Billing Determinants'!$B$19:$Z$41,8,0)/'4. Billing Determinants'!$I$41*$D23, VLOOKUP(T$4,'4. Billing Determinants'!$B$19:$Z$41,3,0)/'4. Billing Determinants'!$D$41*$D23))))),0) -> 0 | U23: =IFERROR(IF(U$4="",0,IF($E23="kWh",VLOOKUP(U$4,'4. Billing Determinants'!$B$19:$Z$41,4,0)/'4. Billing Determinants'!$E$41*$D23,IF($E23="kW",VLOOKUP(U$4,'4. Billing Determinants'!$B$19:$Z$41,5,0)/'4. Billing Determinants'!$F$41*$D23,IF($E23="Non-RPP kWh",VLOOKUP(U$4,'4. Billing Determinants'!$B$19:$Z$41,6,0)/'4. Billing Determinants'!$G$41*$D23,IF($E23="Distribution Rev.",VLOOKUP(U$4,'4. Billing Determinants'!$B$19:$Z$41,8,0)/'4. Billing Determinants'!$I$41*$D23, VLOOKUP(U$4,'4. Billing Determinants'!$B$19:$Z$41,3,0)/'4. Billing Determinants'!$D$41*$D23))))),0) -> 0 | V23: =IFERROR(IF(V$4="",0,IF($E23="kWh",VLOOKUP(V$4,'4. Billing Determinants'!$B$19:$Z$41,4,0)/'4. Billing Determinants'!$E$41*$D23,IF($E23="kW",VLOOKUP(V$4,'4. Billing Determinants'!$B$19:$Z$41,5,0)/'4. Billing Determinants'!$F$41*$D23,IF($E23="Non-RPP kWh",VLOOKUP(V$4,'4. Billing Determinants'!$B$19:$Z$41,6,0)/'4. Billing Determinants'!$G$41*$D23,IF($E23="Distribution Rev.",VLOOKUP(V$4,'4. Billing Determinants'!$B$19:$Z$41,8,0)/'4. Billing Determinants'!$I$41*$D23, VLOOKUP(V$4,'4. Billing Determinants'!$B$19:$Z$41,3,0)/'4. Billing Determinants'!$D$41*$D23))))),0) -> 0 | W23: =IFERROR(IF(W$4="",0,IF($E23="kWh",VLOOKUP(W$4,'4. Billing Determinants'!$B$19:$Z$41,4,0)/'4. Billing Determinants'!$E$41*$D23,IF($E23="kW",VLOOKUP(W$4,'4. Billing Determinants'!$B$19:$Z$41,5,0)/'4. Billing Determinants'!$F$41*$D23,IF($E23="Non-RPP kWh",VLOOKUP(W$4,'4. Billing Determinants'!$B$19:$Z$41,6,0)/'4. Billing Determinants'!$G$41*$D23,IF($E23="Distribution Rev.",VLOOKUP(W$4,'4. Billing Determinants'!$B$19:$Z$41,8,0)/'4. Billing Determinants'!$I$41*$D23, VLOOKUP(W$4,'4. Billing Determinants'!$B$19:$Z$41,3,0)/'4. Billing Determinants'!$D$41*$D23))))),0) -> 0 | X23: =IFERROR(IF(X$4="",0,IF($E23="kWh",VLOOKUP(X$4,'4. Billing Determinants'!$B$19:$Z$41,4,0)/'4. Billing Determinants'!$E$41*$D23,IF($E23="kW",VLOOKUP(X$4,'4. Billing Determinants'!$B$19:$Z$41,5,0)/'4. Billing Determinants'!$F$41*$D23,IF($E23="Non-RPP kWh",VLOOKUP(X$4,'4. Billing Determinants'!$B$19:$Z$41,6,0)/'4. Billing Determinants'!$G$41*$D23,IF($E23="Distribution Rev.",VLOOKUP(X$4,'4. Billing Determinants'!$B$19:$Z$41,8,0)/'4. Billing Determinants'!$I$41*$D23, VLOOKUP(X$4,'4. Billing Determinants'!$B$19:$Z$41,3,0)/'4. Billing Determinants'!$D$41*$D23))))),0) -> 0 | Y23: =IFERROR(IF(Y$4="",0,IF($E23="kWh",VLOOKUP(Y$4,'4. Billing Determinants'!$B$19:$Z$41,4,0)/'4. Billing Determinants'!$E$41*$D23,IF($E23="kW",VLOOKUP(Y$4,'4. Billing Determinants'!$B$19:$Z$41,5,0)/'4. Billing Determinants'!$F$41*$D23,IF($E23="Non-RPP kWh",VLOOKUP(Y$4,'4. Billing Determinants'!$B$19:$Z$41,6,0)/'4. Billing Determinants'!$G$41*$D23,IF($E23="Distribution Rev.",VLOOKUP(Y$4,'4. Billing Determinants'!$B$19:$Z$41,8,0)/'4. Billing Determinants'!$I$41*$D23, VLOOKUP(Y$4,'4. Billing Determinants'!$B$19:$Z$41,3,0)/'4. Billing Determinants'!$D$41*$D23))))),0) -> 0
B24: Other Regulatory Assets - Sub-Account - Financial Assistance Payment and Recovery Carrying Charges | C24: 1508 | D24: ='2. 2015 Continuity Schedule'!BS48 -> 0 | E24: kWh | F24: =IFERROR(IF(F$4="",0,IF($E24="kWh",VLOOKUP(F$4,'4. Billing Determinants'!$B$19:$Z$41,4,0)/'4. Billing Determinants'!$E$41*$D24,IF($E24="kW",VLOOKUP(F$4,'4. Billing Determinants'!$B$19:$Z$41,5,0)/'4. Billing Determinants'!$F$41*$D24,IF($E24="Non-RPP kWh",VLOOKUP(F$4,'4. Billing Determinants'!$B$19:$Z$41,6,0)/'4. Billing Determinants'!$G$41*$D24,IF($E24="Distribution Rev.",VLOOKUP(F$4,'4. Billing Determinants'!$B$19:$Z$41,8,0)/'4. Billing Determinants'!$I$41*$D24, VLOOKUP(F$4,'4. Billing Determinants'!$B$19:$Z$41,3,0)/'4. Billing Determinants'!$D$41*$D24))))),0) -> 0 | G24: =IFERROR(IF(G$4="",0,IF($E24="kWh",VLOOKUP(G$4,'4. Billing Determinants'!$B$19:$Z$41,4,0)/'4. Billing Determinants'!$E$41*$D24,IF($E24="kW",VLOOKUP(G$4,'4. Billing Determinants'!$B$19:$Z$41,5,0)/'4. Billing Determinants'!$F$41*$D24,IF($E24="Non-RPP kWh",VLOOKUP(G$4,'4. Billing Determinants'!$B$19:$Z$41,6,0)/'4. Billing Determinants'!$G$41*$D24,IF($E24="Distribution Rev.",VLOOKUP(G$4,'4. Billing Determinants'!$B$19:$Z$41,8,0)/'4. Billing Determinants'!$I$41*$D24, VLOOKUP(G$4,'4. Billing Determinants'!$B$19:$Z$41,3,0)/'4. Billing Determinants'!$D$41*$D24))))),0) -> 0 | H24: =IFERROR(IF(H$4="",0,IF($E24="kWh",VLOOKUP(H$4,'4. Billing Determinants'!$B$19:$Z$41,4,0)/'4. Billing Determinants'!$E$41*$D24,IF($E24="kW",VLOOKUP(H$4,'4. Billing Determinants'!$B$19:$Z$41,5,0)/'4. Billing Determinants'!$F$41*$D24,IF($E24="Non-RPP kWh",VLOOKUP(H$4,'4. Billing Determinants'!$B$19:$Z$41,6,0)/'4. Billing Determinants'!$G$41*$D24,IF($E24="Distribution Rev.",VLOOKUP(H$4,'4. Billing Determinants'!$B$19:$Z$41,8,0)/'4. Billing Determinants'!$I$41*$D24, VLOOKUP(H$4,'4. Billing Determinants'!$B$19:$Z$41,3,0)/'4. Billing Determinants'!$D$41*$D24))))),0) -> 0 | I24: =IFERROR(IF(I$4="",0,IF($E24="kWh",VLOOKUP(I$4,'4. Billing Determinants'!$B$19:$Z$41,4,0)/'4. Billing Determinants'!$E$41*$D24,IF($E24="kW",VLOOKUP(I$4,'4. Billing Determinants'!$B$19:$Z$41,5,0)/'4. Billing Determinants'!$F$41*$D24,IF($E24="Non-RPP kWh",VLOOKUP(I$4,'4. Billing Determinants'!$B$19:$Z$41,6,0)/'4. Billing Determinants'!$G$41*$D24,IF($E24="Distribution Rev.",VLOOKUP(I$4,'4. Billing Determinants'!$B$19:$Z$41,8,0)/'4. Billing Determinants'!$I$41*$D24, VLOOKUP(I$4,'4. Billing Determinants'!$B$19:$Z$41,3,0)/'4. Billing Determinants'!$D$41*$D24))))),0) -> 0 | J24: =IFERROR(IF(J$4="",0,IF($E24="kWh",VLOOKUP(J$4,'4. Billing Determinants'!$B$19:$Z$41,4,0)/'4. Billing Determinants'!$E$41*$D24,IF($E24="kW",VLOOKUP(J$4,'4. Billing Determinants'!$B$19:$Z$41,5,0)/'4. Billing Determinants'!$F$41*$D24,IF($E24="Non-RPP kWh",VLOOKUP(J$4,'4. Billing Determinants'!$B$19:$Z$41,6,0)/'4. Billing Determinants'!$G$41*$D24,IF($E24="Distribution Rev.",VLOOKUP(J$4,'4. Billing Determinants'!$B$19:$Z$41,8,0)/'4. Billing Determinants'!$I$41*$D24, VLOOKUP(J$4,'4. Billing Determinants'!$B$19:$Z$41,3,0)/'4. Billing Determinants'!$D$41*$D24))))),0) -> 0 | K24: =IFERROR(IF(K$4="",0,IF($E24="kWh",VLOOKUP(K$4,'4. Billing Determinants'!$B$19:$Z$41,4,0)/'4. Billing Determinants'!$E$41*$D24,IF($E24="kW",VLOOKUP(K$4,'4. Billing Determinants'!$B$19:$Z$41,5,0)/'4. Billing Determinants'!$F$41*$D24,IF($E24="Non-RPP kWh",VLOOKUP(K$4,'4. Billing Determinants'!$B$19:$Z$41,6,0)/'4. Billing Determinants'!$G$41*$D24,IF($E24="Distribution Rev.",VLOOKUP(K$4,'4. Billing Determinants'!$B$19:$Z$41,8,0)/'4. Billing Determinants'!$I$41*$D24, VLOOKUP(K$4,'4. Billing Determinants'!$B$19:$Z$41,3,0)/'4. Billing Determinants'!$D$41*$D24))))),0) -> 0 | L24: =IFERROR(IF(L$4="",0,IF($E24="kWh",VLOOKUP(L$4,'4. Billing Determinants'!$B$19:$Z$41,4,0)/'4. Billing Determinants'!$E$41*$D24,IF($E24="kW",VLOOKUP(L$4,'4. Billing Determinants'!$B$19:$Z$41,5,0)/'4. Billing Determinants'!$F$41*$D24,IF($E24="Non-RPP kWh",VLOOKUP(L$4,'4. Billing Determinants'!$B$19:$Z$41,6,0)/'4. Billing Determinants'!$G$41*$D24,IF($E24="Distribution Rev.",VLOOKUP(L$4,'4. Billing Determinants'!$B$19:$Z$41,8,0)/'4. Billing Determinants'!$I$41*$D24, VLOOKUP(L$4,'4. Billing Determinants'!$B$19:$Z$41,3,0)/'4. Billing Determinants'!$D$41*$D24))))),0) -> 0 | M24: =IFERROR(IF(M$4="",0,IF($E24="kWh",VLOOKUP(M$4,'4. Billing Determinants'!$B$19:$Z$41,4,0)/'4. Billing Determinants'!$E$41*$D24,IF($E24="kW",VLOOKUP(M$4,'4. Billing Determinants'!$B$19:$Z$41,5,0)/'4. Billing Determinants'!$F$41*$D24,IF($E24="Non-RPP kWh",VLOOKUP(M$4,'4. Billing Determinants'!$B$19:$Z$41,6,0)/'4. Billing Determinants'!$G$41*$D24,IF($E24="Distribution Rev.",VLOOKUP(M$4,'4. Billing Determinants'!$B$19:$Z$41,8,0)/'4. Billing Determinants'!$I$41*$D24, VLOOKUP(M$4,'4. Billing Determinants'!$B$19:$Z$41,3,0)/'4. Billing Determinants'!$D$41*$D24))))),0) -> 0 | N24: =IFERROR(IF(N$4="",0,IF($E24="kWh",VLOOKUP(N$4,'4. Billing Determinants'!$B$19:$Z$41,4,0)/'4. Billing Determinants'!$E$41*$D24,IF($E24="kW",VLOOKUP(N$4,'4. Billing Determinants'!$B$19:$Z$41,5,0)/'4. Billing Determinants'!$F$41*$D24,IF($E24="Non-RPP kWh",VLOOKUP(N$4,'4. Billing Determinants'!$B$19:$Z$41,6,0)/'4. Billing Determinants'!$G$41*$D24,IF($E24="Distribution Rev.",VLOOKUP(N$4,'4. Billing Determinants'!$B$19:$Z$41,8,0)/'4. Billing Determinants'!$I$41*$D24, VLOOKUP(N$4,'4. Billing Determinants'!$B$19:$Z$41,3,0)/'4. Billing Determinants'!$D$41*$D24))))),0) -> 0 | O24: =IFERROR(IF(O$4="",0,IF($E24="kWh",VLOOKUP(O$4,'4. Billing Determinants'!$B$19:$Z$41,4,0)/'4. Billing Determinants'!$E$41*$D24,IF($E24="kW",VLOOKUP(O$4,'4. Billing Determinants'!$B$19:$Z$41,5,0)/'4. Billing Determinants'!$F$41*$D24,IF($E24="Non-RPP kWh",VLOOKUP(O$4,'4. Billing Determinants'!$B$19:$Z$41,6,0)/'4. Billing Determinants'!$G$41*$D24,IF($E24="Distribution Rev.",VLOOKUP(O$4,'4. Billing Determinants'!$B$19:$Z$41,8,0)/'4. Billing Determinants'!$I$41*$D24, VLOOKUP(O$4,'4. Billing Determinants'!$B$19:$Z$41,3,0)/'4. Billing Determinants'!$D$41*$D24))))),0) -> 0 | P24: =IFERROR(IF(P$4="",0,IF($E24="kWh",VLOOKUP(P$4,'4. Billing Determinants'!$B$19:$Z$41,4,0)/'4. Billing Determinants'!$E$41*$D24,IF($E24="kW",VLOOKUP(P$4,'4. Billing Determinants'!$B$19:$Z$41,5,0)/'4. Billing Determinants'!$F$41*$D24,IF($E24="Non-RPP kWh",VLOOKUP(P$4,'4. Billing Determinants'!$B$19:$Z$41,6,0)/'4. Billing Determinants'!$G$41*$D24,IF($E24="Distribution Rev.",VLOOKUP(P$4,'4. Billing Determinants'!$B$19:$Z$41,8,0)/'4. Billing Determinants'!$I$41*$D24, VLOOKUP(P$4,'4. Billing Determinants'!$B$19:$Z$41,3,0)/'4. Billing Determinants'!$D$41*$D24))))),0) -> 0 | Q24: =IFERROR(IF(Q$4="",0,IF($E24="kWh",VLOOKUP(Q$4,'4. Billing Determinants'!$B$19:$Z$41,4,0)/'4. Billing Determinants'!$E$41*$D24,IF($E24="kW",VLOOKUP(Q$4,'4. Billing Determinants'!$B$19:$Z$41,5,0)/'4. Billing Determinants'!$F$41*$D24,IF($E24="Non-RPP kWh",VLOOKUP(Q$4,'4. Billing Determinants'!$B$19:$Z$41,6,0)/'4. Billing Determinants'!$G$41*$D24,IF($E24="Distribution Rev.",VLOOKUP(Q$4,'4. Billing Determinants'!$B$19:$Z$41,8,0)/'4. Billing Determinants'!$I$41*$D24, VLOOKUP(Q$4,'4. Billing Determinants'!$B$19:$Z$41,3,0)/'4. Billing Determinants'!$D$41*$D24))))),0) -> 0 | R24: =IFERROR(IF(R$4="",0,IF($E24="kWh",VLOOKUP(R$4,'4. Billing Determinants'!$B$19:$Z$41,4,0)/'4. Billing Determinants'!$E$41*$D24,IF($E24="kW",VLOOKUP(R$4,'4. Billing Determinants'!$B$19:$Z$41,5,0)/'4. Billing Determinants'!$F$41*$D24,IF($E24="Non-RPP kWh",VLOOKUP(R$4,'4. Billing Determinants'!$B$19:$Z$41,6,0)/'4. Billing Determinants'!$G$41*$D24,IF($E24="Distribution Rev.",VLOOKUP(R$4,'4. Billing Determinants'!$B$19:$Z$41,8,0)/'4. Billing Determinants'!$I$41*$D24, VLOOKUP(R$4,'4. Billing Determinants'!$B$19:$Z$41,3,0)/'4. Billing Determinants'!$D$41*$D24))))),0) -> 0 | S24: =IFERROR(IF(S$4="",0,IF($E24="kWh",VLOOKUP(S$4,'4. Billing Determinants'!$B$19:$Z$41,4,0)/'4. Billing Determinants'!$E$41*$D24,IF($E24="kW",VLOOKUP(S$4,'4. Billing Determinants'!$B$19:$Z$41,5,0)/'4. Billing Determinants'!$F$41*$D24,IF($E24="Non-RPP kWh",VLOOKUP(S$4,'4. Billing Determinants'!$B$19:$Z$41,6,0)/'4. Billing Determinants'!$G$41*$D24,IF($E24="Distribution Rev.",VLOOKUP(S$4,'4. Billing Determinants'!$B$19:$Z$41,8,0)/'4. Billing Determinants'!$I$41*$D24, VLOOKUP(S$4,'4. Billing Determinants'!$B$19:$Z$41,3,0)/'4. Billing Determinants'!$D$41*$D24))))),0) -> 0 | T24: =IFERROR(IF(T$4="",0,IF($E24="kWh",VLOOKUP(T$4,'4. Billing Determinants'!$B$19:$Z$41,4,0)/'4. Billing Determinants'!$E$41*$D24,IF($E24="kW",VLOOKUP(T$4,'4. Billing Determinants'!$B$19:$Z$41,5,0)/'4. Billing Determinants'!$F$41*$D24,IF($E24="Non-RPP kWh",VLOOKUP(T$4,'4. Billing Determinants'!$B$19:$Z$41,6,0)/'4. Billing Determinants'!$G$41*$D24,IF($E24="Distribution Rev.",VLOOKUP(T$4,'4. Billing Determinants'!$B$19:$Z$41,8,0)/'4. Billing Determinants'!$I$41*$D24, VLOOKUP(T$4,'4. Billing Determinants'!$B$19:$Z$41,3,0)/'4. Billing Determinants'!$D$41*$D24))))),0) -> 0 | U24: =IFERROR(IF(U$4="",0,IF($E24="kWh",VLOOKUP(U$4,'4. Billing Determinants'!$B$19:$Z$41,4,0)/'4. Billing Determinants'!$E$41*$D24,IF($E24="kW",VLOOKUP(U$4,'4. Billing Determinants'!$B$19:$Z$41,5,0)/'4. Billing Determinants'!$F$41*$D24,IF($E24="Non-RPP kWh",VLOOKUP(U$4,'4. Billing Determinants'!$B$19:$Z$41,6,0)/'4. Billing Determinants'!$G$41*$D24,IF($E24="Distribution Rev.",VLOOKUP(U$4,'4. Billing Determinants'!$B$19:$Z$41,8,0)/'4. Billing Determinants'!$I$41*$D24, VLOOKUP(U$4,'4. Billing Determinants'!$B$19:$Z$41,3,0)/'4. Billing Determinants'!$D$41*$D24))))),0) -> 0 | V24: =IFERROR(IF(V$4="",0,IF($E24="kWh",VLOOKUP(V$4,'4. Billing Determinants'!$B$19:$Z$41,4,0)/'4. Billing Determinants'!$E$41*$D24,IF($E24="kW",VLOOKUP(V$4,'4. Billing Determinants'!$B$19:$Z$41,5,0)/'4. Billing Determinants'!$F$41*$D24,IF($E24="Non-RPP kWh",VLOOKUP(V$4,'4. Billing Determinants'!$B$19:$Z$41,6,0)/'4. Billing Determinants'!$G$41*$D24,IF($E24="Distribution Rev.",VLOOKUP(V$4,'4. Billing Determinants'!$B$19:$Z$41,8,0)/'4. Billing Determinants'!$I$41*$D24, VLOOKUP(V$4,'4. Billing Determinants'!$B$19:$Z$41,3,0)/'4. Billing Determinants'!$D$41*$D24))))),0) -> 0 | W24: =IFERROR(IF(W$4="",0,IF($E24="kWh",VLOOKUP(W$4,'4. Billing Determinants'!$B$19:$Z$41,4,0)/'4. Billing Determinants'!$E$41*$D24,IF($E24="kW",VLOOKUP(W$4,'4. Billing Determinants'!$B$19:$Z$41,5,0)/'4. Billing Determinants'!$F$41*$D24,IF($E24="Non-RPP kWh",VLOOKUP(W$4,'4. Billing Determinants'!$B$19:$Z$41,6,0)/'4. Billing Determinants'!$G$41*$D24,IF($E24="Distribution Rev.",VLOOKUP(W$4,'4. Billing Determinants'!$B$19:$Z$41,8,0)/'4. Billing Determinants'!$I$41*$D24, VLOOKUP(W$4,'4. Billing Determinants'!$B$19:$Z$41,3,0)/'4. Billing Determinants'!$D$41*$D24))))),0) -> 0 | X24: =IFERROR(IF(X$4="",0,IF($E24="kWh",VLOOKUP(X$4,'4. Billing Determinants'!$B$19:$Z$41,4,0)/'4. Billing Determinants'!$E$41*$D24,IF($E24="kW",VLOOKUP(X$4,'4. Billing Determinants'!$B$19:$Z$41,5,0)/'4. Billing Determinants'!$F$41*$D24,IF($E24="Non-RPP kWh",VLOOKUP(X$4,'4. Billing Determinants'!$B$19:$Z$41,6,0)/'4. Billing Determinants'!$G$41*$D24,IF($E24="Distribution Rev.",VLOOKUP(X$4,'4. Billing Determinants'!$B$19:$Z$41,8,0)/'4. Billing Determinants'!$I$41*$D24, VLOOKUP(X$4,'4. Billing Determinants'!$B$19:$Z$41,3,0)/'4. Billing Determinants'!$D$41*$D24))))),0) -> 0 | Y24: =IFERROR(IF(Y$4="",0,IF($E24="kWh",VLOOKUP(Y$4,'4. Billing Determinants'!$B$19:$Z$41,4,0)/'4. Billing Determinants'!$E$41*$D24,IF($E24="kW",VLOOKUP(Y$4,'4. Billing Determinants'!$B$19:$Z$41,5,0)/'4. Billing Determinants'!$F$41*$D24,IF($E24="Non-RPP kWh",VLOOKUP(Y$4,'4. Billing Determinants'!$B$19:$Z$41,6,0)/'4. Billing Determinants'!$G$41*$D24,IF($E24="Distribution Rev.",VLOOKUP(Y$4,'4. Billing Determinants'!$B$19:$Z$41,8,0)/'4. Billing Determinants'!$I$41*$D24, VLOOKUP(Y$4,'4. Billing Determinants'!$B$19:$Z$41,3,0)/'4. Billing Determinants'!$D$41*$D24))))),0) -> 0
B25: Other Regulatory Assets - Sub-Account - Other 4 | C25: 1508 | D25: ='2. 2015 Continuity Schedule'!BS49 -> 0 | E25: kWh | F25: =IFERROR(IF(F$4="",0,IF($E25="kWh",VLOOKUP(F$4,'4. Billing Determinants'!$B$19:$Z$41,4,0)/'4. Billing Determinants'!$E$41*$D25,IF($E25="kW",VLOOKUP(F$4,'4. Billing Determinants'!$B$19:$Z$41,5,0)/'4. Billing Determinants'!$F$41*$D25,IF($E25="Non-RPP kWh",VLOOKUP(F$4,'4. Billing Determinants'!$B$19:$Z$41,6,0)/'4. Billing Determinants'!$G$41*$D25,IF($E25="Distribution Rev.",VLOOKUP(F$4,'4. Billing Determinants'!$B$19:$Z$41,8,0)/'4. Billing Determinants'!$I$41*$D25, VLOOKUP(F$4,'4. Billing Determinants'!$B$19:$Z$41,3,0)/'4. Billing Determinants'!$D$41*$D25))))),0) -> 0 | G25: =IFERROR(IF(G$4="",0,IF($E25="kWh",VLOOKUP(G$4,'4. Billing Determinants'!$B$19:$Z$41,4,0)/'4. Billing Determinants'!$E$41*$D25,IF($E25="kW",VLOOKUP(G$4,'4. Billing Determinants'!$B$19:$Z$41,5,0)/'4. Billing Determinants'!$F$41*$D25,IF($E25="Non-RPP kWh",VLOOKUP(G$4,'4. Billing Determinants'!$B$19:$Z$41,6,0)/'4. Billing Determinants'!$G$41*$D25,IF($E25="Distribution Rev.",VLOOKUP(G$4,'4. Billing Determinants'!$B$19:$Z$41,8,0)/'4. Billing Determinants'!$I$41*$D25, VLOOKUP(G$4,'4. Billing Determinants'!$B$19:$Z$41,3,0)/'4. Billing Determinants'!$D$41*$D25))))),0) -> 0 | H25: =IFERROR(IF(H$4="",0,IF($E25="kWh",VLOOKUP(H$4,'4. Billing Determinants'!$B$19:$Z$41,4,0)/'4. Billing Determinants'!$E$41*$D25,IF($E25="kW",VLOOKUP(H$4,'4. Billing Determinants'!$B$19:$Z$41,5,0)/'4. Billing Determinants'!$F$41*$D25,IF($E25="Non-RPP kWh",VLOOKUP(H$4,'4. Billing Determinants'!$B$19:$Z$41,6,0)/'4. Billing Determinants'!$G$41*$D25,IF($E25="Distribution Rev.",VLOOKUP(H$4,'4. Billing Determinants'!$B$19:$Z$41,8,0)/'4. Billing Determinants'!$I$41*$D25, VLOOKUP(H$4,'4. Billing Determinants'!$B$19:$Z$41,3,0)/'4. Billing Determinants'!$D$41*$D25))))),0) -> 0 | I25: =IFERROR(IF(I$4="",0,IF($E25="kWh",VLOOKUP(I$4,'4. Billing Determinants'!$B$19:$Z$41,4,0)/'4. Billing Determinants'!$E$41*$D25,IF($E25="kW",VLOOKUP(I$4,'4. Billing Determinants'!$B$19:$Z$41,5,0)/'4. Billing Determinants'!$F$41*$D25,IF($E25="Non-RPP kWh",VLOOKUP(I$4,'4. Billing Determinants'!$B$19:$Z$41,6,0)/'4. Billing Determinants'!$G$41*$D25,IF($E25="Distribution Rev.",VLOOKUP(I$4,'4. Billing Determinants'!$B$19:$Z$41,8,0)/'4. Billing Determinants'!$I$41*$D25, VLOOKUP(I$4,'4. Billing Determinants'!$B$19:$Z$41,3,0)/'4. Billing Determinants'!$D$41*$D25))))),0) -> 0 | J25: =IFERROR(IF(J$4="",0,IF($E25="kWh",VLOOKUP(J$4,'4. Billing Determinants'!$B$19:$Z$41,4,0)/'4. Billing Determinants'!$E$41*$D25,IF($E25="kW",VLOOKUP(J$4,'4. Billing Determinants'!$B$19:$Z$41,5,0)/'4. Billing Determinants'!$F$41*$D25,IF($E25="Non-RPP kWh",VLOOKUP(J$4,'4. Billing Determinants'!$B$19:$Z$41,6,0)/'4. Billing Determinants'!$G$41*$D25,IF($E25="Distribution Rev.",VLOOKUP(J$4,'4. Billing Determinants'!$B$19:$Z$41,8,0)/'4. Billing Determinants'!$I$41*$D25, VLOOKUP(J$4,'4. Billing Determinants'!$B$19:$Z$41,3,0)/'4. Billing Determinants'!$D$41*$D25))))),0) -> 0 | K25: =IFERROR(IF(K$4="",0,IF($E25="kWh",VLOOKUP(K$4,'4. Billing Determinants'!$B$19:$Z$41,4,0)/'4. Billing Determinants'!$E$41*$D25,IF($E25="kW",VLOOKUP(K$4,'4. Billing Determinants'!$B$19:$Z$41,5,0)/'4. Billing Determinants'!$F$41*$D25,IF($E25="Non-RPP kWh",VLOOKUP(K$4,'4. Billing Determinants'!$B$19:$Z$41,6,0)/'4. Billing Determinants'!$G$41*$D25,IF($E25="Distribution Rev.",VLOOKUP(K$4,'4. Billing Determinants'!$B$19:$Z$41,8,0)/'4. Billing Determinants'!$I$41*$D25, VLOOKUP(K$4,'4. Billing Determinants'!$B$19:$Z$41,3,0)/'4. Billing Determinants'!$D$41*$D25))))),0) -> 0 | L25: =IFERROR(IF(L$4="",0,IF($E25="kWh",VLOOKUP(L$4,'4. Billing Determinants'!$B$19:$Z$41,4,0)/'4. Billing Determinants'!$E$41*$D25,IF($E25="kW",VLOOKUP(L$4,'4. Billing Determinants'!$B$19:$Z$41,5,0)/'4. Billing Determinants'!$F$41*$D25,IF($E25="Non-RPP kWh",VLOOKUP(L$4,'4. Billing Determinants'!$B$19:$Z$41,6,0)/'4. Billing Determinants'!$G$41*$D25,IF($E25="Distribution Rev.",VLOOKUP(L$4,'4. Billing Determinants'!$B$19:$Z$41,8,0)/'4. Billing Determinants'!$I$41*$D25, VLOOKUP(L$4,'4. Billing Determinants'!$B$19:$Z$41,3,0)/'4. Billing Determinants'!$D$41*$D25))))),0) -> 0 | M25: =IFERROR(IF(M$4="",0,IF($E25="kWh",VLOOKUP(M$4,'4. Billing Determinants'!$B$19:$Z$41,4,0)/'4. Billing Determinants'!$E$41*$D25,IF($E25="kW",VLOOKUP(M$4,'4. Billing Determinants'!$B$19:$Z$41,5,0)/'4. Billing Determinants'!$F$41*$D25,IF($E25="Non-RPP kWh",VLOOKUP(M$4,'4. Billing Determinants'!$B$19:$Z$41,6,0)/'4. Billing Determinants'!$G$41*$D25,IF($E25="Distribution Rev.",VLOOKUP(M$4,'4. Billing Determinants'!$B$19:$Z$41,8,0)/'4. Billing Determinants'!$I$41*$D25, VLOOKUP(M$4,'4. Billing Determinants'!$B$19:$Z$41,3,0)/'4. Billing Determinants'!$D$41*$D25))))),0) -> 0 | N25: =IFERROR(IF(N$4="",0,IF($E25="kWh",VLOOKUP(N$4,'4. Billing Determinants'!$B$19:$Z$41,4,0)/'4. Billing Determinants'!$E$41*$D25,IF($E25="kW",VLOOKUP(N$4,'4. Billing Determinants'!$B$19:$Z$41,5,0)/'4. Billing Determinants'!$F$41*$D25,IF($E25="Non-RPP kWh",VLOOKUP(N$4,'4. Billing Determinants'!$B$19:$Z$41,6,0)/'4. Billing Determinants'!$G$41*$D25,IF($E25="Distribution Rev.",VLOOKUP(N$4,'4. Billing Determinants'!$B$19:$Z$41,8,0)/'4. Billing Determinants'!$I$41*$D25, VLOOKUP(N$4,'4. Billing Determinants'!$B$19:$Z$41,3,0)/'4. Billing Determinants'!$D$41*$D25))))),0) -> 0 | O25: =IFERROR(IF(O$4="",0,IF($E25="kWh",VLOOKUP(O$4,'4. Billing Determinants'!$B$19:$Z$41,4,0)/'4. Billing Determinants'!$E$41*$D25,IF($E25="kW",VLOOKUP(O$4,'4. Billing Determinants'!$B$19:$Z$41,5,0)/'4. Billing Determinants'!$F$41*$D25,IF($E25="Non-RPP kWh",VLOOKUP(O$4,'4. Billing Determinants'!$B$19:$Z$41,6,0)/'4. Billing Determinants'!$G$41*$D25,IF($E25="Distribution Rev.",VLOOKUP(O$4,'4. Billing Determinants'!$B$19:$Z$41,8,0)/'4. Billing Determinants'!$I$41*$D25, VLOOKUP(O$4,'4. Billing Determinants'!$B$19:$Z$41,3,0)/'4. Billing Determinants'!$D$41*$D25))))),0) -> 0 | P25: =IFERROR(IF(P$4="",0,IF($E25="kWh",VLOOKUP(P$4,'4. Billing Determinants'!$B$19:$Z$41,4,0)/'4. Billing Determinants'!$E$41*$D25,IF($E25="kW",VLOOKUP(P$4,'4. Billing Determinants'!$B$19:$Z$41,5,0)/'4. Billing Determinants'!$F$41*$D25,IF($E25="Non-RPP kWh",VLOOKUP(P$4,'4. Billing Determinants'!$B$19:$Z$41,6,0)/'4. Billing Determinants'!$G$41*$D25,IF($E25="Distribution Rev.",VLOOKUP(P$4,'4. Billing Determinants'!$B$19:$Z$41,8,0)/'4. Billing Determinants'!$I$41*$D25, VLOOKUP(P$4,'4. Billing Determinants'!$B$19:$Z$41,3,0)/'4. Billing Determinants'!$D$41*$D25))))),0) -> 0 | Q25: =IFERROR(IF(Q$4="",0,IF($E25="kWh",VLOOKUP(Q$4,'4. Billing Determinants'!$B$19:$Z$41,4,0)/'4. Billing Determinants'!$E$41*$D25,IF($E25="kW",VLOOKUP(Q$4,'4. Billing Determinants'!$B$19:$Z$41,5,0)/'4. Billing Determinants'!$F$41*$D25,IF($E25="Non-RPP kWh",VLOOKUP(Q$4,'4. Billing Determinants'!$B$19:$Z$41,6,0)/'4. Billing Determinants'!$G$41*$D25,IF($E25="Distribution Rev.",VLOOKUP(Q$4,'4. Billing Determinants'!$B$19:$Z$41,8,0)/'4. Billing Determinants'!$I$41*$D25, VLOOKUP(Q$4,'4. Billing Determinants'!$B$19:$Z$41,3,0)/'4. Billing Determinants'!$D$41*$D25))))),0) -> 0 | R25: =IFERROR(IF(R$4="",0,IF($E25="kWh",VLOOKUP(R$4,'4. Billing Determinants'!$B$19:$Z$41,4,0)/'4. Billing Determinants'!$E$41*$D25,IF($E25="kW",VLOOKUP(R$4,'4. Billing Determinants'!$B$19:$Z$41,5,0)/'4. Billing Determinants'!$F$41*$D25,IF($E25="Non-RPP kWh",VLOOKUP(R$4,'4. Billing Determinants'!$B$19:$Z$41,6,0)/'4. Billing Determinants'!$G$41*$D25,IF($E25="Distribution Rev.",VLOOKUP(R$4,'4. Billing Determinants'!$B$19:$Z$41,8,0)/'4. Billing Determinants'!$I$41*$D25, VLOOKUP(R$4,'4. Billing Determinants'!$B$19:$Z$41,3,0)/'4. Billing Determinants'!$D$41*$D25))))),0) -> 0 | S25: =IFERROR(IF(S$4="",0,IF($E25="kWh",VLOOKUP(S$4,'4. Billing Determinants'!$B$19:$Z$41,4,0)/'4. Billing Determinants'!$E$41*$D25,IF($E25="kW",VLOOKUP(S$4,'4. Billing Determinants'!$B$19:$Z$41,5,0)/'4. Billing Determinants'!$F$41*$D25,IF($E25="Non-RPP kWh",VLOOKUP(S$4,'4. Billing Determinants'!$B$19:$Z$41,6,0)/'4. Billing Determinants'!$G$41*$D25,IF($E25="Distribution Rev.",VLOOKUP(S$4,'4. Billing Determinants'!$B$19:$Z$41,8,0)/'4. Billing Determinants'!$I$41*$D25, VLOOKUP(S$4,'4. Billing Determinants'!$B$19:$Z$41,3,0)/'4. Billing Determinants'!$D$41*$D25))))),0) -> 0 | T25: =IFERROR(IF(T$4="",0,IF($E25="kWh",VLOOKUP(T$4,'4. Billing Determinants'!$B$19:$Z$41,4,0)/'4. Billing Determinants'!$E$41*$D25,IF($E25="kW",VLOOKUP(T$4,'4. Billing Determinants'!$B$19:$Z$41,5,0)/'4. Billing Determinants'!$F$41*$D25,IF($E25="Non-RPP kWh",VLOOKUP(T$4,'4. Billing Determinants'!$B$19:$Z$41,6,0)/'4. Billing Determinants'!$G$41*$D25,IF($E25="Distribution Rev.",VLOOKUP(T$4,'4. Billing Determinants'!$B$19:$Z$41,8,0)/'4. Billing Determinants'!$I$41*$D25, VLOOKUP(T$4,'4. Billing Determinants'!$B$19:$Z$41,3,0)/'4. Billing Determinants'!$D$41*$D25))))),0) -> 0 | U25: =IFERROR(IF(U$4="",0,IF($E25="kWh",VLOOKUP(U$4,'4. Billing Determinants'!$B$19:$Z$41,4,0)/'4. Billing Determinants'!$E$41*$D25,IF($E25="kW",VLOOKUP(U$4,'4. Billing Determinants'!$B$19:$Z$41,5,0)/'4. Billing Determinants'!$F$41*$D25,IF($E25="Non-RPP kWh",VLOOKUP(U$4,'4. Billing Determinants'!$B$19:$Z$41,6,0)/'4. Billing Determinants'!$G$41*$D25,IF($E25="Distribution Rev.",VLOOKUP(U$4,'4. Billing Determinants'!$B$19:$Z$41,8,0)/'4. Billing Determinants'!$I$41*$D25, VLOOKUP(U$4,'4. Billing Determinants'!$B$19:$Z$41,3,0)/'4. Billing Determinants'!$D$41*$D25))))),0) -> 0 | V25: =IFERROR(IF(V$4="",0,IF($E25="kWh",VLOOKUP(V$4,'4. Billing Determinants'!$B$19:$Z$41,4,0)/'4. Billing Determinants'!$E$41*$D25,IF($E25="kW",VLOOKUP(V$4,'4. Billing Determinants'!$B$19:$Z$41,5,0)/'4. Billing Determinants'!$F$41*$D25,IF($E25="Non-RPP kWh",VLOOKUP(V$4,'4. Billing Determinants'!$B$19:$Z$41,6,0)/'4. Billing Determinants'!$G$41*$D25,IF($E25="Distribution Rev.",VLOOKUP(V$4,'4. Billing Determinants'!$B$19:$Z$41,8,0)/'4. Billing Determinants'!$I$41*$D25, VLOOKUP(V$4,'4. Billing Determinants'!$B$19:$Z$41,3,0)/'4. Billing Determinants'!$D$41*$D25))))),0) -> 0 | W25: =IFERROR(IF(W$4="",0,IF($E25="kWh",VLOOKUP(W$4,'4. Billing Determinants'!$B$19:$Z$41,4,0)/'4. Billing Determinants'!$E$41*$D25,IF($E25="kW",VLOOKUP(W$4,'4. Billing Determinants'!$B$19:$Z$41,5,0)/'4. Billing Determinants'!$F$41*$D25,IF($E25="Non-RPP kWh",VLOOKUP(W$4,'4. Billing Determinants'!$B$19:$Z$41,6,0)/'4. Billing Determinants'!$G$41*$D25,IF($E25="Distribution Rev.",VLOOKUP(W$4,'4. Billing Determinants'!$B$19:$Z$41,8,0)/'4. Billing Determinants'!$I$41*$D25, VLOOKUP(W$4,'4. Billing Determinants'!$B$19:$Z$41,3,0)/'4. Billing Determinants'!$D$41*$D25))))),0) -> 0 | X25: =IFERROR(IF(X$4="",0,IF($E25="kWh",VLOOKUP(X$4,'4. Billing Determinants'!$B$19:$Z$41,4,0)/'4. Billing Determinants'!$E$41*$D25,IF($E25="kW",VLOOKUP(X$4,'4. Billing Determinants'!$B$19:$Z$41,5,0)/'4. Billing Determinants'!$F$41*$D25,IF($E25="Non-RPP kWh",VLOOKUP(X$4,'4. Billing Determinants'!$B$19:$Z$41,6,0)/'4. Billing Determinants'!$G$41*$D25,IF($E25="Distribution Rev.",VLOOKUP(X$4,'4. Billing Determinants'!$B$19:$Z$41,8,0)/'4. Billing Determinants'!$I$41*$D25, VLOOKUP(X$4,'4. Billing Determinants'!$B$19:$Z$41,3,0)/'4. Billing Determinants'!$D$41*$D25))))),0) -> 0 | Y25: =IFERROR(IF(Y$4="",0,IF($E25="kWh",VLOOKUP(Y$4,'4. Billing Determinants'!$B$19:$Z$41,4,0)/'4. Billing Determinants'!$E$41*$D25,IF($E25="kW",VLOOKUP(Y$4,'4. Billing Determinants'!$B$19:$Z$41,5,0)/'4. Billing Determinants'!$F$41*$D25,IF($E25="Non-RPP kWh",VLOOKUP(Y$4,'4. Billing Determinants'!$B$19:$Z$41,6,0)/'4. Billing Determinants'!$G$41*$D25,IF($E25="Distribution Rev.",VLOOKUP(Y$4,'4. Billing Determinants'!$B$19:$Z$41,8,0)/'4. Billing Determinants'!$I$41*$D25, VLOOKUP(Y$4,'4. Billing Determinants'!$B$19:$Z$41,3,0)/'4. Billing Determinants'!$D$41*$D25))))),0) -> 0
B26: Retail Cost Variance Account - Retail | C26: 1518 | D26: ='2. 2015 Continuity Schedule'!BS50 -> 61823.619 | E26: kWh | F26: =IFERROR(IF(F$4="",0,IF($E26="kWh",VLOOKUP(F$4,'4. Billing Determinants'!$B$19:$Z$41,4,0)/'4. Billing Determinants'!$E$41*$D26,IF($E26="kW",VLOOKUP(F$4,'4. Billing Determinants'!$B$19:$Z$41,5,0)/'4. Billing Determinants'!$F$41*$D26,IF($E26="Non-RPP kWh",VLOOKUP(F$4,'4. Billing Determinants'!$B$19:$Z$41,6,0)/'4. Billing Determinants'!$G$41*$D26,IF($E26="Distribution Rev.",VLOOKUP(F$4,'4. Billing Determinants'!$B$19:$Z$41,8,0)/'4. Billing Determinants'!$I$41*$D26, VLOOKUP(F$4,'4. Billing Determinants'!$B$19:$Z$41,3,0)/'4. Billing Determinants'!$D$41*$D26))))),0) -> 38688.74061 | G26: =IFERROR(IF(G$4="",0,IF($E26="kWh",VLOOKUP(G$4,'4. Billing Determinants'!$B$19:$Z$41,4,0)/'4. Billing Determinants'!$E$41*$D26,IF($E26="kW",VLOOKUP(G$4,'4. Billing Determinants'!$B$19:$Z$41,5,0)/'4. Billing Determinants'!$F$41*$D26,IF($E26="Non-RPP kWh",VLOOKUP(G$4,'4. Billing Determinants'!$B$19:$Z$41,6,0)/'4. Billing Determinants'!$G$41*$D26,IF($E26="Distribution Rev.",VLOOKUP(G$4,'4. Billing Determinants'!$B$19:$Z$41,8,0)/'4. Billing Determinants'!$I$41*$D26, VLOOKUP(G$4,'4. Billing Determinants'!$B$19:$Z$41,3,0)/'4. Billing Determinants'!$D$41*$D26))))),0) -> 8352.406824 | H26: =IFERROR(IF(H$4="",0,IF($E26="kWh",VLOOKUP(H$4,'4. Billing Determinants'!$B$19:$Z$41,4,0)/'4. Billing Determinants'!$E$41*$D26,IF($E26="kW",VLOOKUP(H$4,'4. Billing Determinants'!$B$19:$Z$41,5,0)/'4. Billing Determinants'!$F$41*$D26,IF($E26="Non-RPP kWh",VLOOKUP(H$4,'4. Billing Determinants'!$B$19:$Z$41,6,0)/'4. Billing Determinants'!$G$41*$D26,IF($E26="Distribution Rev.",VLOOKUP(H$4,'4. Billing Determinants'!$B$19:$Z$41,8,0)/'4. Billing Determinants'!$I$41*$D26, VLOOKUP(H$4,'4. Billing Determinants'!$B$19:$Z$41,3,0)/'4. Billing Determinants'!$D$41*$D26))))),0) -> 14447.45238 | I26: =IFERROR(IF(I$4="",0,IF($E26="kWh",VLOOKUP(I$4,'4. Billing Determinants'!$B$19:$Z$41,4,0)/'4. Billing Determinants'!$E$41*$D26,IF($E26="kW",VLOOKUP(I$4,'4. Billing Determinants'!$B$19:$Z$41,5,0)/'4. Billing Determinants'!$F$41*$D26,IF($E26="Non-RPP kWh",VLOOKUP(I$4,'4. Billing Determinants'!$B$19:$Z$41,6,0)/'4. Billing Determinants'!$G$41*$D26,IF($E26="Distribution Rev.",VLOOKUP(I$4,'4. Billing Determinants'!$B$19:$Z$41,8,0)/'4. Billing Determinants'!$I$41*$D26, VLOOKUP(I$4,'4. Billing Determinants'!$B$19:$Z$41,3,0)/'4. Billing Determinants'!$D$41*$D26))))),0) -> 25.37057188 | J26: =IFERROR(IF(J$4="",0,IF($E26="kWh",VLOOKUP(J$4,'4. Billing Determinants'!$B$19:$Z$41,4,0)/'4. Billing Determinants'!$E$41*$D26,IF($E26="kW",VLOOKUP(J$4,'4. Billing Determinants'!$B$19:$Z$41,5,0)/'4. Billing Determinants'!$F$41*$D26,IF($E26="Non-RPP kWh",VLOOKUP(J$4,'4. Billing Determinants'!$B$19:$Z$41,6,0)/'4. Billing Determinants'!$G$41*$D26,IF($E26="Distribution Rev.",VLOOKUP(J$4,'4. Billing Determinants'!$B$19:$Z$41,8,0)/'4. Billing Determinants'!$I$41*$D26, VLOOKUP(J$4,'4. Billing Determinants'!$B$19:$Z$41,3,0)/'4. Billing Determinants'!$D$41*$D26))))),0) -> 172.7917993 | K26: =IFERROR(IF(K$4="",0,IF($E26="kWh",VLOOKUP(K$4,'4. Billing Determinants'!$B$19:$Z$41,4,0)/'4. Billing Determinants'!$E$41*$D26,IF($E26="kW",VLOOKUP(K$4,'4. Billing Determinants'!$B$19:$Z$41,5,0)/'4. Billing Determinants'!$F$41*$D26,IF($E26="Non-RPP kWh",VLOOKUP(K$4,'4. Billing Determinants'!$B$19:$Z$41,6,0)/'4. Billing Determinants'!$G$41*$D26,IF($E26="Distribution Rev.",VLOOKUP(K$4,'4. Billing Determinants'!$B$19:$Z$41,8,0)/'4. Billing Determinants'!$I$41*$D26, VLOOKUP(K$4,'4. Billing Determinants'!$B$19:$Z$41,3,0)/'4. Billing Determinants'!$D$41*$D26))))),0) -> 136.8568061 | L26: =IFERROR(IF(L$4="",0,IF($E26="kWh",VLOOKUP(L$4,'4. Billing Determinants'!$B$19:$Z$41,4,0)/'4. Billing Determinants'!$E$41*$D26,IF($E26="kW",VLOOKUP(L$4,'4. Billing Determinants'!$B$19:$Z$41,5,0)/'4. Billing Determinants'!$F$41*$D26,IF($E26="Non-RPP kWh",VLOOKUP(L$4,'4. Billing Determinants'!$B$19:$Z$41,6,0)/'4. Billing Determinants'!$G$41*$D26,IF($E26="Distribution Rev.",VLOOKUP(L$4,'4. Billing Determinants'!$B$19:$Z$41,8,0)/'4. Billing Determinants'!$I$41*$D26, VLOOKUP(L$4,'4. Billing Determinants'!$B$19:$Z$41,3,0)/'4. Billing Determinants'!$D$41*$D26))))),0) -> 0 | M26: =IFERROR(IF(M$4="",0,IF($E26="kWh",VLOOKUP(M$4,'4. Billing Determinants'!$B$19:$Z$41,4,0)/'4. Billing Determinants'!$E$41*$D26,IF($E26="kW",VLOOKUP(M$4,'4. Billing Determinants'!$B$19:$Z$41,5,0)/'4. Billing Determinants'!$F$41*$D26,IF($E26="Non-RPP kWh",VLOOKUP(M$4,'4. Billing Determinants'!$B$19:$Z$41,6,0)/'4. Billing Determinants'!$G$41*$D26,IF($E26="Distribution Rev.",VLOOKUP(M$4,'4. Billing Determinants'!$B$19:$Z$41,8,0)/'4. Billing Determinants'!$I$41*$D26, VLOOKUP(M$4,'4. Billing Determinants'!$B$19:$Z$41,3,0)/'4. Billing Determinants'!$D$41*$D26))))),0) -> 0 | N26: =IFERROR(IF(N$4="",0,IF($E26="kWh",VLOOKUP(N$4,'4. Billing Determinants'!$B$19:$Z$41,4,0)/'4. Billing Determinants'!$E$41*$D26,IF($E26="kW",VLOOKUP(N$4,'4. Billing Determinants'!$B$19:$Z$41,5,0)/'4. Billing Determinants'!$F$41*$D26,IF($E26="Non-RPP kWh",VLOOKUP(N$4,'4. Billing Determinants'!$B$19:$Z$41,6,0)/'4. Billing Determinants'!$G$41*$D26,IF($E26="Distribution Rev.",VLOOKUP(N$4,'4. Billing Determinants'!$B$19:$Z$41,8,0)/'4. Billing Determinants'!$I$41*$D26, VLOOKUP(N$4,'4. Billing Determinants'!$B$19:$Z$41,3,0)/'4. Billing Determinants'!$D$41*$D26))))),0) -> 0 | O26: =IFERROR(IF(O$4="",0,IF($E26="kWh",VLOOKUP(O$4,'4. Billing Determinants'!$B$19:$Z$41,4,0)/'4. Billing Determinants'!$E$41*$D26,IF($E26="kW",VLOOKUP(O$4,'4. Billing Determinants'!$B$19:$Z$41,5,0)/'4. Billing Determinants'!$F$41*$D26,IF($E26="Non-RPP kWh",VLOOKUP(O$4,'4. Billing Determinants'!$B$19:$Z$41,6,0)/'4. Billing Determinants'!$G$41*$D26,IF($E26="Distribution Rev.",VLOOKUP(O$4,'4. Billing Determinants'!$B$19:$Z$41,8,0)/'4. Billing Determinants'!$I$41*$D26, VLOOKUP(O$4,'4. Billing Determinants'!$B$19:$Z$41,3,0)/'4. Billing Determinants'!$D$41*$D26))))),0) -> 0 | P26: =IFERROR(IF(P$4="",0,IF($E26="kWh",VLOOKUP(P$4,'4. Billing Determinants'!$B$19:$Z$41,4,0)/'4. Billing Determinants'!$E$41*$D26,IF($E26="kW",VLOOKUP(P$4,'4. Billing Determinants'!$B$19:$Z$41,5,0)/'4. Billing Determinants'!$F$41*$D26,IF($E26="Non-RPP kWh",VLOOKUP(P$4,'4. Billing Determinants'!$B$19:$Z$41,6,0)/'4. Billing Determinants'!$G$41*$D26,IF($E26="Distribution Rev.",VLOOKUP(P$4,'4. Billing Determinants'!$B$19:$Z$41,8,0)/'4. Billing Determinants'!$I$41*$D26, VLOOKUP(P$4,'4. Billing Determinants'!$B$19:$Z$41,3,0)/'4. Billing Determinants'!$D$41*$D26))))),0) -> 0 | Q26: =IFERROR(IF(Q$4="",0,IF($E26="kWh",VLOOKUP(Q$4,'4. Billing Determinants'!$B$19:$Z$41,4,0)/'4. Billing Determinants'!$E$41*$D26,IF($E26="kW",VLOOKUP(Q$4,'4. Billing Determinants'!$B$19:$Z$41,5,0)/'4. Billing Determinants'!$F$41*$D26,IF($E26="Non-RPP kWh",VLOOKUP(Q$4,'4. Billing Determinants'!$B$19:$Z$41,6,0)/'4. Billing Determinants'!$G$41*$D26,IF($E26="Distribution Rev.",VLOOKUP(Q$4,'4. Billing Determinants'!$B$19:$Z$41,8,0)/'4. Billing Determinants'!$I$41*$D26, VLOOKUP(Q$4,'4. Billing Determinants'!$B$19:$Z$41,3,0)/'4. Billing Determinants'!$D$41*$D26))))),0) -> 0 | R26: =IFERROR(IF(R$4="",0,IF($E26="kWh",VLOOKUP(R$4,'4. Billing Determinants'!$B$19:$Z$41,4,0)/'4. Billing Determinants'!$E$41*$D26,IF($E26="kW",VLOOKUP(R$4,'4. Billing Determinants'!$B$19:$Z$41,5,0)/'4. Billing Determinants'!$F$41*$D26,IF($E26="Non-RPP kWh",VLOOKUP(R$4,'4. Billing Determinants'!$B$19:$Z$41,6,0)/'4. Billing Determinants'!$G$41*$D26,IF($E26="Distribution Rev.",VLOOKUP(R$4,'4. Billing Determinants'!$B$19:$Z$41,8,0)/'4. Billing Determinants'!$I$41*$D26, VLOOKUP(R$4,'4. Billing Determinants'!$B$19:$Z$41,3,0)/'4. Billing Determinants'!$D$41*$D26))))),0) -> 0 | S26: =IFERROR(IF(S$4="",0,IF($E26="kWh",VLOOKUP(S$4,'4. Billing Determinants'!$B$19:$Z$41,4,0)/'4. Billing Determinants'!$E$41*$D26,IF($E26="kW",VLOOKUP(S$4,'4. Billing Determinants'!$B$19:$Z$41,5,0)/'4. Billing Determinants'!$F$41*$D26,IF($E26="Non-RPP kWh",VLOOKUP(S$4,'4. Billing Determinants'!$B$19:$Z$41,6,0)/'4. Billing Determinants'!$G$41*$D26,IF($E26="Distribution Rev.",VLOOKUP(S$4,'4. Billing Determinants'!$B$19:$Z$41,8,0)/'4. Billing Determinants'!$I$41*$D26, VLOOKUP(S$4,'4. Billing Determinants'!$B$19:$Z$41,3,0)/'4. Billing Determinants'!$D$41*$D26))))),0) -> 0 | T26: =IFERROR(IF(T$4="",0,IF($E26="kWh",VLOOKUP(T$4,'4. Billing Determinants'!$B$19:$Z$41,4,0)/'4. Billing Determinants'!$E$41*$D26,IF($E26="kW",VLOOKUP(T$4,'4. Billing Determinants'!$B$19:$Z$41,5,0)/'4. Billing Determinants'!$F$41*$D26,IF($E26="Non-RPP kWh",VLOOKUP(T$4,'4. Billing Determinants'!$B$19:$Z$41,6,0)/'4. Billing Determinants'!$G$41*$D26,IF($E26="Distribution Rev.",VLOOKUP(T$4,'4. Billing Determinants'!$B$19:$Z$41,8,0)/'4. Billing Determinants'!$I$41*$D26, VLOOKUP(T$4,'4. Billing Determinants'!$B$19:$Z$41,3,0)/'4. Billing Determinants'!$D$41*$D26))))),0) -> 0 | U26: =IFERROR(IF(U$4="",0,IF($E26="kWh",VLOOKUP(U$4,'4. Billing Determinants'!$B$19:$Z$41,4,0)/'4. Billing Determinants'!$E$41*$D26,IF($E26="kW",VLOOKUP(U$4,'4. Billing Determinants'!$B$19:$Z$41,5,0)/'4. Billing Determinants'!$F$41*$D26,IF($E26="Non-RPP kWh",VLOOKUP(U$4,'4. Billing Determinants'!$B$19:$Z$41,6,0)/'4. Billing Determinants'!$G$41*$D26,IF($E26="Distribution Rev.",VLOOKUP(U$4,'4. Billing Determinants'!$B$19:$Z$41,8,0)/'4. Billing Determinants'!$I$41*$D26, VLOOKUP(U$4,'4. Billing Determinants'!$B$19:$Z$41,3,0)/'4. Billing Determinants'!$D$41*$D26))))),0) -> 0 | V26: =IFERROR(IF(V$4="",0,IF($E26="kWh",VLOOKUP(V$4,'4. Billing Determinants'!$B$19:$Z$41,4,0)/'4. Billing Determinants'!$E$41*$D26,IF($E26="kW",VLOOKUP(V$4,'4. Billing Determinants'!$B$19:$Z$41,5,0)/'4. Billing Determinants'!$F$41*$D26,IF($E26="Non-RPP kWh",VLOOKUP(V$4,'4. Billing Determinants'!$B$19:$Z$41,6,0)/'4. Billing Determinants'!$G$41*$D26,IF($E26="Distribution Rev.",VLOOKUP(V$4,'4. Billing Determinants'!$B$19:$Z$41,8,0)/'4. Billing Determinants'!$I$41*$D26, VLOOKUP(V$4,'4. Billing Determinants'!$B$19:$Z$41,3,0)/'4. Billing Determinants'!$D$41*$D26))))),0) -> 0 | W26: =IFERROR(IF(W$4="",0,IF($E26="kWh",VLOOKUP(W$4,'4. Billing Determinants'!$B$19:$Z$41,4,0)/'4. Billing Determinants'!$E$41*$D26,IF($E26="kW",VLOOKUP(W$4,'4. Billing Determinants'!$B$19:$Z$41,5,0)/'4. Billing Determinants'!$F$41*$D26,IF($E26="Non-RPP kWh",VLOOKUP(W$4,'4. Billing Determinants'!$B$19:$Z$41,6,0)/'4. Billing Determinants'!$G$41*$D26,IF($E26="Distribution Rev.",VLOOKUP(W$4,'4. Billing Determinants'!$B$19:$Z$41,8,0)/'4. Billing Determinants'!$I$41*$D26, VLOOKUP(W$4,'4. Billing Determinants'!$B$19:$Z$41,3,0)/'4. Billing Determinants'!$D$41*$D26))))),0) -> 0 | X26: =IFERROR(IF(X$4="",0,IF($E26="kWh",VLOOKUP(X$4,'4. Billing Determinants'!$B$19:$Z$41,4,0)/'4. Billing Determinants'!$E$41*$D26,IF($E26="kW",VLOOKUP(X$4,'4. Billing Determinants'!$B$19:$Z$41,5,0)/'4. Billing Determinants'!$F$41*$D26,IF($E26="Non-RPP kWh",VLOOKUP(X$4,'4. Billing Determinants'!$B$19:$Z$41,6,0)/'4. Billing Determinants'!$G$41*$D26,IF($E26="Distribution Rev.",VLOOKUP(X$4,'4. Billing Determinants'!$B$19:$Z$41,8,0)/'4. Billing Determinants'!$I$41*$D26, VLOOKUP(X$4,'4. Billing Determinants'!$B$19:$Z$41,3,0)/'4. Billing Determinants'!$D$41*$D26))))),0) -> 0 | Y26: =IFERROR(IF(Y$4="",0,IF($E26="kWh",VLOOKUP(Y$4,'4. Billing Determinants'!$B$19:$Z$41,4,0)/'4. Billing Determinants'!$E$41*$D26,IF($E26="kW",VLOOKUP(Y$4,'4. Billing Determinants'!$B$19:$Z$41,5,0)/'4. Billing Determinants'!$F$41*$D26,IF($E26="Non-RPP kWh",VLOOKUP(Y$4,'4. Billing Determinants'!$B$19:$Z$41,6,0)/'4. Billing Determinants'!$G$41*$D26,IF($E26="Distribution Rev.",VLOOKUP(Y$4,'4. Billing Determinants'!$B$19:$Z$41,8,0)/'4. Billing Determinants'!$I$41*$D26, VLOOKUP(Y$4,'4. Billing Determinants'!$B$19:$Z$41,3,0)/'4. Billing Determinants'!$D$41*$D26))))),0) -> 0
B27: Misc. Deferred Debits | C27: 1525 | D27: ='2. 2015 Continuity Schedule'!BS51 -> 0 | E27: kWh | F27: =IFERROR(IF(F$4="",0,IF($E27="kWh",VLOOKUP(F$4,'4. Billing Determinants'!$B$19:$Z$41,4,0)/'4. Billing Determinants'!$E$41*$D27,IF($E27="kW",VLOOKUP(F$4,'4. Billing Determinants'!$B$19:$Z$41,5,0)/'4. Billing Determinants'!$F$41*$D27,IF($E27="Non-RPP kWh",VLOOKUP(F$4,'4. Billing Determinants'!$B$19:$Z$41,6,0)/'4. Billing Determinants'!$G$41*$D27,IF($E27="Distribution Rev.",VLOOKUP(F$4,'4. Billing Determinants'!$B$19:$Z$41,8,0)/'4. Billing Determinants'!$I$41*$D27, VLOOKUP(F$4,'4. Billing Determinants'!$B$19:$Z$41,3,0)/'4. Billing Determinants'!$D$41*$D27))))),0) -> 0 | G27: =IFERROR(IF(G$4="",0,IF($E27="kWh",VLOOKUP(G$4,'4. Billing Determinants'!$B$19:$Z$41,4,0)/'4. Billing Determinants'!$E$41*$D27,IF($E27="kW",VLOOKUP(G$4,'4. Billing Determinants'!$B$19:$Z$41,5,0)/'4. Billing Determinants'!$F$41*$D27,IF($E27="Non-RPP kWh",VLOOKUP(G$4,'4. Billing Determinants'!$B$19:$Z$41,6,0)/'4. Billing Determinants'!$G$41*$D27,IF($E27="Distribution Rev.",VLOOKUP(G$4,'4. Billing Determinants'!$B$19:$Z$41,8,0)/'4. Billing Determinants'!$I$41*$D27, VLOOKUP(G$4,'4. Billing Determinants'!$B$19:$Z$41,3,0)/'4. Billing Determinants'!$D$41*$D27))))),0) -> 0 | H27: =IFERROR(IF(H$4="",0,IF($E27="kWh",VLOOKUP(H$4,'4. Billing Determinants'!$B$19:$Z$41,4,0)/'4. Billing Determinants'!$E$41*$D27,IF($E27="kW",VLOOKUP(H$4,'4. Billing Determinants'!$B$19:$Z$41,5,0)/'4. Billing Determinants'!$F$41*$D27,IF($E27="Non-RPP kWh",VLOOKUP(H$4,'4. Billing Determinants'!$B$19:$Z$41,6,0)/'4. Billing Determinants'!$G$41*$D27,IF($E27="Distribution Rev.",VLOOKUP(H$4,'4. Billing Determinants'!$B$19:$Z$41,8,0)/'4. Billing Determinants'!$I$41*$D27, VLOOKUP(H$4,'4. Billing Determinants'!$B$19:$Z$41,3,0)/'4. Billing Determinants'!$D$41*$D27))))),0) -> 0 | I27: =IFERROR(IF(I$4="",0,IF($E27="kWh",VLOOKUP(I$4,'4. Billing Determinants'!$B$19:$Z$41,4,0)/'4. Billing Determinants'!$E$41*$D27,IF($E27="kW",VLOOKUP(I$4,'4. Billing Determinants'!$B$19:$Z$41,5,0)/'4. Billing Determinants'!$F$41*$D27,IF($E27="Non-RPP kWh",VLOOKUP(I$4,'4. Billing Determinants'!$B$19:$Z$41,6,0)/'4. Billing Determinants'!$G$41*$D27,IF($E27="Distribution Rev.",VLOOKUP(I$4,'4. Billing Determinants'!$B$19:$Z$41,8,0)/'4. Billing Determinants'!$I$41*$D27, VLOOKUP(I$4,'4. Billing Determinants'!$B$19:$Z$41,3,0)/'4. Billing Determinants'!$D$41*$D27))))),0) -> 0 | J27: =IFERROR(IF(J$4="",0,IF($E27="kWh",VLOOKUP(J$4,'4. Billing Determinants'!$B$19:$Z$41,4,0)/'4. Billing Determinants'!$E$41*$D27,IF($E27="kW",VLOOKUP(J$4,'4. Billing Determinants'!$B$19:$Z$41,5,0)/'4. Billing Determinants'!$F$41*$D27,IF($E27="Non-RPP kWh",VLOOKUP(J$4,'4. Billing Determinants'!$B$19:$Z$41,6,0)/'4. Billing Determinants'!$G$41*$D27,IF($E27="Distribution Rev.",VLOOKUP(J$4,'4. Billing Determinants'!$B$19:$Z$41,8,0)/'4. Billing Determinants'!$I$41*$D27, VLOOKUP(J$4,'4. Billing Determinants'!$B$19:$Z$41,3,0)/'4. Billing Determinants'!$D$41*$D27))))),0) -> 0 | K27: =IFERROR(IF(K$4="",0,IF($E27="kWh",VLOOKUP(K$4,'4. Billing Determinants'!$B$19:$Z$41,4,0)/'4. Billing Determinants'!$E$41*$D27,IF($E27="kW",VLOOKUP(K$4,'4. Billing Determinants'!$B$19:$Z$41,5,0)/'4. Billing Determinants'!$F$41*$D27,IF($E27="Non-RPP kWh",VLOOKUP(K$4,'4. Billing Determinants'!$B$19:$Z$41,6,0)/'4. Billing Determinants'!$G$41*$D27,IF($E27="Distribution Rev.",VLOOKUP(K$4,'4. Billing Determinants'!$B$19:$Z$41,8,0)/'4. Billing Determinants'!$I$41*$D27, VLOOKUP(K$4,'4. Billing Determinants'!$B$19:$Z$41,3,0)/'4. Billing Determinants'!$D$41*$D27))))),0) -> 0 | L27: =IFERROR(IF(L$4="",0,IF($E27="kWh",VLOOKUP(L$4,'4. Billing Determinants'!$B$19:$Z$41,4,0)/'4. Billing Determinants'!$E$41*$D27,IF($E27="kW",VLOOKUP(L$4,'4. Billing Determinants'!$B$19:$Z$41,5,0)/'4. Billing Determinants'!$F$41*$D27,IF($E27="Non-RPP kWh",VLOOKUP(L$4,'4. Billing Determinants'!$B$19:$Z$41,6,0)/'4. Billing Determinants'!$G$41*$D27,IF($E27="Distribution Rev.",VLOOKUP(L$4,'4. Billing Determinants'!$B$19:$Z$41,8,0)/'4. Billing Determinants'!$I$41*$D27, VLOOKUP(L$4,'4. Billing Determinants'!$B$19:$Z$41,3,0)/'4. Billing Determinants'!$D$41*$D27))))),0) -> 0 | M27: =IFERROR(IF(M$4="",0,IF($E27="kWh",VLOOKUP(M$4,'4. Billing Determinants'!$B$19:$Z$41,4,0)/'4. Billing Determinants'!$E$41*$D27,IF($E27="kW",VLOOKUP(M$4,'4. Billing Determinants'!$B$19:$Z$41,5,0)/'4. Billing Determinants'!$F$41*$D27,IF($E27="Non-RPP kWh",VLOOKUP(M$4,'4. Billing Determinants'!$B$19:$Z$41,6,0)/'4. Billing Determinants'!$G$41*$D27,IF($E27="Distribution Rev.",VLOOKUP(M$4,'4. Billing Determinants'!$B$19:$Z$41,8,0)/'4. Billing Determinants'!$I$41*$D27, VLOOKUP(M$4,'4. Billing Determinants'!$B$19:$Z$41,3,0)/'4. Billing Determinants'!$D$41*$D27))))),0) -> 0 | N27: =IFERROR(IF(N$4="",0,IF($E27="kWh",VLOOKUP(N$4,'4. Billing Determinants'!$B$19:$Z$41,4,0)/'4. Billing Determinants'!$E$41*$D27,IF($E27="kW",VLOOKUP(N$4,'4. Billing Determinants'!$B$19:$Z$41,5,0)/'4. Billing Determinants'!$F$41*$D27,IF($E27="Non-RPP kWh",VLOOKUP(N$4,'4. Billing Determinants'!$B$19:$Z$41,6,0)/'4. Billing Determinants'!$G$41*$D27,IF($E27="Distribution Rev.",VLOOKUP(N$4,'4. Billing Determinants'!$B$19:$Z$41,8,0)/'4. Billing Determinants'!$I$41*$D27, VLOOKUP(N$4,'4. Billing Determinants'!$B$19:$Z$41,3,0)/'4. Billing Determinants'!$D$41*$D27))))),0) -> 0 | O27: =IFERROR(IF(O$4="",0,IF($E27="kWh",VLOOKUP(O$4,'4. Billing Determinants'!$B$19:$Z$41,4,0)/'4. Billing Determinants'!$E$41*$D27,IF($E27="kW",VLOOKUP(O$4,'4. Billing Determinants'!$B$19:$Z$41,5,0)/'4. Billing Determinants'!$F$41*$D27,IF($E27="Non-RPP kWh",VLOOKUP(O$4,'4. Billing Determinants'!$B$19:$Z$41,6,0)/'4. Billing Determinants'!$G$41*$D27,IF($E27="Distribution Rev.",VLOOKUP(O$4,'4. Billing Determinants'!$B$19:$Z$41,8,0)/'4. Billing Determinants'!$I$41*$D27, VLOOKUP(O$4,'4. Billing Determinants'!$B$19:$Z$41,3,0)/'4. Billing Determinants'!$D$41*$D27))))),0) -> 0 | P27: =IFERROR(IF(P$4="",0,IF($E27="kWh",VLOOKUP(P$4,'4. Billing Determinants'!$B$19:$Z$41,4,0)/'4. Billing Determinants'!$E$41*$D27,IF($E27="kW",VLOOKUP(P$4,'4. Billing Determinants'!$B$19:$Z$41,5,0)/'4. Billing Determinants'!$F$41*$D27,IF($E27="Non-RPP kWh",VLOOKUP(P$4,'4. Billing Determinants'!$B$19:$Z$41,6,0)/'4. Billing Determinants'!$G$41*$D27,IF($E27="Distribution Rev.",VLOOKUP(P$4,'4. Billing Determinants'!$B$19:$Z$41,8,0)/'4. Billing Determinants'!$I$41*$D27, VLOOKUP(P$4,'4. Billing Determinants'!$B$19:$Z$41,3,0)/'4. Billing Determinants'!$D$41*$D27))))),0) -> 0 | Q27: =IFERROR(IF(Q$4="",0,IF($E27="kWh",VLOOKUP(Q$4,'4. Billing Determinants'!$B$19:$Z$41,4,0)/'4. Billing Determinants'!$E$41*$D27,IF($E27="kW",VLOOKUP(Q$4,'4. Billing Determinants'!$B$19:$Z$41,5,0)/'4. Billing Determinants'!$F$41*$D27,IF($E27="Non-RPP kWh",VLOOKUP(Q$4,'4. Billing Determinants'!$B$19:$Z$41,6,0)/'4. Billing Determinants'!$G$41*$D27,IF($E27="Distribution Rev.",VLOOKUP(Q$4,'4. Billing Determinants'!$B$19:$Z$41,8,0)/'4. Billing Determinants'!$I$41*$D27, VLOOKUP(Q$4,'4. Billing Determinants'!$B$19:$Z$41,3,0)/'4. Billing Determinants'!$D$41*$D27))))),0) -> 0 | R27: =IFERROR(IF(R$4="",0,IF($E27="kWh",VLOOKUP(R$4,'4. Billing Determinants'!$B$19:$Z$41,4,0)/'4. Billing Determinants'!$E$41*$D27,IF($E27="kW",VLOOKUP(R$4,'4. Billing Determinants'!$B$19:$Z$41,5,0)/'4. Billing Determinants'!$F$41*$D27,IF($E27="Non-RPP kWh",VLOOKUP(R$4,'4. Billing Determinants'!$B$19:$Z$41,6,0)/'4. Billing Determinants'!$G$41*$D27,IF($E27="Distribution Rev.",VLOOKUP(R$4,'4. Billing Determinants'!$B$19:$Z$41,8,0)/'4. Billing Determinants'!$I$41*$D27, VLOOKUP(R$4,'4. Billing Determinants'!$B$19:$Z$41,3,0)/'4. Billing Determinants'!$D$41*$D27))))),0) -> 0 | S27: =IFERROR(IF(S$4="",0,IF($E27="kWh",VLOOKUP(S$4,'4. Billing Determinants'!$B$19:$Z$41,4,0)/'4. Billing Determinants'!$E$41*$D27,IF($E27="kW",VLOOKUP(S$4,'4. Billing Determinants'!$B$19:$Z$41,5,0)/'4. Billing Determinants'!$F$41*$D27,IF($E27="Non-RPP kWh",VLOOKUP(S$4,'4. Billing Determinants'!$B$19:$Z$41,6,0)/'4. Billing Determinants'!$G$41*$D27,IF($E27="Distribution Rev.",VLOOKUP(S$4,'4. Billing Determinants'!$B$19:$Z$41,8,0)/'4. Billing Determinants'!$I$41*$D27, VLOOKUP(S$4,'4. Billing Determinants'!$B$19:$Z$41,3,0)/'4. Billing Determinants'!$D$41*$D27))))),0) -> 0 | T27: =IFERROR(IF(T$4="",0,IF($E27="kWh",VLOOKUP(T$4,'4. Billing Determinants'!$B$19:$Z$41,4,0)/'4. Billing Determinants'!$E$41*$D27,IF($E27="kW",VLOOKUP(T$4,'4. Billing Determinants'!$B$19:$Z$41,5,0)/'4. Billing Determinants'!$F$41*$D27,IF($E27="Non-RPP kWh",VLOOKUP(T$4,'4. Billing Determinants'!$B$19:$Z$41,6,0)/'4. Billing Determinants'!$G$41*$D27,IF($E27="Distribution Rev.",VLOOKUP(T$4,'4. Billing Determinants'!$B$19:$Z$41,8,0)/'4. Billing Determinants'!$I$41*$D27, VLOOKUP(T$4,'4. Billing Determinants'!$B$19:$Z$41,3,0)/'4. Billing Determinants'!$D$41*$D27))))),0) -> 0 | U27: =IFERROR(IF(U$4="",0,IF($E27="kWh",VLOOKUP(U$4,'4. Billing Determinants'!$B$19:$Z$41,4,0)/'4. Billing Determinants'!$E$41*$D27,IF($E27="kW",VLOOKUP(U$4,'4. Billing Determinants'!$B$19:$Z$41,5,0)/'4. Billing Determinants'!$F$41*$D27,IF($E27="Non-RPP kWh",VLOOKUP(U$4,'4. Billing Determinants'!$B$19:$Z$41,6,0)/'4. Billing Determinants'!$G$41*$D27,IF($E27="Distribution Rev.",VLOOKUP(U$4,'4. Billing Determinants'!$B$19:$Z$41,8,0)/'4. Billing Determinants'!$I$41*$D27, VLOOKUP(U$4,'4. Billing Determinants'!$B$19:$Z$41,3,0)/'4. Billing Determinants'!$D$41*$D27))))),0) -> 0 | V27: =IFERROR(IF(V$4="",0,IF($E27="kWh",VLOOKUP(V$4,'4. Billing Determinants'!$B$19:$Z$41,4,0)/'4. Billing Determinants'!$E$41*$D27,IF($E27="kW",VLOOKUP(V$4,'4. Billing Determinants'!$B$19:$Z$41,5,0)/'4. Billing Determinants'!$F$41*$D27,IF($E27="Non-RPP kWh",VLOOKUP(V$4,'4. Billing Determinants'!$B$19:$Z$41,6,0)/'4. Billing Determinants'!$G$41*$D27,IF($E27="Distribution Rev.",VLOOKUP(V$4,'4. Billing Determinants'!$B$19:$Z$41,8,0)/'4. Billing Determinants'!$I$41*$D27, VLOOKUP(V$4,'4. Billing Determinants'!$B$19:$Z$41,3,0)/'4. Billing Determinants'!$D$41*$D27))))),0) -> 0 | W27: =IFERROR(IF(W$4="",0,IF($E27="kWh",VLOOKUP(W$4,'4. Billing Determinants'!$B$19:$Z$41,4,0)/'4. Billing Determinants'!$E$41*$D27,IF($E27="kW",VLOOKUP(W$4,'4. Billing Determinants'!$B$19:$Z$41,5,0)/'4. Billing Determinants'!$F$41*$D27,IF($E27="Non-RPP kWh",VLOOKUP(W$4,'4. Billing Determinants'!$B$19:$Z$41,6,0)/'4. Billing Determinants'!$G$41*$D27,IF($E27="Distribution Rev.",VLOOKUP(W$4,'4. Billing Determinants'!$B$19:$Z$41,8,0)/'4. Billing Determinants'!$I$41*$D27, VLOOKUP(W$4,'4. Billing Determinants'!$B$19:$Z$41,3,0)/'4. Billing Determinants'!$D$41*$D27))))),0) -> 0 | X27: =IFERROR(IF(X$4="",0,IF($E27="kWh",VLOOKUP(X$4,'4. Billing Determinants'!$B$19:$Z$41,4,0)/'4. Billing Determinants'!$E$41*$D27,IF($E27="kW",VLOOKUP(X$4,'4. Billing Determinants'!$B$19:$Z$41,5,0)/'4. Billing Determinants'!$F$41*$D27,IF($E27="Non-RPP kWh",VLOOKUP(X$4,'4. Billing Determinants'!$B$19:$Z$41,6,0)/'4. Billing Determinants'!$G$41*$D27,IF($E27="Distribution Rev.",VLOOKUP(X$4,'4. Billing Determinants'!$B$19:$Z$41,8,0)/'4. Billing Determinants'!$I$41*$D27, VLOOKUP(X$4,'4. Billing Determinants'!$B$19:$Z$41,3,0)/'4. Billing Determinants'!$D$41*$D27))))),0) -> 0 | Y27: =IFERROR(IF(Y$4="",0,IF($E27="kWh",VLOOKUP(Y$4,'4. Billing Determinants'!$B$19:$Z$41,4,0)/'4. Billing Determinants'!$E$41*$D27,IF($E27="kW",VLOOKUP(Y$4,'4. Billing Determinants'!$B$19:$Z$41,5,0)/'4. Billing Determinants'!$F$41*$D27,IF($E27="Non-RPP kWh",VLOOKUP(Y$4,'4. Billing Determinants'!$B$19:$Z$41,6,0)/'4. Billing Determinants'!$G$41*$D27,IF($E27="Distribution Rev.",VLOOKUP(Y$4,'4. Billing Determinants'!$B$19:$Z$41,8,0)/'4. Billing Determinants'!$I$41*$D27, VLOOKUP(Y$4,'4. Billing Determinants'!$B$19:$Z$41,3,0)/'4. Billing Determinants'!$D$41*$D27))))),0) -> 0
B28: Retail Cost Variance Account - STR | C28: 1548 | D28: ='2. 2015 Continuity Schedule'!BS77 -> 26247.067 | E28: kWh | F28: =IFERROR(IF(F$4="",0,IF($E28="kWh",VLOOKUP(F$4,'4. Billing Determinants'!$B$19:$Z$41,4,0)/'4. Billing Determinants'!$E$41*$D28,IF($E28="kW",VLOOKUP(F$4,'4. Billing Determinants'!$B$19:$Z$41,5,0)/'4. Billing Determinants'!$F$41*$D28,IF($E28="Non-RPP kWh",VLOOKUP(F$4,'4. Billing Determinants'!$B$19:$Z$41,6,0)/'4. Billing Determinants'!$G$41*$D28,IF($E28="Distribution Rev.",VLOOKUP(F$4,'4. Billing Determinants'!$B$19:$Z$41,8,0)/'4. Billing Determinants'!$I$41*$D28, VLOOKUP(F$4,'4. Billing Determinants'!$B$19:$Z$41,3,0)/'4. Billing Determinants'!$D$41*$D28))))),0) -> 16425.21068 | G28: =IFERROR(IF(G$4="",0,IF($E28="kWh",VLOOKUP(G$4,'4. Billing Determinants'!$B$19:$Z$41,4,0)/'4. Billing Determinants'!$E$41*$D28,IF($E28="kW",VLOOKUP(G$4,'4. Billing Determinants'!$B$19:$Z$41,5,0)/'4. Billing Determinants'!$F$41*$D28,IF($E28="Non-RPP kWh",VLOOKUP(G$4,'4. Billing Determinants'!$B$19:$Z$41,6,0)/'4. Billing Determinants'!$G$41*$D28,IF($E28="Distribution Rev.",VLOOKUP(G$4,'4. Billing Determinants'!$B$19:$Z$41,8,0)/'4. Billing Determinants'!$I$41*$D28, VLOOKUP(G$4,'4. Billing Determinants'!$B$19:$Z$41,3,0)/'4. Billing Determinants'!$D$41*$D28))))),0) -> 3545.993992 | H28: =IFERROR(IF(H$4="",0,IF($E28="kWh",VLOOKUP(H$4,'4. Billing Determinants'!$B$19:$Z$41,4,0)/'4. Billing Determinants'!$E$41*$D28,IF($E28="kW",VLOOKUP(H$4,'4. Billing Determinants'!$B$19:$Z$41,5,0)/'4. Billing Determinants'!$F$41*$D28,IF($E28="Non-RPP kWh",VLOOKUP(H$4,'4. Billing Determinants'!$B$19:$Z$41,6,0)/'4. Billing Determinants'!$G$41*$D28,IF($E28="Distribution Rev.",VLOOKUP(H$4,'4. Billing Determinants'!$B$19:$Z$41,8,0)/'4. Billing Determinants'!$I$41*$D28, VLOOKUP(H$4,'4. Billing Determinants'!$B$19:$Z$41,3,0)/'4. Billing Determinants'!$D$41*$D28))))),0) -> 6133.630752 | I28: =IFERROR(IF(I$4="",0,IF($E28="kWh",VLOOKUP(I$4,'4. Billing Determinants'!$B$19:$Z$41,4,0)/'4. Billing Determinants'!$E$41*$D28,IF($E28="kW",VLOOKUP(I$4,'4. Billing Determinants'!$B$19:$Z$41,5,0)/'4. Billing Determinants'!$F$41*$D28,IF($E28="Non-RPP kWh",VLOOKUP(I$4,'4. Billing Determinants'!$B$19:$Z$41,6,0)/'4. Billing Determinants'!$G$41*$D28,IF($E28="Distribution Rev.",VLOOKUP(I$4,'4. Billing Determinants'!$B$19:$Z$41,8,0)/'4. Billing Determinants'!$I$41*$D28, VLOOKUP(I$4,'4. Billing Determinants'!$B$19:$Z$41,3,0)/'4. Billing Determinants'!$D$41*$D28))))),0) -> 10.77101455 | J28: =IFERROR(IF(J$4="",0,IF($E28="kWh",VLOOKUP(J$4,'4. Billing Determinants'!$B$19:$Z$41,4,0)/'4. Billing Determinants'!$E$41*$D28,IF($E28="kW",VLOOKUP(J$4,'4. Billing Determinants'!$B$19:$Z$41,5,0)/'4. Billing Determinants'!$F$41*$D28,IF($E28="Non-RPP kWh",VLOOKUP(J$4,'4. Billing Determinants'!$B$19:$Z$41,6,0)/'4. Billing Determinants'!$G$41*$D28,IF($E28="Distribution Rev.",VLOOKUP(J$4,'4. Billing Determinants'!$B$19:$Z$41,8,0)/'4. Billing Determinants'!$I$41*$D28, VLOOKUP(J$4,'4. Billing Determinants'!$B$19:$Z$41,3,0)/'4. Billing Determinants'!$D$41*$D28))))),0) -> 73.35833793 | K28: =IFERROR(IF(K$4="",0,IF($E28="kWh",VLOOKUP(K$4,'4. Billing Determinants'!$B$19:$Z$41,4,0)/'4. Billing Determinants'!$E$41*$D28,IF($E28="kW",VLOOKUP(K$4,'4. Billing Determinants'!$B$19:$Z$41,5,0)/'4. Billing Determinants'!$F$41*$D28,IF($E28="Non-RPP kWh",VLOOKUP(K$4,'4. Billing Determinants'!$B$19:$Z$41,6,0)/'4. Billing Determinants'!$G$41*$D28,IF($E28="Distribution Rev.",VLOOKUP(K$4,'4. Billing Determinants'!$B$19:$Z$41,8,0)/'4. Billing Determinants'!$I$41*$D28, VLOOKUP(K$4,'4. Billing Determinants'!$B$19:$Z$41,3,0)/'4. Billing Determinants'!$D$41*$D28))))),0) -> 58.10222398 | L28: =IFERROR(IF(L$4="",0,IF($E28="kWh",VLOOKUP(L$4,'4. Billing Determinants'!$B$19:$Z$41,4,0)/'4. Billing Determinants'!$E$41*$D28,IF($E28="kW",VLOOKUP(L$4,'4. Billing Determinants'!$B$19:$Z$41,5,0)/'4. Billing Determinants'!$F$41*$D28,IF($E28="Non-RPP kWh",VLOOKUP(L$4,'4. Billing Determinants'!$B$19:$Z$41,6,0)/'4. Billing Determinants'!$G$41*$D28,IF($E28="Distribution Rev.",VLOOKUP(L$4,'4. Billing Determinants'!$B$19:$Z$41,8,0)/'4. Billing Determinants'!$I$41*$D28, VLOOKUP(L$4,'4. Billing Determinants'!$B$19:$Z$41,3,0)/'4. Billing Determinants'!$D$41*$D28))))),0) -> 0 | M28: =IFERROR(IF(M$4="",0,IF($E28="kWh",VLOOKUP(M$4,'4. Billing Determinants'!$B$19:$Z$41,4,0)/'4. Billing Determinants'!$E$41*$D28,IF($E28="kW",VLOOKUP(M$4,'4. Billing Determinants'!$B$19:$Z$41,5,0)/'4. Billing Determinants'!$F$41*$D28,IF($E28="Non-RPP kWh",VLOOKUP(M$4,'4. Billing Determinants'!$B$19:$Z$41,6,0)/'4. Billing Determinants'!$G$41*$D28,IF($E28="Distribution Rev.",VLOOKUP(M$4,'4. Billing Determinants'!$B$19:$Z$41,8,0)/'4. Billing Determinants'!$I$41*$D28, VLOOKUP(M$4,'4. Billing Determinants'!$B$19:$Z$41,3,0)/'4. Billing Determinants'!$D$41*$D28))))),0) -> 0 | N28: =IFERROR(IF(N$4="",0,IF($E28="kWh",VLOOKUP(N$4,'4. Billing Determinants'!$B$19:$Z$41,4,0)/'4. Billing Determinants'!$E$41*$D28,IF($E28="kW",VLOOKUP(N$4,'4. Billing Determinants'!$B$19:$Z$41,5,0)/'4. Billing Determinants'!$F$41*$D28,IF($E28="Non-RPP kWh",VLOOKUP(N$4,'4. Billing Determinants'!$B$19:$Z$41,6,0)/'4. Billing Determinants'!$G$41*$D28,IF($E28="Distribution Rev.",VLOOKUP(N$4,'4. Billing Determinants'!$B$19:$Z$41,8,0)/'4. Billing Determinants'!$I$41*$D28, VLOOKUP(N$4,'4. Billing Determinants'!$B$19:$Z$41,3,0)/'4. Billing Determinants'!$D$41*$D28))))),0) -> 0 | O28: =IFERROR(IF(O$4="",0,IF($E28="kWh",VLOOKUP(O$4,'4. Billing Determinants'!$B$19:$Z$41,4,0)/'4. Billing Determinants'!$E$41*$D28,IF($E28="kW",VLOOKUP(O$4,'4. Billing Determinants'!$B$19:$Z$41,5,0)/'4. Billing Determinants'!$F$41*$D28,IF($E28="Non-RPP kWh",VLOOKUP(O$4,'4. Billing Determinants'!$B$19:$Z$41,6,0)/'4. Billing Determinants'!$G$41*$D28,IF($E28="Distribution Rev.",VLOOKUP(O$4,'4. Billing Determinants'!$B$19:$Z$41,8,0)/'4. Billing Determinants'!$I$41*$D28, VLOOKUP(O$4,'4. Billing Determinants'!$B$19:$Z$41,3,0)/'4. Billing Determinants'!$D$41*$D28))))),0) -> 0 | P28: =IFERROR(IF(P$4="",0,IF($E28="kWh",VLOOKUP(P$4,'4. Billing Determinants'!$B$19:$Z$41,4,0)/'4. Billing Determinants'!$E$41*$D28,IF($E28="kW",VLOOKUP(P$4,'4. Billing Determinants'!$B$19:$Z$41,5,0)/'4. Billing Determinants'!$F$41*$D28,IF($E28="Non-RPP kWh",VLOOKUP(P$4,'4. Billing Determinants'!$B$19:$Z$41,6,0)/'4. Billing Determinants'!$G$41*$D28,IF($E28="Distribution Rev.",VLOOKUP(P$4,'4. Billing Determinants'!$B$19:$Z$41,8,0)/'4. Billing Determinants'!$I$41*$D28, VLOOKUP(P$4,'4. Billing Determinants'!$B$19:$Z$41,3,0)/'4. Billing Determinants'!$D$41*$D28))))),0) -> 0 | Q28: =IFERROR(IF(Q$4="",0,IF($E28="kWh",VLOOKUP(Q$4,'4. Billing Determinants'!$B$19:$Z$41,4,0)/'4. Billing Determinants'!$E$41*$D28,IF($E28="kW",VLOOKUP(Q$4,'4. Billing Determinants'!$B$19:$Z$41,5,0)/'4. Billing Determinants'!$F$41*$D28,IF($E28="Non-RPP kWh",VLOOKUP(Q$4,'4. Billing Determinants'!$B$19:$Z$41,6,0)/'4. Billing Determinants'!$G$41*$D28,IF($E28="Distribution Rev.",VLOOKUP(Q$4,'4. Billing Determinants'!$B$19:$Z$41,8,0)/'4. Billing Determinants'!$I$41*$D28, VLOOKUP(Q$4,'4. Billing Determinants'!$B$19:$Z$41,3,0)/'4. Billing Determinants'!$D$41*$D28))))),0) -> 0 | R28: =IFERROR(IF(R$4="",0,IF($E28="kWh",VLOOKUP(R$4,'4. Billing Determinants'!$B$19:$Z$41,4,0)/'4. Billing Determinants'!$E$41*$D28,IF($E28="kW",VLOOKUP(R$4,'4. Billing Determinants'!$B$19:$Z$41,5,0)/'4. Billing Determinants'!$F$41*$D28,IF($E28="Non-RPP kWh",VLOOKUP(R$4,'4. Billing Determinants'!$B$19:$Z$41,6,0)/'4. Billing Determinants'!$G$41*$D28,IF($E28="Distribution Rev.",VLOOKUP(R$4,'4. Billing Determinants'!$B$19:$Z$41,8,0)/'4. Billing Determinants'!$I$41*$D28, VLOOKUP(R$4,'4. Billing Determinants'!$B$19:$Z$41,3,0)/'4. Billing Determinants'!$D$41*$D28))))),0) -> 0 | S28: =IFERROR(IF(S$4="",0,IF($E28="kWh",VLOOKUP(S$4,'4. Billing Determinants'!$B$19:$Z$41,4,0)/'4. Billing Determinants'!$E$41*$D28,IF($E28="kW",VLOOKUP(S$4,'4. Billing Determinants'!$B$19:$Z$41,5,0)/'4. Billing Determinants'!$F$41*$D28,IF($E28="Non-RPP kWh",VLOOKUP(S$4,'4. Billing Determinants'!$B$19:$Z$41,6,0)/'4. Billing Determinants'!$G$41*$D28,IF($E28="Distribution Rev.",VLOOKUP(S$4,'4. Billing Determinants'!$B$19:$Z$41,8,0)/'4. Billing Determinants'!$I$41*$D28, VLOOKUP(S$4,'4. Billing Determinants'!$B$19:$Z$41,3,0)/'4. Billing Determinants'!$D$41*$D28))))),0) -> 0 | T28: =IFERROR(IF(T$4="",0,IF($E28="kWh",VLOOKUP(T$4,'4. Billing Determinants'!$B$19:$Z$41,4,0)/'4. Billing Determinants'!$E$41*$D28,IF($E28="kW",VLOOKUP(T$4,'4. Billing Determinants'!$B$19:$Z$41,5,0)/'4. Billing Determinants'!$F$41*$D28,IF($E28="Non-RPP kWh",VLOOKUP(T$4,'4. Billing Determinants'!$B$19:$Z$41,6,0)/'4. Billing Determinants'!$G$41*$D28,IF($E28="Distribution Rev.",VLOOKUP(T$4,'4. Billing Determinants'!$B$19:$Z$41,8,0)/'4. Billing Determinants'!$I$41*$D28, VLOOKUP(T$4,'4. Billing Determinants'!$B$19:$Z$41,3,0)/'4. Billing Determinants'!$D$41*$D28))))),0) -> 0 | U28: =IFERROR(IF(U$4="",0,IF($E28="kWh",VLOOKUP(U$4,'4. Billing Determinants'!$B$19:$Z$41,4,0)/'4. Billing Determinants'!$E$41*$D28,IF($E28="kW",VLOOKUP(U$4,'4. Billing Determinants'!$B$19:$Z$41,5,0)/'4. Billing Determinants'!$F$41*$D28,IF($E28="Non-RPP kWh",VLOOKUP(U$4,'4. Billing Determinants'!$B$19:$Z$41,6,0)/'4. Billing Determinants'!$G$41*$D28,IF($E28="Distribution Rev.",VLOOKUP(U$4,'4. Billing Determinants'!$B$19:$Z$41,8,0)/'4. Billing Determinants'!$I$41*$D28, VLOOKUP(U$4,'4. Billing Determinants'!$B$19:$Z$41,3,0)/'4. Billing Determinants'!$D$41*$D28))))),0) -> 0 | V28: =IFERROR(IF(V$4="",0,IF($E28="kWh",VLOOKUP(V$4,'4. Billing Determinants'!$B$19:$Z$41,4,0)/'4. Billing Determinants'!$E$41*$D28,IF($E28="kW",VLOOKUP(V$4,'4. Billing Determinants'!$B$19:$Z$41,5,0)/'4. Billing Determinants'!$F$41*$D28,IF($E28="Non-RPP kWh",VLOOKUP(V$4,'4. Billing Determinants'!$B$19:$Z$41,6,0)/'4. Billing Determinants'!$G$41*$D28,IF($E28="Distribution Rev.",VLOOKUP(V$4,'4. Billing Determinants'!$B$19:$Z$41,8,0)/'4. Billing Determinants'!$I$41*$D28, VLOOKUP(V$4,'4. Billing Determinants'!$B$19:$Z$41,3,0)/'4. Billing Determinants'!$D$41*$D28))))),0) -> 0 | W28: =IFERROR(IF(W$4="",0,IF($E28="kWh",VLOOKUP(W$4,'4. Billing Determinants'!$B$19:$Z$41,4,0)/'4. Billing Determinants'!$E$41*$D28,IF($E28="kW",VLOOKUP(W$4,'4. Billing Determinants'!$B$19:$Z$41,5,0)/'4. Billing Determinants'!$F$41*$D28,IF($E28="Non-RPP kWh",VLOOKUP(W$4,'4. Billing Determinants'!$B$19:$Z$41,6,0)/'4. Billing Determinants'!$G$41*$D28,IF($E28="Distribution Rev.",VLOOKUP(W$4,'4. Billing Determinants'!$B$19:$Z$41,8,0)/'4. Billing Determinants'!$I$41*$D28, VLOOKUP(W$4,'4. Billing Determinants'!$B$19:$Z$41,3,0)/'4. Billing Determinants'!$D$41*$D28))))),0) -> 0 | X28: =IFERROR(IF(X$4="",0,IF($E28="kWh",VLOOKUP(X$4,'4. Billing Determinants'!$B$19:$Z$41,4,0)/'4. Billing Determinants'!$E$41*$D28,IF($E28="kW",VLOOKUP(X$4,'4. Billing Determinants'!$B$19:$Z$41,5,0)/'4. Billing Determinants'!$F$41*$D28,IF($E28="Non-RPP kWh",VLOOKUP(X$4,'4. Billing Determinants'!$B$19:$Z$41,6,0)/'4. Billing Determinants'!$G$41*$D28,IF($E28="Distribution Rev.",VLOOKUP(X$4,'4. Billing Determinants'!$B$19:$Z$41,8,0)/'4. Billing Determinants'!$I$41*$D28, VLOOKUP(X$4,'4. Billing Determinants'!$B$19:$Z$41,3,0)/'4. Billing Determinants'!$D$41*$D28))))),0) -> 0 | Y28: =IFERROR(IF(Y$4="",0,IF($E28="kWh",VLOOKUP(Y$4,'4. Billing Determinants'!$B$19:$Z$41,4,0)/'4. Billing Determinants'!$E$41*$D28,IF($E28="kW",VLOOKUP(Y$4,'4. Billing Determinants'!$B$19:$Z$41,5,0)/'4. Billing Determinants'!$F$41*$D28,IF($E28="Non-RPP kWh",VLOOKUP(Y$4,'4. Billing Determinants'!$B$19:$Z$41,6,0)/'4. Billing Determinants'!$G$41*$D28,IF($E28="Distribution Rev.",VLOOKUP(Y$4,'4. Billing Determinants'!$B$19:$Z$41,8,0)/'4. Billing Determinants'!$I$41*$D28, VLOOKUP(Y$4,'4. Billing Determinants'!$B$19:$Z$41,3,0)/'4. Billing Determinants'!$D$41*$D28))))),0) -> 0
B29: Board-Approved CDM Variance Account | C29: 1567 | D29: ='2. 2015 Continuity Schedule'!BS71 -> 0 | E29: kWh | F29: =IFERROR(IF(F$4="",0,IF($E29="kWh",VLOOKUP(F$4,'4. Billing Determinants'!$B$19:$Z$41,4,0)/'4. Billing Determinants'!$E$41*$D29,IF($E29="kW",VLOOKUP(F$4,'4. Billing Determinants'!$B$19:$Z$41,5,0)/'4. Billing Determinants'!$F$41*$D29,IF($E29="Non-RPP kWh",VLOOKUP(F$4,'4. Billing Determinants'!$B$19:$Z$41,6,0)/'4. Billing Determinants'!$G$41*$D29,IF($E29="Distribution Rev.",VLOOKUP(F$4,'4. Billing Determinants'!$B$19:$Z$41,8,0)/'4. Billing Determinants'!$I$41*$D29, VLOOKUP(F$4,'4. Billing Determinants'!$B$19:$Z$41,3,0)/'4. Billing Determinants'!$D$41*$D29))))),0) -> 0 | G29: =IFERROR(IF(G$4="",0,IF($E29="kWh",VLOOKUP(G$4,'4. Billing Determinants'!$B$19:$Z$41,4,0)/'4. Billing Determinants'!$E$41*$D29,IF($E29="kW",VLOOKUP(G$4,'4. Billing Determinants'!$B$19:$Z$41,5,0)/'4. Billing Determinants'!$F$41*$D29,IF($E29="Non-RPP kWh",VLOOKUP(G$4,'4. Billing Determinants'!$B$19:$Z$41,6,0)/'4. Billing Determinants'!$G$41*$D29,IF($E29="Distribution Rev.",VLOOKUP(G$4,'4. Billing Determinants'!$B$19:$Z$41,8,0)/'4. Billing Determinants'!$I$41*$D29, VLOOKUP(G$4,'4. Billing Determinants'!$B$19:$Z$41,3,0)/'4. Billing Determinants'!$D$41*$D29))))),0) -> 0 | H29: =IFERROR(IF(H$4="",0,IF($E29="kWh",VLOOKUP(H$4,'4. Billing Determinants'!$B$19:$Z$41,4,0)/'4. Billing Determinants'!$E$41*$D29,IF($E29="kW",VLOOKUP(H$4,'4. Billing Determinants'!$B$19:$Z$41,5,0)/'4. Billing Determinants'!$F$41*$D29,IF($E29="Non-RPP kWh",VLOOKUP(H$4,'4. Billing Determinants'!$B$19:$Z$41,6,0)/'4. Billing Determinants'!$G$41*$D29,IF($E29="Distribution Rev.",VLOOKUP(H$4,'4. Billing Determinants'!$B$19:$Z$41,8,0)/'4. Billing Determinants'!$I$41*$D29, VLOOKUP(H$4,'4. Billing Determinants'!$B$19:$Z$41,3,0)/'4. Billing Determinants'!$D$41*$D29))))),0) -> 0 | I29: =IFERROR(IF(I$4="",0,IF($E29="kWh",VLOOKUP(I$4,'4. Billing Determinants'!$B$19:$Z$41,4,0)/'4. Billing Determinants'!$E$41*$D29,IF($E29="kW",VLOOKUP(I$4,'4. Billing Determinants'!$B$19:$Z$41,5,0)/'4. Billing Determinants'!$F$41*$D29,IF($E29="Non-RPP kWh",VLOOKUP(I$4,'4. Billing Determinants'!$B$19:$Z$41,6,0)/'4. Billing Determinants'!$G$41*$D29,IF($E29="Distribution Rev.",VLOOKUP(I$4,'4. Billing Determinants'!$B$19:$Z$41,8,0)/'4. Billing Determinants'!$I$41*$D29, VLOOKUP(I$4,'4. Billing Determinants'!$B$19:$Z$41,3,0)/'4. Billing Determinants'!$D$41*$D29))))),0) -> 0 | J29: =IFERROR(IF(J$4="",0,IF($E29="kWh",VLOOKUP(J$4,'4. Billing Determinants'!$B$19:$Z$41,4,0)/'4. Billing Determinants'!$E$41*$D29,IF($E29="kW",VLOOKUP(J$4,'4. Billing Determinants'!$B$19:$Z$41,5,0)/'4. Billing Determinants'!$F$41*$D29,IF($E29="Non-RPP kWh",VLOOKUP(J$4,'4. Billing Determinants'!$B$19:$Z$41,6,0)/'4. Billing Determinants'!$G$41*$D29,IF($E29="Distribution Rev.",VLOOKUP(J$4,'4. Billing Determinants'!$B$19:$Z$41,8,0)/'4. Billing Determinants'!$I$41*$D29, VLOOKUP(J$4,'4. Billing Determinants'!$B$19:$Z$41,3,0)/'4. Billing Determinants'!$D$41*$D29))))),0) -> 0 | K29: =IFERROR(IF(K$4="",0,IF($E29="kWh",VLOOKUP(K$4,'4. Billing Determinants'!$B$19:$Z$41,4,0)/'4. Billing Determinants'!$E$41*$D29,IF($E29="kW",VLOOKUP(K$4,'4. Billing Determinants'!$B$19:$Z$41,5,0)/'4. Billing Determinants'!$F$41*$D29,IF($E29="Non-RPP kWh",VLOOKUP(K$4,'4. Billing Determinants'!$B$19:$Z$41,6,0)/'4. Billing Determinants'!$G$41*$D29,IF($E29="Distribution Rev.",VLOOKUP(K$4,'4. Billing Determinants'!$B$19:$Z$41,8,0)/'4. Billing Determinants'!$I$41*$D29, VLOOKUP(K$4,'4. Billing Determinants'!$B$19:$Z$41,3,0)/'4. Billing Determinants'!$D$41*$D29))))),0) -> 0 | L29: =IFERROR(IF(L$4="",0,IF($E29="kWh",VLOOKUP(L$4,'4. Billing Determinants'!$B$19:$Z$41,4,0)/'4. Billing Determinants'!$E$41*$D29,IF($E29="kW",VLOOKUP(L$4,'4. Billing Determinants'!$B$19:$Z$41,5,0)/'4. Billing Determinants'!$F$41*$D29,IF($E29="Non-RPP kWh",VLOOKUP(L$4,'4. Billing Determinants'!$B$19:$Z$41,6,0)/'4. Billing Determinants'!$G$41*$D29,IF($E29="Distribution Rev.",VLOOKUP(L$4,'4. Billing Determinants'!$B$19:$Z$41,8,0)/'4. Billing Determinants'!$I$41*$D29, VLOOKUP(L$4,'4. Billing Determinants'!$B$19:$Z$41,3,0)/'4. Billing Determinants'!$D$41*$D29))))),0) -> 0 | M29: =IFERROR(IF(M$4="",0,IF($E29="kWh",VLOOKUP(M$4,'4. Billing Determinants'!$B$19:$Z$41,4,0)/'4. Billing Determinants'!$E$41*$D29,IF($E29="kW",VLOOKUP(M$4,'4. Billing Determinants'!$B$19:$Z$41,5,0)/'4. Billing Determinants'!$F$41*$D29,IF($E29="Non-RPP kWh",VLOOKUP(M$4,'4. Billing Determinants'!$B$19:$Z$41,6,0)/'4. Billing Determinants'!$G$41*$D29,IF($E29="Distribution Rev.",VLOOKUP(M$4,'4. Billing Determinants'!$B$19:$Z$41,8,0)/'4. Billing Determinants'!$I$41*$D29, VLOOKUP(M$4,'4. Billing Determinants'!$B$19:$Z$41,3,0)/'4. Billing Determinants'!$D$41*$D29))))),0) -> 0 | N29: =IFERROR(IF(N$4="",0,IF($E29="kWh",VLOOKUP(N$4,'4. Billing Determinants'!$B$19:$Z$41,4,0)/'4. Billing Determinants'!$E$41*$D29,IF($E29="kW",VLOOKUP(N$4,'4. Billing Determinants'!$B$19:$Z$41,5,0)/'4. Billing Determinants'!$F$41*$D29,IF($E29="Non-RPP kWh",VLOOKUP(N$4,'4. Billing Determinants'!$B$19:$Z$41,6,0)/'4. Billing Determinants'!$G$41*$D29,IF($E29="Distribution Rev.",VLOOKUP(N$4,'4. Billing Determinants'!$B$19:$Z$41,8,0)/'4. Billing Determinants'!$I$41*$D29, VLOOKUP(N$4,'4. Billing Determinants'!$B$19:$Z$41,3,0)/'4. Billing Determinants'!$D$41*$D29))))),0) -> 0 | O29: =IFERROR(IF(O$4="",0,IF($E29="kWh",VLOOKUP(O$4,'4. Billing Determinants'!$B$19:$Z$41,4,0)/'4. Billing Determinants'!$E$41*$D29,IF($E29="kW",VLOOKUP(O$4,'4. Billing Determinants'!$B$19:$Z$41,5,0)/'4. Billing Determinants'!$F$41*$D29,IF($E29="Non-RPP kWh",VLOOKUP(O$4,'4. Billing Determinants'!$B$19:$Z$41,6,0)/'4. Billing Determinants'!$G$41*$D29,IF($E29="Distribution Rev.",VLOOKUP(O$4,'4. Billing Determinants'!$B$19:$Z$41,8,0)/'4. Billing Determinants'!$I$41*$D29, VLOOKUP(O$4,'4. Billing Determinants'!$B$19:$Z$41,3,0)/'4. Billing Determinants'!$D$41*$D29))))),0) -> 0 | P29: =IFERROR(IF(P$4="",0,IF($E29="kWh",VLOOKUP(P$4,'4. Billing Determinants'!$B$19:$Z$41,4,0)/'4. Billing Determinants'!$E$41*$D29,IF($E29="kW",VLOOKUP(P$4,'4. Billing Determinants'!$B$19:$Z$41,5,0)/'4. Billing Determinants'!$F$41*$D29,IF($E29="Non-RPP kWh",VLOOKUP(P$4,'4. Billing Determinants'!$B$19:$Z$41,6,0)/'4. Billing Determinants'!$G$41*$D29,IF($E29="Distribution Rev.",VLOOKUP(P$4,'4. Billing Determinants'!$B$19:$Z$41,8,0)/'4. Billing Determinants'!$I$41*$D29, VLOOKUP(P$4,'4. Billing Determinants'!$B$19:$Z$41,3,0)/'4. Billing Determinants'!$D$41*$D29))))),0) -> 0 | Q29: =IFERROR(IF(Q$4="",0,IF($E29="kWh",VLOOKUP(Q$4,'4. Billing Determinants'!$B$19:$Z$41,4,0)/'4. Billing Determinants'!$E$41*$D29,IF($E29="kW",VLOOKUP(Q$4,'4. Billing Determinants'!$B$19:$Z$41,5,0)/'4. Billing Determinants'!$F$41*$D29,IF($E29="Non-RPP kWh",VLOOKUP(Q$4,'4. Billing Determinants'!$B$19:$Z$41,6,0)/'4. Billing Determinants'!$G$41*$D29,IF($E29="Distribution Rev.",VLOOKUP(Q$4,'4. Billing Determinants'!$B$19:$Z$41,8,0)/'4. Billing Determinants'!$I$41*$D29, VLOOKUP(Q$4,'4. Billing Determinants'!$B$19:$Z$41,3,0)/'4. Billing Determinants'!$D$41*$D29))))),0) -> 0 | R29: =IFERROR(IF(R$4="",0,IF($E29="kWh",VLOOKUP(R$4,'4. Billing Determinants'!$B$19:$Z$41,4,0)/'4. Billing Determinants'!$E$41*$D29,IF($E29="kW",VLOOKUP(R$4,'4. Billing Determinants'!$B$19:$Z$41,5,0)/'4. Billing Determinants'!$F$41*$D29,IF($E29="Non-RPP kWh",VLOOKUP(R$4,'4. Billing Determinants'!$B$19:$Z$41,6,0)/'4. Billing Determinants'!$G$41*$D29,IF($E29="Distribution Rev.",VLOOKUP(R$4,'4. Billing Determinants'!$B$19:$Z$41,8,0)/'4. Billing Determinants'!$I$41*$D29, VLOOKUP(R$4,'4. Billing Determinants'!$B$19:$Z$41,3,0)/'4. Billing Determinants'!$D$41*$D29))))),0) -> 0 | S29: =IFERROR(IF(S$4="",0,IF($E29="kWh",VLOOKUP(S$4,'4. Billing Determinants'!$B$19:$Z$41,4,0)/'4. Billing Determinants'!$E$41*$D29,IF($E29="kW",VLOOKUP(S$4,'4. Billing Determinants'!$B$19:$Z$41,5,0)/'4. Billing Determinants'!$F$41*$D29,IF($E29="Non-RPP kWh",VLOOKUP(S$4,'4. Billing Determinants'!$B$19:$Z$41,6,0)/'4. Billing Determinants'!$G$41*$D29,IF($E29="Distribution Rev.",VLOOKUP(S$4,'4. Billing Determinants'!$B$19:$Z$41,8,0)/'4. Billing Determinants'!$I$41*$D29, VLOOKUP(S$4,'4. Billing Determinants'!$B$19:$Z$41,3,0)/'4. Billing Determinants'!$D$41*$D29))))),0) -> 0 | T29: =IFERROR(IF(T$4="",0,IF($E29="kWh",VLOOKUP(T$4,'4. Billing Determinants'!$B$19:$Z$41,4,0)/'4. Billing Determinants'!$E$41*$D29,IF($E29="kW",VLOOKUP(T$4,'4. Billing Determinants'!$B$19:$Z$41,5,0)/'4. Billing Determinants'!$F$41*$D29,IF($E29="Non-RPP kWh",VLOOKUP(T$4,'4. Billing Determinants'!$B$19:$Z$41,6,0)/'4. Billing Determinants'!$G$41*$D29,IF($E29="Distribution Rev.",VLOOKUP(T$4,'4. Billing Determinants'!$B$19:$Z$41,8,0)/'4. Billing Determinants'!$I$41*$D29, VLOOKUP(T$4,'4. Billing Determinants'!$B$19:$Z$41,3,0)/'4. Billing Determinants'!$D$41*$D29))))),0) -> 0 | U29: =IFERROR(IF(U$4="",0,IF($E29="kWh",VLOOKUP(U$4,'4. Billing Determinants'!$B$19:$Z$41,4,0)/'4. Billing Determinants'!$E$41*$D29,IF($E29="kW",VLOOKUP(U$4,'4. Billing Determinants'!$B$19:$Z$41,5,0)/'4. Billing Determinants'!$F$41*$D29,IF($E29="Non-RPP kWh",VLOOKUP(U$4,'4. Billing Determinants'!$B$19:$Z$41,6,0)/'4. Billing Determinants'!$G$41*$D29,IF($E29="Distribution Rev.",VLOOKUP(U$4,'4. Billing Determinants'!$B$19:$Z$41,8,0)/'4. Billing Determinants'!$I$41*$D29, VLOOKUP(U$4,'4. Billing Determinants'!$B$19:$Z$41,3,0)/'4. Billing Determinants'!$D$41*$D29))))),0) -> 0 | V29: =IFERROR(IF(V$4="",0,IF($E29="kWh",VLOOKUP(V$4,'4. Billing Determinants'!$B$19:$Z$41,4,0)/'4. Billing Determinants'!$E$41*$D29,IF($E29="kW",VLOOKUP(V$4,'4. Billing Determinants'!$B$19:$Z$41,5,0)/'4. Billing Determinants'!$F$41*$D29,IF($E29="Non-RPP kWh",VLOOKUP(V$4,'4. Billing Determinants'!$B$19:$Z$41,6,0)/'4. Billing Determinants'!$G$41*$D29,IF($E29="Distribution Rev.",VLOOKUP(V$4,'4. Billing Determinants'!$B$19:$Z$41,8,0)/'4. Billing Determinants'!$I$41*$D29, VLOOKUP(V$4,'4. Billing Determinants'!$B$19:$Z$41,3,0)/'4. Billing Determinants'!$D$41*$D29))))),0) -> 0 | W29: =IFERROR(IF(W$4="",0,IF($E29="kWh",VLOOKUP(W$4,'4. Billing Determinants'!$B$19:$Z$41,4,0)/'4. Billing Determinants'!$E$41*$D29,IF($E29="kW",VLOOKUP(W$4,'4. Billing Determinants'!$B$19:$Z$41,5,0)/'4. Billing Determinants'!$F$41*$D29,IF($E29="Non-RPP kWh",VLOOKUP(W$4,'4. Billing Determinants'!$B$19:$Z$41,6,0)/'4. Billing Determinants'!$G$41*$D29,IF($E29="Distribution Rev.",VLOOKUP(W$4,'4. Billing Determinants'!$B$19:$Z$41,8,0)/'4. Billing Determinants'!$I$41*$D29, VLOOKUP(W$4,'4. Billing Determinants'!$B$19:$Z$41,3,0)/'4. Billing Determinants'!$D$41*$D29))))),0) -> 0 | X29: =IFERROR(IF(X$4="",0,IF($E29="kWh",VLOOKUP(X$4,'4. Billing Determinants'!$B$19:$Z$41,4,0)/'4. Billing Determinants'!$E$41*$D29,IF($E29="kW",VLOOKUP(X$4,'4. Billing Determinants'!$B$19:$Z$41,5,0)/'4. Billing Determinants'!$F$41*$D29,IF($E29="Non-RPP kWh",VLOOKUP(X$4,'4. Billing Determinants'!$B$19:$Z$41,6,0)/'4. Billing Determinants'!$G$41*$D29,IF($E29="Distribution Rev.",VLOOKUP(X$4,'4. Billing Determinants'!$B$19:$Z$41,8,0)/'4. Billing Determinants'!$I$41*$D29, VLOOKUP(X$4,'4. Billing Determinants'!$B$19:$Z$41,3,0)/'4. Billing Determinants'!$D$41*$D29))))),0) -> 0 | Y29: =IFERROR(IF(Y$4="",0,IF($E29="kWh",VLOOKUP(Y$4,'4. Billing Determinants'!$B$19:$Z$41,4,0)/'4. Billing Determinants'!$E$41*$D29,IF($E29="kW",VLOOKUP(Y$4,'4. Billing Determinants'!$B$19:$Z$41,5,0)/'4. Billing Determinants'!$F$41*$D29,IF($E29="Non-RPP kWh",VLOOKUP(Y$4,'4. Billing Determinants'!$B$19:$Z$41,6,0)/'4. Billing Determinants'!$G$41*$D29,IF($E29="Distribution Rev.",VLOOKUP(Y$4,'4. Billing Determinants'!$B$19:$Z$41,8,0)/'4. Billing Determinants'!$I$41*$D29, VLOOKUP(Y$4,'4. Billing Determinants'!$B$19:$Z$41,3,0)/'4. Billing Determinants'!$D$41*$D29))))),0) -> 0
